Workbook

Sheet Cover

Sheet Índice

Sheet Index

Sheet Dados Operacionais
B9: 1T12 | C9: 2T12 | D9: 3T12 | E9: 4T12 | F9: 2012 | G9: 1T13 | H9: 2T13 | I9: 3T13 | J9: 4T13 | K9: 2013 | L9: 1T14 | M9: 2T14 | N9: 3T14 | O9: 4T14 | P9: 2014 | Q9: 1T15 | R9: 2T15 | S9: 3T15 | T9: 4T15 | U9: 2015 | V9: 1T16 | W9: 2T16 | X9: 3T16 | Y9: 4T16 | Z9: 2016 | AA9: 1T17 | AB9: 2T17 | AC9: 3T17 | AD9: 4T17 | AE9: 2017 | AF9: 1T18 | AG9: 2T18 | AH9: 3T18 | AI9: 4T18 | AJ9: 2018 | AK9: 1T19 | AL9: 2T19 | AM9: 3T19 | AN9: 4T19 | AO9: 2019 | AP9: 1T20 | AQ9: 2T20 | AR9: 3T20 | AS9: 4T20 | AT9: 2020
A11: TERMINAIS PORTUÁRIOS
A12: Total movimentado - Contêineres | B12: =B26+B32+B37 -> 243047 | C12: 279375 | D12: 305240 | E12: 310911 | F12: 1142368 | G12: 281714 | H12: 308439 | I12: 314552 | J12: 267660 | K12: 1177247 | L12: 251949 | M12: 258657 | N12: 227978 | O12: 218989 | P12: 958502 | Q12: 208488 | R12: 228169 | S12: 235853 | T12: 247412 | U12: 923092 | V12: 228228 | W12: 245074 | X12: 275682 | Y12: 267983 | Z12: 1016394 | AA12: 251807 | AB12: 229425 | AC12: 238559 | AD12: 248903 | AE12: 968694 | AF12: 253157 | AG12: 266121 | AH12: 288798 | AI12: 276411 | AJ12: 1084487 | AK12: 254929 | AL12: 320079 | AM12: 304143 | AN12: 289863 | AO12: 1169014 | AP12: 265321 | AQ12: =AQ26+AQ32+AQ37 -> 256725 | AR12: 254211 | AS12: =AS26+AS32+AS37 -> 302735 | AT12: 1078992
A13: Contêiner cheio | B13: =+B27+B33+B38 -> 181284.1316 | C13: 214878.5805 | D13: 230282.1385 | E13: 236365.3408 | F13: 863477 | G13: 215966.9127 | H13: 222299.4909 | I13: 237930.8372 | J13: 197109.8212 | K13: 874511 | L13: 178181.1411 | M13: 185630.9472 | N13: 177345.6056 | O13: 161853.3252 | P13: 704197.4174 | Q13: 154960.4919 | R13: 169173.0563 | S13: 186768.8735 | T13: 196700.0088 | U13: 709105.5363 | V13: 172815 | W13: 188558 | X13: 211846 | Y13: 209942 | Z13: 783094 | AA13: 197334 | AB13: 181427 | AC13: 193447 | AD13: 192000 | AE13: 764208 | AF13: 193755 | AG13: 202984 | AH13: 226448 | AI13: 214110 | AJ13: 837297 | AK13: 200651 | AL13: 241737 | AM13: 234865 | AN13: 220793 | AO13: 898046 | AP13: 204757 | AQ13: =+AQ27+AQ33+AQ38 -> 187514 | AR13: 185389 | AS13: =+AS27+AS33+AS38 -> 229628 | AT13: 807288
A14: Contêiner vazio | B14: =+B28+B34+B39 -> 61762.8684 | C14: 64496.4195 | D14: 74957.8615 | E14: 74545.6592 | F14: 278891 | G14: 65747.0873 | H14: 86139.5091 | I14: 76621.1628 | J14: 70550.1788 | K14: 302736 | L14: 73767.8589 | M14: 73026.0528 | N14: 50632.3944 | O14: 57135.6748 | P14: 254304.5826 | Q14: 53527.5081 | R14: 58995.9437 | S14: 49084.1265 | T14: 50711.9912 | U14: 213986.4637 | V14: 55413 | W14: 56516 | X14: 63836 | Y14: 58041 | Z14: 233300 | AA14: 54473 | AB14: 47998 | AC14: 45112 | AD14: 56903 | AE14: 204486 | AF14: 59402 | AG14: 63137 | AH14: 62350 | AI14: 62301 | AJ14: 247190 | AK14: 54278 | AL14: 78342 | AM14: 69278 | AN14: 69070 | AO14: 270968 | AP14: 60564 | AQ14: =+AQ28+AQ34+AQ39 -> 69211 | AR14: 68822 | AS14: =+AS28+AS34+AS39 -> 73107 | AT14: 271704
A15: % Contêiner cheio | B15: =B13/B12 -> 0.7458809679 | C15: =C13/C12 -> 0.7691403329 | D15: 0.7544297553 | E15: 0.7602347321 | F15: 0.7558658856 | G15: 0.7666176076 | H15: 0.7207243277 | I15: 0.7564117767 | J15: 0.73641867 | K15: 0.74284411 | L15: 0.7072111463 | M15: 0.7176722347 | N15: 0.7779066647 | O15: 0.7390934029 | P15: 0.7346853918 | Q15: 0.743258566 | R15: 0.7414375147 | S15: 0.7918867833 | T15: 0.7950301877 | U15: 0.7681851173 | V15: 0.757203323 | W15: 0.769392102 | X15: 0.7684433514 | Y15: 0.7834153659 | Z15: 0.7704630291 | AA15: 0.7836716215 | AB15: 0.7907900185 | AC15: 0.810897933 | AD15: 0.7713848367 | AE15: 0.7889054748 | AF15: 0.7653550958 | AG15: 0.7627507788 | AH15: 0.7841051531 | AI15: 0.7746073781 | AJ15: 0.7720673461 | AK15: 0.7870858161 | AL15: 0.7552416747 | AM15: 0.7722189891 | AN15: 0.7617150171 | AO15: 0.7682080796 | AP15: 0.7717331082 | AQ15: =AQ13/AQ12 -> 0.7304080242 | AR15: 0.7292721401 | AS15: =AS13/AS12 -> 0.7585115695 | AT15: 0.7481871969
A17: Total movimentado - Carga geral (ton) | B17: =SUM(B18:B20) -> 8007 | C17: 7925 | D17: 4320 | E17: 1650 | F17: 21902 | G17: 23473 | H17: 8555 | I17: 23527 | J17: 26215 | K17: 81770 | L17: 20095 | M17: 24896 | N17: 18448 | O17: 15126 | P17: 78565 | Q17: 27579 | R17: 96651 | S17: 33742 | T17: 3738 | U17: 161710 | V17: 8515 | W17: 36790 | X17: 29377 | Y17: 28301 | Z17: 102983 | AA17: 13269 | AB17: 10854 | AC17: 26867 | AD17: 5545.6 | AE17: 56535.6 | AF17: 37170 | AG17: 46095 | AH17: 39527 | AI17: =SUM(AI18:AI20) -> 13175 | AJ17: 135967 | AK17: =SUM(AK18:AK20) -> 68425 | AL17: 94676 | AM17: =SUM(AM18:AM20) -> 12621 | AN17: 16023 | AO17: 191745 | AP17: =SUM(AP18:AP20) -> 16725 | AQ17: 81086.245 | AR17: 84802 | AS17: =SUM(AS18:AS20) -> 98810 | AT17: 281423.245
A18: Tecon Santos | B18: 0 | C18: 0 | D18: 0 | E18: 0 | F18: =SUM(B18:E18) -> 0 | G18: 0 | H18: 0 | I18: 0 | J18: 0 | K18: =SUM(G18:J18) -> 0 | L18: 0 | M18: 0 | N18: 0 | O18: 0 | P18: =SUM(L18:O18) -> 0 | Q18: 0 | R18: 0 | S18: 0 | T18: 0 | U18: =SUM(Q18:T18) -> 0 | V18: 0 | W18: 0 | X18: 0 | Y18: 0 | Z18: =SUM(V18:Y18) -> 0 | AA18: 0 | AB18: 0 | AC18: 0 | AD18: 0 | AE18: =SUM(AA18:AD18) -> 0 | AF18: 0 | AG18: 0 | AH18: 0 | AI18: 0 | AJ18: =SUM(AF18:AI18) -> 0 | AK18: 0 | AL18: 0 | AM18: 0 | AN18: 0 | AO18: =SUM(AK18:AN18) -> 0 | AP18: 0 | AQ18: 0 | AR18: 0 | AS18: 0 | AT18: =SUM(AP18:AS18) -> 0
A19: Tecon Imbituba | B19: 679 | C19: 1197 | D19: 287 | E19: 357 | F19: =SUM(B19:E19) -> 2520 | G19: 19036 | H19: 6238 | I19: 22956 | J19: 25636 | K19: =SUM(G19:J19) -> 73866 | L19: 18556 | M19: 20279 | N19: 13959 | O19: 12314 | P19: =SUM(L19:O19) -> 65108 | Q19: 17947 | R19: 93978 | S19: 33381 | T19: 3738 | U19: =SUM(Q19:T19) -> 149044 | V19: 8515 | W19: 36790 | X19: 14184 | Y19: 27597 | Z19: =SUM(V19:Y19) -> 87086 | AA19: 13139 | AB19: 10854 | AC19: 26867 | AD19: 5461 | AE19: =SUM(AA19:AD19) -> 56321 | AF19: 37077 | AG19: 45288 | AH19: 39460 | AI19: 13124 | AJ19: =SUM(AF19:AI19) -> 134949 | AK19: 68425 | AL19: 94676 | AM19: 11042 | AN19: 16023 | AO19: =SUM(AK19:AN19) -> 190166 | AP19: 16698 | AQ19: 81086.245 | AR19: 84802 | AS19: 98758 | AT19: =SUM(AP19:AS19) -> 281344.245
A20: Tecon Vila do Conde | B20: 7328 | C20: 6728 | D20: 4033 | E20: 1293 | F20: 19382 | G20: 4437 | H20: 2317 | I20: 571 | J20: 579 | K20: 7904 | L20: 1539 | M20: 4617 | N20: 4489 | O20: 2812 | P20: 13457 | Q20: 9632 | R20: 2673 | S20: 361 | T20: 0 | U20: 12666 | V20: 0 | W20: 0 | X20: 15193 | Y20: 704 | Z20: 15897 | AA20: 130 | AB20: 0 | AC20: 0 | AD20: 84.6 | AE20: 214.6 | AF20: 93 | AG20: 807 | AH20: 67 | AI20: 51 | AJ20: 1018 | AK20: 0 | AL20: 0 | AM20: 1579 | AN20: 0 | AO20: 1579 | AP20: 27 | AQ20: 0 | AR20: 0 | AS20: 52 | AT20: 79
A22: Armazenagem Terminais (# cntrs) | B22: 36797 | C22: 41876 | D22: 47698 | E22: 46186 | F22: =SUM(B22:E22) -> 172557 | G22: 50140 | H22: 50285 | I22: 47733 | J22: 35653 | K22: =SUM(G22:J22) -> 183811 | L22: 34987 | M22: 33132 | N22: 31142 | O22: 26449 | P22: =SUM(L22:O22) -> 125710 | Q22: 27802 | R22: 27822 | S22: 28385 | T22: 26866 | U22: =SUM(Q22:T22) -> 110875 | V22: 24593 | W22: 27445 | X22: 34862 | Y22: 32609 | Z22: =SUM(V22:Y22) -> 119509 | AA22: 33155 | AB22: 29432 | AC22: 29774 | AD22: 31065 | AE22: =SUM(AA22:AD22) -> 123426 | AF22: 26791 | AG22: 28083 | AH22: 33454 | AI22: 27181 | AJ22: =SUM(AF22:AI22) -> 115509 | AK22: 29738 | AL22: 36978 | AM22: 38125 | AN22: 36168 | AO22: =SUM(AK22:AN22) -> 141009 | AP22: 34620 | AQ22: 27935 | AR22: 26750 | AS22: 38302 | AT22: =SUM(AP22:AS22) -> 127607
A23: Dwell time importação (dias) | B23: 15.2 | C23: 16.2 | D23: 16 | E23: 14.8 | G23: 15.9 | H23: 12.8 | I23: 13.8 | J23: 13.9 | L23: 16.1 | M23: 12.7 | N23: 13.2 | O23: 12.2 | Q23: 13.9 | R23: 14.9 | S23: 13.1 | T23: 15.6 | V23: 12.5 | W23: 12 | X23: 13.9 | Y23: 13.4 | AA23: 14.8 | AB23: 12.8 | AC23: 11.8 | AD23: 12.7 | AF23: 11.9 | AG23: 14.3 | AH23: 14.1 | AI23: 13.5 | AK23: 12.8 | AL23: 11.7 | AM23: 10.5 | AN23: 10.9 | AP23: 12 | AQ23: 12.8 | AR23: 9.5 | AS23: 9
A25: Tecon Santos
A26: Total movimentado (# cntrs) | B26: =B27+B28 -> 235803 | C26: =C27+C28 -> 270101 | D26: 294869 | E26: 297869 | F26: 1102461 | G26: 273437 | H26: 299665 | I26: 304346 | J26: 258562 | K26: 1140773 | L26: 238146 | M26: 238343 | N26: 208892 | O26: 202340 | P26: 887721 | Q26: 189264 | R26: 211973 | S26: 218123 | T26: 230101 | U26: =U27+U28 -> 849461 | V26: 208953 | W26: 222586 | X26: 251998 | Y26: 242660 | Z26: 926197 | AA26: 226973 | AB26: 204573 | AC26: 204699 | AD26: 214429 | AE26: 850674 | AF26: 215367 | AG26: 228870 | AH26: 241892 | AI26: 231198 | AJ26: 917327 | AK26: 218533 | AL26: 282496 | AM26: 262993 | AN26: 252771 | AO26: 1016793 | AP26: 233779 | AQ26: =AQ27+AQ28 -> 220362 | AR26: 214857 | AS26: =AS27+AS28 -> 268426 | AT26: 937424
A27: Contêiner cheio | B27: 177040.8924 | C27: 209355.2851 | D27: 224306.8483 | E27: 228346.3754 | F27: 839760 | G27: 211120.7077 | H27: 217227.1585 | I27: 232094.2596 | J27: 191568.5858 | K27: 853150 | L27: 169536.1374 | M27: 171511.6228 | N27: 164732.2312 | O27: 151532.426 | P27: =SUM(L27:O27) -> 657312.4174 | Q27: 143840.64 | R27: 158979.75 | S27: 176832.3161 | T27: 186427.8302 | U27: =SUM(Q27:T27) -> 666080.5363 | V27: 162660 | W27: 176657 | X27: 199187 | Y27: 196127 | Z27: 734631 | AA27: 182942 | AB27: 167538 | AC27: 174513 | AD27: 172856 | AE27: 697849 | AF27: 171817 | AG27: 181753 | AH27: 199386 | AI27: 189282 | AJ27: 742238 | AK27: 179609 | AL27: 220669 | AM27: 211968 | AN27: 199154 | AO27: 811400 | AP27: 184699 | AQ27: 166949 | AR27: 162656 | AS27: 208928 | AT27: =SUM(AP27:AS27) -> 723232
A28: Contêiner vazio | B28: 58762.1076 | C28: 60745.7149 | D28: 70562.1517 | E28: 69522.6246 | F28: 262701 | G28: 62316.2923 | H28: 82437.8415 | I28: 72251.7404 | J28: 66993.4142 | K28: 287623 | L28: 68609.8626 | M28: 66831.3772 | N28: 44159.7688 | O28: 50807.574 | P28: =SUM(L28:O28) -> 230408.5826 | Q28: 45423.36 | R28: 52993.25 | S28: 41290.6839 | T28: 43673.1698 | U28: =SUM(Q28:T28) -> 183380.4637 | V28: 46293 | W28: 45929 | X28: 52811 | Y28: 46533 | Z28: 191566 | AA28: 44031 | AB28: 37035 | AC28: 30186 | AD28: 41573 | AE28: 152825 | AF28: 43550 | AG28: 47117 | AH28: 42506 | AI28: 41916 | AJ28: 175089 | AK28: 38924 | AL28: 61827 | AM28: 51025 | AN28: 53617 | AO28: 205393 | AP28: 49080 | AQ28: 53413 | AR28: 52201 | AS28: 59498 | AT28: =SUM(AP28:AS28) -> 214192
A29: Contêiner cheio de importação | B29: 76522 | C29: 91090 | D29: 95268 | E29: 93234 | F29: =SUM(B29:E29) -> 356114 | G29: 92403 | H29: 92529 | I29: 83542 | J29: 57106 | K29: =SUM(G29:J29) -> 325580 | L29: 61639 | M29: 59043 | N29: 55673 | O29: 51843 | P29: =SUM(L29:O29) -> 228198 | Q29: 52171 | R29: 52960 | S29: 51965 | T29: 46846 | U29: =SUM(Q29:T29) -> 203942 | V29: 45155 | W29: 49947 | X29: 59711 | Y29: 56864 | Z29: =SUM(V29:Y29) -> 211677 | AA29: 53387 | AB29: 46078 | AC29: 45708 | AD29: 42609 | AE29: =SUM(AA29:AD29) -> 187782 | AF29: 38699 | AG29: 40895 | AH29: 49346 | AI29: 39579 | AJ29: 168519 | AK29: 47147 | AL29: 58573 | AM29: 66328 | AN29: 58177 | AO29: 230225 | AP29: 53129 | AQ29: 45977 | AR29: 44533 | AS29: 44534 | AT29: =SUM(AP29:AS29) -> 188173
A31: Tecon Imbituba
A32: Total movimentado (# cntrs) | B32: =B33+B34 -> 1944 | C32: =C33+C34 -> 3910 | D32: =D33+D34 -> 4261 | E32: =E33+E34 -> 5926 | F32: =F33+F34 -> 16041 | G32: =G33+G34 -> 3161 | H32: =H33+H34 -> 3225 | I32: =I33+I34 -> 2744 | J32: =J33+J34 -> 2332 | K32: =K33+K34 -> 11466 | L32: =L33+L34 -> 5070 | M32: =M33+M34 -> 12396 | N32: =N33+N34 -> 8638 | O32: =O33+O34 -> 5631 | P32: =P33+P34 -> 32046 | Q32: =Q33+Q34 -> 6597 | R32: =R33+R34 -> 5949 | S32: =S33+S34 -> 6494 | T32: =T33+T34 -> 6395 | U32: =U33+U34 -> 25373 | V32: =V33+V34 -> 5825 | W32: =W33+W34 -> 5542 | X32: =X33+X34 -> 6728 | Y32: =Y33+Y34 -> 6316 | Z32: =Z33+Z34 -> 24411 | AA32: =AA33+AA34 -> 7476 | AB32: =AB33+AB34 -> 7648 | AC32: =AC33+AC34 -> 12579 | AD32: =AD33+AD34 -> 12494 | AE32: =AE33+AE34 -> 40197 | AF32: =AF33+AF34 -> 13798 | AG32: =AG33+AG34 -> 14723 | AH32: =AH33+AH34 -> 19991 | AI32: =AI33+AI34 -> 15782 | AJ32: =AJ33+AJ34 -> 64294 | AK32: =AK33+AK34 -> 12649 | AL32: =AL33+AL34 -> 10313 | AM32: =AM33+AM34 -> 11740 | AN32: =AN33+AN34 -> 13257 | AO32: =AO33+AO34 -> 47959 | AP32: =AP33+AP34 -> 10211 | AQ32: 10789 | AR32: 13005 | AS32: =AS33+AS34 -> 7673 | AT32: 41678
A33: Contêiner cheio | B33: 1305.9792 | C33: 2390.183 | D33: 2583.0182 | E33: 3419.8946 | F33: 9689 | G33: 1954.1302 | H33: 1992.0825 | I33: 1651.888 | J33: 1286.098 | K33: 6913 | L33: 3441.009 | M33: 9889.5288 | N33: 6633.984 | O33: 3321.1638 | P33: 23959 | Q33: 3758.3109 | R33: 4376.0844 | S33: 3456.7562 | T33: 3585.037 | U33: 15014 | V33: 3312 | W33: 3050 | X33: 3649 | Y33: 3888 | Z33: 13899 | AA33: 4312 | AB33: 4558 | AC33: 7230 | AD33: 7014 | AE33: 23114 | AF33: 7586 | AG33: 9023 | AH33: 13573 | AI33: 9599 | AJ33: 39781 | AK33: 7288 | AL33: 5997 | AM33: 7272 | AN33: 7537 | AO33: 28094 | AP33: 6711 | AQ33: 6170 | AR33: 7417 | AS33: 5210 | AT33: =SUM(AP33:AS33) -> 25508
A34: Contêiner vazio | B34: 638.0208 | C34: 1519.817 | D34: 1677.9818 | E34: 2506.1054 | F34: 6352 | G34: 1206.8698 | H34: 1232.9175 | I34: 1092.112 | J34: 1045.902 | K34: 4553 | L34: 1628.991 | M34: 2506.4712 | N34: 2004.016 | O34: 2309.8362 | P34: 8087 | Q34: 2838.6891 | R34: 1572.9156 | S34: 3037.2438 | T34: 2809.963 | U34: 10359 | V34: 2513 | W34: 2492 | X34: 3079 | Y34: 2428 | Z34: 10512 | AA34: 3164 | AB34: 3090 | AC34: 5349 | AD34: 5480 | AE34: 17083 | AF34: 6212 | AG34: 5700 | AH34: 6418 | AI34: 6183 | AJ34: 24513 | AK34: 5361 | AL34: 4316 | AM34: 4468 | AN34: 5720 | AO34: 19865 | AP34: 3500 | AQ34: 4619 | AR34: 5588 | AS34: 2463 | AT34: =SUM(AP34:AS34) -> 16170
A36: Tecon Vila do Conde
A37: Total movimentado (# cntrs) | B37: =B38+B39 -> 5300 | C37: =C38+C39 -> 5364 | D37: =D38+D39 -> 6110 | E37: =E38+E39 -> 7116 | F37: =F38+F39 -> 23866 | G37: =G38+G39 -> 5116 | H37: =H38+H39 -> 5549 | I37: =I38+I39 -> 7462 | J37: =J38+J39 -> 6766 | K37: =K38+K39 -> 25008 | L37: =L38+L39 -> 8733 | M37: =M38+M39 -> 7918 | N37: =N38+N39 -> 10448 | O37: =O38+O39 -> 11018 | P37: =P38+P39 -> 38735 | Q37: =Q38+Q39 -> 12627 | R37: =R38+R39 -> 10247 | S37: =S38+S39 -> 11236 | T37: =T38+T39 -> 10916 | U37: =U38+U39 -> 48258 | V37: =V38+V39 -> 13450 | W37: =W38+W39 -> 16946 | X37: =X38+X39 -> 16956 | Y37: =Y38+Y39 -> 19007 | Z37: =Z38+Z39 -> 65786 | AA37: =AA38+AA39 -> 17358 | AB37: =AB38+AB39 -> 17204 | AC37: =AC38+AC39 -> 21281 | AD37: =AD38+AD39 -> 21980 | AE37: =AE38+AE39 -> 77823 | AF37: =AF38+AF39 -> 23992 | AG37: =AG38+AG39 -> 22528 | AH37: =AH38+AH39 -> 26915 | AI37: =AI38+AI39 -> 29431 | AJ37: =AJ38+AJ39 -> 102866 | AK37: =AK38+AK39 -> 23747 | AL37: =AL38+AL39 -> 27270 | AM37: =AM38+AM39 -> 29410 | AN37: =AN38+AN39 -> 23835 | AO37: =AO38+AO39 -> 104262 | AP37: =AP38+AP39 -> 21331 | AQ37: 25574 | AR37: 26349 | AS37: =AS38+AS39 -> 26636 | AT37: 99890
A38: Contêiner cheio | B38: 2937.26 | C38: 3133.1124 | D38: 3392.272 | E38: 4599.0708 | F38: 14028 | G38: 2892.0748 | H38: 3080.2499 | I38: 4184.6896 | J38: 4255.1374 | K38: 14448 | L38: 5203.9947 | M38: 4229.7956 | N38: 5979.3904 | O38: 6999.7354 | P38: 22926 | Q38: 7361.541 | R38: 5817.2219 | S38: 6479.8012 | T38: 6687.1416 | U38: 28011 | V38: 6843 | W38: 8851 | X38: 9010 | Y38: 9927 | Z38: 34564 | AA38: 10080 | AB38: 9331 | AC38: 11704 | AD38: 12130 | AE38: 43245 | AF38: 14352 | AG38: 12208 | AH38: 13489 | AI38: 15229 | AJ38: 55278 | AK38: 13754 | AL38: 15071 | AM38: 15625 | AN38: 14102 | AO38: 58552 | AP38: 13347 | AQ38: 14395 | AR38: 15316 | AS38: 15490 | AT38: =SUM(AP38:AS38) -> 58548
A39: Contêiner vazio | B39: 2362.74 | C39: 2230.8876 | D39: 2717.728 | E39: 2516.9292 | F39: 9838 | G39: 2223.9252 | H39: 2468.7501 | I39: 3277.3104 | J39: 2510.8626 | K39: 10560 | L39: 3529.0053 | M39: 3688.2044 | N39: 4468.6096 | O39: 4018.2646 | P39: 15809 | Q39: 5265.459 | R39: 4429.7781 | S39: 4756.1988 | T39: 4228.8584 | U39: 20247 | V39: 6607 | W39: 8095 | X39: 7946 | Y39: 9080 | Z39: 31222 | AA39: 7278 | AB39: 7873 | AC39: 9577 | AD39: 9850 | AE39: 34578 | AF39: 9640 | AG39: 10320 | AH39: 13426 | AI39: 14202 | AJ39: 47588 | AK39: 9993 | AL39: 12199 | AM39: 13785 | AN39: 9733 | AO39: 45710 | AP39: 7984 | AQ39: 11179 | AR39: 11033 | AS39: 11146 | AT39: =SUM(AP39:AS39) -> 41342
A41: SANTOS BRASIL LOGÍSTICA - SBLog
A42: Contêineres armazenados | B42: 17888 | C42: 18838 | D42: 19935 | E42: 19947 | F42: =SUM(B42:E42) -> 76608 | G42: 19702 | H42: 21811 | I42: 23704 | J42: 23600 | K42: =SUM(G42:J42) -> 88817 | L42: 21118 | M42: 18408 | N42: 21652 | O42: 18347 | P42: =SUM(L42:O42) -> 79525 | Q42: 14240 | R42: 13785 | S42: 14077 | T42: 10809 | U42: =SUM(Q42:T42) -> 52911 | V42: 9058 | W42: 8798 | X42: 9268 | Y42: 8822 | Z42: =SUM(V42:Y42) -> 35946 | AA42: 9097 | AB42: 10247 | AC42: 12673 | AD42: 12609 | AE42: =SUM(AA42:AD42) -> 44626 | AF42: 12548 | AG42: 13506 | AH42: 14691 | AI42: 13543 | AJ42: =SUM(AF42:AI42) -> 54288 | AK42: 13262 | AL42: 14715 | AM42: 13988 | AN42: 13129 | AO42: =SUM(AK42:AN42) -> 55094 | AP42: 12109 | AQ42: 10220 | AR42: 10144 | AS42: 14040 | AT42: =SUM(AP42:AS42) -> 46513
A44: TERMINAL DE VEÍCULOS (TEV)
A45: Veículos movimentados | B45: =SUM(B46:B47) -> 50772 | C45: 40721 | D45: 49962 | E45: 54286 | F45: =SUM(B45:E45) -> 195741 | G45: =SUM(G46:G47) -> 50687 | H45: 71684 | I45: 65015 | J45: 69518 | K45: =SUM(G45:J45) -> 256904 | L45: =SUM(L46:L47) -> 39572 | M45: 49255 | N45: 56677 | O45: 45228 | P45: =SUM(L45:O45) -> 190732 | Q45: =SUM(Q46:Q47) -> 44802 | R45: 56146 | S45: 47714 | T45: 62488 | U45: =SUM(Q45:T45) -> 211150 | V45: =SUM(V46:V47) -> 38426 | W45: =SUM(W46:W47) -> 52749 | X45: =SUM(X46:X47) -> 36346 | Y45: =SUM(Y46:Y47) -> 54521 | Z45: =SUM(V45:Y45) -> 182042 | AA45: =SUM(AA46:AA47) -> 73380 | AB45: =SUM(AB46:AB47) -> 72039 | AC45: =SUM(AC46:AC47) -> 74080 | AD45: =SUM(AD46:AD47) -> 69674 | AE45: =SUM(AA45:AD45) -> 289173 | AF45: =SUM(AF46:AF47) -> 71560 | AG45: =SUM(AG46:AG47) -> 80802 | AH45: 56118 | AI45: =SUM(AI46:AI47) -> 33441 | AJ45: =SUM(AF45:AI45) -> 241921 | AK45: 48948 | AL45: 53435 | AM45: =SUM(AM46:AM47) -> 39660 | AN45: 35656 | AO45: =SUM(AK45:AN45) -> 177699 | AP45: =SUM(AP46:AP47) -> 48422 | AQ45: 13897 | AR45: 38701 | AS45: =SUM(AS46:AS47) -> 52491 | AT45: =SUM(AP45:AS45) -> 153511
A46: Importação | B46: 20326 | C46: 17115 | D46: 19976 | E46: 16582 | F46: =SUM(B46:E46) -> 73999 | G46: 16635 | H46: 28596 | I46: 19205 | J46: 47498 | K46: =SUM(G46:J46) -> 111934 | L46: 15235.22 | M46: 15318.305 | N46: 17229.808 | O46: 19131.444 | P46: =SUM(L46:O46) -> 66914.777 | Q46: 9058 | R46: 14878 | S46: 16513 | T46: 8710 | U46: =SUM(Q46:T46) -> 49159 | V46: 3615 | W46: 5750 | X46: 3962 | Y46: 1941 | Z46: =SUM(V46:Y46) -> 15268 | AA46: 3227 | AB46: 4164 | AC46: 3463 | AD46: 1965 | AE46: =SUM(AA46:AD46) -> 12819 | AF46: 7711 | AG46: 8568 | AH46: 15063 | AI46: 3658 | AJ46: =SUM(AF46:AI46) -> 35000 | AK46: 5923 | AL46: 9457 | AM46: 3837 | AN46: 4617 | AO46: =SUM(AK46:AN46) -> 23834 | AP46: 11154 | AQ46: 318 | AR46: 1975 | AS46: 5813 | AT46: =SUM(AP46:AS46) -> 19260
A47: Exportação | B47: 30446 | C47: 23606 | D47: 29986 | E47: 37704 | F47: 121742 | G47: 34052 | H47: 43088 | I47: 45810 | J47: 22020 | K47: 144970 | L47: 24336.78 | M47: 33936.695 | N47: 39447.192 | O47: 26096.556 | P47: 123817.223 | Q47: 35744 | R47: 41268 | S47: 31201 | T47: 53778 | U47: 161991 | V47: 34811 | W47: 46999 | X47: 32384 | Y47: 52580 | Z47: =SUM(V47:Y47) -> 166774 | AA47: 70153 | AB47: 67875 | AC47: 70617 | AD47: 67709 | AE47: =SUM(AA47:AD47) -> 276354 | AF47: 63849 | AG47: 72234 | AH47: 41055 | AI47: 29783 | AJ47: =SUM(AF47:AI47) -> 206921 | AK47: 43025 | AL47: 43978 | AM47: 35823 | AN47: 31039 | AO47: =SUM(AK47:AN47) -> 153865 | AP47: 37268 | AQ47: 13579 | AR47: 36726 | AS47: 46678 | AT47: =SUM(AP47:AS47) -> 134251
A48: Veículos leves | B48: 46782 | C48: 36866 | D48: 45509 | E48: 50994 | F48: 180151 | G48: 48520 | H48: 68389 | I48: 61504.19 | J48: 65624.992 | K48: 244038.182 | L48: 35456.512 | M48: 46151.935 | N48: 52709.61 | O48: 42921.372 | P48: 177239.429 | Q48: 42382.692 | R48: 50195.418 | S48: 42720.014 | T48: 59176.136 | U48: 194474.26 | V48: 35006.086 | W48: 48740 | X48: 31149 | Y48: 50540.967 | Z48: =SUM(V48:Y48) -> 165436.053 | AA48: 68610.3 | AB48: 65699.568 | AC48: 67635.04 | AD48: 62845.948 | AE48: =SUM(AA48:AD48) -> 264790.856 | AF48: 65262.72 | AG48: 75065 | AH48: 50113.374 | AI48: 28400 | AJ48: =SUM(AF48:AI48) -> 218841.094 | AK48: 45276.9 | AL48: 48412.11 | AM48: 34991 | AN48: 30968 | AO48: =SUM(AK48:AN48) -> 159648.01 | AP48: 45129.304 | AQ48: 11672 | AR48: 35221 | AS48: 48786 | AT48: =SUM(AP48:AS48) -> 140808.304
A49: Veículos pesados | B49: 3990 | C49: 3855 | D49: 4453 | E49: 3292 | F49: 15590 | G49: 2167 | H49: 3295 | I49: 3510.81 | J49: 3893.008 | K49: 12865.818 | L49: 4115.488 | M49: 3103.065 | N49: 3967.39 | O49: 2306.628 | P49: 13492.571 | Q49: 2419.308 | R49: 5951.582 | S49: 4693.986 | T49: 3311.864 | U49: 16376.74 | V49: 3419.914 | W49: 4009 | X49: 5197 | Y49: 3980.033 | Z49: =SUM(V49:Y49) -> 16605.947 | AA49: 4769.7 | AB49: 6339.432 | AC49: 6444.96 | AD49: 6828.052 | AE49: 24382.144 | AF49: 6297.28 | AG49: 5736.871 | AH49: 6004.626 | AI49: 5041 | AJ49: 23079.777 | AK49: 3671.1 | AL49: 5022.89 | AM49: 4669 | AN49: 4688 | AO49: 18050.99 | AP49: 3292.696 | AQ49: 2225 | AR49: 3480 | AS49: 3705 | AT49: 12702.696
A50: Dwell time importação (dias) | B50: 21.53376975 | C50: 23.09428016 | D50: 24.43997792 | E50: 19.67157308 | G50: 18.28070175 | H50: 13.52368299 | I50: 15.05557496 | J50: 14.89125512 | L50: 16.68269916 | M50: 14.63119923 | N50: 19.55543067 | O50: 13.9611596 | Q50: 11.84743153 | R50: 13.63334605 | S50: 14.05613614 | T50: 13.10851613 | V50: 4.67 | W50: 20.95 | X50: 22.82 | Y50: 29.22 | AA50: 29.11 | AB50: 16.46 | AC50: 13.33 | AD50: 14.22 | AF50: 9.65 | AG50: 11.16 | AH50: 12.7 | AI50: 11.64 | AK50: 11.74 | AL50: 15.27 | AM50: 20.02 | AN50: 19.49 | AP50: 10.94 | AQ50: 31.46 | AR50: 10.88 | AS50: 7.27
A52: % Importação | B52: =B46/SUM(B46:B47) -> 0.4003387694 | C52: 0.4202991086 | D52: 0.3998238661 | E52: 0.3054562871 | F52: 0.3780454785 | G52: 0.3281906603 | H52: 0.3989174711 | I52: 0.2953933708 | J52: 0.6832475042 | K52: 0.4357036091 | L52: =L46/SUM(L46:L47) -> 0.385 | M52: 0.311 | N52: 0.304 | O52: 0.423 | P52: 0.3508314127 | Q52: 0.2021784742 | R52: 0.2649877106 | S52: 0.3460829107 | T52: 0.1393867623 | U52: 0.232815534 | V52: 0.09407692708 | W52: 0.1090068058 | X52: 0.1090078688 | Y52: 0.0356009611 | Z52: 0.0838707551 | AA52: 0.04397656037 | AB52: 0.0578020239 | AC52: 0.04674676026 | AD52: 0.02820277291 | AE52: 0.04432986482 | AF52: 0.1077557295 | AG52: 0.1060369793 | AH52: 0.2684165508 | AI52: =AI46/SUM(AI46:AI47) -> 0.109386681 | AJ52: 0.1446753279 | AK52: =AK46/SUM(AK46:AK47) -> 0.1210059655 | AL52: 0.1769813792 | AM52: =AM46/SUM(AM46:AM47) -> 0.0967473525 | AN52: 0.1294873233 | AO52: =AO46/SUM(AO46:AO47) -> 0.1341256844 | AP52: =AP46/SUM(AP46:AP47) -> 0.230349841 | AQ52: 0.02288263654 | AR52: 0.05103227307 | AS52: =AS46/SUM(AS46:AS47) -> 0.110742794 | AT52: 0.1254633218
A53: % Exportação | B53: =B47/SUM(B46:B47) -> 0.5996612306 | C53: 0.5797008914 | D53: 0.6001761339 | E53: 0.6945437129 | F53: 0.6219545215 | G53: 0.6718093397 | H53: 0.6010825289 | I53: 0.7046066292 | J53: 0.3167524958 | K53: 0.5642963909 | L53: =L47/SUM(L46:L47) -> 0.615 | M53: 0.689 | N53: 0.696 | O53: 0.577 | P53: 0.6491685873 | Q53: 0.7978215258 | R53: 0.7350122894 | S53: 0.6539170893 | T53: 0.8606132377 | U53: 0.767184466 | V53: 0.9059230729 | W53: 0.8909931942 | X53: 0.8909921312 | Y53: 0.9643990389 | Z53: 0.9161292449 | AA53: 0.9560234396 | AB53: 0.9421979761 | AC53: 0.9532532397 | AD53: 0.9717972271 | AE53: 0.9556701352 | AF53: 0.8922442705 | AG53: 0.8939630207 | AH53: =AH47/SUM(AH46:AH47) -> 0.7315834492 | AI53: =AI47/SUM(AI46:AI47) -> 0.890613319 | AJ53: =AJ47/SUM(AJ46:AJ47) -> 0.8553246721 | AK53: 0.8789940345 | AL53: 0.8230186208 | AM53: =AM47/SUM(AM46:AM47) -> 0.9032526475 | AN53: 0.8705126767 | AO53: 0.8658743156 | AP53: =AP47/SUM(AP46:AP47) -> 0.769650159 | AQ53: 0.9771173635 | AR53: 0.9489677269 | AS53: =AS47/SUM(AS46:AS47) -> 0.889257206 | AT53: 0.8745366782
A54: % Veículos leves | B54: =B48/SUM(B48:B49) -> 0.9214133775 | C54: 0.9053314015 | D54: 0.9108722629 | E54: 0.9393582139 | F54: 0.9203539371 | G54: 0.9572474204 | H54: 0.9540343731 | I54: 0.946 | J54: 0.944 | K54: 0.9499197443 | L54: =L48/SUM(L48:L49) -> 0.896 | M54: 0.937 | N54: 0.93 | O54: 0.949 | P54: 0.9292590074 | Q54: 0.946 | R54: 0.894 | S54: 0.901 | T54: 0.947 | U54: 0.9223302711 | V54: 0.911 | W54: 0.9239985592 | X54: 0.8570131514 | Y54: 0.927 | Z54: 0.9087795838 | AA54: 0.935 | AB54: 0.912 | AC54: 0.913 | AD54: 0.902 | AE54: 0.9156831931 | AF54: 0.912 | AG54: 0.9290007653 | AH54: 0.893 | AI54: =AI48/SUM(AI48:AI49) -> 0.8492569002 | AJ54: 0.9045978261 | AK54: =AK48/SUM(AK48:AK49) -> 0.925 | AL54: 0.906 | AM54: =AM48/SUM(AM48:AM49) -> 0.8822743318 | AN54: 0.868521427 | AO54: 0.8984181678 | AP54: =AP48/SUM(AP48:AP49) -> 0.932 | AQ54: 0.8398935022 | AR54: 0.9100798429 | AS54: =AS48/SUM(AS48:AS49) -> 0.9294164714 | AT54: 0.9172522099
A55: % Veículos pesados | B55: =B49/SUM(B48:B49) -> 0.07858662255 | C55: 0.09466859851 | D55: 0.08912773708 | E55: 0.0606417861 | F55: 0.07964606291 | G55: 0.04275257956 | H55: 0.04596562692 | I55: 0.054 | J55: 0.056 | K55: 0.05008025566 | L55: =L49/SUM(L48:L49) -> 0.104 | M55: 0.063 | N55: 0.07 | O55: 0.051 | P55: 0.0707409926 | Q55: 0.054 | R55: 0.106 | S55: 0.099 | T55: 0.053 | U55: 0.07766972886 | V55: 0.089 | W55: 0.07600144079 | X55: 0.1429868486 | Y55: 0.073 | Z55: 0.09122041617 | AA55: 0.065 | AB55: 0.088 | AC55: 0.087 | AD55: 0.098 | AE55: 0.08431680689 | AF55: 0.088 | AG55: 0.07099923466 | AH55: 0.107 | AI55: =AI49/SUM(AI48:AI49) -> 0.1507430998 | AJ55: 0.09540217388 | AK55: =AK49/SUM(AK48:AK49) -> 0.075 | AL55: 0.094 | AM55: =AM49/SUM(AM48:AM49) -> 0.1177256682 | AN55: 0.131478573 | AO55: 0.1015818322 | AP55: =AP49/SUM(AP48:AP49) -> 0.068 | AQ55: 0.1601064978 | AR55: 0.0899201571 | AS55: =AS49/SUM(AS48:AS49) -> 0.0705835286 | AT55: 0.08274779006

Sheet DRE
V8: 6 | W8: =V8+1 -> 7 | X8: =W8+1 -> 8 | Y8: 9 | Z8: 10 | AA8: 11 | AB8: 12 | AC8: 13 | AD8: 14 | AE8: 15 | AF8: 16 | AG8: 17 | AH8: 18 | AI8: 19 | AJ8: 20 | AK8: 21 | AL8: 22 | AM8: 23 | AN8: 24 | AP8: =AN8+1 -> 25 | AQ8: =AO8+1 -> 1 | AR8: 2 | AS8: =AR8+1 -> 3 | AT8: =AS8+1 -> 4 | AU8: 5 | AV8: 6 | AW8: 7 | AX8: 8 | AY8: 9 | AZ8: 10 | BA8: 11 | BB8: 12 | BC8: 13
A9: (R$ Milhões) | B9: 1T12 | C9: 2T12 | D9: 3T12 | E9: 4T12 | F9: 2012 | G9: 1T13 | H9: 2T13 | I9: 3T13 | J9: 4T13 | K9: 2013 | L9: 1T14 | M9: 2T14 | N9: 3T14 | O9: 4T14 | P9: 2014 | Q9: 1T15 | R9: 2T15 | S9: 3T15 | T9: 4T15 | U9: 2015 | V9: 1T16 | W9: 2T16 | X9: 3T16 | Y9: 4T16 | Z9: 2016 | AA9: 1T17 | AB9: 2T17 | AC9: 3T17 | AD9: 4T17 | AE9: 2017 | AF9: 1T18 | AG9: 2T18 | AH9: 3T18 | AI9: 4T18 | AJ9: 2018 | AK9: 1T19 | AL9: 2T19 | AM9: 3T19 | AN9: 4T19 | AO9: 2019 | AP9: 1T20 | AQ9: 2T20 | AR9: 3T20 | AS9: 4T20 | AT9: 2020
A11: RESULTADOS CONSOLIDADOS¹
A12: RECEITA BRUTA | B12: =B35+B59+B80 -> 315.818 | C12: 361.427 | D12: 404.477 | E12: 389.957 | F12: 1471.679 | G12: 401.247 | H12: 377.372 | I12: 381.152 | J12: 453.304 | K12: 1613.075 | L12: 323.8 | M12: 304.3 | N12: 288.5 | O12: 247.801 | P12: 1164.401 | Q12: 342.115 | R12: 269.9 | S12: 263.9 | T12: 250.9 | U12: 1126.815 | V12: 230 | W12: 235.5 | X12: 260.2 | Y12: 246.4 | Z12: 972.1 | AA12: 251.9 | AB12: 220.4 | AC12: 244.9 | AD12: 249.9 | AE12: 967.1 | AF12: 250.6 | AG12: 275.1 | AH12: 308.5 | AI12: 265.5 | AJ12: 1099.7 | AK12: 266.5 | AL12: 309.6 | AM12: 298.6 | AN12: 270.5 | AO12: 1145.2 | AP12: 263.6 | AQ12: =AQ35+AQ59+AQ80 -> 265.7 | AR12: 259.8971163 | AS12: =AS35+AS59+AS80 -> 308.8 | AT12: 1097.997116
A13: ELIMINAÇÕES RECEITA BRUTA | B13: 0 | C13: 0 | D13: 0 | E13: -0.1 | F13: =SUM(B13:E13) -> -0.1 | G13: -0.1 | H13: -0.1 | I13: -0.2 | J13: -11.5 | K13: =SUM(G13:J13) -> -11.9 | L13: -2.2 | M13: -3.1 | N13: -3.5 | O13: -3.3 | P13: =SUM(L13:O13) -> -12.1 | Q13: -3.8 | R13: -3.3 | S13: -6 | T13: -4.2 | U13: =SUM(Q13:T13) -> -17.3 | V13: -3.5 | W13: -3.5 | X13: -4.4 | Y13: -4.1 | Z13: =SUM(V13:Y13) -> -15.5 | AA13: -3.6 | AB13: -2.7 | AC13: -3.8 | AD13: -4 | AE13: =SUM(AA13:AD13) -> -14.1 | AF13: -4.03534781 | AG13: -3.44702611 | AH13: -4.21805367 | AI13: -2.5 | AJ13: =SUM(AF13:AI13) -> -14.20042759 | AK13: -2.2 | AL13: -2.9 | AM13: -2.714 | AN13: -2 | AO13: =SUM(AK13:AN13) -> -9.814 | AP13: -2.4 | AQ13: -3 | AR13: -2.74517618 | AS13: -2.8 | AT13: =SUM(AP13:AS13) -> -10.94517618
A14: RECEITA BRUTA APÓS ELIMINAÇÕES | B14: =B12+B13 -> 315.818 | C14: 361.427 | D14: 404.477 | E14: 389.857 | F14: 1471.579 | G14: 401.147 | H14: 377.272 | I14: 380.952 | J14: 441.804 | K14: 1601.175 | L14: 321.6 | M14: 301.2 | N14: 285 | O14: 244.501 | P14: 1152.301 | Q14: 338.315 | R14: 266.6 | S14: 257.9 | T14: 246.7 | U14: 1109.515 | V14: 226.5 | W14: 232 | X14: 255.8 | Y14: 242.3 | Z14: 956.6 | AA14: 248.3 | AB14: 217.7 | AC14: 241.1 | AD14: 245.9 | AE14: 953 | AF14: 246.5646522 | AG14: 271.6529739 | AH14: =AH12+AH13 -> 304.2819463 | AI14: =AI12+AI13 -> 263 | AJ14: =AJ12+AJ13 -> 1085.499572 | AK14: =AK12+AK13 -> 264.3 | AL14: =AL12+AL13 -> 306.7 | AM14: =AM12+AM13 -> 295.886 | AN14: =AN12+AN13 -> 268.5 | AO14: =AO12+AO13 -> 1135.386 | AP14: =AP12+AP13 -> 261.2 | AQ14: =AQ12+AQ13 -> 262.7 | AR14: =AR12+AR13 -> 257.1519402 | AS14: =AS12+AS13 -> 306 | AT14: =AT12+AT13 -> 1087.05194
A15: RECEITA LÍQUIDA | B15: =B39+B61+B82 -> 277.607 | C15: 318.516 | D15: 354.343 | E15: 342.796 | F15: 1293.262 | G15: 353.597 | H15: 332.576 | I15: 336.012 | J15: 366.1088039 | K15: 1388.293804 | L15: 282.152 | M15: 265.255 | N15: 251.697 | O15: 215.333 | P15: 1014.437 | Q15: 300.331 | R15: 235.126 | S15: 230.57 | T15: 214 | U15: 980.027 | V15: 200.4 | W15: 205.4 | X15: 226.7 | Y15: 215.7 | Z15: 848.2 | AA15: 219.4 | AB15: 192.07 | AC15: 210.8 | AD15: 214.6 | AE15: 836.87 | AF15: 217.4 | AG15: 233.7 | AH15: 259.5 | AI15: 223.8 | AJ15: 934.4 | AK15: 229.2 | AL15: 267.5 | AM15: 252.6 | AN15: 232.1 | AO15: 981.4 | AP15: 226 | AQ15: =AQ39+AQ61+AQ82 -> 227.6 | AR15: 222.7611163 | AS15: =AS39+AS61+AS82 -> 263.1 | AT15: 939.4611163
A16: ELIMINAÇÕES RECEITA LÍQUIDA | B16: 0 | C16: 0 | D16: 0 | E16: -0.1 | F16: =SUM(B16:E16) -> -0.1 | G16: -0.2 | H16: -0.1 | I16: -0.1 | J16: -10.4 | K16: =SUM(G16:J16) -> -10.8 | L16: -2.1 | M16: -2.9 | N16: -3.1 | O16: -2.9 | P16: =SUM(L16:O16) -> -11 | Q16: -3.3 | R16: -3 | S16: -5.5 | T16: -3.9 | U16: =SUM(Q16:T16) -> -15.7 | V16: -3.2 | W16: -3.1 | X16: -4.1 | Y16: -3.7 | Z16: =SUM(V16:Y16) -> -14.1 | AA16: -3.2 | AB16: -2.5 | AC16: -3.4 | AD16: -3.7 | AE16: =SUM(AA16:AD16) -> -12.8 | AF16: -3.66210858 | AG16: -3.12890042 | AH16: -3.8294025 | AI16: -2.3 | AJ16: =SUM(AF16:AI16) -> -12.9204115 | AK16: -2 | AL16: -2.6 | AM16: -2.462 | AN16: -1.8 | AO16: =SUM(AK16:AN16) -> -8.862 | AP16: -2.2 | AQ16: -2.8 | AR16: -2.49026027 | AS16: -2.5 | AT16: =SUM(AP16:AS16) -> -9.99026027
A17: RECEITA LÍQUIDA APÓS ELIMINAÇÕES | B17: =B15+B16 -> 277.607 | C17: 318.516 | D17: 354.343 | E17: 342.696 | F17: 1293.162 | G17: 353.397 | H17: 332.476 | I17: 335.912 | J17: 355.7088039 | K17: 1377.493804 | L17: 280.052 | M17: 262.355 | N17: 248.597 | O17: 212.433 | P17: 1003.437 | Q17: 297.031 | R17: 232.126 | S17: 225.07 | T17: 210.1 | U17: 964.327 | V17: 197.2 | W17: 202.3 | X17: 222.6 | Y17: 212 | Z17: 834.1 | AA17: 216.2 | AB17: 189.57 | AC17: 207.4 | AD17: 210.9 | AE17: 824.07 | AF17: 213.7378914 | AG17: 230.5710996 | AH17: =AH15+AH16 -> 255.6705975 | AI17: =AI15+AI16 -> 221.5 | AJ17: =AJ15+AJ16 -> 921.4795885 | AK17: =AK15+AK16 -> 227.2 | AL17: =AL15+AL16 -> 264.9 | AM17: =AM15+AM16 -> 250.138 | AN17: =AN15+AN16 -> 230.3 | AO17: =AO15+AO16 -> 972.538 | AP17: =AP15+AP16 -> 223.8 | AQ17: =AQ15+AQ16 -> 224.8 | AR17: =AR15+AR16 -> 220.2708561 | AS17: =AS15+AS16 -> 260.6 | AT17: =AT15+AT16 -> 929.4708561
A18: CUSTOS | B18: =B40+B62+B83 -> 155.8 | C18: 168.303 | D18: 179.7 | E18: 187.259 | F18: 691.062 | G18: 184.709 | H18: 194.768 | I18: 209.816 | J18: 223.9 | K18: 813.193 | L18: 185 | M18: 187.1 | N18: 181.9 | O18: 170.7 | P18: 724.7 | Q18: 177.8 | R18: 183.4 | S18: 186.9 | T18: 172 | U18: 720.1 | V18: 174 | W18: 183.1 | X18: 183 | Y18: 183.3 | Z18: 723.4 | AA18: 164.9 | AB18: 168.4 | AC18: 163.5 | AD18: 162.4 | AE18: 659.2 | AF18: 168 | AG18: 173.5 | AH18: 179.9 | AI18: 165.7 | AJ18: 687.2 | AK18: 182.8 | AL18: 194.1 | AM18: 179.6 | AN18: 175.1 | AO18: 731.6 | AP18: 176.1 | AQ18: =AQ40+AQ62+AQ83 -> 177.5 | AR18: 175.9084968 | AS18: =AS40+AS62+AS83 -> 188.9 | AT18: 718.4084968
A19: ELIMINAÇÕES CUSTOS | B19: 0 | C19: 0 | D19: 0 | E19: -0.1 | F19: =SUM(B19:E19) -> -0.1 | G19: 0 | H19: -0.1 | I19: -0.1 | J19: -10.5 | K19: =SUM(G19:J19) -> -10.7 | L19: -2 | M19: -2.8 | N19: -3.1 | O19: -2.9 | P19: =SUM(L19:O19) -> -10.8 | Q19: -3.4 | R19: -3 | S19: -5.5 | T19: -3.8 | U19: =SUM(Q19:T19) -> -15.7 | V19: -3.2 | W19: -3.1 | X19: -4 | Y19: -3.7 | Z19: =SUM(V19:Y19) -> -14 | AA19: -3.2 | AB19: -2.5 | AC19: -3.4 | AD19: -3.7 | AE19: =SUM(AA19:AD19) -> -12.8 | AF19: -3.66210858 | AG19: -3.12890042 | AH19: -3.8294025 | AI19: -2.3 | AJ19: =SUM(AF19:AI19) -> -12.9204115 | AK19: -2 | AL19: -2.6 | AM19: -2.462 | AN19: -1.8 | AO19: =SUM(AK19:AN19) -> -8.862 | AP19: -2.2 | AQ19: -2.8 | AR19: -2.49026027 | AS19: -2.498 | AT19: =SUM(AP19:AS19) -> -9.98826027
A20: CUSTOS APÓS ELIMINAÇÕES | B20: =B18+B19 -> 155.8 | C20: 168.303 | D20: 179.7 | E20: 187.159 | F20: 690.962 | G20: 184.709 | H20: 194.668 | I20: 209.716 | J20: 213.4 | K20: 802.493 | L20: 183 | M20: 184.3 | N20: 178.8 | O20: 167.8 | P20: 713.9 | Q20: 174.4 | R20: 180.4 | S20: 181.4 | T20: 168.2 | U20: 704.4 | V20: 170.8 | W20: 180 | X20: 179 | Y20: 179.6 | Z20: 709.4 | AA20: 161.7 | AB20: 165.9 | AC20: 160.1 | AD20: 158.7 | AE20: 646.4 | AF20: 164.3378914 | AG20: 170.3710996 | AH20: =AH18+AH19 -> 176.0705975 | AI20: =AI18+AI19 -> 163.4 | AJ20: =AJ18+AJ19 -> 674.2795885 | AK20: =AK18+AK19 -> 180.8 | AL20: =AL18+AL19 -> 191.5 | AM20: =AM18+AM19 -> 177.138 | AN20: =AN18+AN19 -> 173.3 | AO20: =AO18+AO19 -> 722.738 | AP20: =AP18+AP19 -> 173.9 | AQ20: =AQ18+AQ19 -> 174.7 | AR20: =AR18+AR19 -> 173.4182365 | AS20: =AS18+AS19 -> 186.402 | AT20: =AT18+AT19 -> 708.4202365
A21: DESPESAS | B21: =B46+B67+B88+B101 -> 46.1 | C21: 37.957 | D21: 42.063 | E21: 51.302 | F21: 177.422 | G21: 46.413 | H21: 39.136 | I21: 49.639 | J21: 47.2 | K21: 182.388 | L21: 42.3 | M21: 32.3 | N21: 31.8 | O21: 30.8 | P21: 137.2 | Q21: 86.7 | R21: 38.2 | S21: 40.4 | T21: 79.6 | U21: 244.9 | V21: 38.8 | W21: 24.2 | X21: 39.7 | Y21: 30.8 | Z21: 133.5 | AA21: 35.064 | AB21: 42.04 | AC21: 31.7 | AD21: 37.3 | AE21: 146.104 | AF21: 43.7 | AG21: 48.8 | AH21: 49.7 | AI21: 39.6 | AJ21: 181.8 | AK21: 46 | AL21: 47.4 | AM21: 47 | AN21: 23.3 | AO21: 163.7 | AP21: 46.4 | AQ21: =AQ46+AQ67+AQ88+AQ101 -> 44.3 | AR21: 36.51220433 | AS21: =AS46+AS67+AS88+AS101 -> 34.313 | AT21: 161.5252043
A22: EBIT | B22: =B17-B20-B21 -> 75.707 | C22: 112.256 | D22: 132.58 | E22: 104.235 | F22: 424.778 | G22: 122.275 | H22: 98.672 | I22: 76.557 | J22: 95.10880391 | K22: 392.6128039 | L22: 54.752 | M22: 45.755 | N22: 37.997 | O22: 13.833 | P22: 152.337 | Q22: 35.931 | R22: 13.526 | S22: 3.27 | T22: -37.7 | U22: 15.027 | V22: -12.4 | W22: -1.9 | X22: 3.9 | Y22: 1.6 | Z22: -8.8 | AA22: 19.436 | AB22: =AB17-AB20-AB21 -> -18.37 | AC22: =AC17-AC20-AC21 -> 15.6 | AD22: 14.9 | AE22: 31.566 | AF22: 5.7 | AG22: 11.4 | AH22: 29.9 | AI22: 18.5 | AJ22: =AJ17-AJ20-AJ21 -> 65.4 | AK22: =AK17-AK20-AK21 -> 0.4 | AL22: 26 | AM22: =AM17-AM20-AM21 -> 26 | AN22: 33.7 | AO22: =AO17-AO20-AO21 -> 86.1 | AP22: =AP17-AP20-AP21 -> 3.5 | AQ22: 5.8 | AR22: 10.34041526 | AS22: =AS17-AS20-AS21 -> 39.885 | AT22: =AT17-AT20-AT21 -> 59.52541526
A23: D&A (Custos + Despesas) | B23: =B51+B72+B93+B105 -> 30 | C23: 31.522 | D23: 32.445 | E23: 32.904 | F23: 126.871 | G23: 33.402 | H23: 34.052 | I23: 34.08 | J23: 34.1 | K23: 135.634 | L23: 35.3 | M23: 35.1 | N23: 34.6 | O23: 35.3 | P23: 140.3 | Q23: 35.1 | R23: 34.9 | S23: 37.2 | T23: 24.4 | U23: 131.6 | V23: 24.1 | W23: 24.2 | X23: 24.1 | Y23: 23.9 | Z23: 96.3 | AA23: 33.5 | AB23: 33.7 | AC23: 33.9 | AD23: 32.1 | AE23: 133.2 | AF23: 31 | AG23: 30.8 | AH23: 30.8 | AI23: 31.4 | AJ23: 124 | AK23: 32.5 | AL23: 32.8 | AM23: 33.3 | AN23: 37 | AO23: 135.6 | AP23: 35 | AQ23: =AQ51+AQ72+AQ93+AQ105 -> 36.4 | AR23: 39.3092262 | AS23: =AS51+AS72+AS93+AS105 -> 41.495 | AT23: 152.2042262
A24: EBITDA | B24: =B22+B23 -> 105.707 | C24: 143.778 | D24: 165.025 | E24: 137.139 | F24: 551.649 | G24: 155.677 | H24: 132.724 | I24: 110.637 | J24: 129.2088039 | K24: 528.2468039 | L24: 90.052 | M24: 80.855 | N24: 72.597 | O24: 49.133 | P24: 292.637 | Q24: 71.031 | R24: 48.426 | S24: 40.47 | T24: -13.3 | U24: 146.627 | V24: 11.7 | W24: 22.3 | X24: 28 | Y24: 25.5 | Z24: 87.5 | AA24: 52.936 | AB24: 15.33 | AC24: 49.5 | AD24: 47 | AE24: 164.766 | AF24: 36.7 | AG24: 42.2 | AH24: =AH22+AH23 -> 60.7 | AI24: =AI22+AI23 -> 49.9 | AJ24: =AJ22+AJ23 -> 189.4 | AK24: =AK22+AK23 -> 32.9 | AL24: =AL22+AL23 -> 58.8 | AM24: =AM22+AM23 -> 59.3 | AN24: =AN22+AN23 -> 70.7 | AO24: =AO22+AO23 -> 221.7 | AP24: =AP22+AP23 -> 38.5 | AQ24: =AQ22+AQ23 -> 42.2 | AR24: =AR22+AR23 -> 49.64964146 | AS24: =AS22+AS23 -> 81.38 | AT24: 211.7296415
A25: Margem EBITDA (%) | B25: =B24/B17 -> 0.3807793031 | C25: 0.4513996157 | D25: 0.4657210669 | E25: 0.4001768331 | F25: 0.426589244 | G25: 0.440515907 | H25: 0.3991987392 | I25: 0.3293630475 | J25: 0.3632431992 | K25: 0.3834839782 | L25: 0.3215545684 | M25: 0.3081892855 | N25: 0.2920268547 | O25: 0.2312870411 | P25: 0.2916346517 | Q25: 0.2391366558 | R25: 0.2086194567 | S25: 0.1798107256 | T25: -0.06330318896 | U25: 0.1520511196 | V25: 0.0593306288 | W25: 0.1102323282 | X25: 0.1257861635 | Y25: 0.1202830189 | Z25: 0.1049034888 | AA25: 0.2448473636 | AB25: 0.08086722583 | AC25: 0.2386692382 | AD25: 0.2228544334 | AE25: 0.1999417525 | AF25: 0.1717056333 | AG25: 0.1830238051 | AH25: 0.2374148635 | AI25: 0.225282167 | AJ25: =AJ24/AJ17 -> 0.2055390074 | AK25: 0.144806338 | AL25: 0.2219705549 | AM25: =AM24/AM17 -> 0.2370691378 | AN25: 0.3069908815 | AO25: 0.2279602442 | AP25: =AP24/AP17 -> 0.172028597 | AQ25: 0.1877224199 | AR25: 0.2254026808 | AS25: =AS24/AS17 -> 0.3122793553 | AT25: 0.2277958906
A26: RESULTADOS FINANCEIROS | B26: -6.839 | C26: -19.925 | D26: -9.006 | E26: -7.882 | F26: -43.652 | G26: -4.804 | H26: -11.765 | I26: -5.739 | J26: -6.277 | K26: -28.585 | L26: -2.9 | M26: -4.757 | N26: -10.6 | O26: -7.1 | P26: -25.5 | Q26: -10.178 | R26: -2.9 | S26: -13.1 | T26: -3.1 | U26: -29.2 | V26: -2.3 | W26: -3.4 | X26: -4.6 | Y26: -3.3 | Z26: -13.6 | AA26: -18.1 | AB26: -14.4 | AC26: -15.7 | AD26: -14.5 | AE26: -62.7 | AF26: -14.6 | AG26: -16.2 | AH26: -15 | AI26: -11.4 | AJ26: =SUM(AF26:AI26) -> -57.2 | AK26: -13 | AL26: -14.918 | AM26: -15.163 | AN26: -17.9 | AO26: =SUM(AK26:AN26) -> -60.981 | AP26: -22.4 | AQ26: -17.9 | AR26: -18.584 | AS26: -18.259 | AT26: =SUM(AP26:AS26) -> -77.143
A27: IR/CSLL | B27: -24.678 | C27: -32.201 | D27: -44.091 | E27: -10.072 | F27: -111.042 | G27: -42.191 | H27: -31.179 | I27: -25.568 | J27: -9.837 | K27: -108.775 | L27: -19.853 | M27: -15.914 | N27: -11.31 | O27: 11.5 | P27: -35.6 | Q27: -9.859 | R27: -5.8 | S27: -0.8 | T27: 12.6 | U27: -3.9 | V27: 2.1 | W27: -0.4 | X27: -0.5 | Y27: 1.3 | Z27: 2.3 | AA27: -1.3 | AB27: 10 | AC27: -0.8 | AD27: 18 | AE27: 25.9 | AF27: 3.1 | AG27: 0.8 | AH27: -5.8 | AI27: -3.2 | AJ27: -5.2 | AK27: 3.6 | AL27: -4.7 | AM27: -3.192 | AN27: -5.4 | AO27: -9.6 | AP27: 5.7 | AQ27: 2.8 | AR27: 2.765 | AS27: -7.421 | AT27: =SUM(AP27:AS27) -> 3.844
A28: LUCRO LÍQUIDO | B28: =B22+SUM(B26:B27) -> 44.19 | C28: 60.13 | D28: 79.483 | E28: 86.281 | F28: 270.084 | G28: 75.28 | H28: 55.728 | I28: 45.25 | J28: 78.99480391 | K28: 255.2528039 | L28: 31.999 | M28: 25.084 | N28: 16.087 | O28: 18.233 | P28: 91.237 | Q28: 15.894 | R28: 4.826 | S28: -10.63 | T28: -28.2 | U28: -18.073 | V28: -12.6 | W28: -5.7 | X28: -1.2 | Y28: -0.4 | Z28: -20.1 | AA28: -0.01 | AB28: -22.77 | AC28: -0.9 | AD28: 18.5 | AE28: -5.234 | AF28: -5.8 | AG28: -4 | AH28: 9.1 | AI28: 3.9 | AJ28: =AJ22+SUM(AJ26:AJ27) -> 3 | AK28: =AK22+SUM(AK26:AK27) -> -9 | AL28: 6.382 | AM28: =AM22+SUM(AM26:AM27) -> 7.645 | AN28: =AN22+SUM(AN26:AN27) -> 10.4 | AO28: =AO22+SUM(AO26:AO27) -> 15.519 | AP28: =AP22+SUM(AP26:AP27) -> -13.2 | AQ28: =AQ22+SUM(AQ26:AQ27) -> -9.3 | AR28: =AR22+SUM(AR26:AR27) -> -5.47858474 | AS28: =AS22+SUM(AS26:AS27) -> 14.205 | AT28: =AT22+SUM(AT26:AT27) -> -13.77358474
A29: Margem Líquida | B29: =B28/B17 -> 0.159181865 | C29: 0.1887817253 | D29: 0.2243109078 | E29: 0.2517712492 | F29: 0.208855503 | G29: 0.2130182203 | H29: 0.1676151061 | I29: 0.1347078997 | J29: 0.2220771683 | K29: 0.1853023245 | L29: 0.114260923 | M29: 0.09561090888 | N29: 0.06471115902 | O29: 0.08582941445 | P29: 0.09092449252 | Q29: 0.05350956634 | R29: 0.02079043278 | S29: -0.04722975074 | T29: -0.1342217991 | U29: -0.01874156795 | V29: -0.06389452333 | W29: -0.02817597627 | X29: -0.00539083558 | Y29: -0.001886792453 | Z29: -0.02409783 | AA29: -4.625346901e-05 | AB29: -0.1201139421 | AC29: -0.004339440694 | AD29: 0.08771929825 | AE29: -0.006351402187 | AF29: -0.02713604014 | AG29: -0.01734822798 | AH29: 0.03559267311 | AI29: 0.01760722348 | AJ29: =AJ28/AJ17 -> 0.003255633698 | AK29: -0.03961267606 | AL29: 0.02409211023 | AM29: =AM28/AM17 -> 0.03056312915 | AN29: 0.04515848893 | AO29: 0.0159572171 | AP29: =AP28/AP17 -> -0.05898123324 | AQ29: -0.04137010676 | AR29: -0.02487203635 | AS29: =AS28/AS17 -> 0.05450882579 | AT29: -0.01481873762
A31: EBITDA Pró-Forma¹ | AA31: 32.8 | AB31: -4.9 | AC31: 29 | AD31: 26.8 | AE31: =SUM(AA31:AD31) -> 83.7 | AF31: 16.6 | AG31: 21.9 | AH31: 40 | AI31: 28.5 | AJ31: =SUM(AF31:AI31) -> 107 | AK31: 9.7 | AL31: 35 | AM31: 35.5 | AN31: 44 | AO31: =SUM(AK31:AN31) -> 124.2 | AP31: 13.1 | AQ31: 15.068 | AR31: =AR55+AR76+AR97+AR106 -> 20.90439825 | AS31: =AS55+AS76+AS97+AS106 -> 51.19 | AT31: =SUM(AP31:AS31) -> 100.2623983
A32: Margem EBITDA Pró-Forma | AA32: =AA31/AA17 -> 0.1517113784 | AB32: =AB31/AB17 -> -0.02584797173 | AC32: 0.1398264224 | AD32: 0.1270744429 | AE32: 0.1015690415 | AF32: 0.07766521832 | AG32: 0.09498154816 | AH32: 0.1564513104 | AI32: 0.1286681716 | AJ32: 0.1161176019 | AK32: 0.04269366197 | AL32: 0.1321253303 | AM32: 0.1419216592 | AN32: 0.1910551455 | AO32: 0.1277070922 | AP32: 0.05853440572 | AQ32: =AQ31/AQ17 -> 0.06702846975 | AR32: 0.09490315071 | AS32: =AS31/AS17 -> 0.1964313124 | AT32: 0.1078704056
A34: TERMINAIS PORTUÁRIOS¹
A35: RECEITA BRUTA | B35: =B36+B37 -> 238.3 | C35: 278 | D35: 309.8 | E35: 302.556 | F35: 1128.656 | G35: 316.416 | H35: 289 | I35: 288.5 | J35: 353 | K35: 1246.916 | L35: 233.7 | M35: 215.7 | N35: 194.6 | O35: 167.4 | P35: 811.4 | Q35: 264.3 | R35: 190 | S35: 185.7 | T35: 184.4 | U35: 824.4 | V35: 172.8 | W35: 178.2 | X35: 204.9 | Y35: 188.5 | Z35: 744.4 | AA35: 190 | AB35: 153 | AC35: 162.5 | AD35: 167.7 | AE35: 673.2 | AF35: 163.7 | AG35: 180.9 | AH35: 205.3 | AI35: 180.5 | AJ35: =AJ36+AJ37 -> 730.4 | AK35: 181.8 | AL35: 218.7 | AM35: =AM36+AM37 -> 202.1 | AN35: 185.8 | AO35: 788.4 | AP35: =AP36+AP37 -> 179.9 | AQ35: 189.3 | AR35: 178.9971163 | AS35: =AS36+AS37 -> 222.1 | AT35: 770.2971163
A36: Operações de Cais | B36: 140.3 | C36: 161.3 | D36: 176.3 | E36: 175.339 | F36: =SUM(B36:E36) -> 653.239 | G36: 169.366 | H36: 177.2 | I36: 169.2 | J36: 250 | K36: =SUM(G36:J36) -> 765.766 | L36: 131.1 | M36: 128 | N36: 111.8 | O36: 98.9 | P36: =SUM(L36:O36) -> 469.8 | Q36: 178.2 | R36: 107.1 | S36: 105.7 | T36: 112.3 | U36: =SUM(Q36:T36) -> 503.3 | V36: 100.2 | W36: 111.6 | X36: 126.9 | Y36: 110.4 | Z36: =SUM(V36:Y36) -> 449.1 | AA36: 99.5 | AB36: 87.2 | AC36: 91.6 | AD36: 90.2 | AE36: =SUM(AA36:AD36) -> 368.5 | AF36: 95 | AG36: 95.7 | AH36: 108.6 | AI36: 102.9 | AJ36: =SUM(AF36:AI36) -> 402.2 | AK36: 99.3 | AL36: 129.5 | AM36: 110.2 | AN36: 99.7 | AO36: =SUM(AK36:AN36) -> 438.7 | AP36: 93.7 | AQ36: 97.5 | AR36: 97.10247751 | AS36: 115.7 | AT36: =SUM(AP36:AS36) -> 404.0024775
A37: Armazenagem | B37: 98 | C37: 116.7 | D37: 133.5 | E37: 127.217 | F37: 475.417 | G37: 147.05 | H37: 111.8 | I37: 119.3 | J37: 103 | K37: 481.15 | L37: 102.6 | M37: 87.7 | N37: 82.8 | O37: 68.5 | P37: 341.6 | Q37: 86.1 | R37: 82.9 | S37: 80 | T37: 72.1 | U37: 321.1 | V37: 72.6 | W37: 66.6 | X37: 78 | Y37: 78.1 | Z37: =SUM(V37:Y37) -> 295.3 | AA37: 90.5 | AB37: 65.8 | AC37: 70.9 | AD37: 77.5 | AE37: =SUM(AA37:AD37) -> 304.7 | AF37: 68.7 | AG37: 85.2 | AH37: 96.7 | AI37: 77.6 | AJ37: =SUM(AF37:AI37) -> 328.2 | AK37: 82.5 | AL37: 89.2 | AM37: 91.9 | AN37: 86.1 | AO37: =SUM(AK37:AN37) -> 349.7 | AP37: 86.2 | AQ37: 91.8 | AR37: 81.89463883 | AS37: 106.4 | AT37: =SUM(AP37:AS37) -> 366.2946388
A38: ELIMINAÇÕES | B38: -27.222 | C38: -30.548 | D38: -37 | E38: -35.08 | F38: =SUM(B38:E38) -> -129.85 | G38: -34.836 | H38: -32.245 | I38: -32.657 | J38: -72.78119609 | K38: =SUM(G38:J38) -> -172.5191961 | L38: -28.354 | M38: -25.856 | N38: -22.709 | O38: -20.231 | P38: =SUM(L38:O38) -> -97.15 | Q38: -30.373 | R38: -23.084 | S38: -21.6 | T38: -27 | U38: =SUM(Q38:T38) -> -102.057 | V38: -20.7 | W38: -21 | X38: -24.7 | Y38: -21.9 | Z38: =SUM(V38:Y38) -> -88.3 | AA38: -21.9 | AB38: -16.9 | AC38: -20.1 | AD38: -21 | AE38: =SUM(AA38:AD38) -> -79.9 | AF38: -18.9 | AG38: -25 | AH38: -28.7 | AI38: -25.5 | AJ38: =SUM(AF38:AI38) -> -98.1 | AK38: -21.8 | AL38: -26.1 | AM38: -27.4 | AN38: -22.4 | AO38: =SUM(AK38:AN38) -> -97.7 | AP38: -22.7 | AQ38: -24.2 | AR38: -22.6 | AS38: -29.9 | AT38: =SUM(AP38:AS38) -> -99.4
A39: RECEITA LÍQUIDA | B39: =B35+B38 -> 211.078 | C39: 247.452 | D39: 272.8 | E39: 267.476 | F39: 998.806 | G39: 281.58 | H39: 256.755 | I39: 255.843 | J39: 280.2188039 | K39: 1074.396804 | L39: 205.346 | M39: 189.844 | N39: 171.891 | O39: 147.169 | P39: 714.25 | Q39: 233.927 | R39: 166.916 | S39: 164.1 | T39: 157.4 | U39: 722.343 | V39: 152.1 | W39: 157.2 | X39: 180.2 | Y39: 166.6 | Z39: 656.1 | AA39: 168.1 | AB39: 136.1 | AC39: 142.4 | AD39: 146.7 | AE39: 593.3 | AF39: 144.8 | AG39: 155.9 | AH39: =AH35+AH38 -> 176.6 | AI39: =AI35+AI38 -> 155 | AJ39: =AJ35+AJ38 -> 632.3 | AK39: =AK35+AK38 -> 160 | AL39: =AL35+AL38 -> 192.6 | AM39: =AM35+AM38 -> 174.7 | AN39: =AN35+AN38 -> 163.4 | AO39: =AO35+AO38 -> 690.7 | AP39: =AP35+AP38 -> 157.2 | AQ39: =AQ35+AQ38 -> 165.1 | AR39: =AR35+AR38 -> 156.3971163 | AS39: =AS35+AS38 -> 192.2 | AT39: =AT35+AT38 -> 670.8971163
A40: CUSTOS | B40: =SUM(B41:B45) -> 116.3 | C40: 123.903 | D40: 133.4 | E40: 143.201 | F40: 516.804 | G40: 136.747 | H40: 142.904 | I40: 153.616 | J40: 159.5 | K40: 592.767 | L40: 134.7 | M40: 133.2 | N40: 128.2 | O40: 121.9 | P40: 518 | Q40: 130.3 | R40: 133.5 | S40: 134.6 | T40: 126.2 | U40: 524.6 | V40: 128.5 | W40: 136.5 | X40: 137.3 | Y40: 140.8 | Z40: 543.1 | AA40: 123.7 | AB40: 122.2 | AC40: 115.7 | AD40: 112.6 | AE40: 474.2 | AF40: 118.6 | AG40: 122.4 | AH40: 126.6 | AI40: 127.9 | AJ40: =SUM(AJ41:AJ45) -> 495.5 | AK40: 136 | AL40: 142.9 | AM40: =SUM(AM41:AM45) -> 127.7 | AN40: 125.5 | AO40: 532.1 | AP40: =SUM(AP41:AP45) -> 126.3 | AQ40: 131.6 | AR40: =SUM(AR41:AR45) -> 130.270476 | AS40: =SUM(AS41:AS45) -> 139.1 | AT40: 527.270476
A41: Custos de movimentação | B41: 31 | C41: 35.3 | D41: 39.8 | E41: 39.6 | F41: =SUM(B41:E41) -> 145.7 | G41: 38.236 | H41: 39.1 | I41: 46.2 | J41: 40.7 | K41: =SUM(G41:J41) -> 164.236 | L41: 31 | M41: 32.3 | N41: 28 | O41: 21.8 | P41: =SUM(L41:O41) -> 113.1 | Q41: 24.1 | R41: 28 | S41: 30.8 | T41: 30.7 | U41: =SUM(Q41:T41) -> 113.6 | V41: 28 | W41: 32.5 | X41: 32.8 | Y41: 32.1 | Z41: =SUM(V41:Y41) -> 125.4 | AA41: 29.3 | AB41: 27.9 | AC41: 26.3 | AD41: 28.7 | AE41: =SUM(AA41:AD41) -> 112.2 | AF41: 30.3 | AG41: 30.3 | AH41: 34.6 | AI41: 31.4 | AJ41: =SUM(AF41:AI41) -> 126.6 | AK41: 31.6 | AL41: 34.6 | AM41: 22.2 | AN41: 16.5 | AO41: =SUM(AK41:AN41) -> 104.9 | AP41: 17.5 | AQ41: 20 | AR41: 20.72768758 | AS41: 22.9 | AT41: =SUM(AP41:AS41) -> 81.12768758
A42: Pessoal | B42: 35.8 | C42: 36.9 | D42: 39.1 | E42: 49.3 | F42: 161.1 | G42: 43.292 | H42: 44.1 | I42: 46.1 | J42: 48.7 | K42: 182.192 | L42: 45.1 | M42: 40.5 | N42: 38.6 | O42: 37.4 | P42: 161.6 | Q42: 48.3 | R42: 45.9 | S42: 44.1 | T42: 45.4 | U42: 183.7 | V42: 47.6 | W42: 50.7 | X42: 50.6 | Y42: 49.7 | Z42: =SUM(V42:Y42) -> 198.6 | AA42: 50.2 | AB42: 51.5 | AC42: 47.9 | AD42: 44.1 | AE42: =SUM(AA42:AD42) -> 193.7 | AF42: 46.1 | AG42: 48.3 | AH42: 49.7 | AI42: 49.1 | AJ42: =SUM(AF42:AI42) -> 193.2 | AK42: 60.2 | AL42: 61.5 | AM42: 56.9 | AN42: 57.4 | AO42: =SUM(AK42:AN42) -> 236 | AP42: 58.3 | AQ42: 60.4 | AR42: 56.72631545 | AS42: 59.1 | AT42: =SUM(AP42:AS42) -> 234.5263155
A43: Arrendamento e Infraestrutura | B43: 14.4 | C43: 12.3 | D43: 13.8 | E43: 14.1 | F43: 54.6 | G43: 15.54 | H43: 14.9 | I43: 14.9 | J43: 14.3 | K43: 59.64 | L43: 15.1 | M43: 15 | N43: 15.3 | O43: 15.8 | P43: 61.2 | Q43: 15.7 | R43: 16.1 | S43: 16.5 | T43: 17.3 | U43: 65.6 | V43: 17.2 | W43: 17.8 | X43: 18.5 | Y43: 18 | Z43: =SUM(V43:Y43) -> 71.5 | AA43: 0 | AB43: 0 | AC43: 0 | AD43: 0 | AE43: 0 | AF43: 0 | AG43: 0 | AH43: 0 | AI43: 0 | AJ43: 0 | AK43: 0 | AL43: 0 | AM43: 0 | AN43: 0 | AO43: 0 | AP43: 0 | AQ43: 0 | AR43: 0 | AS43: 0 | AT43: 0
A44: Depreciação e Amortização - Custos | B44: 21.9 | C44: 23.003 | D44: 23.8 | E44: 24.09 | F44: 92.793 | G44: 24.355 | H44: 24.704 | I44: 24.416 | J44: 24.4 | K44: 97.875 | L44: 25.2 | M44: 25.2 | N44: 24.6 | O44: 25.3 | P44: 100.3 | Q44: 25.6 | R44: 25.7 | S44: 25.8 | T44: 16.7 | U44: 93.8 | V44: 16.3 | W44: 16.3 | X44: 16.3 | Y44: 16.1 | Z44: =SUM(V44:Y44) -> 65 | AA44: 24.5 | AB44: 24.6 | AC44: 24.9 | AD44: 23.5 | AE44: 97.5 | AF44: 23 | AG44: 22.9 | AH44: 23 | AI44: 23.7 | AJ44: 92.6 | AK44: 23.5 | AL44: 23.9 | AM44: 24.7 | AN44: 27.9 | AO44: 100 | AP44: 26.1 | AQ44: 27.3 | AR44: 29.90900938 | AS44: 32.3 | AT44: 115.6090094
A45: Outros | B45: 13.2 | C45: 16.4 | D45: 16.9 | E45: 16.111 | F45: 62.611 | G45: 15.324 | H45: 20.1 | I45: 22 | J45: 31.4 | K45: 88.824 | L45: 18.3 | M45: 20.2 | N45: 21.7 | O45: 21.6 | P45: 81.8 | Q45: 16.6 | R45: 17.8 | S45: 17.4 | T45: 16.1 | U45: 67.9 | V45: 19.4 | W45: 19.2 | X45: 19.1 | Y45: 24.9 | Z45: =SUM(V45:Y45) -> 82.6 | AA45: 19.7 | AB45: 18.2 | AC45: 16.6 | AD45: 16.3 | AE45: 70.8 | AF45: 19.2 | AG45: 20.9 | AH45: 19.3 | AI45: 23.7 | AJ45: 83.1 | AK45: 20.7 | AL45: 22.9 | AM45: 23.9 | AN45: 23.7 | AO45: 91.2 | AP45: 24.4 | AQ45: 23.9 | AR45: 22.90746356 | AS45: 24.8 | AT45: 96.00746356
A46: DESPESAS | B46: =SUM(B47:B49) -> 18.6 | C46: 15.735 | D46: 16.6 | E46: 20.167 | F46: 71.102 | G46: 17.058 | H46: 14.557 | I46: 23.178 | J46: 20.4 | K46: 75.193 | L46: 19.9 | M46: 11.6 | N46: 10.1 | O46: 11.6 | P46: 53.2 | Q46: 63.9 | R46: 11.2 | S46: 13.3 | T46: 45.8 | U46: 134.2 | V46: 18.2 | W46: 4.4 | X46: 16.4 | Y46: 12.8 | Z46: 51.8 | AA46: 14.664 | AB46: 17.7 | AC46: 7 | AD46: 10.3 | AE46: 49.664 | AF46: 16 | AG46: 18 | AH46: 16.7 | AI46: =SUM(AI47:AI49) -> 11.7 | AJ46: =SUM(AJ47:AJ49) -> 62.4 | AK46: 16.6 | AL46: 21.9 | AM46: =SUM(AM47:AM49) -> 17.7 | AN46: -3.9 | AO46: 52.3 | AP46: =SUM(AP47:AP49) -> 15.6 | AQ46: 15.1 | AR46: 11.4 | AS46: =SUM(AS47:AS49) -> 8.1 | AT46: 50.2
A47: Vendas | B47: 9.9 | C47: 5.412 | D47: 6.1 | E47: 5.906 | F47: =SUM(B47:E47) -> 27.318 | G47: 6.882 | H47: 5.986 | I47: 8.226 | J47: 11.7 | K47: =SUM(G47:J47) -> 32.794 | L47: 8.8 | M47: 6 | N47: 5.4 | O47: 4.2 | P47: =SUM(L47:O47) -> 24.4 | Q47: 64.7 | R47: 6.3 | S47: 7.1 | T47: 5.8 | U47: =SUM(Q47:T47) -> 83.9 | V47: 15.2 | W47: 5 | X47: 8.9 | Y47: 9.4 | Z47: =SUM(V47:Y47) -> 38.5 | AA47: 10.964 | AB47: 9 | AC47: 10.8 | AD47: 8.8 | AE47: =SUM(AA47:AD47) -> 39.564 | AF47: 10.5 | AG47: 11.2 | AH47: 12.6 | AI47: 8.1 | AJ47: =SUM(AF47:AI47) -> 42.4 | AK47: 12.1 | AL47: 9 | AM47: 11.5 | AN47: 8.3 | AO47: =SUM(AK47:AN47) -> 40.9 | AP47: 11.1 | AQ47: 10.2 | AR47: 8.8 | AS47: 8.2 | AT47: =SUM(AP47:AS47) -> 38.3
A48: Gerais, Administrativas & Outras | B48: 8.3 | C48: 10.352 | D48: 10.3 | E48: 14.071 | F48: 43.023 | G48: 9.986 | H48: 8.42 | I48: 14.818 | J48: 8.6 | K48: 41.824 | L48: 11 | M48: 5.5 | N48: 4.6 | O48: 7.3 | P48: 28.4 | Q48: -0.9 | R48: 4.8 | S48: 6.1 | T48: 39.9 | U48: 49.9 | V48: 2.9 | W48: -0.7 | X48: 7.4 | Y48: 3.3 | Z48: 12.9 | AA48: 3.6 | AB48: 8.6 | AC48: -3.9 | AD48: 1.5 | AE48: =SUM(AA48:AD48) -> 9.8 | AF48: 5.5 | AG48: 6.8 | AH48: 4.1 | AI48: 3.6 | AJ48: =SUM(AF48:AI48) -> 20 | AK48: 4.5 | AL48: 12.9 | AM48: 6.2 | AN48: -12.2 | AO48: =SUM(AK48:AN48) -> 11.4 | AP48: 4.5 | AQ48: 4.8 | AR48: 2.5 | AS48: -0.2 | AT48: =SUM(AP48:AS48) -> 11.6
A49: Depreciação e Amortização - Despesas | B49: 0.4 | C49: -0.029 | D49: 0.2 | E49: 0.19 | F49: 0.761 | G49: 0.19 | H49: 0.151 | I49: 0.134 | J49: 0.1 | K49: 0.575 | L49: 0.1 | M49: 0.1 | N49: 0.1 | O49: 0.1 | P49: 0.4 | Q49: 0.1 | R49: 0.1 | S49: 0.1 | T49: 0.1 | U49: 0.4 | V49: 0.1 | W49: 0.1 | X49: 0.1 | Y49: 0.1 | Z49: 0.4 | AA49: 0.1 | AB49: 0.1 | AC49: 0.1 | AD49: 0 | AE49: 0.3 | AF49: 0 | AG49: 0 | AH49: 0 | AI49: 0 | AJ49: 0 | AK49: 0 | AL49: 0 | AM49: 0 | AN49: 0 | AO49: 0 | AP49: 0 | AQ49: 0.1 | AR49: 0.1 | AS49: 0.1 | AT49: 0.3
A50: EBIT | B50: =B39-B40-B46 -> 76.178 | C50: 107.814 | D50: 122.8 | E50: 104.108 | F50: 410.9 | G50: 127.775 | H50: 99.294 | I50: 79.049 | J50: 100.3188039 | K50: 406.4368039 | L50: 50.746 | M50: 45.044 | N50: 33.591 | O50: 13.669 | P50: 143.05 | Q50: 39.727 | R50: 22.216 | S50: 16.2 | T50: -14.6 | U50: =U39-U40-U46 -> 63.543 | V50: 5.4 | W50: 16.3 | X50: 26.5 | Y50: 13 | Z50: 61.2 | AA50: 29.736 | AB50: -3.8 | AC50: 19.7 | AD50: 23.8 | AE50: 69.436 | AF50: 10.2 | AG50: 15.5 | AH50: 33.3 | AI50: 15.4 | AJ50: =AJ39-AJ40-AJ46 -> 74.4 | AK50: 7.4 | AL50: 27.8 | AM50: =AM39-AM40-AM46 -> 29.3 | AN50: 41.8 | AO50: 106.3 | AP50: =AP39-AP40-AP46 -> 15.3 | AQ50: 18.4 | AR50: 14.72664037 | AS50: =AS39-AS40-AS46 -> 45 | AT50: 93.42664037
A51: D&A (Custos + Despesas) | B51: =B44+B49 -> 22.3 | C51: 22.974 | D51: 24 | E51: 24.28 | F51: 93.554 | G51: 24.545 | H51: 24.855 | I51: 24.55 | J51: 24.5 | K51: 98.45 | L51: 25.3 | M51: 25.3 | N51: 24.7 | O51: 25.4 | P51: 100.7 | Q51: 25.7 | R51: 25.8 | S51: 25.9 | T51: 16.8 | U51: 94.2 | V51: 16.4 | W51: 16.4 | X51: 16.4 | Y51: 16.2 | Z51: 65.4 | AA51: 24.6 | AB51: 24.7 | AC51: 25 | AD51: 23.5 | AE51: 97.8 | AF51: 23 | AG51: 22.9 | AH51: 23 | AI51: 23.7 | AJ51: =AJ44+AJ49 -> 92.6 | AK51: 23.5 | AL51: 23.9 | AM51: =AM44+AM49 -> 24.7 | AN51: 27.9 | AO51: 100 | AP51: =AP44+AP49 -> 26.1 | AQ51: 27.4 | AR51: 30.00900938 | AS51: =AS44+AS49 -> 32.4 | AT51: 115.9090094
A52: EBITDA | B52: =B50+B51 -> 98.478 | C52: 130.788 | D52: 146.8 | E52: 128.388 | F52: 504.454 | G52: 152.32 | H52: 124.149 | I52: 103.599 | J52: 124.8188039 | K52: 504.8868039 | L52: 76.046 | M52: 70.344 | N52: 58.291 | O52: 39.069 | P52: 243.75 | Q52: 65.427 | R52: 48.016 | S52: 42.1 | T52: 2.2 | U52: 157.743 | V52: 21.8 | W52: 32.7 | X52: 42.9 | Y52: 29.2 | Z52: 126.6 | AA52: 54.336 | AB52: 20.9 | AC52: 44.7 | AD52: 47.3 | AE52: 167.236 | AF52: 33.2 | AG52: 38.4 | AH52: 56.3 | AI52: 39.1 | AJ52: =AJ50+AJ51 -> 167 | AK52: 30.9 | AL52: 51.7 | AM52: =AM50+AM51 -> 54 | AN52: 69.7 | AO52: 206.3 | AP52: =AP50+AP51 -> 41.4 | AQ52: 45.8 | AR52: 44.73564975 | AS52: =AS50+AS51 -> 77.4 | AT52: 209.3356497
A53: Margem EBITDA (%) | B53: =B52/B39 -> 0.4665479112 | C53: 0.5285388681 | D53: 0.5381231672 | E53: 0.4799982054 | F53: 0.5050570381 | G53: 0.5409475105 | H53: 0.4835309926 | I53: 0.4049319309 | J53: 0.445433362 | K53: 0.4699258245 | L53: 0.370331051 | M53: 0.3705358083 | N53: 0.3391160677 | O53: 0.2654703096 | P53: 0.3412670634 | Q53: 0.2796898178 | R53: 0.2876656522 | S53: 0.2565508836 | T53: 0.01397712834 | U53: 0.2183768653 | V53: 0.1433267587 | W53: 0.2080152672 | X53: 0.2380688124 | Y53: 0.175270108 | Z53: 0.1929583905 | AA53: 0.3232361689 | AB53: 0.1535635562 | AC53: 0.3139044944 | AD53: 0.3224267212 | AE53: 0.2818742626 | AF53: 0.229281768 | AG53: 0.2463117383 | AH53: 0.318799547 | AI53: 0.2522580645 | AJ53: =AJ52/AJ39 -> 0.2641151352 | AK53: 0.193125 | AL53: 0.2684319834 | AM53: =AM52/AM39 -> 0.3091013165 | AN53: 0.4265605875 | AO53: 0.298682496 | AP53: =AP52/AP39 -> 0.2633587786 | AQ53: 0.2774076317 | AR53: 0.2860388401 | AS53: =AS52/AS39 -> 0.4027055151 | AT53: 0.3120234752
A55: EBITDA Pró-Forma¹ | AA55: 36.5 | AB55: 2.9 | AC55: 26.5 | AD55: 29.3 | AE55: =SUM(AA55:AD55) -> 95.2 | AF55: 15.4 | AG55: 20.3 | AH55: 37.8 | AI55: 19.9 | AJ55: =SUM(AF55:AI55) -> 93.4 | AK55: 11.8 | AL55: 32 | AM55: 34.2 | AN55: 46.9 | AO55: =SUM(AK55:AN55) -> 124.9 | AP55: 20.269 | AQ55: 23 | AR55: 20.287 | AS55: 51.33 | AT55: =SUM(AP55:AS55) -> 114.886
A56: Margem EBITDA Pró-Forma | AA56: =AA55/AA39 -> 0.2171326591 | AB56: 0.02130786187 | AC56: 0.1860955056 | AD56: 0.1997273347 | AE56: 0.1604584527 | AF56: 0.1063535912 | AG56: 0.1302116742 | AH56: 0.2140430351 | AI56: 0.1283870968 | AJ56: 0.1477146924 | AK56: 0.07375 | AL56: 0.1661474559 | AM56: 0.1957641671 | AN56: 0.2870257038 | AO56: 0.180831041 | AP56: 0.128937659 | AQ56: =AQ55/AQ39 -> 0.1393095094 | AR56: 0.1297146679 | AS56: =AS55/AS39 -> 0.2670655567 | AT56: 0.1712423518
A58: LOGÍSTICA¹
A59: RECEITA BRUTA | B59: 57.862 | C59: 61.094 | D59: 65.748 | E59: 67.062 | F59: =SUM(B59:E59) -> 251.766 | G59: 64.689 | H59: 68.259 | I59: 75.042 | J59: 80.304 | K59: =SUM(G59:J59) -> 288.294 | L59: 76.9 | M59: 69.3 | N59: 73.1 | O59: 66.1 | P59: =SUM(L59:O59) -> 285.4 | Q59: 66.152 | R59: 62.4 | S59: 63.5 | T59: 51.9 | U59: =SUM(Q59:T59) -> 243.952 | V59: 47.4 | W59: 45.2 | X59: 46 | Y59: 46.2 | Z59: =SUM(V59:Y59) -> 184.8 | AA59: 45.6 | AB59: 52.9 | AC59: 67 | AD59: 67.5 | AE59: =SUM(AA59:AD59) -> 233 | AF59: 71.1 | AG59: 75 | AH59: 83.5 | AI59: 70.5 | AJ59: =SUM(AF59:AI59) -> 300.1 | AK59: 69 | AL59: 71.6 | AM59: 79.7 | AN59: 71.7 | AO59: =SUM(AK59:AN59) -> 292 | AP59: 68.4 | AQ59: 68.5 | AR59: 68.8 | AS59: 72 | AT59: =SUM(AP59:AS59) -> 277.7
A60: ELIMINAÇÕES | B60: -8.189 | C60: -9.447 | D60: -9.466 | E60: -9.456 | F60: =SUM(B60:E60) -> -36.558 | G60: -9.941 | H60: -9.712 | I60: -10.294 | J60: -11.916 | K60: =SUM(G60:J60) -> -41.863 | L60: -11.375 | M60: -10.392 | N60: -11.296 | O60: -10.296 | P60: =SUM(L60:O60) -> -43.359 | Q60: -9.81 | R60: -9.347 | S60: -9.733 | T60: -8 | U60: =SUM(Q60:T60) -> -36.89 | V60: -7.4 | W60: -7.1 | X60: -7.3 | Y60: -7.3 | Z60: =SUM(V60:Y60) -> -29.1 | AA60: -8.5 | AB60: -9.6 | AC60: -12.2 | AD60: -12.5 | AE60: =SUM(AA60:AD60) -> -42.8 | AF60: -12.4 | AG60: -13.7 | AH60: -16.1 | AI60: -13 | AJ60: =SUM(AF60:AI60) -> -55.2 | AK60: -12.6 | AL60: -13.2 | AM60: -15 | AN60: -14 | AO60: =SUM(AK60:AN60) -> -54.8 | AP60: -12.6 | AQ60: -12.7 | AR60: -12.7 | AS60: -13.7 | AT60: =SUM(AP60:AS60) -> -51.7
A61: RECEITA LÍQUIDA | B61: =B59+B60 -> 49.673 | C61: 51.647 | D61: 56.282 | E61: 57.606 | F61: =SUM(B61:E61) -> 215.208 | G61: =G59+G60 -> 54.748 | H61: 58.547 | I61: 64.748 | J61: 68.388 | K61: =SUM(G61:J61) -> 246.431 | L61: =L59+L60 -> 65.525 | M61: 58.908 | N61: 61.804 | O61: 55.804 | P61: =SUM(L61:O61) -> 242.041 | Q61: =Q59+Q60 -> 56.342 | R61: 53.053 | S61: 53.767 | T61: 43.9 | U61: =SUM(Q61:T61) -> 207.062 | V61: =V59+V60 -> 40 | W61: 38.1 | X61: 38.7 | Y61: 38.9 | Z61: =SUM(V61:Y61) -> 155.7 | AA61: =AA59+AA60 -> 37.1 | AB61: 43.3 | AC61: 54.8 | AD61: 55 | AE61: =SUM(AA61:AD61) -> 190.2 | AF61: =AF59+AF60 -> 58.7 | AG61: 61.3 | AH61: =AH59+AH60 -> 67.4 | AI61: =AI59+AI60 -> 57.5 | AJ61: =SUM(AF61:AI61) -> 244.9 | AK61: =AK59+AK60 -> 56.4 | AL61: =AL59+AL60 -> 58.4 | AM61: =AM59+AM60 -> 64.7 | AN61: =AN59+AN60 -> 57.7 | AO61: =SUM(AK61:AN61) -> 237.2 | AP61: =AP59+AP60 -> 55.8 | AQ61: =AQ59+AQ60 -> 55.8 | AR61: =AR59+AR60 -> 56.1 | AS61: =AS59+AS60 -> 58.3 | AT61: =SUM(AP61:AS61) -> 226
A62: CUSTOS | B62: =SUM(B63:B66) -> 32.1 | C62: 36.7 | D62: 38.8 | E62: 37.148 | F62: =SUM(F63:F66) -> 144.748 | G62: 39.855 | H62: 42.81 | I62: 46.8 | J62: 54.3 | K62: =SUM(K63:K66) -> 183.765 | L62: 42.7 | M62: 44.9 | N62: 44.7 | O62: 40.7 | P62: =SUM(P63:P66) -> 173 | Q62: 39 | R62: 40.6 | S62: 43.8 | T62: 36.5 | U62: =SUM(U63:U66) -> 159.9 | V62: 36.9 | W62: 37.6 | X62: 37.4 | Y62: 33.2 | Z62: =SUM(Z63:Z66) -> 145.1 | AA62: 31.4 | AB62: 36.1 | AC62: 37.8 | AD62: 39.2 | AE62: 144.5 | AF62: 39.3 | AG62: 39.9 | AH62: =SUM(AH63:AH66)-0.1 -> 44.2 | AI62: =SUM(AI63:AI66) -> 30.1 | AJ62: =SUM(AJ63:AJ66) -> 153.6 | AK62: =SUM(AK63:AK66) -> 37.6 | AL62: =SUM(AL63:AL66) -> 41.8 | AM62: =SUM(AM63:AM66) -> 43.2 | AN62: =SUM(AN63:AN66) -> 44 | AO62: =SUM(AO63:AO66) -> 166.6 | AP62: =SUM(AP63:AP66) -> 40.9 | AQ62: =SUM(AQ63:AQ66) -> 39.2 | AR62: =SUM(AR63:AR66) -> 37.06331321 | AS62: =SUM(AS63:AS66) -> 40.9 | AT62: 158.0633132
A63: Custos de movimentação | B63: 11.1 | C63: 13 | D63: 13 | E63: 12.958 | F63: =SUM(B63:E63) -> 50.058 | G63: 13.003 | H63: 12.9 | I63: 16.9 | J63: 22.5 | K63: =SUM(G63:J63) -> 65.303 | L63: 12.5 | M63: 13.3 | N63: 12.1 | O63: 9.8 | P63: =SUM(L63:O63) -> 47.7 | Q63: 9.3 | R63: 10.2 | S63: 11.5 | T63: 8.7 | U63: =SUM(Q63:T63) -> 39.7 | V63: 8 | W63: 9.3 | X63: 9.8 | Y63: 10 | Z63: =SUM(V63:Y63) -> 37.1 | AA63: 8.4 | AB63: 12.1 | AC63: 15.4 | AD63: 15.7 | AE63: =SUM(AA63:AD63) -> 51.6 | AF63: 14.6 | AG63: 15.6 | AH63: 19.2 | AI63: 13.5 | AJ63: =SUM(AF63:AI63) -> 62.9 | AK63: 14.8 | AL63: 17.4 | AM63: 19.5 | AN63: 18.3 | AO63: =SUM(AK63:AN63) -> 70 | AP63: 16.1 | AQ63: 13.3 | AR63: 12.34110014 | AS63: 16.3 | AT63: =SUM(AP63:AS63) -> 58.04110014
A64: Pessoal | B64: 12.3 | C64: 14 | D64: 14 | E64: 12.5 | F64: 52.8 | G64: 14.146 | H64: 15.4 | I64: 16 | J64: 17.2 | K64: 62.746 | L64: 14.5 | M64: 16.4 | N64: 17 | O64: 15.7 | P64: 63.6 | Q64: 15.2 | R64: 15.7 | S64: 16 | T64: 14.1 | U64: 61 | V64: 14.7 | W64: 14.2 | X64: 13.4 | Y64: 11.4 | Z64: 53.7 | AA64: 11.8 | AB64: 12.4 | AC64: 11.5 | AD64: 12.6 | AE64: 48.3 | AF64: 12.9 | AG64: 13.1 | AH64: 13 | AI64: 13.7 | AJ64: 52.7 | AK64: 12.5 | AL64: 13.7 | AM64: 13 | AN64: 14.6 | AO64: 53.8 | AP64: 13.6 | AQ64: 14.2 | AR64: 13.22425319 | AS64: 13.5 | AT64: 54.52425319
A65: Depreciação e Amortização - Custos | B65: 1.5 | C65: 1.9 | D65: 2 | E65: 2.238 | F65: 7.638 | G65: 2.467 | H65: 2.81 | I65: 3.1 | J65: 3.2 | K65: 11.577 | L65: 3.5 | M65: 3.5 | N65: 3.5 | O65: 3.6 | P65: 14.1 | Q65: 3.1 | R65: 2.8 | S65: 5 | T65: 3.6 | U65: 14.5 | V65: 3.6 | W65: 3.7 | X65: 3.6 | Y65: 3.6 | Z65: 14.5 | AA65: 3.5 | AB65: 3.5 | AC65: 3.4 | AD65: 3.4 | AE65: 13.8 | AF65: 3.4 | AG65: 3.3 | AH65: 3.2 | AI65: 3.1 | AJ65: 13 | AK65: 4.3 | AL65: 4.1 | AM65: 3.8 | AN65: 4.3 | AO65: 16.5 | AP65: 4 | AQ65: 4.1 | AR65: 4.34985104 | AS65: 4.2 | AT65: 16.64985104
A66: Outros | B66: 7.2 | C66: 7.8 | D66: 9.8 | E66: 9.452 | F66: 34.252 | G66: 10.239 | H66: 11.7 | I66: 10.8 | J66: 11.4 | K66: 44.139 | L66: 12.2 | M66: 11.7 | N66: 12.1 | O66: 11.6 | P66: 47.6 | Q66: 11.4 | R66: 11.9 | S66: 11.3 | T66: 10.1 | U66: 44.7 | V66: 10.6 | W66: 10.4 | X66: 10.6 | Y66: 8.2 | Z66: 39.8 | AA66: 7.7 | AB66: 8.1 | AC66: 7.5 | AD66: 7.5 | AE66: 30.8 | AF66: 8.4 | AG66: 7.9 | AH66: 8.9 | AI66: -0.2 | AJ66: 25 | AK66: 6 | AL66: 6.6 | AM66: 6.9 | AN66: 6.8 | AO66: 26.3 | AP66: 7.2 | AQ66: 7.6 | AR66: 7.14810884 | AS66: 6.9 | AT66: 28.84810884
A67: DESPESAS | B67: =SUM(B68:B70) -> 6.5 | C67: 5.103 | D67: 6.8 | E67: 8.892 | F67: =SUM(F68:F70) -> 27.295 | G67: 6.319 | H67: 5.657 | I67: 7.767 | J67: 7.9 | K67: =SUM(K68:K70) -> 27.643 | L67: 6.4 | M67: 6.9 | N67: 6.3 | O67: 6.1 | P67: =SUM(P68:P70) -> 25.7 | Q67: 6.9 | R67: 11.4 | S67: 10.4 | T67: 11.5 | U67: =SUM(U68:U70) -> 40.2 | V67: 8.5 | W67: 8.3 | X67: 10 | Y67: 8.7 | Z67: =SUM(Z68:Z70) -> 35.5 | AA67: 7.6 | AB67: 11.4 | AC67: 16.6 | AD67: 14.4 | AE67: 50 | AF67: 18.4 | AG67: 18.8 | AH67: 22.1 | AI67: 16.8 | AJ67: =SUM(AJ68:AJ70) -> 76.1 | AK67: 17.4 | AL67: 15.7 | AM67: =SUM(AM68:AM70) -> 19.8 | AN67: 17.4 | AO67: 70.3 | AP67: =SUM(AP68:AP70) -> 17 | AQ67: 17.8 | AR67: 17.22708855 | AS67: =SUM(AS68:AS70) -> 16.6 | AT67: 68.62708855
A68: Vendas | B68: 3.1 | C68: 2.288 | D68: 3.3 | E68: 3.003 | F68: =SUM(B68:E68) -> 11.691 | G68: 2.961 | H68: 3.375 | I68: 4.82 | J68: 4.3 | K68: =SUM(G68:J68) -> 15.456 | L68: 3.6 | M68: 4.1 | N68: 3.7 | O68: 3.6 | P68: =SUM(L68:O68) -> 15 | Q68: 5.4 | R68: 8 | S68: 8 | T68: 8.9 | U68: =SUM(Q68:T68) -> 30.3 | V68: 6.2 | W68: 7 | X68: 7.9 | Y68: 6.9 | Z68: =SUM(V68:Y68) -> 28 | AA68: 6.4 | AB68: 9.2 | AC68: 14.9 | AD68: 13.6 | AE68: =SUM(AA68:AD68) -> 44.1 | AF68: 16.4 | AG68: 17.5 | AH68: 19.7 | AI68: 17.3 | AJ68: =SUM(AF68:AI68) -> 70.9 | AK68: 15.7 | AL68: 14.4 | AM68: 18.4 | AN68: 15.7 | AO68: =SUM(AK68:AN68) -> 64.2 | AP68: 15.6 | AQ68: 16.2 | AR68: 16.23786806 | AS68: 15.4 | AT68: =SUM(AP68:AS68) -> 63.43786806
A69: Gerais, Administrativas & Outras | B69: 3.3 | C69: 2.725 | D69: 3.4 | E69: 5.804 | F69: 15.229 | G69: 3.274 | H69: 2.199 | I69: 2.865 | J69: 3.5 | K69: 11.838 | L69: 2.7 | M69: 2.8 | N69: 2.6 | O69: 2.5 | P69: 10.6 | Q69: 1.5 | R69: 3.4 | S69: 2.4 | T69: 2.6 | U69: 9.9 | V69: 2.3 | W69: 1.3 | X69: 2.1 | Y69: 1.8 | Z69: 7.5 | AA69: 1.2 | AB69: 2.2 | AC69: 1.7 | AD69: 0.8 | AE69: 5.9 | AF69: 2 | AG69: 1.3 | AH69: 2.4 | AI69: -0.5 | AJ69: 5.2 | AK69: 1.7 | AL69: 1.3 | AM69: 1.4 | AN69: 1.7 | AO69: 6.1 | AP69: 1.4 | AQ69: 1.6 | AR69: 0.97001671 | AS69: 1.2 | AT69: 5.17001671
A70: Depreciação e Amortização - Despesas | B70: 0.1 | C70: 0.09 | D70: 0.1 | E70: 0.085 | F70: 0.375 | G70: 0.084 | H70: 0.083 | I70: 0.082 | J70: 0.1 | K70: 0.349 | L70: 0.1 | M70: 0 | N70: 0 | O70: 0 | P70: 0.1 | Q70: 0 | R70: 0 | S70: 0 | T70: 0 | U70: 0 | V70: 0 | W70: 0 | X70: 0 | Y70: 0 | Z70: 0 | AA70: 0 | AB70: 0 | AC70: 0 | AD70: 0 | AE70: 0 | AF70: 0 | AG70: 0 | AH70: 0 | AI70: 0 | AJ70: 0 | AK70: 0 | AL70: 0 | AM70: 0 | AN70: 0 | AO70: 0 | AP70: 0 | AQ70: 0 | AR70: 0.01920378 | AS70: 0 | AT70: 0.01920378
A71: EBIT | B71: =B61-B62-B67 -> 11.073 | C71: 9.844 | D71: 10.682 | E71: 11.566 | F71: =F61-F62-F67 -> 43.165 | G71: 8.574 | H71: 10.08 | I71: 10.181 | J71: 6.188 | K71: =K61-K62-K67 -> 35.023 | L71: 16.425 | M71: 7.108 | N71: 10.804 | O71: 9.004 | P71: =P61-P62-P67 -> 43.341 | Q71: 10.442 | R71: 1.053 | S71: -0.433 | T71: -4.1 | U71: =U61-U62-U67 -> 6.962 | V71: -5.4 | W71: -7.8 | X71: -8.7 | Y71: -3 | Z71: =Z61-Z62-Z67 -> -24.9 | AA71: -1.9 | AB71: -4.2 | AC71: 0.4 | AD71: 1.4 | AE71: -4.3 | AF71: 1 | AG71: 2.6 | AH71: 1.1 | AI71: 10.6 | AJ71: =AJ61-AJ62-AJ67 -> 15.2 | AK71: 1.4 | AL71: =AL61-AL62-AL67 -> 0.9 | AM71: 1.7 | AN71: =AN61-AN62-AN67 -> -3.7 | AO71: 0.3 | AP71: -2.1 | AQ71: =AQ61-AQ62-AQ67 -> -1.2 | AR71: 1.80959824 | AS71: =AS61-AS62-AS67 -> 0.8 | AT71: -0.69040176
A72: D&A (Custos + Despesas) | B72: =B65+B70 -> 1.6 | C72: 1.99 | D72: 2.1 | E72: 2.323 | F72: 8.013 | G72: 2.551 | H72: 2.893 | I72: 3.182 | J72: 3.3 | K72: 11.926 | L72: 3.6 | M72: 3.5 | N72: 3.5 | O72: 3.6 | P72: 14.2 | Q72: 3.1 | R72: 2.8 | S72: 5 | T72: 3.6 | U72: 14.5 | V72: 3.6 | W72: 3.7 | X72: 3.6 | Y72: 3.6 | Z72: 14.5 | AA72: 3.5 | AB72: =AB65+AB70 -> 3.5 | AC72: =AC65+AC70 -> 3.4 | AD72: 3.4 | AE72: 13.8 | AF72: 3.4 | AG72: 3.3 | AH72: 3.2 | AI72: 3.1 | AJ72: =AJ65+AJ70 -> 13 | AK72: 4.3 | AL72: =AL65+AL70 -> 4.1 | AM72: 3.8 | AN72: =AN65+AN70 -> 4.3 | AO72: 16.5 | AP72: 4 | AQ72: =AQ65+AQ70 -> 4.1 | AR72: 4.36905482 | AS72: =AS65+AS70 -> 4.2 | AT72: 16.66905482
A73: EBITDA | B73: =B71+B72 -> 12.673 | C73: 11.834 | D73: 12.782 | E73: 13.889 | F73: =F71+F72 -> 51.178 | G73: 11.125 | H73: 12.973 | I73: 13.363 | J73: 9.488 | K73: =K71+K72 -> 46.949 | L73: 20.025 | M73: 10.608 | N73: 14.304 | O73: 12.604 | P73: =P71+P72 -> 57.541 | Q73: 13.542 | R73: 3.853 | S73: 4.567 | T73: -0.5 | U73: =U71+U72 -> 21.462 | V73: -1.8 | W73: -4.1 | X73: -5.1 | Y73: 0.6 | Z73: =Z71+Z72 -> -10.4 | AA73: 1.6 | AB73: -0.7 | AC73: 3.8 | AD73: 4.8 | AE73: 9.5 | AF73: 4.4 | AG73: 5.9 | AH73: 4.3 | AI73: 13.7 | AJ73: =AJ71+AJ72 -> 28.2 | AK73: 5.7 | AL73: =AL71+AL72 -> 5 | AM73: 5.5 | AN73: =AN71+AN72 -> 0.6 | AO73: 16.8 | AP73: 1.9 | AQ73: =AQ71+AQ72 -> 2.9 | AR73: 6.17865306 | AS73: =AS71+AS72+0.1 -> 5.1 | AT73: =AT71+AT72 -> 15.97865306
A74: Margem EBITDA (%) | B74: =B73/B61 -> 0.2551285407 | C74: 0.2291323794 | D74: 0.2271063573 | E74: 0.2411033573 | F74: =F73/F61 -> 0.2378071447 | G74: 0.20320377 | H74: 0.2215826601 | I74: 0.2063847532 | J74: 0.1387377903 | K74: =K73/K61 -> 0.1905158036 | L74: 0.3056085464 | M74: 0.1800774088 | N74: 0.2314413307 | O74: 0.2258619454 | P74: =P73/P61 -> 0.2377324503 | Q74: 0.2403535551 | R74: 0.07262548772 | S74: 0.08494057693 | T74: -0.01138952164 | U74: =U73/U61 -> 0.1036501145 | V74: -0.045 | W74: -0.1076115486 | X74: -0.1317829457 | Y74: 0.01542416452 | Z74: =Z73/Z61 -> -0.06679511882 | AA74: 0.04312668464 | AB74: -0.01616628176 | AC74: 0.06934306569 | AD74: 0.08727272727 | AE74: 0.04994742376 | AF74: 0.07495741056 | AG74: 0.09624796085 | AH74: 0.06379821958 | AI74: 0.2382608696 | AJ74: =AJ73/AJ61 -> 0.1151490404 | AK74: 0.1010638298 | AL74: =AL73/AL61 -> 0.08561643836 | AM74: 0.08500772798 | AN74: =AN73/AN61 -> 0.01039861352 | AO74: 0.07082630691 | AP74: 0.03405017921 | AQ74: =AQ73/AQ61 -> 0.05197132616 | AR74: 0.1101364182 | AS74: =AS73/AS61 -> 0.08747855918 | AT74: 0.07070200469
A76: EBITDA Pró-Forma¹ | AA76: 1.5 | AB76: -0.7 | AC76: 3.9 | AD76: 4.9 | AE76: =SUM(AA76:AD76) -> 9.6 | AF76: 4.4 | AG76: 5.9 | AH76: 4.3 | AI76: 13.7 | AJ76: =SUM(AF76:AI76) -> 28.3 | AK76: 4.015 | AL76: 3.4 | AM76: 3.9 | AN76: -1 | AO76: =SUM(AK76:AN76) -> 10.315 | AP76: 0.173 | AQ76: 1.173 | AR76: 4.452 | AS76: 3.389 | AT76: =SUM(AP76:AS76) -> 9.187
A77: Margem EBITDA Pró-Forma | AA77: =AA76/AA61 -> 0.04043126685 | AB77: -0.01616628176 | AC77: 0.07116788321 | AD77: 0.08909090909 | AE77: 0.05047318612 | AF77: 0.07495741056 | AG77: 0.09624796085 | AH77: 0.06379821958 | AI77: 0.2382608696 | AJ77: 0.1155573704 | AK77: 0.07118794326 | AL77: 0.05821917808 | AM77: 0.06027820711 | AN77: -0.01733102253 | AO77: 0.04348650927 | AP77: 0.003100358423 | AQ77: =AQ76/AQ61 -> 0.02102150538 | AR77: 0.07935828877 | AS77: =AS76/AS61 -> 0.05813036021 | AT77: 0.04065044248
A79: TERMINAL DE VEÍCULOS¹
A80: RECEITA BRUTA | B80: 19.656 | C80: 22.333 | D80: 28.929 | E80: 20.339 | F80: =SUM(B80:E80) -> 91.257 | G80: 20.142 | H80: 20.113 | I80: 17.61 | J80: 20 | K80: =SUM(G80:J80) -> 77.865 | L80: 13.2 | M80: 19.3 | N80: 20.8 | O80: 14.301 | P80: =SUM(L80:O80) -> 67.601 | Q80: 11.663 | R80: 17.5 | S80: 14.7 | T80: 14.6 | U80: =SUM(Q80:T80) -> 58.463 | V80: 9.8 | W80: 12.1 | X80: 9.3 | Y80: 11.7 | Z80: =SUM(V80:Y80) -> 42.9 | AA80: 16.3 | AB80: 14.5 | AC80: 15.4 | AD80: 14.7 | AE80: =SUM(AA80:AD80) -> 60.9 | AF80: 15.8 | AG80: 19.2 | AH80: 19.7 | AI80: 14.5 | AJ80: =SUM(AF80:AI80) -> 69.2 | AK80: 15.7 | AL80: 19.3 | AM80: 16.8 | AN80: 13 | AO80: =SUM(AK80:AN80) -> 64.8 | AP80: 15.3 | AQ80: 7.9 | AR80: 12.1 | AS80: 14.7 | AT80: =SUM(AP80:AS80) -> 50
A81: ELIMINAÇÕES | B81: -2.8 | C81: -2.916 | D81: -3.668 | E81: -2.625 | F81: =SUM(B81:E81) -> -12.009 | G81: -2.873 | H81: -2.839 | I81: -2.189 | J81: -2.498 | K81: =SUM(G81:J81) -> -10.399 | L81: -1.919 | M81: -2.797 | N81: -2.798 | O81: -1.941 | P81: =SUM(L81:O81) -> -9.455 | Q81: -1.601 | R81: -2.343 | S81: -1.997 | T81: -1.9 | U81: =SUM(Q81:T81) -> -7.841 | V81: -1.5 | W81: -2 | X81: -1.5 | Y81: -1.5 | Z81: =SUM(V81:Y81) -> -6.5 | AA81: -2.1 | AB81: -1.83 | AC81: -1.8 | AD81: -1.8 | AE81: =SUM(AA81:AD81) -> -7.53 | AF81: -1.9 | AG81: -2.7 | AH81: -4.2 | AI81: -3.2 | AJ81: =SUM(AF81:AI81) -> -12 | AK81: -2.9 | AL81: -2.8 | AM81: -3.6 | AN81: -2 | AO81: =SUM(AK81:AN81) -> -11.3 | AP81: -2.3 | AQ81: -1.2 | AR81: -1.836 | AS81: -2.1 | AT81: =SUM(AP81:AS81) -> -7.436
A82: RECEITA LÍQUIDA | B82: =B80+B81 -> 16.856 | C82: 19.417 | D82: 25.261 | E82: 17.714 | F82: =SUM(B82:E82) -> 79.248 | G82: =G80+G81 -> 17.269 | H82: 17.274 | I82: 15.421 | J82: 17.502 | K82: =SUM(G82:J82) -> 67.466 | L82: =L80+L81 -> 11.281 | M82: 16.503 | N82: 18.002 | O82: 12.36 | P82: =SUM(L82:O82) -> 58.146 | Q82: =Q80+Q81 -> 10.062 | R82: 15.157 | S82: 12.703 | T82: 12.7 | U82: =SUM(Q82:T82) -> 50.622 | V82: =V80+V81 -> 8.3 | W82: 10.1 | X82: 7.8 | Y82: 10.2 | Z82: =SUM(V82:Y82) -> 36.4 | AA82: =AA80+AA81 -> 14.2 | AB82: 12.67 | AC82: 13.6 | AD82: 12.9 | AE82: =SUM(AA82:AD82) -> 53.37 | AF82: =AF80+AF81 -> 13.9 | AG82: 16.5 | AH82: =AH80+AH81 -> 15.5 | AI82: =AI80+AI81 -> 11.3 | AJ82: =SUM(AF82:AI82) -> 57.2 | AK82: =AK80+AK81 -> 12.8 | AL82: =AL80+AL81 -> 16.5 | AM82: =AM80+AM81 -> 13.2 | AN82: =AN80+AN81 -> 11 | AO82: =SUM(AK82:AN82) -> 53.5 | AP82: =AP80+AP81 -> 13 | AQ82: =AQ80+AQ81 -> 6.7 | AR82: =AR80+AR81 -> 10.264 | AS82: =AS80+AS81 -> 12.6 | AT82: =SUM(AP82:AS82) -> 42.564
A83: CUSTOS | B83: =SUM(B84:B87) -> 7.4 | C83: =SUM(C84:C87) -> 7.7 | D83: =SUM(D84:D87) -> 7.5 | E83: =SUM(E84:E87) -> 6.91 | F83: 29.51 | G83: =SUM(G84:G87) -> 8.107 | H83: =SUM(H84:H87) -> 9.054 | I83: =SUM(I84:I87) -> 9.4 | J83: =SUM(J84:J87) -> 10.1 | K83: 36.661 | L83: =SUM(L84:L87) -> 7.6 | M83: =SUM(M84:M87) -> 9 | N83: =SUM(N84:N87) -> 9 | O83: =SUM(O84:O87) -> 8.1 | P83: 33.7 | Q83: =SUM(Q84:Q87) -> 8.5 | R83: =SUM(R84:R87) -> 9.3 | S83: =SUM(S84:S87) -> 8.5 | T83: =SUM(T84:T87) -> 9.3 | U83: 35.6 | V83: =SUM(V84:V87) -> 8.6 | W83: =SUM(W84:W87) -> 9 | X83: =SUM(X84:X87) -> 8.3 | Y83: =SUM(Y84:Y87) -> 9.3 | Z83: 35.2 | AA83: =SUM(AA84:AA87) -> 9.8 | AB83: =SUM(AB84:AB87) -> 10.1 | AC83: =SUM(AC84:AC87) -> 10 | AD83: =SUM(AD84:AD87) -> 10.6 | AE83: =SUM(AE84:AE87) -> 40.5 | AF83: =SUM(AF84:AF87) -> 10.1 | AG83: =SUM(AG84:AG87) -> 11.2 | AH83: =SUM(AH84:AH87) -> 9.1 | AI83: 7.7 | AJ83: =SUM(AJ84:AJ87) -> 38.1 | AK83: 9.2 | AL83: 9.4 | AM83: =SUM(AM84:AM87) -> 8.7 | AN83: 5.6 | AO83: 32.9 | AP83: =SUM(AP84:AP87) -> 8.9 | AQ83: 6.7 | AR83: 8.57470757 | AS83: =SUM(AS84:AS87) -> 8.9 | AT83: 33.07470757
A84: Custos de movimentação | B84: 3.6 | C84: 3.6 | D84: 3.4 | E84: 2.907 | F84: =SUM(B84:E84) -> 13.507 | G84: 3.94 | H84: 4.8 | I84: 5.1 | J84: 4.9 | K84: =SUM(G84:J84) -> 18.74 | L84: 3.1 | M84: 4.1 | N84: 4.1 | O84: 3.3 | P84: =SUM(L84:O84) -> 14.6 | Q84: 3.4 | R84: 4.5 | S84: 3.4 | T84: 4.5 | U84: =SUM(Q84:T84) -> 15.8 | V84: 3.3 | W84: 4.1 | X84: 3.1 | Y84: 4.4 | Z84: =SUM(V84:Y84) -> 14.9 | AA84: 4.8 | AB84: 5.2 | AC84: 5 | AD84: 5.2 | AE84: =SUM(AA84:AD84) -> 20.2 | AF84: 4.9 | AG84: 6.1 | AH84: 4 | AI84: 2.8 | AJ84: =SUM(AF84:AI84) -> 17.8 | AK84: 3.7 | AL84: 4.6 | AM84: 3.9 | AN84: 0.8 | AO84: =SUM(AK84:AN84) -> 13 | AP84: 3.8 | AQ84: 1.6 | AR84: 3.33198466 | AS84: 3.9 | AT84: =SUM(AP84:AS84) -> 12.63198466
A85: Arrendamento e Infraestrutura | B85: 0.9 | C85: 1 | D85: 0.9 | E85: 0.894 | F85: 3.694 | G85: 1.09 | H85: 1 | I85: 0.9 | J85: 1 | K85: 3.99 | L85: 1.4 | M85: 1.2 | N85: 1.2 | O85: 1.3 | P85: 5.1 | Q85: 1.4 | R85: 1.3 | S85: 1.5 | T85: 1.2 | U85: 5.4 | V85: 1.7 | W85: 1.5 | X85: 1.7 | Y85: 1.4 | Z85: 6.3 | AA85: 0 | AB85: 0 | AC85: 0 | AD85: 0 | AE85: 0 | AF85: 0 | AG85: 0 | AH85: 0 | AI85: 0 | AJ85: 0 | AK85: 0 | AL85: 0 | AM85: 0 | AN85: 0 | AO85: 0 | AP85: 0 | AQ85: 0 | AR85: 0 | AS85: 0 | AT85: 0
A86: Depreciação e Amortização - Custos | B86: 2.3 | C86: 2.3 | D86: 2.3 | E86: 2.253 | F86: 9.153 | G86: 2.254 | H86: 2.254 | I86: 2.3 | J86: 2.3 | K86: 9.108 | L86: 2.3 | M86: 2.3 | N86: 2.3 | O86: 2.3 | P86: 9.2 | Q86: 2.3 | R86: 2.3 | S86: 2.3 | T86: 2.2 | U86: 9.1 | V86: 2.3 | W86: 2.3 | X86: 2.3 | Y86: 2.3 | Z86: 9.2 | AA86: 3.6 | AB86: 3.7 | AC86: 3.7 | AD86: 3.7 | AE86: 14.7 | AF86: 3.7 | AG86: 3.7 | AH86: 3.7 | AI86: 3.7 | AJ86: 14.8 | AK86: 3.8 | AL86: 3.9 | AM86: 3.9 | AN86: 3.9 | AO86: 15.5 | AP86: 4 | AQ86: 4 | AR86: 4.03565058 | AS86: 4 | AT86: 16.03565058
A87: Outros | B87: 0.6 | C87: 0.8 | D87: 0.9 | E87: 0.856 | F87: 3.156 | G87: 0.823 | H87: 1 | I87: 1.1 | J87: 1.9 | K87: 4.823 | L87: 0.8 | M87: 1.4 | N87: 1.4 | O87: 1.2 | P87: 4.8 | Q87: 1.4 | R87: 1.2 | S87: 1.3 | T87: 1.4 | U87: 5.3 | V87: 1.3 | W87: 1.1 | X87: 1.2 | Y87: 1.2 | Z87: 4.8 | AA87: 1.4 | AB87: 1.2 | AC87: 1.3 | AD87: 1.7 | AE87: 5.6 | AF87: 1.5 | AG87: 1.4 | AH87: 1.4 | AI87: 1.2 | AJ87: 5.5 | AK87: 1.7 | AL87: 0.9 | AM87: 0.9 | AN87: 0.9 | AO87: 4.4 | AP87: 1.1 | AQ87: 1.1 | AR87: 1.20707233 | AS87: 1 | AT87: 4.40707233
A88: DESPESAS | B88: =SUM(B89:B91) -> 0.3 | C88: =SUM(C89:C91) -> 0.127 | D88: =SUM(D89:D91) -> -0.1 | E88: =SUM(E89:E91) -> 0.159 | F88: 0.486 | G88: =SUM(G89:G91) -> 0.274 | H88: =SUM(H89:H91) -> 0.224 | I88: =SUM(I89:I91) -> 0.211 | J88: =SUM(J89:J91) -> 0.2 | K88: 0.909 | L88: =SUM(L89:L91) -> 0.3 | M88: =SUM(M89:M91) -> 0.3 | N88: =SUM(N89:N91) -> 0.2 | O88: =SUM(O89:O91) -> 0.2 | P88: 1 | Q88: =SUM(Q89:Q91) -> 0.6 | R88: =SUM(R89:R91) -> 0.5 | S88: =SUM(S89:S91) -> 0.5 | T88: =SUM(T89:T91) -> -0.3 | U88: 1.3 | V88: =SUM(V89:V91) -> 0.4 | W88: =SUM(W89:W91) -> -2 | X88: =SUM(X89:X91) -> 0.2 | Y88: =SUM(Y89:Y91) -> 0.4 | Z88: -1 | AA88: =SUM(AA89:AA91) -> 0.3 | AB88: =SUM(AB89:AB91) -> 0.34 | AC88: =SUM(AC89:AC91) -> 0.3 | AD88: =SUM(AD89:AD91) -> 0.3 | AE88: =SUM(AE89:AE91) -> 1.24 | AF88: =SUM(AF89:AF91) -> 0.4 | AG88: =SUM(AG89:AG91) -> 0.9 | AH88: =SUM(AH89:AH91) -> 0.9 | AI88: 0.6 | AJ88: =SUM(AJ89:AJ91) -> 2.8 | AK88: 0.8 | AL88: 0.9 | AM88: =SUM(AM89:AM91) -> 0.7 | AN88: 0.8 | AO88: 3.2 | AP88: =SUM(AP89:AP91) -> 1.2 | AQ88: 0.6 | AR88: 0.56600261 | AS88: =SUM(AS89:AS91) -> 1 | AT88: 3.36600261
A89: Vendas | B89: 0.2 | C89: 0.096 | D89: -0.2 | E89: 0.102 | F89: =SUM(B89:E89) -> 0.198 | G89: 0.09 | H89: 0.102 | I89: 0.085 | J89: 0.1 | K89: =SUM(G89:J89) -> 0.377 | L89: 0.1 | M89: 0.1 | N89: 0.1 | O89: 0.1 | P89: =SUM(L89:O89) -> 0.4 | Q89: 0.5 | R89: 0.3 | S89: 0.4 | T89: 0.2 | U89: =SUM(Q89:T89) -> 1.4 | V89: 0.2 | W89: 0.3 | X89: 0 | Y89: 0.2 | Z89: =SUM(V89:Y89) -> 0.7 | AA89: 0.3 | AB89: 0.2 | AC89: 0.2 | AD89: 0.2 | AE89: =SUM(AA89:AD89) -> 0.9 | AF89: 0.3 | AG89: 0.8 | AH89: 0.8 | AI89: 0.4 | AJ89: =SUM(AF89:AI89) -> 2.3 | AK89: 0.6 | AL89: 0.8 | AM89: 0.6 | AN89: 0.5 | AO89: =SUM(AK89:AN89) -> 2.5 | AP89: 1 | AQ89: 0.4 | AR89: 0.3690546 | AS89: 0.7 | AT89: =SUM(AP89:AS89) -> 2.4690546
A90: Gerais, Administrativas & Outras | B90: 0.1 | C90: 0.031 | D90: 0.1 | E90: 0.057 | F90: 0.288 | G90: 0.183 | H90: 0.122 | I90: 0.126 | J90: 0.1 | K90: 0.531 | L90: 0.2 | M90: 0.2 | N90: 0.1 | O90: 0.1 | P90: 0.6 | Q90: 0.1 | R90: 0.2 | S90: 0.1 | T90: -0.5 | U90: -0.1 | V90: 0.2 | W90: -2.3 | X90: 0.2 | Y90: 0.2 | Z90: -1.7 | AA90: 0 | AB90: 0.14 | AC90: 0.1 | AD90: 0.1 | AE90: 0.34 | AF90: 0.1 | AG90: 0.1 | AH90: 0.1 | AI90: 0.2 | AJ90: 0.5 | AK90: 0.2 | AL90: 0.1 | AM90: 0.1 | AN90: 0.3 | AO90: 0.7 | AP90: 0.2 | AQ90: 0.2 | AR90: 0.19694801 | AS90: 0.3 | AT90: 0.89694801
A91: Depreciação e Amortização - Despesas | B91: 0 | C91: 0 | D91: 0 | E91: 0 | F91: 0 | G91: 0.001 | H91: 0 | I91: 0 | J91: 0 | K91: 0.001 | L91: 0 | M91: 0 | N91: 0 | O91: 0 | P91: 0 | Q91: 0 | R91: 0 | S91: 0 | T91: 0 | U91: 0 | V91: 0 | W91: 0 | X91: 0 | Y91: 0 | Z91: 0 | AA91: 0 | AB91: 0 | AC91: 0 | AD91: 0 | AE91: 0 | AF91: 0 | AG91: 0 | AH91: 0 | AI91: 0 | AJ91: 0 | AK91: 0 | AL91: 0 | AM91: 0 | AN91: 0 | AO91: 0 | AP91: 0 | AQ91: 0 | AR91: 0 | AS91: 0 | AT91: 0
A92: EBIT | B92: =B82-B83-B88 -> 9.156 | C92: 11.59 | D92: 17.861 | E92: 10.645 | F92: =F82-F83-F88 -> 49.252 | G92: 8.888 | H92: 7.996 | I92: 5.81 | J92: 7.202 | K92: =K82-K83-K88 -> 29.896 | L92: 3.381 | M92: 7.203 | N92: 8.802 | O92: 4.06 | P92: =P82-P83-P88 -> 23.446 | Q92: 0.962 | R92: 5.357 | S92: 3.703 | T92: 3.7 | U92: =U82-U83-U88 -> 13.722 | V92: -0.7 | W92: 3.1 | X92: -0.7 | Y92: 0.5 | Z92: =Z82-Z83-Z88 -> 2.2 | AA92: 4.1 | AB92: 2.23 | AC92: 3.3 | AD92: 2 | AE92: 11.63 | AF92: 3.4 | AG92: 4.4 | AH92: 5.5 | AI92: 3 | AJ92: =AJ82-AJ83-AJ88 -> 16.3 | AK92: 2.8 | AL92: =AL82-AL83-AL88 -> 6.2 | AM92: 3.8 | AN92: =AN82-AN83-AN88 -> 4.6 | AO92: 17.4 | AP92: 2.9 | AQ92: =AQ82-AQ83-AQ88 -> -0.6 | AR92: 1.12328982 | AS92: =AS82-AS83-AS88 -> 2.7 | AT92: 6.12328982
A93: D&A (Custos + Despesas) | B93: =B86+B91 -> 2.3 | C93: 2.3 | D93: 2.3 | E93: 2.253 | F93: 9.153 | G93: 2.255 | H93: 2.254 | I93: 2.3 | J93: 2.3 | K93: 9.109 | L93: 2.3 | M93: 2.3 | N93: 2.3 | O93: 2.3 | P93: 9.2 | Q93: 2.3 | R93: 2.3 | S93: 2.3 | T93: 2.2 | U93: 9.1 | V93: 2.3 | W93: 2.3 | X93: 2.3 | Y93: 2.3 | Z93: 9.2 | AA93: 3.6 | AB93: =AB86+AB91 -> 3.7 | AC93: =AC86+AC91 -> 3.7 | AD93: 3.7 | AE93: 14.7 | AF93: 3.7 | AG93: 3.7 | AH93: 3.7 | AI93: 3.7 | AJ93: =AJ86+AJ91 -> 14.8 | AK93: 3.8 | AL93: =AL86+AL91 -> 3.9 | AM93: 3.9 | AN93: =AN86+AN91 -> 3.9 | AO93: 15.5 | AP93: 4 | AQ93: =AQ86+AQ91 -> 4 | AR93: 4.03565058 | AS93: =AS86+AS91 -> 4 | AT93: 16.03565058
A94: EBITDA | B94: =B92+B93 -> 11.456 | C94: =C92+C93 -> 13.89 | D94: =D92+D93 -> 20.161 | E94: =E92+E93 -> 12.898 | F94: 58.405 | G94: =G92+G93 -> 11.143 | H94: =H92+H93 -> 10.25 | I94: =I92+I93 -> 8.11 | J94: =J92+J93 -> 9.502 | K94: 39.005 | L94: =L92+L93 -> 5.681 | M94: =M92+M93 -> 9.503 | N94: =N92+N93 -> 11.102 | O94: =O92+O93 -> 6.36 | P94: 32.646 | Q94: =Q92+Q93 -> 3.262 | R94: =R92+R93 -> 7.657 | S94: =S92+S93 -> 6.003 | T94: =T92+T93 -> 5.9 | U94: 22.822 | V94: =V92+V93 -> 1.6 | W94: =W92+W93 -> 5.4 | X94: =X92+X93 -> 1.6 | Y94: =Y92+Y93 -> 2.8 | Z94: 11.4 | AA94: =AA92+AA93 -> 7.7 | AB94: =AB92+AB93 -> 5.93 | AC94: =AC92+AC93 -> 7 | AD94: =AD92+AD93 -> 5.7 | AE94: =AE92+AE93 -> 26.33 | AF94: =AF92+AF93 -> 7.1 | AG94: =AG92+AG93 -> 8.1 | AH94: =AH92+AH93 -> 9.2 | AI94: 6.7 | AJ94: =AJ92+AJ93 -> 31.1 | AK94: 6.6 | AL94: =AL92+AL93 -> 10.1 | AM94: 7.7 | AN94: =AN92+AN93 -> 8.5 | AO94: 32.9 | AP94: 6.9 | AQ94: =AQ92+AQ93 -> 3.4 | AR94: 5.1589404 | AS94: =AS92+AS93+0.1 -> 6.8 | AT94: =AT92+AT93 -> 22.1589404
A95: Margem EBITDA (%) | B95: =B94/B82 -> 0.6796392976 | C95: =C94/C82 -> 0.7153525261 | D95: =D94/D82 -> 0.798107755 | E95: =E94/E82 -> 0.7281246472 | F95: 0.736990208 | G95: =G94/G82 -> 0.645260293 | H95: =H94/H82 -> 0.5933773301 | I95: =I94/I82 -> 0.5259062318 | J95: =J94/J82 -> 0.5429093818 | K95: 0.5781430647 | L95: =L94/L82 -> 0.5035901073 | M95: =M94/M82 -> 0.5758346967 | N95: =N94/N82 -> 0.6167092545 | O95: =O94/O82 -> 0.5145631068 | P95: 0.5614487669 | Q95: =Q94/Q82 -> 0.3241900219 | R95: =R94/R82 -> 0.5051791252 | S95: =S94/S82 -> 0.4725655357 | T95: =T94/T82 -> 0.4645669291 | U95: 0.4508316542 | V95: =V94/V82 -> 0.1927710843 | W95: =W94/W82 -> 0.5346534653 | X95: =X94/X82 -> 0.2051282051 | Y95: =Y94/Y82 -> 0.2745098039 | Z95: 0.3131868132 | AA95: =AA94/AA82 -> 0.5422535211 | AB95: =AB94/AB82 -> 0.4680347277 | AC95: =AC94/AC82 -> 0.5147058824 | AD95: =AD94/AD82 -> 0.4418604651 | AE95: =AE94/AE82 -> 0.493348323 | AF95: =AF94/AF82 -> 0.5107913669 | AG95: =AG94/AG82 -> 0.4909090909 | AH95: =AH94/AH82 -> 0.5935483871 | AI95: 0.592920354 | AJ95: =AJ94/AJ82 -> 0.5437062937 | AK95: 0.515625 | AL95: =AL94/AL82 -> 0.6121212121 | AM95: 0.5833333333 | AN95: =AN94/AN82 -> 0.7727272727 | AO95: 0.614953271 | AP95: 0.5307692308 | AQ95: =AQ94/AQ82 -> 0.5074626866 | AR95: 0.5026247467 | AS95: =AS94/AS82 -> 0.5396825397 | AT95: 0.5206028663
A97: EBITDA Pró-Forma¹ | AA97: 5.5 | AB97: 3.7 | AC97: 4.6 | AD97: 3.4 | AE97: =SUM(AA97:AD97) -> 17.2 | AF97: 4.8 | AG97: 5.9 | AH97: 7 | AI97: 4.5 | AJ97: =SUM(AF97:AI97) -> 22.2 | AK97: 4.222 | AL97: 7.6 | AM97: 5.3 | AN97: 6.2 | AO97: =SUM(AK97:AN97) -> 23.322 | AP97: 4.364 | AQ97: 0.8 | AR97: 2.589 | AS97: 4.189 | AT97: =SUM(AP97:AS97) -> 11.942
A98: Margem EBITDA Pró-Forma | AA98: =AA97/AA82 -> 0.3873239437 | AB98: 0.2920284136 | AC98: 0.3382352941 | AD98: 0.2635658915 | AE98: 0.3222784336 | AF98: =AF97/AF82 -> 0.345323741 | AG98: 0.3575757576 | AH98: 0.4516129032 | AI98: 0.3982300885 | AJ98: 0.3881118881 | AK98: 0.32984375 | AL98: 0.4606060606 | AM98: 0.4015151515 | AN98: 0.5636363636 | AO98: 0.4359252336 | AP98: 0.3356923077 | AQ98: =AQ97/AQ82 -> 0.1194029851 | AR98: 0.2522408418 | AS98: =AS97/AS82 -> 0.3324603175 | AT98: 0.2805657363
A100: CORPORATIVO
A101: DESPESAS | B101: =SUM(B102:B103) -> 20.7 | C101: 16.992 | D101: 18.763 | E101: 22.084 | F101: =SUM(F102:F103) -> 78.539 | G101: 22.762 | H101: 18.698 | I101: 18.483 | J101: 18.7 | K101: =SUM(K102:K103) -> 78.643 | L101: 15.7 | M101: 13.5 | N101: 15.2 | O101: 12.9 | P101: =SUM(P102:P103) -> 57.3 | Q101: 15.3 | R101: 15.1 | S101: 16.2 | T101: 22.6 | U101: =SUM(U102:U103) -> 69.2 | V101: 11.7 | W101: 13.5 | X101: 13.1 | Y101: 8.9 | Z101: =SUM(Z102:Z103) -> 47.2 | AA101: 12.5 | AB101: 12.6 | AC101: 7.8 | AD101: 12.3 | AE101: 45.2 | AF101: 8.9 | AG101: 11.1 | AH101: 10 | AI101: 10.5 | AJ101: =SUM(AJ102:AJ103) -> 40.5 | AK101: =SUM(AK102:AK103) -> 11.2 | AL101: 8.9 | AM101: =SUM(AM102:AM103) -> 8.8 | AN101: 9 | AO101: 37.9 | AP101: =SUM(AP102:AP103) -> 12.6 | AQ101: 10.8 | AR101: 7.31911317 | AS101: =SUM(AS102:AS103) -> 8.613 | AT101: 39.33211317
A102: Gerais, Administrativas & Outras | B102: 16.9 | C102: 12.734 | D102: 14.718 | E102: 18.036 | F102: =SUM(B102:E102) -> 62.388 | G102: 18.711 | H102: 14.648 | I102: 14.435 | J102: 14.7 | K102: =SUM(G102:J102) -> 62.494 | L102: 11.6 | M102: 9.5 | N102: 11.1 | O102: 8.9 | P102: =SUM(L102:O102) -> 41.1 | Q102: 11.3 | R102: 11.1 | S102: 12.2 | T102: 20.8 | U102: =SUM(Q102:T102) -> 55.4 | V102: 9.9 | W102: 11.7 | X102: 11.3 | Y102: 7.1 | Z102: =SUM(V102:Y102) -> 40 | AA102: 10.7 | AB102: 10.8 | AC102: 6 | AD102: 10.8 | AE102: =SUM(AA102:AD102) -> 38.3 | AF102: 8 | AG102: 10.2 | AH102: 9.1 | AI102: 9.6 | AJ102: =SUM(AF102:AI102) -> 36.9 | AK102: 10.3 | AL102: 8 | AM102: 7.9 | AN102: 8.1 | AO102: =SUM(AK102:AN102) -> 34.3 | AP102: 11.7 | AQ102: 9.9 | AR102: 6.42360175 | AS102: 7.718 | AT102: =SUM(AP102:AS102) -> 35.74160175
A103: D&A | B103: 3.8 | C103: 4.258 | D103: 4.045 | E103: 4.048 | F103: =SUM(B103:E103) -> 16.151 | G103: 4.051 | H103: 4.05 | I103: 4.048 | J103: 4 | K103: =SUM(G103:J103) -> 16.149 | L103: 4.1 | M103: 4 | N103: 4.1 | O103: 4 | P103: =SUM(L103:O103) -> 16.2 | Q103: 4 | R103: 4 | S103: 4 | T103: 1.8 | U103: =SUM(Q103:T103) -> 13.8 | V103: 1.8 | W103: 1.8 | X103: 1.8 | Y103: 1.8 | Z103: =SUM(V103:Y103) -> 7.2 | AA103: 1.8 | AB103: 1.8 | AC103: 1.8 | AD103: 1.5 | AE103: =SUM(AA103:AD103) -> 6.9 | AF103: 0.9 | AG103: 0.9 | AH103: 0.9 | AI103: 0.9 | AJ103: =SUM(AF103:AI103) -> 3.6 | AK103: 0.9 | AL103: 0.9 | AM103: 0.9 | AN103: 0.9 | AO103: =SUM(AK103:AN103) -> 3.6 | AP103: 0.9 | AQ103: 0.9 | AR103: 0.89551142 | AS103: 0.895 | AT103: =SUM(AP103:AS103) -> 3.59051142
A104: EBIT | B104: =-B101 -> -20.7 | C104: -16.992 | D104: -18.763 | E104: -22.084 | F104: -78.539 | G104: -22.762 | H104: -18.698 | I104: -18.483 | J104: -18.7 | K104: -78.643 | L104: -15.7 | M104: -13.5 | N104: -15.2 | O104: -12.9 | P104: -57.3 | Q104: -15.3 | R104: -15.1 | S104: -16.2 | T104: -22.6 | U104: -69.2 | V104: -11.7 | W104: -13.5 | X104: -13.1 | Y104: -8.9 | Z104: -47.2 | AA104: =-AA101 -> -12.5 | AB104: =-AB101 -> -12.6 | AC104: -7.8 | AD104: -12.3 | AE104: -45.2 | AF104: -8.9 | AG104: -11.1 | AH104: -10 | AI104: -10.5 | AJ104: =-AJ101 -> -40.5 | AK104: -11.2 | AL104: -8.9 | AM104: =-AM101 -> -8.8 | AN104: -9 | AO104: -37.9 | AP104: =-AP101 -> -12.6 | AQ104: -10.8 | AR104: -7.31911317 | AS104: =-AS101 -> -8.613 | AT104: -39.33211317
A105: D&A (Custos + Despesas) | B105: =B103 -> 3.8 | C105: 4.258 | D105: 4.045 | E105: 4.048 | F105: 16.151 | G105: 4.051 | H105: 4.05 | I105: 4.048 | J105: 4 | K105: 16.149 | L105: 4.1 | M105: 4 | N105: 4.1 | O105: 4 | P105: 16.2 | Q105: 4 | R105: 4 | S105: 4 | T105: 1.8 | U105: 13.8 | V105: 1.8 | W105: 1.8 | X105: 1.8 | Y105: 1.8 | Z105: 7.2 | AA105: =AA103 -> 1.8 | AB105: =AB103 -> 1.8 | AC105: =AC103 -> 1.8 | AD105: 1.5 | AE105: 6.9 | AF105: 0.9 | AG105: 0.9 | AH105: 0.9 | AI105: 0.9 | AJ105: =AJ103 -> 3.6 | AK105: 0.9 | AL105: 0.9 | AM105: =AM103 -> 0.9 | AN105: 0.9 | AO105: 3.6 | AP105: =AP103 -> 0.9 | AQ105: 0.9 | AR105: 0.89551142 | AS105: =AS103 -> 0.895 | AT105: 3.59051142
A106: EBITDA | B106: =B104+B105 -> -16.9 | C106: -12.734 | D106: -14.718 | E106: -18.036 | F106: =F104+F105 -> -62.388 | G106: -18.711 | H106: -14.648 | I106: -14.435 | J106: -14.7 | K106: =K104+K105 -> -62.494 | L106: -11.6 | M106: -9.5 | N106: -11.1 | O106: -8.9 | P106: =P104+P105 -> -41.1 | Q106: -11.3 | R106: -11.1 | S106: -12.2 | T106: -20.8 | U106: =U104+U105 -> -55.4 | V106: -9.9 | W106: -11.7 | X106: -11.3 | Y106: -7.1 | Z106: =Z104+Z105 -> -40 | AA106: -10.7 | AB106: -10.8 | AC106: -6 | AD106: -10.8 | AE106: -38.3 | AF106: -8 | AG106: -10.2 | AH106: -9.1 | AI106: -9.6 | AJ106: =AJ104+AJ105 -> -36.9 | AK106: -10.3 | AL106: -8 | AM106: =AM104+AM105 -> -7.9 | AN106: -8.1 | AO106: -34.3 | AP106: =AP104+AP105 -> -11.7 | AQ106: -9.9 | AR106: -6.42360175 | AS106: =AS104+AS105 -> -7.718 | AT106: -35.74160175
A108: ¹ A partir de 2017, as Demonstrações Financeiras seguem a metodologia contábil do IFRS 16, onde os gastos relativos ao pagamento do arrendamento dos terminais e os aluguéis são contabilizados na conta de Resultado Financeiro. O EBITDA pró-forma considera os custos de arrendamento e aluguel.

Sheet Balanço Patrimonial
V8: 22 | W8: =V8+1 -> 23 | X8: =W8+1 -> 24 | Y8: 25 | Z8: 26 | AA8: 27 | AB8: 28 | AC8: 29 | AD8: 30 | AE8: 31 | AF8: 32 | AG8: 33 | AH8: 34 | AI8: 35 | AJ8: 36 | AK8: 37 | AL8: 38 | AM8: 39 | AN8: 40 | AP8: =AN8+1 -> 41 | AQ8: =AO8+1 -> 1 | AR8: 2 | AS8: =AR8+1 -> 3 | AT8: =AS8+1 -> 4 | AU8: 5 | AV8: 6 | AW8: 7 | AX8: 8 | AY8: 9 | AZ8: 10 | BA8: 11 | BB8: 12 | BC8: 13
A9: (R$ Milhões) | B9: 1T12 | C9: 2T12 | D9: 3T12 | E9: 4T12 | F9: 2012 | G9: 1T13 | H9: 2T13 | I9: 3T13 | J9: 4T13 | K9: 2013 | L9: 1T14 | M9: 2T14 | N9: 3T14 | O9: 4T14 | P9: 2014 | Q9: 1T15 | R9: 2T15 | S9: 3T15 | T9: 4T15 | U9: 2015 | V9: 1T16 | W9: 2T16 | X9: 3T16 | Y9: 4T16 | Z9: 2016 | AA9: 1T17 | AB9: 2T17 | AC9: 3T17 | AD9: 4T17 | AE9: 2017 | AF9: 1T18 | AG9: 2T18 | AH9: 3T18 | AI9: 4T18 | AJ9: 2018 | AK9: 1T19 | AL9: 2T19 | AM9: 3T19 | AN9: 4T19 | AO9: 2019 | AP9: 1T20 | AQ9: 2T20 | AR9: 3T20 | AS9: 4T20 | AT9: 2020
A11: BALANÇO PATRIMONIAL
A12: Ativo Circulante | B12: =SUM(B13:B16) -> 302.284 | C12: 264.191 | D12: 331.324 | E12: 310.907 | F12: 310.907 | G12: 428.201 | H12: 346.929 | I12: 406.785 | J12: 305.901 | K12: 305.901 | L12: 315.88 | M12: 298.996 | N12: 343.497 | O12: 353.662 | P12: 353.662 | Q12: 369.409 | R12: 332.725 | S12: 395.8 | T12: 374.037 | U12: 374.037 | V12: 340.876 | W12: 313.12 | X12: 307.32 | Y12: 318.463 | Z12: 318.463 | AA12: 286.715 | AB12: 400.62 | AC12: 381.56 | AD12: 403.414 | AE12: 403.414 | AF12: 391.426 | AG12: 400.655 | AH12: 412.337 | AI12: 409.6482616 | AJ12: 409.6482616 | AK12: 403.98 | AL12: 639.327 | AM12: 627.642 | AN12: 598.035 | AO12: =AN12 -> 598.035 | AP12: =SUM(AP13:AP16) -> 545.612 | AQ12: =SUM(AQ13:AQ16) -> 536.801 | AR12: =SUM(AR13:AR16) -> 1269.007 | AS12: =SUM(AS13:AS16) -> 1239.116 | AT12: =AS12 -> 1239.116
A13: Caixa e equivalentes de caixa | B13: 112.284 | C13: 57.54 | D13: 135.686 | E13: 136.444 | F13: =E13 -> 136.444 | G13: 214.094 | H13: 140.392 | I13: 201.23 | J13: 122.987 | K13: =J13 -> 122.987 | L13: 142.704 | M13: 137.002 | N13: 202.27 | O13: 218.409 | P13: =O13 -> 218.409 | Q13: 223.077 | R13: 172.719 | S13: 234.618 | T13: 226.115 | U13: =T13 -> 226.115 | V13: 207.443 | W13: 173.305 | X13: 164.672 | Y13: 192.557 | Z13: =Y13 -> 192.557 | AA13: 145.727 | AB13: 270.77 | AC13: 232.328 | AD13: 270.731 | AE13: =AD13 -> 270.731 | AF13: 253.436 | AG13: 247.124 | AH13: 247.699 | AI13: 253.6615742 | AJ13: =AI13 -> 253.6615742 | AK13: 249.317 | AL13: 183.25 | AM13: 217.685 | AN13: 266.376 | AO13: =AN13 -> 266.376 | AP13: 270.776 | AQ13: 351.962 | AR13: 664.134 | AS13: 643.861 | AT13: =AS13 -> 643.861
A14: Aplicações Financeiras | B14: 28.754 | C14: 29.391 | D14: 29.988 | E14: 0 | F14: 0 | G14: 0 | H14: 0 | I14: 0 | J14: 0 | K14: 0 | L14: 0 | M14: 0 | N14: 0 | O14: 0 | P14: 0 | Q14: 0 | R14: 0 | S14: 0 | T14: 0 | U14: 0 | V14: 0 | W14: 0 | X14: 0 | Y14: 0 | Z14: 0 | AA14: 0 | AB14: 0 | AC14: 0 | AD14: 0 | AE14: 0 | AF14: 0 | AG14: 0 | AH14: 0 | AI14: 0 | AJ14: 0 | AK14: 0 | AL14: 277.059 | AM14: 246.556 | AN14: 159.067 | AO14: =AN14 -> 159.067 | AP14: 102.121 | AQ14: 0 | AR14: 424.662 | AS14: 426.598 | AT14: =AS14 -> 426.598
A15: Estoques | B15: 12.325 | C15: 13.374 | D15: 14.839 | E15: 15.814 | F15: =E15 -> 15.814 | G15: 16.247 | H15: 16.85 | I15: 17.284 | J15: 17.613 | K15: =J15 -> 17.613 | L15: 21.335 | M15: 21.539 | N15: 21.97 | O15: 21.547 | P15: =O15 -> 21.547 | Q15: 20.092 | R15: 20.845 | S15: 21.178 | T15: 22.554 | U15: =T15 -> 22.554 | V15: 23.145 | W15: 23.505 | X15: 23.272 | Y15: 23.187 | Z15: =Y15 -> 23.187 | AA15: 23.023 | AB15: 22.602 | AC15: 22.7 | AD15: 22.737 | AE15: =AD15 -> 22.737 | AF15: 22.831 | AG15: 22.542 | AH15: 22.612 | AI15: 23.1291663 | AJ15: =AI15 -> 23.1291663 | AK15: 23.146 | AL15: 22.995 | AM15: 23.253 | AN15: 22.771 | AO15: 22.771 | AP15: 22.864 | AQ15: 23.22 | AR15: 24.053 | AS15: 24.293 | AT15: 24.293
A16: Outros | B16: 148.921 | C16: 163.886 | D16: 150.811 | E16: 158.649 | F16: 158.649 | G16: 197.86 | H16: 189.687 | I16: 188.271 | J16: 165.301 | K16: 165.301 | L16: 151.841 | M16: 140.455 | N16: 119.257 | O16: 113.706 | P16: 113.706 | Q16: 126.24 | R16: 139.161 | S16: 140.004 | T16: 125.368 | U16: 125.368 | V16: 110.288 | W16: 116.31 | X16: 119.376 | Y16: 102.719 | Z16: 102.719 | AA16: 117.965 | AB16: 107.248 | AC16: 126.532 | AD16: 109.946 | AE16: 109.946 | AF16: 115.159 | AG16: 130.989 | AH16: 142.026 | AI16: 132.8575211 | AJ16: 132.8575211 | AK16: 131.517 | AL16: 156.023 | AM16: 140.148 | AN16: 149.821 | AO16: 149.821 | AP16: 149.851 | AQ16: 161.619 | AR16: 156.158 | AS16: 144.364 | AT16: 144.364
A18: Ativo Não Circulante | B18: =SUM(B19:B22) -> 1954.866 | C18: 1863.114 | D18: 1881.057 | E18: 1876.095 | F18: 1876.095 | G18: 1851.943 | H18: 1865.675 | I18: 1861.081 | J18: 1900.729 | K18: 1900.729 | L18: 1878.561 | M18: 1855.9 | N18: 1828.944 | O18: 1808.464 | P18: 1808.464 | Q18: 1731.778 | R18: 1707.402 | S18: 1682.013 | T18: 1644.413 | U18: 1644.413 | V18: 1625.586 | W18: 1609.403 | X18: 1590.412 | Y18: 1575.38 | Z18: 1575.38 | AA18: 1551.061 | AB18: 1530.269 | AC18: 1512.425 | AD18: 2361.276 | AE18: 2361.276 | AF18: 2359.486 | AG18: 2346.996 | AH18: 2441.716 | AI18: 2448.68287 | AJ18: 2448.68287 | AK18: 2482.408 | AL18: 2537.239 | AM18: 2575.986 | AN18: 2598.087 | AO18: =AN18 -> 2598.087 | AP18: =SUM(AP19:AP22) -> 2653.079 | AQ18: =SUM(AQ19:AQ22) -> 2717.99 | AR18: =SUM(AR19:AR22) -> 2959.905 | AS18: =SUM(AS19:AS22) -> 2990.148 | AT18: =AS18 -> 2990.148
A19: Depósitos Judiciais | B19: 0 | C19: 144.811 | D19: 148.937 | E19: 152.913 | F19: =E19 -> 152.913 | G19: 151.696 | H19: 172.323 | I19: 181.936 | J19: 198.074 | K19: =J19 -> 198.074 | L19: 206.141 | M19: 210.12 | N19: 204.435 | O19: 208.542 | P19: =O19 -> 208.542 | Q19: 213.851 | R19: 219.934 | S19: 224.12 | T19: 228.908 | U19: =T19 -> 228.908 | V19: 232.588 | W19: 237.171 | X19: 240.598 | Y19: 241.31 | Z19: =Y19 -> 241.31 | AA19: 243.289 | AB19: 246.133 | AC19: 248.163 | AD19: 250.808 | AE19: =AD19 -> 250.808 | AF19: 275.124 | AG19: 278.564 | AH19: 262.22 | AI19: 266.3694849 | AJ19: =AI19 -> 266.3694849 | AK19: 270.598 | AL19: 275.582 | AM19: 279.326 | AN19: 284.401 | AO19: =AN19 -> 284.401 | AP19: 289.042 | AQ19: 292.498 | AR19: 296.468 | AS19: 304.284 | AT19: =AS19 -> 304.284
A20: Outros | B20: 248.033 | C20: 17.461 | D20: 30.57 | E20: 31.11 | F20: 31.11 | G20: 30.674 | H20: 33.379 | I20: 39.113 | J20: 62.135 | K20: 62.135 | L20: 65.559 | M20: 69.386 | N20: 70.986 | O20: 71.93 | P20: 71.93 | Q20: 23.04 | R20: 23.458 | S20: 24.408 | T20: 24.365 | U20: 24.365 | V20: 25.353 | W20: 25.887 | X20: 26.213 | Y20: =0.523+0.037+5.136+20.593 -> 26.289 | Z20: 26.289 | AA20: =0.639+5.178+14.763 -> 20.58 | AB20: =0.729+5.217+14.427 -> 20.373 | AC20: =0.775+5.209+16.952 -> 22.936 | AD20: 66.206 | AE20: 66.206 | AF20: 51.586 | AG20: 55.51 | AH20: 76.24 | AI20: 79.72529177 | AJ20: 79.72529177 | AK20: 87.677 | AL20: 85.753 | AM20: 90.091 | AN20: 92.465 | AO20: 92.465 | AP20: 100.604 | AQ20: 103.49 | AR20: 110.97 | AS20: 112.047 | AT20: 112.047
A21: Imobilizado | B21: 1130.031 | C21: 1133.645 | D21: 1143.563 | E21: 1143.648 | F21: 1143.648 | G21: 1130.926 | H21: 1130.971 | I21: 1120.788 | J21: 1130.366 | K21: 1130.366 | L21: 1105.696 | M21: 1084.448 | N21: 1070.831 | O21: 1054.088 | P21: 1054.088 | Q21: 1030.132 | R21: 1008.426 | S21: 987.065 | T21: 981.261 | U21: 981.261 | V21: 963.26 | W21: 947.416 | X21: 930.067 | Y21: 919.616 | Z21: 919.616 | AA21: 904.299 | AB21: 886.066 | AC21: 868.862 | AD21: 197.235 | AE21: 197.235 | AF21: 206.637 | AG21: 212.394 | AH21: 215.118 | AI21: 238.2753079 | AJ21: 238.2753079 | AK21: 275.358 | AL21: 294.761 | AM21: 297.551 | AN21: 220.055 | AO21: 220.055 | AP21: 219.94 | AQ21: 227.158 | AR21: 233.778 | AS21: 234.135 | AT21: 234.135
A22: Intangível | B22: 576.802 | C22: 567.197 | D22: 557.987 | E22: 548.424 | F22: 548.424 | G22: 538.647 | H22: 529.002 | I22: 519.244 | J22: 510.154 | K22: 510.154 | L22: 501.165 | M22: 491.946 | N22: 482.692 | O22: 473.904 | P22: 473.904 | Q22: 464.755 | R22: 455.584 | S22: 446.42 | T22: 409.879 | U22: 409.879 | V22: 404.385 | W22: 398.929 | X22: 393.534 | Y22: 388.165 | Z22: 388.165 | AA22: 382.893 | AB22: 377.697 | AC22: 372.464 | AD22: 1847.027 | AE22: 1847.027 | AF22: 1826.139 | AG22: 1800.528 | AH22: 1888.138 | AI22: 1864.312786 | AJ22: 1864.312786 | AK22: 1848.775 | AL22: 1881.143 | AM22: 1909.018 | AN22: 2001.166 | AO22: 2001.166 | AP22: 2043.493 | AQ22: 2094.844 | AR22: 2318.689 | AS22: 2339.682 | AT22: 2339.682
A24: Ativo Total | B24: =B12+B18 -> 2257.15 | C24: 2127.305 | D24: 2212.381 | E24: 2187.002 | F24: 2187.002 | G24: 2280.144 | H24: 2212.604 | I24: 2267.866 | J24: 2206.63 | K24: 2206.63 | L24: 2194.441 | M24: 2154.896 | N24: 2172.441 | O24: 2162.126 | P24: 2162.126 | Q24: 2101.187 | R24: 2040.127 | S24: 2077.813 | T24: 2018.45 | U24: 2018.45 | V24: 1966.462 | W24: 1922.523 | X24: 1897.732 | Y24: 1893.843 | Z24: 1893.843 | AA24: 1837.776 | AB24: 1930.889 | AC24: 1893.985 | AD24: 2764.69 | AE24: 2764.69 | AF24: 2750.912 | AG24: 2747.651 | AH24: 2854.053 | AI24: 2858.331132 | AJ24: 2858.331132 | AK24: 2886.388 | AL24: 3176.566 | AM24: 3203.628 | AN24: 3196.122 | AO24: =AN24 -> 3196.122 | AP24: =AP12+AP18 -> 3198.691 | AQ24: =AQ12+AQ18 -> 3254.791 | AR24: =AR12+AR18 -> 4228.912 | AS24: =AS12+AS18 -> 4229.264 | AT24: =AS24 -> 4229.264
A26: Passivo Circulante | B26: =SUM(B27:B33) -> 390.032 | C26: 343.332 | D26: 353.716 | E26: 358.267 | F26: 358.267 | G26: 389.518 | H26: 274.207 | I26: 283.465 | J26: 360.595 | K26: 360.595 | L26: 369.182 | M26: 254.939 | N26: 272.329 | O26: 301.079 | P26: 301.079 | Q26: 332.46 | R26: 272.424 | S26: 248.09 | T26: 253.931 | U26: 253.931 | V26: 296.474 | W26: 264.104 | X26: 281.345 | Y26: 284.389 | Z26: =SUM(Z27:Z33) -> 284.389 | AA26: 258.51 | AB26: 269.073 | AC26: 259.7286053 | AD26: 342.327 | AE26: 342.327 | AF26: 319.805 | AG26: 289.309 | AH26: 285.175 | AI26: 299.55691 | AJ26: 299.55691 | AK26: 329.022 | AL26: 311.845 | AM26: 294.37 | AN26: =SUM(AN27:AN33) -> 235.712 | AO26: =AN26 -> 235.712 | AP26: 246.175 | AQ26: =SUM(AQ27:AQ33) -> 260.696 | AR26: 288.918 | AS26: =SUM(AS27:AS33) -> 296.434 | AT26: =AS26 -> 296.434
A27: Obrigações Sociais e Trabalhistas | B27: 33.08 | C27: 40.848 | D27: 48.95 | E27: 46.387 | F27: =E27 -> 46.387 | G27: 39.173 | H27: 47.491 | I27: 55.691 | J27: 51.591 | K27: =J27 -> 51.591 | L27: 38.187 | M27: 43.05 | N27: 46.146 | O27: 33.461 | P27: =O27 -> 33.461 | Q27: 35.98 | R27: 41.021 | S27: 46.715 | T27: 38.365 | U27: =T27 -> 38.365 | V27: 35.399 | W27: 39.808 | X27: 45.944 | Y27: 34.691 | Z27: =Y27 -> 34.691 | AA27: 34.896 | AB27: 42.086 | AC27: 43.33060535 | AD27: 34.452 | AE27: =AD27 -> 34.452 | AF27: 29.502 | AG27: 37.291 | AH27: 43.57 | AI27: 33.5659504 | AJ27: =AI27 -> 33.5659504 | AK27: 37.66 | AL27: 47.527 | AM27: 45.356 | AN27: 34.841 | AO27: =AN27 -> 34.841 | AP27: 40.648 | AQ27: 52.109 | AR27: 56.298 | AS27: 43.531 | AT27: =AS27 -> 43.531
A28: Fornecedores | B28: 59.242 | C28: 48.591 | D28: 46.999 | E28: 57.16 | F28: =E28 -> 57.16 | G28: 64.181 | H28: 60.046 | I28: 60.035 | J28: 78.928 | K28: =J28 -> 78.928 | L28: 74.857 | M28: 60.85 | N28: 52.403 | O28: 51.151 | P28: =O28 -> 51.151 | Q28: 66.76 | R28: 52.821 | S28: 50.758 | T28: 59.885 | U28: 59.885 | V28: 68.708 | W28: 58.914 | X28: 59.321 | Y28: 73.514 | Z28: 73.514 | AA28: 77.288 | AB28: 83.376 | AC28: 84.036 | AD28: 59.587 | AE28: 59.587 | AF28: 61.479 | AG28: 60.595 | AH28: 61.957 | AI28: 54.44992558 | AJ28: 54.44992558 | AK28: 56.06 | AL28: 65.214 | AM28: 65.823 | AN28: 60.834 | AO28: =AN28 -> 60.834 | AP28: 58.328 | AQ28: 61.574 | AR28: 77.975 | AS28: 67.822 | AT28: =AS28 -> 67.822
A29: Obrigações Fiscais | B29: 25.285 | C29: 23.749 | D29: 24.371 | E29: 24.472 | F29: 24.472 | G29: 27.24 | H29: 19.569 | I29: 21.707 | J29: 22.11 | K29: 22.11 | L29: 16.495 | M29: 12.929 | N29: 13.045 | O29: 18.369 | P29: 18.369 | Q29: 14.578 | R29: 10.631 | S29: 10.209 | T29: 10.907 | U29: 10.907 | V29: 10.47 | W29: 8.008 | X29: 10.809 | Y29: 9.752 | Z29: 9.752 | AA29: 12.835 | AB29: 8.992 | AC29: 9.235 | AD29: 10.219 | AE29: 10.219 | AF29: 11.314 | AG29: 15.293 | AH29: 13.848 | AI29: 11.9860246 | AJ29: 11.9860246 | AK29: 11.553 | AL29: 13.008 | AM29: 14.059 | AN29: 13.28 | AO29: 13.28 | AP29: 13.494 | AQ29: 23.853 | AR29: 19.525 | AS29: 18.721 | AT29: 18.721
A30: Empréstimos e Financiamentos | B30: 183.416 | C30: 229.446 | D30: 232.922 | E30: 165.547 | F30: 165.547 | G30: 162.433 | H30: 146.965 | I30: 145.891 | J30: 147.847 | K30: 147.847 | L30: 143.825 | M30: 136.737 | N30: 160.585 | O30: 157.996 | P30: 157.996 | Q30: 166.304 | R30: 167.793 | S30: 140.248 | T30: 140.415 | U30: 140.415 | V30: 177.662 | W30: 153.547 | X30: 162.632 | Y30: 163.414 | Z30: 163.414 | AA30: 131.922 | AB30: 133.769 | AC30: 122.589 | AD30: 172.042 | AE30: 172.042 | AF30: 144.991 | AG30: 109.3 | AH30: 100.645 | AI30: 130.1292097 | AJ30: 130.1292097 | AK30: 142.636 | AL30: 129.196 | AM30: 112.025 | AN30: 54.076 | AO30: 54.076 | AP30: 52.033 | AQ30: 33.983 | AR30: 32.564 | AS30: 53.42 | AT30: 53.42
A31: Obrigações com o Poder Concedente | B31: 0 | C31: 0 | D31: 0 | E31: 0 | F31: 0 | G31: 0 | H31: 0 | I31: 0 | J31: 0 | K31: 0 | L31: 0 | M31: 0 | N31: 0 | O31: 0 | P31: 0 | Q31: 0 | R31: 0 | S31: 0 | T31: 0 | U31: 0 | V31: 0 | W31: 0 | X31: 0 | Y31: 0 | Z31: 0 | AA31: 0 | AB31: 0 | AC31: 0 | AD31: 65.769 | AE31: 65.769 | AF31: 72.226 | AG31: 66.771 | AH31: 65.096 | AI31: 68.659 | AJ31: 68.659 | AK31: 75.82 | AL31: 52.23 | AM31: 52.35 | AN31: 60.139 | AO31: 60.139 | AP31: 68.386 | AQ31: 80.338 | AR31: 93.987 | AS31: 104.239 | AT31: 104.239
A32: Arrendamento - Aluguéis | B32: 0 | C32: 0 | D32: 0 | E32: 0 | F32: 0 | G32: 0 | H32: 0 | I32: 0 | J32: 0 | K32: 0 | L32: 0 | M32: 0 | N32: 0 | O32: 0 | P32: 0 | Q32: 0 | R32: 0 | S32: 0 | T32: 0 | U32: 0 | V32: 0 | W32: 0 | X32: 0 | Y32: 0 | Z32: 0 | AA32: 0 | AB32: 0 | AC32: 0 | AD32: 0 | AE32: 0 | AF32: 0 | AG32: 0 | AH32: 0 | AI32: 0 | AJ32: 0 | AK32: 4.527 | AL32: 4.61 | AM32: 4.693 | AN32: 8.83 | AO32: 8.83 | AP32: 9.575 | AQ32: 8.775 | AR32: 8.503 | AS32: 8.653 | AT32: 8.653
A33: Outros | B33: 89.009 | C33: 0.698 | D33: 0.474 | E33: 64.701 | F33: 64.701 | G33: 96.491 | H33: 0.136 | I33: 0.141 | J33: 60.119 | K33: 60.119 | L33: 95.818 | M33: 1.373 | N33: 0.15 | O33: 40.102 | P33: 40.102 | Q33: 48.838 | R33: 0.158 | S33: 0.16 | T33: 4.359 | U33: 4.359 | V33: 4.235 | W33: 3.827 | X33: 2.639 | Y33: 3.018 | Z33: 3.018 | AA33: 1.569 | AB33: 0.85 | AC33: 0.538 | AD33: 0.258 | AE33: 0.258 | AF33: 0.293 | AG33: 0.059 | AH33: 0.059 | AI33: 0.76679971 | AJ33: 0.76679971 | AK33: 0.766 | AL33: 0.06 | AM33: 0.064 | AN33: 3.712 | AO33: 3.712 | AP33: 3.711 | AQ33: 0.064 | AR33: 0.066 | AS33: 0.048 | AT33: 0.048
A35: Passivo Não Circulante | B35: =SUM(B36:B42) -> 553.493 | C35: 407.069 | D35: 400.704 | E35: 459.834 | F35: 459.834 | G35: 470.142 | H35: 458.224 | I35: 457.557 | J35: 398.066 | K35: 398.066 | L35: 395.887 | M35: 445.169 | N35: 427.522 | O35: 431.886 | P35: 431.886 | Q35: 331.531 | R35: 323.704 | S35: 394.791 | T35: 357.301 | U35: 357.301 | V35: 274.232 | W35: 266.892 | X35: 224.436 | Y35: 220.322 | Z35: =SUM(Z36:Z42) -> 220.322 | AA35: 187.444 | AB35: 290.342 | AC35: 258.444 | AD35: 1091.543 | AE35: 1091.543 | AF35: 1100.081 | AG35: =SUM(AG36:AG42) -> 1131.877 | AH35: =SUM(AH36:AH42) -> 1232.442 | AI35: =SUM(AI36:AI42) -> 1217.646998 | AJ35: =SUM(AJ36:AJ42) -> 1217.646998 | AK35: 1220.179 | AL35: 1521.91 | AM35: =SUM(AM36:AM42) -> 1551.755 | AN35: 1608.026 | AO35: =AN35 -> 1608.026 | AP35: =SUM(AP36:AP42) -> 1612.659 | AQ35: 1669.12 | AR35: 1855.788 | AS35: =SUM(AS36:AS42) -> 1835.668 | AT35: =AS35 -> 1835.668
A36: Empréstimos e Financiamentos | B36: 325.523 | C36: 252.525 | D36: 225.814 | E36: 267.6 | F36: =E36 -> 267.6 | G36: 267.475 | H36: 228.235 | I36: 220.989 | J36: 173.847 | K36: =J36 -> 173.847 | L36: 164.762 | M36: 216.654 | N36: 197.699 | O36: 199.953 | P36: =O36 -> 199.953 | Q36: 170.493 | R36: 157.147 | S36: 225.824 | T36: 198.646 | U36: =T36 -> 198.646 | V36: 119.213 | W36: 110.286 | X36: 68.082 | Y36: 66.42 | Z36: =Y36 -> 66.42 | AA36: 34.103 | AB36: 142.8 | AC36: 111.866 | AD36: 61.056 | AE36: =AD36 -> 61.056 | AF36: 75.259 | AG36: 108.837 | AH36: 108.129 | AI36: 97.26657029 | AJ36: =AI36 -> 97.26657029 | AK36: 75.255 | AL36: 350.917 | AM36: 348.866 | AN36: 382.32 | AO36: =AN36 -> 382.32 | AP36: 384.017 | AQ36: 401.985 | AR36: 401.247 | AS36: 379.774 | AT36: =AS36 -> 379.774
A37: Tributos Diferidos | B37: 107.427 | C37: 27.525 | D37: 36.339 | E37: 35.603 | F37: =E37 -> 35.603 | G37: 48.118 | H37: 53.819 | I37: 46.248 | J37: 48.657 | K37: =J37 -> 48.657 | L37: 48.979 | M37: 47.839 | N37: 53.256 | O37: 47.564 | P37: =O37 -> 47.564 | Q37: 51.363 | R37: 57.247 | S37: 57.153 | T37: 46.878 | U37: 46.878 | V37: 39.889 | W37: 41.202 | X37: 36.045 | Y37: 33.919 | Z37: 33.919 | AA37: 30.587 | AB37: 21.576 | AC37: 20.805 | AD37: 8.464 | AE37: 8.464 | AF37: 10.202 | AG37: 10.312 | AH37: 9.982 | AI37: 10.4569134 | AJ37: 10.4569134 | AK37: 10.503 | AL37: 10.615 | AM37: 10.707 | AN37: 8.498 | AO37: =AN37 -> 8.498 | AP37: 7.754 | AQ37: 7.224 | AR37: 7.621 | AS37: 7.312 | AT37: =AS37 -> 7.312
A38: Provisões | B38: 117.102 | C38: 123.55 | D38: 128.562 | E38: 135.189 | F38: 135.189 | G38: 137.311 | H38: 142.016 | I38: 147.888 | J38: 117.059 | K38: 117.059 | L38: 122.083 | M38: 127.009 | N38: 130.097 | O38: 134.325 | P38: 134.325 | Q38: 44.416 | R38: 41.673 | S38: 41.774 | T38: 46.358 | U38: 46.358 | V38: 45.491 | W38: 43.382 | X38: 45.507 | Y38: 41.371 | Z38: 41.371 | AA38: 41.433 | AB38: 42.54 | AC38: 40.006 | AD38: 37.762 | AE38: 37.762 | AF38: 37.521 | AG38: 38.605 | AH38: 39.329 | AI38: 38.31737434 | AJ38: 38.31737434 | AK38: 36.734 | AL38: 34.661 | AM38: 36.593 | AN38: 37.493 | AO38: 37.493 | AP38: 37.256 | AQ38: 40.465 | AR38: 38.124 | AS38: 41.708 | AT38: 41.708
A39: Passivos atuariais | B39: 0 | C39: 0 | D39: 0 | E39: 11.461 | F39: 11.461 | G39: 11.98 | H39: 12.503 | I39: 13.023 | J39: 10.711 | K39: 10.711 | L39: 11.375 | M39: 12.039 | N39: 12.703 | O39: 16.067 | P39: 16.067 | Q39: 16.989 | R39: 17.91 | S39: 18.831 | T39: 14.318 | U39: 14.318 | V39: 15.216 | W39: 16.113 | X39: 17.01 | Y39: 21.006 | Z39: 21.006 | AA39: 21.997 | AB39: 22.992 | AC39: 23.983 | AD39: 33.879 | AE39: 33.879 | AF39: 35.142 | AG39: 36.404 | AH39: 37.668 | AI39: 41.46514 | AJ39: 41.46514 | AK39: 42.64 | AL39: 43.815 | AM39: 44.99 | AN39: 67.593 | AO39: 67.593 | AP39: 69.543 | AQ39: 71.492 | AR39: 73.44 | AS39: 76.494 | AT39: 76.494
A40: Obrigações com o Poder Concedente | B40: 0 | C40: 0 | D40: 0 | E40: 0 | F40: 0 | G40: 0 | H40: 0 | I40: 0 | J40: 0 | K40: 0 | L40: 0 | M40: 0 | N40: 0 | O40: 0 | P40: 0 | Q40: 0 | R40: 0 | S40: 0 | T40: 0 | U40: 0 | V40: 0 | W40: 0 | X40: 0 | Y40: 0 | Z40: 0 | AA40: 0 | AB40: 0 | AC40: 0 | AD40: 885.711 | AE40: 885.711 | AF40: 877.98 | AG40: 872.587 | AH40: 970.76 | AI40: 962.357 | AJ40: 962.357 | AK40: 963.008 | AL40: 989.349 | AM40: 1017.532 | AN40: 1015.847 | AO40: 1015.847 | AP40: 1016.892 | AQ40: 1035.373 | AR40: 1223.784 | AS40: 1217.857 | AT40: 1217.857
A41: Arrendamento - Aluguéis | B41: 0 | C41: 0 | D41: 0 | E41: 0 | F41: 0 | G41: 0 | H41: 0 | I41: 0 | J41: 0 | K41: 0 | L41: 0 | M41: 0 | N41: 0 | O41: 0 | P41: 0 | Q41: 0 | R41: 0 | S41: 0 | T41: 0 | U41: 0 | V41: 0 | W41: 0 | X41: 0 | Y41: 0 | Z41: 0 | AA41: 0 | AB41: 0 | AC41: 0 | AD41: 0 | AE41: 0 | AF41: 0 | AG41: 0 | AH41: 0 | AI41: 0 | AJ41: 0 | AK41: 22.803 | AL41: 21.619 | AM41: 20.414 | AN41: 22.075 | AO41: 22.075 | AP41: 21.616 | AQ41: 35.921 | AR41: 34.001 | AS41: 33.77 | AT41: 33.77
A42: Outros | B42: 3.441 | C42: 3.469 | D42: 9.989 | E42: 9.981 | F42: =E42 -> 9.981 | G42: 5.258 | H42: 21.651 | I42: 29.409 | J42: 47.792 | K42: 47.792 | L42: 48.688 | M42: 41.628 | N42: 33.767 | O42: 33.977 | P42: 33.977 | Q42: 48.27 | R42: 49.727 | S42: =1.588+34.6+15.021 -> 51.209 | T42: 51.101 | U42: 51.101 | V42: 54.423 | W42: 55.909 | X42: =15.021+40.943+1.741+0.087 -> 57.792 | Y42: 57.606 | Z42: 57.606 | AA42: 59.324 | AB42: 60.434 | AC42: 61.784 | AD42: 64.671 | AE42: 64.671 | AF42: 63.977 | AG42: 65.132 | AH42: 66.574 | AI42: 67.784 | AJ42: 67.784 | AK42: 69.236 | AL42: 70.934 | AM42: 72.653 | AN42: 74.2 | AO42: 74.2 | AP42: 75.581 | AQ42: 76.66 | AR42: 77.571 | AS42: 78.753 | AT42: 78.753
A44: Passivo Total | B44: =B35+B26 -> 943.525 | C44: 750.401 | D44: 754.42 | E44: 818.101 | F44: 818.101 | G44: 859.66 | H44: 732.431 | I44: 741.022 | J44: 758.661 | K44: 758.661 | L44: 765.069 | M44: 700.108 | N44: 699.851 | O44: 732.965 | P44: 732.965 | Q44: 663.991 | R44: 596.128 | S44: 642.881 | T44: 611.232 | U44: 611.232 | V44: 570.706 | W44: 530.996 | X44: 505.781 | Y44: 504.711 | Z44: 504.711 | AA44: 445.954 | AB44: 559.415 | AC44: 518.1726053 | AD44: 1433.87 | AE44: 1433.87 | AF44: 1419.886 | AG44: 1421.186 | AH44: 1517.617 | AI44: 1517.203908 | AJ44: 1517.203908 | AK44: 1549.201 | AL44: 1833.755 | AM44: 1846.125 | AN44: 1843.738 | AO44: =AN44 -> 1843.738 | AP44: =AP35+AP26 -> 1858.834 | AQ44: =AQ35+AQ26 -> 1929.816 | AR44: =AR35+AR26 -> 2144.706 | AS44: =AS35+AS26 -> 2132.102 | AT44: =AS44 -> 2132.102
A46: Patrimônio Líquido | B46: =SUM(B47:B52) -> 1313.625 | C46: 1376.904 | D46: 1457.961 | E46: 1368.901 | F46: 1368.901 | G46: 1420.484 | H46: 1480.173 | I46: 1526.844 | J46: 1447.969 | K46: 1447.969 | L46: 1429.372 | M46: 1454.788 | N46: 1472.59 | O46: =SUM(O47:O52) -> 1429.161 | P46: =SUM(P47:P52) -> 1429.161 | Q46: 1437.196 | R46: 1443.999 | S46: 1434.932 | T46: 1407.218 | U46: 1407.218 | V46: 1395.756 | W46: 1391.527 | X46: 1391.951 | Y46: 1389.132 | Z46: =SUM(Z47:Z52) -> 1389.132 | AA46: 1391.822 | AB46: 1371.474 | AC46: 1375.812 | AD46: 1330.82 | AE46: 1330.82 | AF46: 1331.026 | AG46: 1326.465 | AH46: 1336.436 | AI46: 1341.127538 | AJ46: =SUM(AJ47:AJ52) -> 1341.127538 | AK46: 1337.187 | AL46: 1342.811 | AM46: =SUM(AM47:AM52) -> 1357.503 | AN46: 1352.384 | AO46: =AN46 -> 1352.384 | AP46: =SUM(AP47:AP52) -> 1339.857 | AQ46: 1324.975 | AR46: 2084.206 | AS46: =SUM(AS47:AS52) -> 2097.21 | AT46: =AS46 -> 2097.21
A47: Capital Social Realizado | B47: 1060.664 | C47: 1062.413 | D47: 1062.576 | E47: 1062.576 | F47: =E47 -> 1062.576 | G47: 1068.714 | H47: 1071.077 | I47: 1071.077 | J47: 1071.077 | K47: =J47 -> 1071.077 | L47: 1071.077 | M47: 1071.077 | N47: 1071.077 | O47: 1071.077 | P47: =O47 -> 1071.077 | Q47: 1071.077 | R47: 1071.077 | S47: 1071.077 | T47: 1071.077 | U47: =T47 -> 1071.077 | V47: 1071.077 | W47: 1071.077 | X47: 1071.077 | Y47: 1071.077 | Z47: =Y47 -> 1071.077 | AA47: 1071.077 | AB47: 1071.077 | AC47: 1071.757 | AD47: 1071.757 | AE47: =AD47 -> 1071.757 | AF47: 1071.757 | AG47: 1071.757 | AH47: 1071.757 | AI47: 1071.757414 | AJ47: =AI47 -> 1071.757414 | AK47: 1074.497 | AL47: 1074.497 | AM47: 1080.407 | AN47: 1081.907 | AO47: =AN47 -> 1081.907 | AP47: 1081.907 | AQ47: 1081.907 | AR47: 1871.895 | AS47: 1871.895 | AT47: =AS47 -> 1871.895
A48: Reservas de Capital | B48: 49.345 | C48: 50.71 | D48: 51.999 | E48: 53.281 | F48: =E48 -> 53.281 | G48: 54.881 | H48: 56.408 | I48: 57.893 | J48: 59.21 | K48: =J48 -> 59.21 | L48: 60.452 | M48: 61.709 | N48: 63.326 | O48: 64.711 | P48: =O48 -> 64.711 | Q48: 65.585 | R48: 67.653 | S48: 69.16 | T48: 70.666 | U48: 70.666 | V48: 71.793 | W48: 73.288 | X48: 74.784 | Y48: 74.933 | Z48: 74.933 | AA48: 75.684 | AB48: 76.063 | AC48: 76.555 | AD48: 78.014 | AE48: 78.014 | AF48: 78.882 | AG48: 79.996 | AH48: 80.825 | AI48: 82.6596006 | AJ48: 82.6596006 | AK48: 83.793 | AL48: 84.682 | AM48: 84.145 | AN48: 84.458 | AO48: =AN48 -> 84.458 | AP48: 85.03 | AQ48: 86.858 | AR48: 60.926 | AS48: 58.17 | AT48: =AS48 -> 58.17
A49: Reservas de Lucros | B49: 159.457 | C49: 159.457 | D49: 159.457 | E49: 224.308 | F49: 224.308 | G49: 224.308 | H49: 224.308 | I49: 224.308 | J49: 318.629 | K49: 318.629 | L49: 266.696 | M49: 265.678 | N49: 265.678 | O49: 296.39 | P49: 296.39 | Q49: 287.652 | R49: 287.652 | S49: 287.652 | T49: 265.264 | U49: 265.264 | V49: 265.264 | W49: 265.264 | X49: 265.264 | Y49: 245.354 | Z49: 245.354 | AA49: 245.354 | AB49: 245.354 | AC49: 247.54 | AD49: 189.683 | AE49: 189.683 | AF49: 194.985 | AG49: 193.268 | AH49: 193.268 | AI49: 194.985 | AJ49: 194.985 | AK49: 198.349 | AL49: 196.74 | AM49: 198.346 | AN49: 202.309 | AO49: 202.309 | AP49: 202.431 | AQ49: 203.146 | AR49: 203.767 | AS49: 192.548 | AT49: 192.548
A50: Outros Resultados Abrangentes | B50: 0 | C50: 0 | D50: 0 | E50: -2.7 | F50: -2.7 | G50: -2.7 | H50: -2.7 | I50: -2.7 | J50: -0.947 | K50: -0.947 | L50: -0.947 | M50: -0.947 | N50: -0.947 | O50: -3.017 | P50: -3.017 | Q50: -3.017 | R50: -3.017 | S50: -3.017 | T50: 0.211 | U50: 0.211 | V50: 0.211 | W50: 0.211 | X50: 0.211 | Y50: -2.232 | Z50: -2.232 | AA50: -2.232 | AB50: -2.232 | AC50: -2.232 | AD50: -8.634 | AE50: -8.634 | AF50: -8.634 | AG50: -8.634 | AH50: -8.634 | AI50: -10.39747614 | AJ50: -10.39747614 | AK50: -10.398 | AL50: -10.398 | AM50: -10.398 | AN50: -24.323 | AO50: -24.323 | AP50: -24.323 | AQ50: -24.323 | AR50: -24.323 | AS50: -25.403 | AT50: -25.403
A51: Lucro/Prejuízos Acumulados | B51: 44.159 | C51: 104.324 | D51: 183.929 | E51: 0 | F51: 0 | G51: 75.281 | H51: 131.08 | I51: 176.266 | J51: 0 | K51: 0 | L51: 32.094 | M51: 57.271 | N51: 73.456 | O51: 0 | P51: 0 | Q51: 15.899 | R51: 20.634 | S51: 10.06 | T51: 0 | U51: 0 | V51: -12.589 | W51: -18.313 | X51: -19.385 | Y51: 0 | Z51: 0 | AA51: 1.939 | AB51: -18.788 | AC51: -17.808 | AD51: 0 | AE51: 0 | AF51: -5.964 | AG51: -9.922 | AH51: -0.78 | AI51: 0 | AJ51: 0 | AK51: -9.054 | AL51: -2.71 | AM51: 5.003 | AN51: 0 | AO51: 0 | AP51: -13.221 | AQ51: -22.613 | AR51: -28.059 | AS51: 0 | AT51: 0
A52: Dividendo Adicional Proposto | B52: 0 | C52: 0 | D52: 0 | E52: 31.436 | F52: 31.436 | G52: 0 | H52: 0 | I52: 0 | J52: 0 | K52: 0 | L52: 0 | M52: 0 | N52: 0 | O52: 0 | P52: 0 | Q52: 0 | R52: 0 | S52: 0 | T52: 0 | U52: 0 | V52: 0 | W52: 0 | X52: 0 | Y52: 0 | Z52: 0 | AA52: 0 | AB52: 0 | AC52: 0 | AD52: 0 | AE52: 0 | AF52: 0 | AG52: 0 | AH52: 0 | AI52: 2.123 | AJ52: 2.123 | AK52: 0 | AL52: 0 | AM52: 0 | AN52: 8.033 | AO52: 8.033 | AP52: 8.033 | AQ52: 0 | AR52: 0 | AS52: 0 | AT52: 0
A54: Passivo + Patrimônio Líquido Total | B54: =B44+B46 -> 2257.15 | C54: 2127.305 | D54: 2212.381 | E54: 2187.002 | F54: 2187.002 | G54: 2280.144 | H54: 2212.604 | I54: 2267.866 | J54: 2206.63 | K54: 2206.63 | L54: 2194.441 | M54: 2154.896 | N54: 2172.441 | O54: 2162.126 | P54: 2162.126 | Q54: 2101.187 | R54: 2040.127 | S54: 2077.813 | T54: 2018.45 | U54: 2018.45 | V54: 1966.462 | W54: 1922.523 | X54: 1897.732 | Y54: 1893.843 | Z54: =Z44+Z46 -> 1893.843 | AA54: 1837.776 | AB54: 1930.889 | AC54: 1893.984605 | AD54: 2764.69 | AE54: 2764.69 | AF54: 2750.912 | AG54: =AG44+AG46 -> 2747.651 | AH54: =AH44+AH46 -> 2854.053 | AI54: =AI44+AI46 -> 2858.331446 | AJ54: =AJ44+AJ46 -> 2858.331446 | AK54: 2886.388 | AL54: 3176.566 | AM54: =AM44+AM46 -> 3203.628 | AN54: 3196.122 | AO54: =AN54 -> 3196.122 | AP54: =AP44+AP46 -> 3198.691 | AQ54: 3254.791 | AR54: 4228.912 | AS54: =AS44+AS46 -> 4229.312 | AT54: =AS54 -> 4229.312

Sheet CapEx PT
V8: 6 | W8: =V8+1 -> 7 | X8: =W8+1 -> 8 | Y8: 9 | Z8: 10 | AA8: 11 | AB8: 12 | AC8: 13 | AD8: 14 | AE8: 15 | AF8: 16 | AG8: 17 | AH8: 18
A9: (R$ Milhões) | B9: 1T12 | C9: 2T12 | D9: 3T12 | E9: 4T12 | F9: 2012 | G9: 1T13 | H9: 2T13 | I9: 3T13 | J9: 4T13 | K9: 2013 | L9: 1T14 | M9: 2T14 | N9: 3T14 | O9: 4T14 | P9: 2014 | Q9: 1T15 | R9: 2T15 | S9: 3T15 | T9: 4T15 | U9: 2015 | V9: 1T16 | W9: 2T16 | X9: 3T16 | Y9: 4T16 | Z9: 2016 | AA9: 1T17 | AB9: 2T17 | AC9: 3T17 | AD9: 4T17 | AE9: 2017 | AF9: 1T18 | AG9: 2T18 | AH9: 3T18 | AI9: 4T18 | AJ9: 2018 | AK9: 1T19 | AL9: 2T19 | AM9: 3T19 | AN9: 4T19 | AO9: 2019 | AP9: 1T20 | AQ9: 2T20 | AR9: 3T20 | AS9: 4T20 | AT9: 2020
A11: Investimento Total Líquido | B11: =B19+B20 -> 16.71084957 | C11: 12.64972838 | D11: 32.29715634 | E11: 22.23316441 | F11: 83.8908987 | G11: 8.63089035 | H11: 18.37363045 | I11: 11.84811431 | J11: 32.38961959 | K11: 71.2422547 | L11: 0.66776166 | M11: 4.64240059 | N11: 6.34115103 | O11: 9.75631843 | P11: 21.40763171 | Q11: 1.55899194 | R11: 2.4333245 | S11: 6.34128743 | T11: -18.17271102 | U11: -7.839107152 | V11: 0.53459776 | W11: 2.85046716 | X11: -1.4895937 | Y11: 6.36122001 | Z11: 14.65263787 | AA11: 3 | AB11: 0.0449893 | AC11: 0.51589078 | AD11: 1.921426 | AE11: 5.48230608 | AF11: 18.78291312 | AG11: =AG19+AG20 -> 8.44425206 | AH11: =AH19+AH20 -> 11.5 | AI11: =AI19+AI20 -> 25.7494703 | AJ11: 64.47663548 | AK11: =AK19+AK20 -> 15.6 | AL11: 41.7 | AM11: =AM19+AM20 -> 24.2 | AN11: 32.5 | AO11: 114 | AP11: =AP19+AP20 -> 26 | AQ11: 40.7 | AR11: 55.1 | AS11: =AS19+AS20 -> 46.8 | AT11: 168.6
A12: TERMINAIS PORTUÁRIOS | B12: =SUM(B13:B15) -> 12.3782887 | C12: 13.56131438 | D12: 28.54865327 | E12: 18.76336137 | F12: 73.25161772 | G12: 7.50002155 | H12: 7.72817771 | I12: 6.21376041 | J12: 24.75129849 | K12: 46.19325816 | L12: 2.08195816 | M12: 3.04246525 | N12: 4.27544202 | O12: 5.28571483 | P12: 14.68558026 | Q12: 1.54900422 | R12: 3.75525074 | S12: 4.10576598 | T12: 4.53138574 | U12: 13.94140668 | V12: 0.67727888 | W12: 1.85865473 | X12: 1.78414386 | Y12: 7.68646552 | Z12: 12.00654299 | AA12: 0.2 | AB12: 0.352 | AC12: 1.3 | AD12: 1.2 | AE12: 3.052 | AF12: 20 | AG12: 8.7 | AH12: 11.1 | AI12: =SUM(AI13:AI15) -> 31.2 | AJ12: 71 | AK12: =SUM(AK13:AK15) -> 15.6 | AL12: 44.9 | AM12: =SUM(AM13:AM15) -> 23.6 | AN12: 31.4 | AO12: 115.5 | AP12: =SUM(AP13:AP15) -> 63.3 | AQ12: 45.4 | AR12: 58.8 | AS12: =SUM(AS13:AS15) -> 47.9 | AT12: 215.4
A13: Tecon Santos | B13: 2.16124062 | C13: 5.24514321 | D13: 7.1414111 | E13: 7.71130344 | F13: =SUM(B13:E13) -> 22.25909837 | G13: 4.44755432 | H13: 7.17588502 | I13: 4.89427704 | J13: 20.93129213 | K13: =SUM(G13:J13) -> 37.44900851 | L13: 1.99965115 | M13: 2.92363153 | N13: 3.01135329 | O13: 4.29600923 | P13: =SUM(L13:O13) -> 12.2306452 | Q13: 1.24172012 | R13: 2.59069096 | S13: 3.66458311 | T13: 3.52323008 | U13: =SUM(Q13:T13) -> 11.02022427 | V13: 0.532314 | W13: 0.89941165 | X13: 1.52287744 | Y13: 6.5271563 | Z13: =SUM(V13:Y13) -> 9.48175939 | AA13: 0.2 | AB13: 0.314 | AC13: 1.1 | AD13: 0.8 | AE13: =SUM(AA13:AD13) -> 2.414 | AF13: 0.8 | AG13: 5.5 | AH13: 3.2 | AI13: 17 | AJ13: =SUM(AF13:AI13) -> 26.5 | AK13: 13.7 | AL13: 41.3 | AM13: 19.5 | AN13: 27.2 | AO13: =SUM(AK13:AN13) -> 101.7 | AP13: 61.2 | AQ13: 44.3 | AR13: 51.6 | AS13: 46.3 | AT13: =SUM(AP13:AS13) -> 203.4
A14: Tecon Imbituba | B14: 8.50482202 | C14: 8.21685155 | D14: 20.97628259 | E14: 9.7181453 | F14: =SUM(B14:E14) -> 47.41610146 | G14: 0.09561569 | H14: 0.2576652 | I14: 0.37809011 | J14: 1.16288323 | K14: =SUM(G14:J14) -> 1.89425423 | L14: -0.0648248 | M14: 0.00086 | N14: 0.39229319 | O14: 0.50724104 | P14: =SUM(L14:O14) -> 0.83556943 | Q14: 0.01180493 | R14: 0.0389346 | S14: 0.37578976 | T14: 0.67543216 | U14: =SUM(Q14:T14) -> 1.10196145 | V14: 0.13427 | W14: 0.54067225 | X14: 0.20430842 | Y14: 1.10562474 | Z14: =SUM(V14:Y14) -> 1.98487541 | AA14: 0 | AB14: 0 | AC14: 0 | AD14: 0 | AE14: =SUM(AA14:AD14) -> 0 | AF14: 0 | AG14: 0 | AH14: 0 | AI14: 0.1 | AJ14: =SUM(AF14:AI14) -> 0.1 | AK14: 0 | AL14: 0 | AM14: 0.2 | AN14: 0 | AO14: =SUM(AK14:AN14) -> 0.2 | AP14: 0 | AQ14: 0 | AR14: 0 | AS14: 0 | AT14: =SUM(AP14:AS14) -> 0
A15: Tecon Vila do Conde | B15: 1.71222606 | C15: 0.09931962 | D15: 0.43095958 | E15: 1.33391263 | F15: 3.57641789 | G15: 2.95685154 | H15: 0.29462749 | I15: 0.94139326 | J15: 2.65712313 | K15: 6.84999542 | L15: 0.14713181 | M15: 0.11797372 | N15: 0.87179554 | O15: 0.48246456 | P15: 1.61936563 | Q15: 0.29547917 | R15: 1.12562518 | S15: 0.06539311 | T15: 0.3327235 | U15: 1.81922096 | V15: 0.01069488 | W15: 0.41857083 | X15: 0.056958 | Y15: 0.05368448 | Z15: 0.53990819 | AA15: 0 | AB15: 0.038 | AC15: 0.2 | AD15: 0.4 | AE15: 0.638 | AF15: 19.2 | AG15: 3.2 | AH15: 7.9 | AI15: 14.1 | AJ15: 44.4 | AK15: 1.9 | AL15: 3.6 | AM15: 3.9 | AN15: 4.2 | AO15: 13.6 | AP15: 2.1 | AQ15: 1.1 | AR15: 7.2 | AS15: 1.6 | AT15: 12
A16: LOGÍSTICA | B16: 2.94045161 | C16: 11.76053638 | D16: 3.63201095 | E16: 4.93262989 | F16: =SUM(B16:E16) -> 23.26562883 | G16: 3.33691934 | H16: 13.68288587 | I16: 5.83404888 | J16: 9.58003524 | K16: 32.43388933 | L16: 0.0696776 | M16: 0.59649415 | N16: 5.9338539 | O16: 2.32485929 | P16: 8.92488494 | Q16: 0.50111953 | R16: 1.42350254 | S16: 2.3968734 | T16: 7.53222637 | U16: 11.85372184 | V16: 0.13835515 | W16: 1.0071287 | X16: 0.30943821 | Y16: 0.96883657 | Z16: 2.42375863 | AA16: 0 | AB16: 0.048 | AC16: 0.3 | AD16: 0.9 | AE16: 1.248 | AF16: 0 | AG16: 0.1 | AH16: 0.1 | AI16: 0.2 | AJ16: 0.4 | AK16: 0.1 | AL16: 1.4 | AM16: 1.3 | AN16: 1.5 | AO16: 4.3 | AP16: 0 | AQ16: 1.5 | AR16: 3.5 | AS16: 3 | AT16: 8
A17: TERMINAL DE VEÍCULOS | B17: 0.08052 | C17: 0 | D17: 0.0527168 | E17: 0.01316826 | F17: =SUM(B17:E17) -> 0.14640506 | G17: -0.04976 | H17: 0.02022 | I17: 0.24850628 | J17: 0.49885205 | K17: 0.71781833 | L17: 0 | M17: 0.24265239 | N17: 0.5613906 | O17: 1.60902258 | P17: 2.41306557 | Q17: 0 | R17: 0.05197013 | S17: 0.00698426 | T17: 0.8491 | U17: 0.90805439 | V17: 0 | W17: 0 | X17: 0.22233625 | Y17: 0 | Z17: 0.22233625 | AA17: 0 | AB17: 0 | AC17: 0 | AD17: 0.2 | AE17: 0.2 | AF17: 0 | AG17: 0 | AH17: 0.3 | AI17: 0 | AJ17: 0.3 | AK17: 0 | AL17: 0 | AM17: 0 | AN17: 0 | AO17: 0 | AP17: 0 | AQ17: 0 | AR17: 0 | AS17: 0 | AT17: 0
A18: CORPORATIVO | B18: 0.22147067 | C18: 0.00349 | D18: 1.00583743 | E18: 0.04084941 | F18: 1.27164751 | G18: 0.02492743 | H18: 3.74333951 | I18: 1.648043 | J18: 0.00448311 | K18: 5.42079305 | L18: 0.15273583 | M18: 0.85148788 | N18: 0.79710768 | O18: 0.72917361 | P18: 2.530505 | Q18: 0 | R18: 0 | S18: 0 | T18: 0 | U18: 0 | V18: 0 | W18: 0 | X18: 0 | Y18: 0 | Z18: 0 | AA18: 2.8 | AB18: 0 | AC18: 0 | AD18: 0 | AE18: 2.8 | AF18: 0 | AG18: 0 | AH18: 0 | AI18: 0 | AJ18: 0 | AK18: 0 | AL18: 0 | AM18: 0 | AN18: 0 | AO18: 0 | AP18: 0 | AQ18: 0 | AR18: 0 | AS18: 0 | AT18: 0
A19: Investimento Total Bruto | B19: =B12+B16+B17+B18 -> 15.62073098 | C19: 25.32534076 | D19: 33.23921845 | E19: 23.75000893 | F19: 97.93529912 | G19: 10.81210832 | H19: 25.17462309 | I19: 13.94435857 | J19: 34.83466889 | K19: 84.76575887 | L19: 2.30437159 | M19: 4.73309967 | N19: 11.5677942 | O19: 9.94877031 | P19: 28.55403577 | Q19: 2.05012375 | R19: 5.23072341 | S19: 6.50962364 | T19: 12.91271211 | U19: 26.70318291 | V19: 0.81563403 | W19: 2.86578343 | X19: 2.31591832 | Y19: 8.65530209 | Z19: 14.65263787 | AA19: 3 | AB19: 0.4 | AC19: 1.6 | AD19: 2.3 | AE19: 7.3 | AF19: 20 | AG19: 8.8 | AH19: 11.5 | AI19: =AI12+AI16+AI17+AI18 -> 31.4 | AJ19: 71.7 | AK19: =AK12+AK16+AK17+AK18 -> 15.7 | AL19: 46.3 | AM19: =AM12+AM16+AM17+AM18 -> 24.9 | AN19: 32.9 | AO19: 119.8 | AP19: =AP12+AP16+AP17+AP18 -> 63.3 | AQ19: 46.9 | AR19: 62.3 | AS19: =AS12+AS16+AS17+AS18 -> 50.9 | AT19: 223.4
A20: Baixas de Ativo Imobilizado/Intangível | B20: 1.09011859 | C20: -12.67561238 | D20: -0.94206211 | E20: -1.516844523 | F20: =SUM(B20:E20) -> -14.04440042 | G20: -2.18121797 | H20: -6.80099264 | I20: -2.09624426 | J20: -2.4450493 | K20: =SUM(G20:J20) -> -13.52350417 | L20: -1.63660993 | M20: -0.09069908 | N20: -5.22664317 | O20: -0.19245188 | P20: =SUM(L20:O20) -> -7.14640406 | Q20: -0.49113181 | R20: -2.79739891 | S20: -0.16833621 | T20: -31.08542313 | U20: =SUM(Q20:T20) -> -34.54229006 | V20: -0.28103627 | W20: -0.01531627 | X20: -3.80551202 | Y20: -2.29408208 | Z20: 0 | AA20: 0 | AB20: -0.3550107 | AC20: -1.08410922 | AD20: -0.378574 | AE20: =SUM(AA20:AD20) -> -1.81769392 | AF20: -1.21708688 | AG20: -0.35574794 | AH20: 0 | AI20: -5.6505297 | AJ20: =SUM(AF20:AI20) -> -7.22336452 | AK20: -0.1 | AL20: -4.6 | AM20: -0.7 | AN20: -0.4 | AO20: =SUM(AK20:AN20) -> -5.8 | AP20: -37.3 | AQ20: -6.2 | AR20: -7.2 | AS20: -4.1 | AT20: =SUM(AP20:AS20) -> -54.8

Sheet Fluxo de Caixa
A9: (R$ Mil) | B9: 1T12 | C9: 2T12 | D9: 3T12 | E9: 4T12 | F9: 2012 | G9: 1T13 | H9: 2T13 | I9: 3T13 | J9: 4T13 | K9: 2013 | L9: 1T14 | M9: 2T14 | N9: 3T14 | O9: 4T14 | P9: 2014 | Q9: 1T15 | R9: 2T15 | S9: 3T15 | T9: 4T15 | U9: 2015 | V9: 1T16 | W9: 2T16 | X9: 3T16 | Y9: 4T16 | Z9: 2016 | AA9: 1T17 | AB9: 2T17 | AC9: 3T17 | AD9: 4T17 | AE9: 2017 | AF9: 1T18 | AG9: 2T18 | AH9: 3T18 | AI9: 4T18 | AJ9: 2018 | AK9: 1T19 | AL9: 2T19 | AM9: 3T19 | AN9: 4T19 | AO9: 2019 | AP9: 1T20 | AQ9: 2T20 | AR9: 3T20 | AS9: 4T20 | AT9: 2020
A10: FLUXO DE CAIXA DAS OPERAÇÕES | B10: =B11+B26+B40 -> 60107 | C10: 105705 | D10: 144130 | E10: 138223 | F10: 448165 | G10: 92819 | H10: 114134 | I10: 88746 | J10: =410813-SUM(G10:I10) -> 115114 | K10: =SUM(G10:J10) -> 410813 | L10: 53880 | M10: =112423-L10 -> 58543 | N10: =200547-SUM(L10:M10) -> 88124 | O10: =264717-SUM(L10:N10) -> 64170 | P10: =SUM(L10:O10) -> 264717 | Q10: 47671 | R10: =74859-Q10 -> 27188 | S10: =129382-SUM(Q10:R10) -> 54523 | T10: =167557-SUM(Q10:S10) -> 38175 | U10: =SUM(Q10:T10) -> 167557 | V10: 29063 | W10: =39764-V10 -> 10701 | X10: =76521-SUM(V10:W10) -> 36757 | Y10: =121738-SUM(V10:X10) -> 45217 | Z10: =SUM(V10:Y10) -> 121738 | AA10: 28193 | AB10: =49753-AA10 -> 21560 | AC10: =59608-SUM(AA10:AB10) -> 9855 | AD10: =107589-SUM(AA10:AC10) -> 47981 | AE10: =SUM(AA10:AD10) -> 107589 | AF10: 15795 | AG10: =29120-AF10 -> 13325 | AH10: =55070-SUM(AF10:AG10) -> 25950 | AI10: =75226-SUM(AF10:AH10) -> 20156 | AJ10: =SUM(AF10:AI10) -> 75226 | AK10: 21893 | AL10: =24447-AK10 -> 2554 | AM10: =74394-SUM(AK10:AL10) -> 49947 | AN10: =98902-SUM(AK10:AM10) -> 24508 | AO10: =SUM(AK10:AN10) -> 98902 | AP10: 22896 | AQ10: =66898-AP10 -> 44002 | AR10: =108165-SUM(AP10:AQ10) -> 41267 | AS10: =257634-SUM(AP10:AR10) -> 149469 | AT10: =SUM(AP10:AS10) -> 257634
A11: Caixa Gerado nas Operações | B11: =SUM(B12:B25) -> 117465 | C11: 152070 | D11: 173677 | E11: 154738 | F11: 597950 | G11: 165321 | H11: 141970 | I11: 118978 | J11: 115136 | K11: 541405 | L11: 101948 | M11: 93164 | N11: 80788 | O11: 62680 | P11: 338580 | Q11: 50633 | R11: 11082 | S11: 101377 | T11: 35541 | U11: 198633 | V11: 31881 | W11: 31686 | X11: 44351 | Y11: 34428 | Z11: 142346 | AA11: 62083 | AB11: 26147 | AC11: 59787 | AD11: 53398 | AE11: 201415 | AF11: 47382 | AG11: 55035 | AH11: 73641 | AI11: 57840 | AJ11: 233898 | AK11: 44888 | AL11: 66390 | AM11: 75472 | AN11: 82372 | AO11: 269122 | AP11: 50646 | AQ11: =SUM(AQ12:AQ25) -> 57960 | AR11: 57502 | AS11: =SUM(AS12:AS25) -> 91526 | AT11: 257634
A12: Resultado Antes da Tributação e Participação | B12: 68837 | C12: =161202-B12 -> 92365 | D12: =284899-SUM(B12:C12) -> 123697 | E12: =381252-SUM(B12:D12) -> 96353 | F12: =SUM(B12:E12) -> 381252 | G12: 117473 | H12: =204451-G12 -> 86978 | I12: =275205-SUM(G12:H12) -> 70754 | J12: =363835-SUM(G12:I12) -> 88630 | K12: =SUM(G12:J12) -> 363835 | L12: 51947 | M12: =93039-L12 -> 41092 | N12: =120533-SUM(L12:M12) -> 27494 | O12: =127178-SUM(L12:N12) -> 6645 | P12: =SUM(L12:O12) -> 127178 | Q12: 25759 | R12: =36299-Q12 -> 10540 | S12: =26525-SUM(Q12:R12) -> -9774 | T12: =+-14219-SUM(Q12:S12) -> -40744 | U12: =SUM(Q12:T12) -> -14219 | V12: -14711 | W12: =+-19965-V12 -> -5254 | X12: =+-20503-SUM(V12:W12) -> -538 | Y12: =-22279-SUM(V12:X12) -> -1776 | Z12: =SUM(V12:Y12) -> -22279 | AA12: 1255 | AB12: =+-31390-AA12 -> -32645 | AC12: =-31623-SUM(AA12:AB12) -> -233 | AD12: =-31175-SUM(AA12:AC12) -> 448 | AE12: =SUM(AA12:AD12) -> -31175 | AF12: -9036 | AG12: =+-13742-AF12 -> -4706 | AH12: =1203-SUM(AF12:AG12) -> 14945 | AI12: =8181-SUM(AF12:AH12) -> 6978 | AJ12: =SUM(AF12:AI12) -> 8181 | AK12: -12676 | AL12: =-1647-AK12 -> 11029 | AM12: =9257-SUM(AK12:AL12) -> 10904 | AN12: =24996-SUM(AK12:AM12) -> 15739 | AO12: =SUM(AK12:AN12) -> 24996 | AP12: -18966 | AQ12: =-31173-AP12 -> -12207 | AR12: =-39384-SUM(AP12:AQ12) -> -8211 | AS12: =-17663-SUM(AP12:AR12) -> 21721 | AT12: =SUM(AP12:AS12) -> -17663
A13: Variação Monetárias e Cambiais | B13: -2473 | C13: =7545-B13 -> 10018 | D13: =8653-SUM(B13:C13) -> 1108 | E13: =9595-SUM(B13:D13) -> 942 | F13: 9595 | G13: -222 | H13: =6236-G13 -> 6458 | I13: =7988-SUM(G13:H13) -> 1752 | J13: =10953-SUM(G13:I13) -> 2965 | K13: 10953 | L13: -990 | M13: =+-1649-L13 -> -659 | N13: =3304-SUM(L13:M13) -> 4953 | O13: =6906-SUM(L13:N13) -> 3602 | P13: 6906 | Q13: 7086 | R13: =6126-Q13 -> -960 | S13: =14511-SUM(Q13:R13) -> 8385 | T13: =14037-SUM(Q13:S13) -> -474 | U13: 14037 | V13: -1010 | W13: =+-1505-V13 -> -495 | X13: =+-303-SUM(V13:W13) -> 1202 | Y13: =210-SUM(V13:X13) -> 513 | Z13: 210 | AA13: 224 | AB13: =688-AA13 -> 464 | AC13: =1275-SUM(AA13:AB13) -> 587 | AD13: =1471-SUM(AA13:AC13) -> 196 | AE13: 1471 | AF13: 776 | AG13: =2564-AF13 -> 1788 | AH13: =3360-SUM(AF13:AG13) -> 796 | AI13: =1846-SUM(AF13:AH13) -> -1514 | AJ13: 1846 | AK13: -682 | AL13: =-977-AK13 -> -295 | AM13: =-547-SUM(AK13:AL13) -> 430 | AN13: =2083-SUM(AK13:AM13) -> 2630 | AO13: 2083 | AP13: 4772 | AQ13: =5522-AP13 -> 750 | AR13: =7633-SUM(AP13:AQ13) -> 2111 | AS13: =8590-SUM(AP13:AR13) -> 957 | AT13: 8590
A14: Depreciação e Amortização | B14: 29980 | C14: =61495-B14 -> 31515 | D14: =93907-SUM(B14:C14) -> 32412 | E14: =126813-SUM(B14:D14) -> 32906 | F14: 126813 | G14: 33401 | H14: =67452-G14 -> 34051 | I14: =101525-SUM(G14:H14) -> 34073 | J14: =135579-SUM(G14:I14) -> 34054 | K14: 135579 | L14: 35229 | M14: =70401-L14 -> 35172 | N14: =104852-SUM(L14:M14) -> 34451 | O14: =140241-SUM(L14:N14) -> 35389 | P14: 140241 | Q14: 35111 | R14: =70008-Q14 -> 34897 | S14: =107117-SUM(Q14:R14) -> 37109 | T14: =131587-SUM(Q14:S14) -> 24470 | U14: 131587 | V14: 24041 | W14: =48196-V14 -> 24155 | X14: =72201-SUM(V14:W14) -> 24005 | Y14: =96022-SUM(V14:X14) -> 23821 | Z14: 96022 | AA14: 33452 | AB14: =67034-AA14 -> 33582 | AC14: =100897-SUM(AA14:AB14) -> 33863 | AD14: =132982-SUM(AA14:AC14) -> 32085 | AE14: 132982 | AF14: 31007 | AG14: =61921-AF14 -> 30914 | AH14: =92746-SUM(AF14:AG14) -> 30825 | AI14: =124166-SUM(AF14:AH14) -> 31420 | AJ14: 124166 | AK14: 32491 | AL14: =65286-AK14 -> 32795 | AM14: =98586-SUM(AK14:AL14) -> 33300 | AN14: =135650-SUM(AK14:AM14) -> 37064 | AO14: 135650 | AP14: 35061 | AQ14: =71572-AP14 -> 36511 | AR14: =110844-SUM(AP14:AQ14) -> 39272 | AS14: =152363-SUM(AP14:AR14) -> 41519 | AT14: 152363
A15: Constituição (Reversão) da Provisão para Contingências | B15: 5570 | C15: =12018-B15 -> 6448 | D15: =17030-SUM(B15:C15) -> 5012 | E15: =23657-SUM(B15:D15) -> 6627 | F15: 23657 | G15: 3930 | H15: =9326-G15 -> 5396 | I15: =12699-SUM(G15:H15) -> 3373 | J15: =-15572-SUM(G15:I15) -> -28271 | K15: -15572 | L15: 5891 | M15: =11043-L15 -> 5152 | N15: =15582-SUM(L15:M15) -> 4539 | O15: =22162-SUM(L15:N15) -> 6580 | P15: 22162 | Q15: -87076 | R15: =+-86184-Q15 -> 892 | S15: =+-82673-SUM(Q15:R15) -> 3511 | T15: =-73042-SUM(Q15:S15) -> 9631 | U15: -73042 | V15: 2975 | W15: =5178-V15 -> 2203 | X15: =11362-SUM(V15:W15) -> 6184 | Y15: =12493-SUM(V15:X15) -> 1131 | Z15: 12493 | AA15: 2439 | AB15: =4847-AA15 -> 2408 | AC15: =6071-SUM(AA15:AB15) -> 1224 | AD15: =6529-SUM(AA15:AC15) -> 458 | AE15: 6529 | AF15: 1447 | AG15: =4614-AF15 -> 3167 | AH15: =8559-SUM(AF15:AG15) -> 3945 | AI15: =9584-SUM(AF15:AH15) -> 1025 | AJ15: 9584 | AK15: 1832 | AL15: =3215-AK15 -> 1383 | AM15: =9424-SUM(AK15:AL15) -> 6209 | AN15: =13880-SUM(AK15:AM15) -> 4456 | AO15: 13880 | AP15: 3795 | AQ15: =10017-AP15 -> 6222 | AR15: =15597-SUM(AP15:AQ15) -> 5580 | AS15: =22911-SUM(AP15:AR15) -> 7314 | AT15: 22911
A16: Plano de Opção de Compra de Ações | B16: 1562 | C16: =2927-B16 -> 1365 | D16: =4216-SUM(B16:C16) -> 1289 | E16: =5498-SUM(B16:D16) -> 1282 | F16: 5498 | G16: 1600 | H16: =3127-G16 -> 1527 | I16: =4611-SUM(G16:H16) -> 1484 | J16: =5929-SUM(G16:I16) -> 1318 | K16: 5929 | L16: 1242 | M16: =2499-L16 -> 1257 | N16: =4116-SUM(L16:M16) -> 1617 | O16: =5501-SUM(L16:N16) -> 1385 | P16: 5501 | Q16: 874 | R16: =2942-Q16 -> 2068 | S16: =4449-SUM(Q16:R16) -> 1507 | T16: =5955-SUM(Q16:S16) -> 1506 | U16: 5955 | V16: 1127 | W16: =2622-V16 -> 1495 | X16: =4118-SUM(V16:W16) -> 1496 | Y16: =4267-SUM(V16:X16) -> 149 | Z16: 4267 | AA16: 751 | AB16: =1130-AA16 -> 379 | AC16: =2217-SUM(AA16:AB16) -> 1087 | AD16: =3677-SUM(AA16:AC16) -> 1460 | AE16: 3677 | AF16: 1330 | AG16: =2497-AF16 -> 1167 | AH16: =3326-SUM(AF16:AG16) -> 829 | AI16: =5669-SUM(AF16:AH16) -> 2343 | AJ16: 5669 | AK16: 1088 | AL16: =1976-AK16 -> 888 | AM16: =2179-SUM(AK16:AL16) -> 203 | AN16: =2514-SUM(AK16:AM16) -> 335 | AO16: 2514 | AP16: 563 | AQ16: =2260-AP16 -> 1697 | AR16: =1065-SUM(AP16:AQ16) -> -1195 | AS16: =1404-SUM(AP16:AR16) -> 339 | AT16: 1404
A17: Baixas e Resultado na Venda de Ativos Permanentes | B17: 123 | C17: =+-411-B17 -> -534 | D17: =-341-SUM(B17:C17) -> 70 | E17: =-521-SUM(B17:D17) -> -180 | F17: -521 | G17: 1064 | H17: =+-134-G17 -> -1198 | I17: =+-338-SUM(G17:H17) -> -204 | J17: =-494-SUM(G17:I17) -> -156 | K17: -494 | L17: 13 | M17: =40-L17 -> 27 | N17: =+-149-SUM(L17:M17) -> -189 | O17: =-151-SUM(L17:N17) -> -2 | P17: -151 | Q17: 45 | R17: =1255-Q17 -> 1210 | S17: =1276-SUM(Q17:R17) -> 21 | T17: =1406-SUM(Q17:S17) -> 130 | U17: 1406 | V17: 63 | W17: =63-V17 -> 0 | X17: =58-SUM(V17:W17) -> -5 | Y17: =91-SUM(V17:X17) -> 33 | Z17: 91 | AA17: 0 | AB17: =336-AA17 -> 336 | AC17: =-233-SUM(AA17:AB17) -> -569 | AD17: =-40-SUM(AA17:AC17) -> 193 | AE17: -40 | AF17: -258 | AG17: =+-240-AF17 -> 18 | AH17: =-240-SUM(AF17:AG17) -> 0 | AI17: =-86-SUM(AF17:AH17) -> 154 | AJ17: -86 | AK17: 3 | AL17: =-204-AK17 -> -207 | AM17: =-229-SUM(AK17:AL17) -> -25 | AN17: =-262-SUM(AK17:AM17) -> -33 | AO17: -262 | AP17: -169 | AQ17: =796-AP17 -> 965 | AR17: =-1012-SUM(AP17:AQ17) -> -1808 | AS17: =-359-SUM(AP17:AR17) -> 653 | AT17: -359
A18: Juros sobre Debêntures | B18: 2022 | C18: =3219-B18 -> 1197 | D18: =4073-SUM(B18:C18) -> 854 | E18: =4815-SUM(B18:D18) -> 742 | F18: 4815 | G18: 737 | H18: =998-G18 -> 261 | I18: =998-SUM(G18:H18) -> 0 | J18: =998-SUM(G18:I18) -> 0 | K18: 998 | L18: 0 | M18: 3243 | N18: =6293-SUM(L18:M18) -> 3050 | O18: =9322-SUM(L18:N18) -> 3029 | P18: 9322 | Q18: 3011 | R18: =5635-Q18 -> 2624 | S18: =11282-SUM(Q18:R18) -> 5647 | T18: =17843-SUM(Q18:S18) -> 6561 | U18: 17843 | V18: 6221 | W18: =12340-V18 -> 6119 | X18: =18577-SUM(V18:W18) -> 6237 | Y18: =23941-SUM(V18:X18) -> 5364 | Z18: 23941 | AA18: 4179 | AB18: =6943-AA18 -> 2764 | AC18: =8975-SUM(AA18:AB18) -> 2032 | AD18: =10944-SUM(AA18:AC18) -> 1969 | AE18: 10944 | AF18: 1037 | AG18: =1811-AF18 -> 774 | AH18: =2153-SUM(AF18:AG18) -> 342 | AI18: =2153-SUM(AF18:AH18) -> 0 | AJ18: 2153 | AK18: 0 | AL18: =3700-AK18 -> 3700 | AM18: =9247-SUM(AK18:AL18) -> 5547 | AN18: =14086-SUM(AK18:AM18) -> 4839 | AO18: 14086 | AP18: 3777 | AQ18: =6703-AP18 -> 2926 | AR18: =8920-SUM(AP18:AQ18) -> 2217 | AS18: =10876-SUM(AP18:AR18) -> 1956 | AT18: 10876
A19: Juros sobre Empréstimos Apropriados | B19: =11844 -> 11844 | C19: =21540-B19 -> 9696 | D19: =30775-SUM(B19:C19) -> 9235 | E19: =39471-SUM(B19:D19) -> 8696 | F19: 39471 | G19: 6724 | H19: =13830-G19 -> 7106 | I19: =21056-SUM(G19:H19) -> 7226 | J19: =28640-SUM(G19:I19) -> 7584 | K19: 28640 | L19: 7027 | M19: =13794-L19 -> 6767 | N19: =20388-SUM(L19:M19) -> 6594 | O19: =27102-SUM(L19:N19) -> 6714 | P19: 27102 | Q19: 6460 | R19: =13162-Q19 -> 6702 | S19: =19904-SUM(Q19:R19) -> 6742 | T19: =24342-SUM(Q19:S19) -> 4438 | U19: 24342 | V19: 3873 | W19: =7493-V19 -> 3620 | X19: =9970-SUM(V19:W19) -> 2477 | Y19: =12766-SUM(V19:X19) -> 2796 | Z19: 12766 | AA19: 2452 | AB19: =5088-AA19 -> 2636 | AC19: =10123-SUM(AA19:AB19) -> 5035 | AD19: =13582-SUM(AA19:AC19) -> 3459 | AE19: 13582 | AF19: 3572 | AG19: =7123-AF19 -> 3551 | AH19: =10657-SUM(AF19:AG19) -> 3534 | AI19: =14564-SUM(AF19:AH19) -> 3907 | AJ19: 14564 | AK19: 3527 | AL19: =6400-AK19 -> 2873 | AM19: =8827-SUM(AK19:AL19) -> 2427 | AN19: =9828-SUM(AK19:AM19) -> 1001 | AO19: 9828 | AP19: 973 | AQ19: =1780-AP19 -> 807 | AR19: =2457-SUM(AP19:AQ19) -> 677 | AS19: =3054-SUM(AP19:AR19) -> 597 | AT19: 3054
A20: Juros sobre aplicações financeiras | B20: 0 | C20: 0 | D20: 0 | E20: 0 | F20: 0 | G20: 0 | H20: 0 | I20: 0 | J20: 0 | K20: 0 | L20: 0 | M20: 0 | N20: 0 | O20: 0 | P20: 0 | Q20: 0 | R20: 0 | S20: 0 | T20: 0 | U20: 0 | V20: 0 | W20: 0 | X20: 0 | Y20: 0 | Z20: 0 | AA20: 0 | AB20: 0 | AC20: 0 | AD20: 0 | AE20: 0 | AF20: 0 | AG20: 0 | AH20: 0 | AI20: 0 | AJ20: 0 | AK20: 0 | AL20: =-2059-AK20 -> -2059 | AM20: =-6217-SUM(AK20:AL20) -> -4158 | AN20: =-8013-SUM(AK20:AM20) -> -1796 | AO20: -8013 | AP20: 467 | AQ20: =1047-AP20 -> 580 | AR20: =1047-SUM(AP20:AQ20) -> 0 | AS20: =-1092-SUM(AP20:AR20) -> -2139 | AT20: -1092
A21: Benefício pós emprego - Planos Médicos | B21: 0 | C21: 0 | D21: 0 | E21: =7370-SUM(B21:D21) -> 7370 | F21: 7370 | G21: 520 | H21: =1040-G21 -> 520 | I21: =1560-SUM(G21:H21) -> 520 | J21: =1905-SUM(G21:I21) -> 345 | K21: 1905 | L21: 663 | M21: =1328-L21 -> 665 | N21: =1992-SUM(L21:M21) -> 664 | O21: =2220-SUM(L21:N21) -> 228 | P21: 2220 | Q21: 921 | R21: =1843-Q21 -> 922 | S21: =2765-SUM(Q21:R21) -> 922 | T21: =3140-SUM(Q21:S21) -> 375 | U21: 3140 | V21: 898 | W21: =1795-V21 -> 897 | X21: =2692-SUM(V21:W21) -> 897 | Y21: =2986-SUM(V21:X21) -> 294 | Z21: 2986 | AA21: 991 | AB21: =1986-AA21 -> 995 | AC21: =2977-SUM(AA21:AB21) -> 991 | AD21: =3173-SUM(AA21:AC21) -> 196 | AE21: 3173 | AF21: 1263 | AG21: =2526-AF21 -> 1263 | AH21: =3789-SUM(AF21:AG21) -> 1263 | AI21: =4914-SUM(AF21:AH21) -> 1125 | AJ21: 4914 | AK21: 1176 | AL21: =2351-AK21 -> 1175 | AM21: =3526-SUM(AK21:AL21) -> 1175 | AN21: =5031-SUM(AK21:AM21) -> 1505 | AO21: 5031 | AP21: 1950 | AQ21: =3899-AP21 -> 1949 | AR21: =5847-SUM(AP21:AQ21) -> 1948 | AS21: =7265-SUM(AP21:AR21) -> 1418 | AT21: 7265
A22: Perdas por desvalorização de ativos | B22: 0 | C22: 0 | D22: 0 | E22: 0 | F22: 0 | G22: 0 | H22: 0 | I22: 0 | J22: 0 | K22: 0 | L22: 0 | M22: 0 | N22: 0 | O22: 0 | P22: 0 | Q22: 0 | R22: 0 | S22: 0 | T22: 30639 | U22: 30639 | V22: 0 | W22: 0 | X22: 0 | Y22: 0 | Z22: 0 | AA22: 0 | AB22: 0 | AC22: 0 | AD22: 0 | AE22: 0 | AF22: 0 | AG22: 0 | AH22: 0 | AI22: 0 | AJ22: 0 | AK22: 0 | AL22: 0 | AM22: 0 | AN22: 0 | AO22: 0 | AP22: 0 | AQ22: 0 | AR22: 0 | AS22: 0 | AT22: 0
A23: Provisão/Reversão para Créditos de liquidação duvidosa e Perdas de créditos incobráveis | B23: 0 | C23: 0 | D23: 0 | E23: 0 | F23: 0 | G23: 94 | H23: =965-G23 -> 871 | I23: 0 | J23: =9632-SUM(G23:I23) -> 8667 | K23: 9632 | L23: 926 | M23: =1374-L23 -> 448 | N23: =+-1011-SUM(L23:M23) -> -2385 | O23: =-1901-SUM(L23:N23) -> -890 | P23: -1901 | Q23: 58442 | R23: =10629-Q23 -> -47813 | S23: =57936-SUM(Q23:R23) -> 47307 | T23: =56945-SUM(Q23:S23) -> -991 | U23: 56945 | V23: 8404 | W23: =7350-V23 -> -1054 | X23: =9746-SUM(V23:W23) -> 2396 | Y23: =11849-SUM(V23:X23) -> 2103 | Z23: 11849 | AA23: 3201 | AB23: =5338-AA23 -> 2137 | AC23: =8064-SUM(AA23:AB23) -> 2726 | AD23: =7960-SUM(AA23:AC23) -> -104 | AE23: 7960 | AF23: 2999 | AG23: =6832-AF23 -> 3833 | AH23: =10816-SUM(AF23:AG23) -> 3984 | AI23: =10090-SUM(AF23:AH23) -> -726 | AJ23: 10090 | AK23: 4556 | AL23: =6163-AK23 -> 1607 | AM23: =12198-SUM(AK23:AL23) -> 6035 | AN23: =14986-SUM(AK23:AM23) -> 2788 | AO23: 14986 | AP23: 5036 | AQ23: =8971-AP23 -> 3935 | AR23: =11596-SUM(AP23:AQ23) -> 2625 | AS23: =14450-SUM(AP23:AR23) -> 2854 | AT23: 14450
A24: Juros sobre obrigações com poder concedente | B24: 0 | C24: 0 | D24: 0 | E24: 0 | F24: 0 | G24: 0 | H24: 0 | I24: 0 | J24: 0 | K24: 0 | L24: 0 | M24: 0 | N24: 0 | O24: 0 | P24: 0 | Q24: 0 | R24: 0 | S24: 0 | T24: 0 | U24: 0 | V24: 0 | W24: 0 | X24: 0 | Y24: 0 | Z24: 0 | AA24: 13139 | AB24: =26230-AA24 -> 13091 | AC24: =39274-SUM(AA24:AB24) -> 13044 | AD24: =52312-SUM(AA24:AC24) -> 13038 | AE24: 52312 | AF24: 13245 | AG24: =26511-AF24 -> 13266 | AH24: =39689-SUM(AF24:AG24) -> 13178 | AI24: =52817-SUM(AF24:AH24) -> 13128 | AJ24: 52817 | AK24: 13076 | AL24: =26099-AK24 -> 13023 | AM24: =39067-SUM(AK24:AL24) -> 12968 | AN24: =51980-SUM(AK24:AM24) -> 12913 | AO24: 51980 | AP24: 12858 | AQ24: =26112-AP24 -> 13254 | AR24: =39725-SUM(AP24:AQ24) -> 13613 | AS24: =53435-SUM(AP24:AR24) -> 13710 | AT24: 53435
A25: Juros sobre arrendamento - Aluguéis | B25: 0 | C25: 0 | D25: 0 | E25: 0 | F25: 0 | G25: 0 | H25: 0 | I25: 0 | J25: 0 | K25: 0 | L25: 0 | M25: 0 | N25: 0 | O25: 0 | P25: 0 | Q25: 0 | R25: 0 | S25: 0 | T25: 0 | U25: 0 | V25: 0 | W25: 0 | X25: 0 | Y25: 0 | Z25: =SUM(V25:Y25) -> 0 | AA25: 0 | AB25: 0 | AC25: 0 | AD25: 0 | AE25: =SUM(AA25:AD25) -> 0 | AF25: 0 | AG25: 0 | AH25: 0 | AI25: 0 | AJ25: =SUM(AF25:AI25) -> 0 | AK25: 497 | AL25: =975-AK25 -> 478 | AM25: =1432-SUM(AK25:AL25) -> 457 | AN25: =2363-SUM(AK25:AM25) -> 931 | AO25: =SUM(AK25:AN25) -> 2363 | AP25: 529 | AQ25: =1100-AP25 -> 571 | AR25: =1773-SUM(AP25:AQ25) -> 673 | AS25: =2400-SUM(AP25:AR25) -> 627 | AT25: 2400
A26: Variações nos Ativos e Passivos | B26: =SUM(B27:B39) -> -45867 | C26: -26427 | D26: 3374 | E26: 1739 | F26: -67181 | G26: =SUM(G27:G39) -> -51490 | H26: 2714 | I26: 1091 | J26: 17470 | K26: -30215 | L26: -30949 | M26: -16693 | N26: =SUM(N27:N39) -> 15756 | O26: -2125 | P26: -34011 | Q26: 5359 | R26: 20718 | S26: -41931 | T26: 8600 | U26: -7254 | V26: 4239 | W26: -17091 | X26: 221 | Y26: 19209 | Z26: 6578 | AA26: -14069 | AB26: 11902 | AC26: -21345 | AD26: =SUM(AD27:AD39) -> 13322 | AE26: -10190 | AF26: -13239 | AG26: -11018 | AH26: -13121 | AI26: =SUM(AI27:AI39) -> -11765 | AJ26: -49143 | AK26: -1544 | AL26: -7991 | AM26: =SUM(AM27:AM39) -> 6994 | AN26: -35312 | AO26: -37853 | AP26: =SUM(AP27:AP39) -> -6824 | AQ26: 7012 | AR26: 13814 | AS26: =SUM(AS27:AS39) -> -24961 | AT26: -10959
A27: (Aumento) Redução em Contas a Receber | B27: -15192 | C27: =-24795-B27 -> -9603 | D27: =+-32669-SUM(B27:C27) -> -7874 | E27: =-34224-SUM(B27:D27) -> -1555 | F27: =SUM(B27:E27) -> -34224 | G27: -33006 | H27: =+-21418-G27 -> 11588 | I27: =+-43964-SUM(G27:H27) -> -22546 | J27: =-41382-SUM(G27:I27) -> 2582 | K27: =SUM(G27:J27) -> -41382 | L27: 14470 | M27: =13835-L27 -> -635 | N27: =30703-SUM(L27:M27) -> 16868 | O27: =46978-SUM(L27:N27) -> 16275 | P27: =SUM(L27:O27) -> 46978 | Q27: -7427 | R27: =31478-Q27 -> 38905 | S27: =+-16808-SUM(Q27:R27) -> -48286 | T27: =+-14604-SUM(Q27:S27) -> 2204 | U27: =SUM(Q27:T27) -> -14604 | V27: 1207 | W27: =2505-V27 -> 1298 | X27: =+-12451-SUM(V27:W27) -> -14956 | Y27: =-4706-SUM(V27:X27) -> 7745 | Z27: =SUM(V27:Y27) -> -4706 | AA27: -15384 | AB27: =+-5879-AA27 -> 9505 | AC27: =+-21768-SUM(AA27:AB27) -> -15889 | AD27: =-18213-SUM(AA27:AC27) -> 3555 | AE27: =SUM(AA27:AD27) -> -18213 | AF27: -7958 | AG27: =+-23536-AF27 -> -15578 | AH27: =-43806-SUM(AF27:AG27) -> -20270 | AI27: =-27207-SUM(AF27:AH27) -> 16599 | AJ27: =SUM(AF27:AI27) -> -27207 | AK27: -196 | AL27: =-25329-AK27 -> -25133 | AM27: =-20453-SUM(AK27:AL27) -> 4876 | AN27: =-22049-SUM(AK27:AM27) -> -1596 | AO27: =SUM(AK27:AN27) -> -22049 | AP27: -5608 | AQ27: =-17969-AP27 -> -12361 | AR27: =-20611-SUM(AP27:AQ27) -> -2642 | AS27: =-24901-SUM(AP27:AR27) -> -4290 | AT27: =SUM(AP27:AS27) -> -24901
A28: (Aumento) Redução nos Estoques | B28: -407 | C28: =+-1456-B28 -> -1049 | D28: =+-2921-SUM(B28:C28) -> -1465 | E28: =-3896-SUM(B28:D28) -> -975 | F28: -3896 | G28: -433 | H28: =+-1036-G28 -> -603 | I28: =+-1470-SUM(G28:H28) -> -434 | J28: =-1799-SUM(G28:I28) -> -329 | K28: -1799 | L28: -3722 | M28: =+-3926-L28 -> -204 | N28: =+-4357-SUM(L28:M28) -> -431 | O28: =-3934-SUM(L28:N28) -> 423 | P28: -3934 | Q28: 1455 | R28: =702-Q28 -> -753 | S28: =369-SUM(Q28:R28) -> -333 | T28: =-1007-SUM(Q28:S28) -> -1376 | U28: -1007 | V28: -591 | W28: =+-951-V28 -> -360 | X28: =+-718-SUM(V28:W28) -> 233 | Y28: =-633-SUM(V28:X28) -> 85 | Z28: -633 | AA28: 164 | AB28: =585-AA28 -> 421 | AC28: =487-SUM(AA28:AB28) -> -98 | AD28: =450-SUM(AA28:AC28) -> -37 | AE28: 450 | AF28: -94 | AG28: =196-AF28 -> 290 | AH28: =125-SUM(AF28:AG28) -> -71 | AI28: =-392-SUM(AF28:AH28) -> -517 | AJ28: -392 | AK28: -17 | AL28: =134-AK28 -> 151 | AM28: =-124-SUM(AK28:AL28) -> -258 | AN28: =358-SUM(AK28:AM28) -> 482 | AO28: 358 | AP28: -93 | AQ28: =-449-AP28 -> -356 | AR28: =-1282-SUM(AP28:AQ28) -> -833 | AS28: =-1522-SUM(AP28:AR28) -> -240 | AT28: -1522
A29: (Aumento) Redução em Tributos Correntes a Recuperar | B29: 1857 | C29: =3087-B29 -> 1230 | D29: =7373-SUM(B29:C29) -> 4286 | E29: =-7236-SUM(B29:D29) -> -14609 | F29: -7236 | G29: -1367 | H29: =+-1730-G29 -> -363 | I29: =14796-SUM(G29:H29) -> 16526 | J29: =-1704-SUM(G29:I29) -> -16500 | K29: -1704 | L29: -1072 | M29: =11523-L29 -> 12595 | N29: =15271-SUM(L29:M29) -> 3748 | O29: =1778-SUM(L29:N29) -> -13493 | P29: 1778 | Q29: -2166 | R29: =+-6475-Q29 -> -4309 | S29: =+-3867-SUM(Q29:R29) -> 2608 | T29: =263-SUM(Q29:S29) -> 4130 | U29: 263 | V29: 6372 | W29: =2578-V29 -> -3794 | X29: =8931-SUM(V29:W29) -> 6353 | Y29: =9578-SUM(V29:X29) -> 647 | Z29: 9578 | AA29: 539 | AB29: =2488-AA29 -> 1949 | AC29: =+-9190-SUM(AA29:AB29) -> -11678 | AD29: =-1264-SUM(AA29:AC29) -> 7926 | AE29: -1264 | AF29: 3184 | AG29: =2277-AF29 -> -907 | AH29: =5605-SUM(AF29:AG29) -> 3328 | AI29: =-4463-SUM(AF29:AH29) -> -10068 | AJ29: -4463 | AK29: 484 | AL29: =4452-AK29 -> 3968 | AM29: =10343-SUM(AK29:AL29) -> 5891 | AN29: =4819-SUM(AK29:AM29) -> -5524 | AO29: 4819 | AP29: -1047 | AQ29: =-1767-AP29 -> -720 | AR29: =-2469-SUM(AP29:AQ29) -> -702 | AS29: =2888-SUM(AP29:AR29) -> 5357 | AT29: 2888
A30: (Aumento) Redução em Despesas Antecipadas | B30: -4480 | C30: =+-3195-B30 -> 1285 | D30: =+-1583-SUM(B30:C30) -> 1612 | E30: =-144-SUM(B30:D30) -> 1439 | F30: -144 | G30: -4813 | H30: =+-3267-G30 -> 1546 | I30: =+-1553-SUM(G30:H30) -> 1714 | J30: =-65-SUM(G30:I30) -> 1488 | K30: -65 | L30: -5913 | M30: =+-3751-L30 -> 2162 | N30: =+-1833-SUM(L30:M30) -> 1918 | O30: =-145-SUM(L30:N30) -> 1688 | P30: -145 | Q30: -6973 | R30: =+-4666-Q30 -> 2307 | S30: =+-2386-SUM(Q30:R30) -> 2280 | T30: =+-271-SUM(Q30:S30) -> 2115 | U30: -271 | V30: -5497 | W30: =+-3351-V30 -> 2146 | X30: =+-1529-SUM(V30:W30) -> 1822 | Y30: =0-SUM(V30:X30) -> 1529 | Z30: 0 | AA30: 0 | AB30: 0 | AC30: 0 | AD30: 0 | AE30: 0 | AF30: 0 | AG30: 0 | AH30: 0 | AI30: 0 | AJ30: 0 | AK30: 0 | AL30: 0 | AM30: 0 | AN30: 0 | AO30: 0 | AP30: 0 | AQ30: 0 | AR30: 0 | AS30: 0 | AT30: 0
A31: (Aumento) Redução Depósitos Judiciais | B31: -4724 | C31: =+-10947-B31 -> -6223 | D31: =+-15073-SUM(B31:C31) -> -4126 | E31: =-19049-SUM(B31:D31) -> -3976 | F31: -19049 | G31: 1217 | H31: =+-19410-G31 -> -20627 | I31: =+-29023-SUM(G31:H31) -> -9613 | J31: =-45161-SUM(G31:I31) -> -16138 | K31: -45161 | L31: -8067 | M31: =+-12046-L31 -> -3979 | N31: =+-6361-SUM(L31:M31) -> 5685 | O31: =-10469-SUM(L31:N31) -> -4108 | P31: -10469 | Q31: -5309 | R31: =+-11392-Q31 -> -6083 | S31: =+-15578-SUM(Q31:R31) -> -4186 | T31: =-20366-SUM(Q31:S31) -> -4788 | U31: -20366 | V31: -3680 | W31: =+-8263-V31 -> -4583 | X31: =+-11691-SUM(V31:W31) -> -3428 | Y31: =-12402-SUM(V31:X31) -> -711 | Z31: -12402 | AA31: -1979 | AB31: =+-4823-AA31 -> -2844 | AC31: =+-6853-SUM(AA31:AB31) -> -2030 | AD31: =-9498-SUM(AA31:AC31) -> -2645 | AE31: -9498 | AF31: -3265 | AG31: =+-6300-AF31 -> -3035 | AH31: =-11412-SUM(AF31:AG31) -> -5112 | AI31: =-15561-SUM(AF31:AH31) -> -4149 | AJ31: -15561 | AK31: -4229 | AL31: =-9213-AK31 -> -4984 | AM31: =-12957-SUM(AK31:AL31) -> -3744 | AN31: =-18032-SUM(AK31:AM31) -> -5075 | AO31: -18032 | AP31: -4641 | AQ31: =-8097-AP31 -> -3456 | AR31: =-12067-SUM(AP31:AQ31) -> -3970 | AS31: =-19883-SUM(AP31:AR31) -> -7816 | AT31: -19883
A32: (Aumento) Redução em Outros Ativos | B32: -709 | C32: =+-7604-B32 -> -6895 | D32: =+-5165-SUM(B32:C32) -> 2439 | E32: =-2890-SUM(B32:D32) -> 2275 | F32: -2890 | G32: -457 | H32: =+-6551-G32 -> -6094 | I32: =+-7357-SUM(G32:H32) -> -806 | J32: =-3647-SUM(G32:I32) -> 3710 | K32: -3647 | L32: -1170 | M32: =+-8634-L32 -> -7464 | N32: =+-8649-SUM(L32:M32) -> -15 | O32: =-6579-SUM(L32:N32) -> 2070 | P32: -6579 | Q32: -2170 | R32: =+-7070-Q32 -> -4900 | S32: =+-6362-SUM(Q32:R32) -> 708 | T32: =-2425-SUM(Q32:S32) -> 3937 | U32: -2425 | V32: -1050 | W32: =+-7022-V32 -> -5972 | X32: =+-6009-SUM(V32:W32) -> 1013 | Y32: =-1402-SUM(V32:X32) -> 4607 | Z32: -1402 | AA32: 2186 | AB32: =+-379-AA32 -> -2565 | AC32: =2649-SUM(AA32:AB32) -> 3028 | AD32: =7688-SUM(AA32:AC32) -> 5039 | AE32: 7688 | AF32: -3649 | AG32: =+-6852-AF32 -> -3203 | AH32: =-5451-SUM(AF32:AG32) -> 1401 | AI32: =-1357-SUM(AF32:AH32) -> 4094 | AJ32: -1357 | AK32: -4544 | AL32: =-8396-AK32 -> -3852 | AM32: =-9451-SUM(AK32:AL32) -> -1055 | AN32: =-19191-SUM(AK32:AM32) -> -9740 | AO32: -19191 | AP32: -390 | AQ32: =-1591-AP32 -> -1201 | AR32: =3442-SUM(AP32:AQ32) -> 5033 | AS32: =9545-SUM(AP32:AR32) -> 6103 | AT32: 9545
A33: (Aumento) Redução em Mútuo a Receber | B33: 0 | C33: 0 | D33: -2689 | E33: =0-SUM(B33:D33) -> 2689 | F33: 0 | G33: 0 | H33: =0-G33 -> 0 | I33: 0 | J33: 0 | K33: 0 | L33: 0 | M33: 0 | N33: 0 | O33: 0 | P33: 0 | Q33: 0 | R33: 0 | S33: 0 | T33: 0 | U33: 0 | V33: 0 | W33: 0 | X33: 0 | Y33: 0 | Z33: 0 | AA33: 0 | AB33: 0 | AC33: 0 | AD33: 0 | AE33: 0 | AF33: 0 | AG33: 0 | AH33: 0 | AI33: 0 | AJ33: 0 | AK33: 0 | AL33: 0 | AM33: 0 | AN33: 0 | AO33: 0 | AP33: 0 | AQ33: 0 | AR33: 0 | AS33: 0 | AT33: 0
A34: Aumento (Redução) em Fornecedores | B34: 3783 | C34: =+-6868-B34 -> -10651 | D34: =+-8460-SUM(B34:C34) -> -1592 | E34: =1701-SUM(B34:D34) -> 10161 | F34: 1701 | G34: 7021 | H34: =19198-G34 -> 12177 | I34: =26556-SUM(G34:H34) -> 7358 | J34: =45449-SUM(G34:I34) -> 18893 | K34: 45449 | L34: -4072 | M34: =+-18078-L34 -> -14006 | N34: =+-35185-SUM(L34:M34) -> -17107 | O34: =-36437-SUM(L34:N34) -> -1252 | P34: -36437 | Q34: 15609 | R34: =1670-Q34 -> -13939 | S34: =-393-SUM(Q34:R34) -> -2063 | T34: =8734-SUM(Q34:S34) -> 9127 | U34: 8734 | V34: 8823 | W34: =+-971-V34 -> -9794 | X34: =+-564-SUM(V34:W34) -> 407 | Y34: =13629-SUM(V34:X34) -> 14193 | Z34: 13629 | AA34: -2790 | AB34: =+-3267-AA34 -> -477 | AC34: =-778-SUM(AA34:AB34) -> 2489 | AD34: =5414-SUM(AA34:AC34) -> 6192 | AE34: 5414 | AF34: 1892 | AG34: =1008-AF34 -> -884 | AH34: =2370-SUM(AF34:AG34) -> 1362 | AI34: =-5138-SUM(AF34:AH34) -> -7508 | AJ34: -5138 | AK34: 1611 | AL34: =10765-AK34 -> 9154 | AM34: =11374-SUM(AK34:AL34) -> 609 | AN34: =6385-SUM(AK34:AM34) -> -4989 | AO34: 6385 | AP34: -2506 | AQ34: =740-AP34 -> 3246 | AR34: =17141-SUM(AP34:AQ34) -> 16401 | AS34: =6988-SUM(AP34:AR34) -> -10153 | AT34: 6988
A35: Aumento (Redução) em Salários e Obrigações Sociais | B35: -13642 | C35: =+-5874-B35 -> 7768 | D35: =2228-SUM(B35:C35) -> 8102 | E35: =-335-SUM(B35:D35) -> -2563 | F35: -335 | G35: -7214 | H35: =1104-G35 -> 8318 | I35: =9304-SUM(G35:H35) -> 8200 | J35: =5204-SUM(G35:I35) -> -4100 | K35: 5204 | L35: -13404 | M35: =+-8541-L35 -> 4863 | N35: =+-5446-SUM(L35:M35) -> 3095 | O35: =-18130-SUM(L35:N35) -> -12684 | P35: -18130 | Q35: 2519 | R35: =7560-Q35 -> 5041 | S35: =13254-SUM(Q35:R35) -> 5694 | T35: =4904-SUM(Q35:S35) -> -8350 | U35: 4904 | V35: -2966 | W35: =1443-V35 -> 4409 | X35: =7579-SUM(V35:W35) -> 6136 | Y35: =-3674-SUM(V35:X35) -> -11253 | Z35: -3674 | AA35: 205 | AB35: =7395-AA35 -> 7190 | AC35: =8640-SUM(AA35:AB35) -> 1245 | AD35: =-239-SUM(AA35:AC35) -> -8879 | AE35: -239 | AF35: -4951 | AG35: =2839-AF35 -> 7790 | AH35: =9118-SUM(AF35:AG35) -> 6279 | AI35: =-886-SUM(AF35:AH35) -> -10004 | AJ35: -886 | AK35: 4094 | AL35: =13961-AK35 -> 9867 | AM35: =11791-SUM(AK35:AL35) -> -2170 | AN35: =1275-SUM(AK35:AM35) -> -10516 | AO35: 1275 | AP35: 5807 | AQ35: =17268-AP35 -> 11461 | AR35: =21457-SUM(AP35:AQ35) -> 4189 | AS35: =8690-SUM(AP35:AR35) -> -12767 | AT35: 8690
A36: Aumento (Redução) em Impostos, Taxas e Contribuições | B36: -11524 | C36: =+-13420-B36 -> -1896 | D36: =+-10303-SUM(B36:C36) -> 3117 | E36: =-1523-SUM(B36:D36) -> 8780 | F36: -1523 | G36: -12522 | H36: =+-15808-G36 -> -3286 | I36: =+-15507-SUM(G36:H36) -> 301 | J36: =-6005-SUM(G36:I36) -> 9502 | K36: -6005 | L36: -8867 | M36: =+-11780-L36 -> -2913 | N36: =+-10578-SUM(L36:M36) -> 1202 | O36: =-1813-SUM(L36:N36) -> 8765 | P36: -1813 | Q36: -4423 | R36: =+-1377-Q36 -> 3046 | S36: =+-1189-SUM(Q36:R36) -> 188 | T36: =-1071-SUM(Q36:S36) -> 118 | U36: -1071 | V36: 130 | W36: =+-1912-V36 -> -2042 | X36: =+-1041-SUM(V36:W36) -> 871 | Y36: =-316-SUM(V36:X36) -> 725 | Z36: -316 | AA36: 1308 | AB36: =+-1115-AA36 -> -2423 | AC36: =+-833-SUM(AA36:AB36) -> 282 | AD36: =186-SUM(AA36:AC36) -> 1019 | AE36: 186 | AF36: 518 | AG36: =3873-AF36 -> 3355 | AH36: =2392-SUM(AF36:AG36) -> -1481 | AI36: =968-SUM(AF36:AH36) -> -1424 | AJ36: 968 | AK36: -198 | AL36: =941-AK36 -> 1139 | AM36: =2064-SUM(AK36:AL36) -> 1123 | AN36: =2166-SUM(AK36:AM36) -> 102 | AO36: 2166 | AP36: 274 | AQ36: =9594-AP36 -> 9320 | AR36: =5019-SUM(AP36:AQ36) -> -4575 | AS36: =2682-SUM(AP36:AR36) -> -2337 | AT36: 2682
A37: Aumento (Redução) em Contas a Pagar | B37: 10 | C37: =20-B37 -> 10 | D37: =1586-SUM(B37:C37) -> 1566 | E37: =1656-SUM(B37:D37) -> 70 | F37: 1656 | G37: 85 | H37: =145-G37 -> 60 | I37: =157-SUM(G37:H37) -> 12 | J37: =215-SUM(G37:I37) -> 58 | K37: 215 | L37: 81 | M37: =172-L37 -> 91 | N37: =196-SUM(L37:M37) -> 24 | O37: =256-SUM(L37:N37) -> 60 | P37: 256 | Q37: 142 | R37: =286-Q37 -> 144 | S37: =360-SUM(Q37:R37) -> 74 | T37: =473-SUM(Q37:S37) -> 113 | U37: 473 | V37: 162 | W37: =265-V37 -> 103 | X37: =337-SUM(V37:W37) -> 72 | Y37: =353-SUM(V37:X37) -> 16 | Z37: 353 | AA37: 42 | AB37: =81-AA37 -> 39 | AC37: =73-SUM(AA37:AB37) -> -8 | AD37: =101-SUM(AA37:AC37) -> 28 | AE37: 101 | AF37: 34 | AG37: =72-AF37 -> 38 | AH37: =162-SUM(AF37:AG37) -> 90 | AI37: =186-SUM(AF37:AH37) -> 24 | AJ37: 186 | AK37: 56 | AL37: =141-AK37 -> 85 | AM37: =154-SUM(AK37:AL37) -> 13 | AN37: =184-SUM(AK37:AM37) -> 30 | AO37: 184 | AP37: 88 | AQ37: =70-AP37 -> -18 | AR37: =133-SUM(AP37:AQ37) -> 63 | AS37: =289-SUM(AP37:AR37) -> 156 | AT37: 289
A38: Aumento (Redução) em impostos sobre Faturamento TRA | B38: 0 | C38: 0 | D38: 0 | E38: 0 | F38: 0 | G38: 0 | H38: 0 | I38: 0 | J38: 0 | K38: 0 | L38: 0 | M38: 0 | N38: 0 | O38: 0 | P38: 0 | Q38: 0 | R38: 0 | S38: 0 | T38: 0 | U38: 0 | V38: 0 | W38: 0 | X38: 0 | Y38: =6151-SUM(V38:X38) -> 6151 | Z38: 6151 | AA38: 1640 | AB38: =3120-AA38 -> 1480 | AC38: =4433-SUM(AA38:AB38) -> 1313 | AD38: =5558-SUM(AA38:AC38) -> 1125 | AE38: 5558 | AF38: 1050 | AG38: =2166-AF38 -> 1116 | AH38: =3519-SUM(AF38:AG38) -> 1353 | AI38: =4707-SUM(AF38:AH38) -> 1188 | AJ38: 4707 | AK38: 1395 | AL38: =3007-AK38 -> 1612 | AM38: =4714-SUM(AK38:AL38) -> 1707 | AN38: =6231-SUM(AK38:AM38) -> 1517 | AO38: 6231 | AP38: 1293 | AQ38: =2390-AP38 -> 1097 | AR38: =3238-SUM(AP38:AQ38) -> 848 | AS38: =4264-SUM(AP38:AR38) -> 1026 | AT38: 4264
A39: Aumento (Redução) em Outros Passivos | B39: -839 | C39: =-1242-B39 -> -403 | D39: =+-1244-SUM(B39:C39) -> -2 | E39: =-1241-SUM(B39:D39) -> 3 | F39: -1241 | G39: -1 | H39: =+-3-G39 -> -2 | I39: =376-SUM(G39:H39) -> 379 | J39: =18680-SUM(G39:I39) -> 18304 | K39: 18680 | L39: 787 | M39: =+-6416-L39 -> -7203 | N39: =+-5647-SUM(L39:M39) -> 769 | O39: =-5516-SUM(L39:N39) -> 131 | P39: -5516 | Q39: 14102 | R39: =15361-Q39 -> 1259 | S39: =16746-SUM(Q39:R39) -> 1385 | T39: =18116-SUM(Q39:S39) -> 1370 | U39: 18116 | V39: 1329 | W39: =2827-V39 -> 1498 | X39: =4525-SUM(V39:W39) -> 1698 | Y39: =0-SUM(V39:X39) -> -4525 | Z39: 0 | AA39: 0 | AB39: =+-373-AA39 -> -373 | AC39: =+-372-SUM(AA39:AB39) -> 1 | AD39: =-373-SUM(AA39:AC39) -> -1 | AE39: -373 | AF39: 0 | AG39: 0 | AH39: 0 | AI39: 0 | AJ39: 0 | AK39: 0 | AL39: =2-AK39 -> 2 | AM39: =4-SUM(AK39:AL39) -> 2 | AN39: =1-SUM(AK39:AM39) -> -3 | AO39: 1 | AP39: -1 | AQ39: =-1-AP39 -> 0 | AR39: =1-SUM(AP39:AQ39) -> 2 | AS39: =1-SUM(AP39:AR39) -> 0 | AT39: 1
A40: Outros | B40: =SUM(B41:B43) -> -11491 | C40: -19938 | D40: -32921 | E40: -18254 | F40: -82604 | G40: -21012 | H40: -30550 | I40: -31323 | J40: -17492 | K40: -100377 | L40: -17119 | M40: -17928 | N40: =SUM(N41:N43) -> -8420 | O40: 3615 | P40: -39852 | Q40: -8321 | R40: -4612 | S40: -4923 | T40: -5966 | U40: -23822 | V40: -7057 | W40: -3894 | X40: -7815 | Y40: -8420 | Z40: -27186 | AA40: -19821 | AB40: -16489 | AC40: -28587 | AD40: -18739 | AE40: -83636 | AF40: -18348 | AG40: -30692 | AH40: -34570 | AI40: =SUM(AI41:AI43) -> -25919 | AJ40: -109529 | AK40: -21451 | AL40: -55845 | AM40: =SUM(AM41:AM43) -> -32519 | AN40: -22552 | AO40: -132367 | AP40: =SUM(AP41:AP43) -> -20926 | AQ40: -20970 | AR40: -30049 | AS40: =SUM(AS41:AS43) -> -28439 | AT40: -100384
A41: Imposto de Renda e Contribuição Social Pagos | B41: -11491 | C41: =+-31429-B41 -> -19938 | D41: =+-64350-SUM(B41:C41) -> -32921 | E41: =-82604-SUM(B41:D41) -> -18254 | F41: =SUM(B41:E41) -> -82604 | G41: -19204 | H41: =+-49063-G41 -> -29859 | I41: =+-80386-SUM(G41:H41) -> -31323 | J41: =-97819-SUM(G41:I41) -> -17433 | K41: =SUM(G41:J41) -> -97819 | L41: -16252 | M41: =+-33954-L41 -> -17702 | N41: =+-40923-SUM(L41:M41) -> -6969 | O41: =-34956-SUM(L41:N41) -> 5967 | P41: =SUM(L41:O41) -> -34956 | Q41: -5488 | R41: =+-6465-Q41 -> -977 | S41: =+-7978-SUM(Q41:R41) -> -1513 | T41: =-8897-SUM(Q41:S41) -> -919 | U41: =SUM(Q41:T41) -> -8897 | V41: -3215 | W41: =+-2797-V41 -> 418 | X41: =+-6553-SUM(V41:W41) -> -3756 | Y41: =-9706-SUM(V41:X41) -> -3153 | Z41: =SUM(V41:Y41) -> -9706 | AA41: -4030 | AB41: =+-5549-AA41 -> -1519 | AC41: =+-8234-SUM(AA41:AB41) -> -2685 | AD41: =-10523-SUM(AA41:AC41) -> -2289 | AE41: =SUM(AA41:AD41) -> -10523 | AF41: -2618 | AG41: =+-5048-AF41 -> -2430 | AH41: =-10073-SUM(AF41:AG41) -> -5025 | AI41: =-15989-SUM(AF41:AH41) -> -5916 | AJ41: =SUM(AF41:AI41) -> -15989 | AK41: -2883 | AL41: =-6574-AK41 -> -3691 | AM41: =-11052-SUM(AK41:AL41) -> -4478 | AN41: =-14338-SUM(AK41:AM41) -> -3286 | AO41: =SUM(AK41:AN41) -> -14338 | AP41: -1219 | AQ41: =-2202-AP41 -> -983 | AR41: =-5126-SUM(AP41:AQ41) -> -2924 | AS41: =-10077-SUM(AP41:AR41) -> -4951 | AT41: =SUM(AP41:AS41) -> -10077
A42: Baixas de Contingências com Pagamento | B42: 0 | C42: 0 | D42: 0 | E42: 0 | F42: 0 | G42: -1808 | H42: =-2499-G42 -> -691 | I42: 0 | J42: =-2558-SUM(G42:I42) -> -59 | K42: -2558 | L42: -867 | M42: =+-1093-L42 -> -226 | N42: =+-2544-SUM(L42:M42) -> -1451 | O42: =-4896-SUM(L42:N42) -> -2352 | P42: -4896 | Q42: -2833 | R42: =+-6468-Q42 -> -3635 | S42: =+-9878-SUM(Q42:R42) -> -3410 | T42: =-14925-SUM(Q42:S42) -> -5047 | U42: -14925 | V42: -3842 | W42: =+-8154-V42 -> -4312 | X42: =+-12213-SUM(V42:W42) -> -4059 | Y42: =-17480-SUM(V42:X42) -> -5267 | Z42: -17480 | AA42: -2377 | AB42: =+-3678-AA42 -> -1301 | AC42: =+-7436-SUM(AA42:AB42) -> -3758 | AD42: =-10138-SUM(AA42:AC42) -> -2702 | AE42: -10138 | AF42: -1688 | AG42: =+-3771-AF42 -> -2083 | AH42: =-6992-SUM(AF42:AG42) -> -3221 | AI42: =-9027-SUM(AF42:AH42) -> -2035 | AJ42: -9027 | AK42: -3417 | AL42: =-6873-AK42 -> -3456 | AM42: =-11150-SUM(AK42:AL42) -> -4277 | AN42: =-14706-SUM(AK42:AM42) -> -3556 | AO42: -14706 | AP42: -4032 | AQ42: =-7045-AP42 -> -3013 | AR42: =-14966-SUM(AP42:AQ42) -> -7921 | AS42: =-18696-SUM(AP42:AR42) -> -3730 | AT42: -18696
A43: Pagamentos obrigações com poder concedente | B43: 0 | C43: 0 | D43: 0 | E43: 0 | F43: 0 | G43: 0 | H43: =0-G43 -> 0 | I43: 0 | J43: 0 | K43: 0 | L43: 0 | M43: 0 | N43: 0 | O43: 0 | P43: 0 | Q43: 0 | R43: 0 | S43: 0 | T43: 0 | U43: 0 | V43: 0 | W43: 0 | X43: 0 | Y43: 0 | Z43: 0 | AA43: -13414 | AB43: =+-27083-AA43 -> -13669 | AC43: =-49227-SUM(AA43:AB43) -> -22144 | AD43: =-62975-SUM(AA43:AC43) -> -13748 | AE43: -62975 | AF43: -14042 | AG43: =+-40221-AF43 -> -26179 | AH43: =-66545-SUM(AF43:AG43) -> -26324 | AI43: =-84513-SUM(AF43:AH43) -> -17968 | AJ43: -84513 | AK43: -15151 | AL43: =-63849-AK43 -> -48698 | AM43: =-87613-SUM(AK43:AL43) -> -23764 | AN43: =-103323-SUM(AK43:AM43) -> -15710 | AO43: -103323 | AP43: -15675 | AQ43: =-32649-AP43 -> -16974 | AR43: =-51853-SUM(AP43:AQ43) -> -19204 | AS43: =-71611-SUM(AP43:AR43) -> -19758 | AT43: -71611
A44: FLUXO DE CAIXA DE INVESTIMENTO | B44: =SUM(B45:B49) -> -16437 | C44: =SUM(C45:C49) -> -25335 | D44: -33780 | E44: 6748 | F44: -68804 | G44: -11918 | H44: -23132 | I44: -13766 | J44: -34192 | K44: -83008 | L44: -1556 | M44: -4708 | N44: -11371 | O44: -9857 | P44: -27492 | Q44: -2050 | R44: -5222 | S44: -6536 | T44: -12821 | U44: -26629 | V44: -554 | W44: -2846 | X44: -1249 | Y44: -8033 | Z44: -12682 | AA44: -2983 | AB44: -430 | AC44: -544 | AD44: -2271 | AE44: -6228 | AF44: -19653 | AG44: -8817 | AH44: -11302 | AI44: -30526 | AJ44: -70298 | AK44: -15218 | AL44: -319994 | AM44: 10789 | AN44: 57215 | AO44: -267208 | AP44: -4853 | AQ44: =SUM(AQ45:AQ49) -> 56487 | AR44: -483710 | AS44: =SUM(AS45:AS49) -> -49510 | AT44: -481586
A45: Aquisição de Imobilizado | B45: -16544 | C45: =+-42045-B45 -> -25501 | D45: =-74719-SUM(B45:C45) -> -32674 | E45: =-98399-SUM(B45:D45) -> -23680 | F45: =SUM(B45:E45) -> -98399 | G45: -11998 | H45: =+-37210-G45 -> -25212 | I45: =+-51901-SUM(G45:H45) -> -14691 | J45: =-86334-SUM(G45:I45) -> -34433 | K45: =SUM(G45:J45) -> -86334 | L45: -1861 | M45: =+-6554-L45 -> -4693 | N45: =+-19414-SUM(L45:M45) -> -12860 | O45: =-28929-SUM(L45:N45) -> -9515 | P45: =SUM(L45:O45) -> -28929 | Q45: -2043 | R45: =+-7245-Q45 -> -5202 | S45: =+-13862-SUM(Q45:R45) -> -6617 | T45: =-26711-SUM(Q45:S45) -> -12849 | U45: =SUM(Q45:T45) -> -26711 | V45: -609 | W45: =+-3464-V45 -> -2855 | X45: =+-5782-SUM(V45:W45) -> -2318 | Y45: =-14435-SUM(V45:X45) -> -8653 | Z45: =SUM(V45:Y45) -> -14435 | AA45: -2983 | AB45: =+-3338-AA45 -> -355 | AC45: =+-4887-SUM(AA45:AB45) -> -1549 | AD45: =-7131-SUM(AA45:AC45) -> -2244 | AE45: =SUM(AA45:AD45) -> -7131 | AF45: -20042 | AG45: =+-29040-AF45 -> -8998 | AH45: =-40424-SUM(AF45:AG45) -> -11384 | AI45: =-71616-SUM(AF45:AH45) -> -31192 | AJ45: =SUM(AF45:AI45) -> -71616 | AK45: -15742 | AL45: =-61950-AK45 -> -46208 | AM45: =-86816-SUM(AK45:AL45) -> -24866 | AN45: =-30584-SUM(AK45:AM45) -> 56232 | AO45: =SUM(AK45:AN45) -> -30584 | AP45: -4268 | AQ45: =-109844-AP45 -> -105576 | AR45: =-19693-SUM(AP45:AQ45) -> 90151 | AS45: =-26589-SUM(AP45:AR45) -> -6896 | AT45: =SUM(AP45:AS45) -> -26589
A46: Alienação de Imobilizado | B46: 3 | C46: =691+B46 -> 694 | D46: =749-SUM(B46:C46) -> 52 | E46: =1264-SUM(B46:D46) -> 515 | F46: 1264 | G46: 29 | H46: =2103-G46 -> 2074 | I46: =2871-SUM(G46:H46) -> 768 | J46: =3494-SUM(G46:I46) -> 623 | K46: 3494 | L46: 748 | M46: =774-L46 -> 26 | N46: =2247-SUM(L46:M46) -> 1473 | O46: =2343-SUM(L46:N46) -> 96 | P46: 2343 | Q46: 0 | R46: 0 | S46: =17-SUM(Q46:R46) -> 17 | T46: =36-SUM(Q46:S46) -> 19 | U46: 36 | V46: 0 | W46: 0 | X46: =1068-SUM(V46:W46) -> 1068 | Y46: =1688-SUM(V46:X46) -> 620 | Z46: 1688 | AA46: 0 | AB46: 0 | AC46: =1043-SUM(AA46:AB46) -> 1043 | AD46: =1086-SUM(AA46:AC46) -> 43 | AE46: 1086 | AF46: 305 | AG46: =305-AF46 -> 0 | AH46: 0 | AI46: =588-SUM(AF46:AH46) -> 283 | AJ46: 588 | AK46: 0 | AL46: =275-AK46 -> 275 | AM46: =301-SUM(AK46:AL46) -> 26 | AN46: =350-SUM(AK46:AM46) -> 49 | AO46: 350 | AP46: 594 | AQ46: =1366-AP46 -> 772 | AR46: =3845-SUM(AP46:AQ46) -> 2479 | AS46: =4065-SUM(AP46:AR46) -> 220 | AT46: 4065
A47: Aumento do Ativo Intangível | B47: -308 | C47: =+-490-B47 -> -182 | D47: =+-1058-SUM(B47:C47) -> -568 | E47: =-1140-SUM(B47:D47) -> -82 | F47: -1140 | G47: 0 | H47: =+-111-G47 -> -111 | I47: =+-117-SUM(G47:H47) -> -6 | J47: =-694-SUM(G47:I47) -> -577 | K47: -694 | L47: -470 | M47: =+-533-L47 -> -63 | N47: =+-537-SUM(L47:M47) -> -4 | O47: =-975-SUM(L47:N47) -> -438 | P47: -975 | Q47: -7 | R47: =+-35-Q47 -> -28 | S47: =+-41-SUM(Q47:R47) -> -6 | T47: =-105-SUM(Q47:S47) -> -64 | U47: -105 | V47: 0 | W47: 0 | X47: =+-6-SUM(V47:W47) -> -6 | Y47: =-7-SUM(V47:X47) -> -1 | Z47: -7 | AA47: 0 | AB47: =+-75-AA47 -> -75 | AC47: =+-113-SUM(AA47:AB47) -> -38 | AD47: =-183-SUM(AA47:AC47) -> -70 | AE47: -183 | AF47: 0 | AG47: =+-17-AF47 -> -17 | AH47: =-147-SUM(AF47:AG47) -> -130 | AI47: =-143-SUM(AF47:AH47) -> 4 | AJ47: -143 | AK47: 0 | AL47: =0-AK47 -> 0 | AM47: 0 | AN47: -89163 | AO47: -89163 | AP47: -58741 | AQ47: =0-AP47 -> 58741 | AR47: =-152908-SUM(AP47:AQ47) -> -152908 | AS47: =-197288-SUM(AP47:AR47) -> -44380 | AT47: -197288
A48: Juros sobre Empréstimos Capitalizados | B48: 1143 | C48: =1434-B48 -> 291 | D48: =1441-SUM(B48:C48) -> 7 | E48: =1448-SUM(B48:D48) -> 7 | F48: 1448 | G48: 51 | H48: =168-G48 -> 117 | I48: =331-SUM(G48:H48) -> 163 | J48: =526-SUM(G48:I48) -> 195 | K48: 526 | L48: 27 | M48: =49-L48 -> 22 | N48: =69-SUM(L48:M48) -> 20 | O48: =69-SUM(L48:N48) -> 0 | P48: 69 | Q48: 0 | R48: =8-Q48 -> 8 | S48: =78-SUM(Q48:R48) -> 70 | T48: =151-SUM(Q48:S48) -> 73 | U48: 151 | V48: 55 | W48: =64-V48 -> 9 | X48: =71-SUM(V48:W48) -> 7 | Y48: =72-SUM(V48:X48) -> 1 | Z48: 72 | AA48: 0 | AB48: 0 | AC48: =0-SUM(AA48:AB48) -> 0 | AD48: 0 | AE48: 0 | AF48: 84 | AG48: =282-AF48 -> 198 | AH48: =494-SUM(AF48:AG48) -> 212 | AI48: =873-SUM(AF48:AH48) -> 379 | AJ48: 873 | AK48: 524 | AL48: =1463-AK48 -> 939 | AM48: =2431-SUM(AK48:AL48) -> 968 | AN48: =3243-SUM(AK48:AM48) -> 812 | AO48: 3243 | AP48: 1083 | AQ48: =2092-AP48 -> 1009 | AR48: =3322-SUM(AP48:AQ48) -> 1230 | AS48: =4665-SUM(AP48:AR48) -> 1343 | AT48: 4665
A49: Aplicações Financeiras | B49: -731 | C49: =+-1368-B49 -> -637 | D49: =+-1965-SUM(B49:C49) -> -597 | E49: =28023-SUM(B49:D49) -> 29988 | F49: 28023 | G49: 0 | H49: =0-G49 -> 0 | I49: 0 | J49: 0 | K49: 0 | L49: 0 | M49: 0 | N49: 0 | O49: 0 | P49: 0 | Q49: 0 | R49: 0 | S49: 0 | T49: 0 | U49: 0 | V49: 0 | W49: 0 | X49: 0 | Y49: 0 | Z49: 0 | AA49: 0 | AB49: 0 | AC49: 0 | AD49: 0 | AE49: 0 | AF49: 0 | AG49: 0 | AH49: 0 | AI49: 0 | AJ49: 0 | AK49: 0 | AL49: =-275000-AK49 -> -275000 | AM49: =-240339-SUM(AK49:AL49) -> 34661 | AN49: =-151054-SUM(AK49:AM49) -> 89285 | AO49: -151054 | AP49: 56479 | AQ49: =158020-AP49 -> 101541 | AR49: =-266642-SUM(AP49:AQ49) -> -424662 | AS49: =-266439-SUM(AP49:AR49) -> 203 | AT49: -266439
A50: FLUXO DE CAIXA DE FINANCIAMENTO | B50: =SUM(B51:B60) -> -198217 | C50: -135114 | D50: -32204 | E50: -144213 | F50: -509748 | G50: -3251 | H50: -164704 | I50: -15676 | J50: -157631 | K50: -341262 | L50: -32607 | M50: -59537 | N50: -11485 | O50: -38174 | P50: -141803 | Q50: -40953 | R50: -72324 | S50: 13912 | T50: -33857 | U50: -133222 | V50: -47181 | W50: -41993 | X50: -44141 | Y50: -9299 | Z50: -142614 | AA50: -72040 | AB50: 103913 | AC50: -47753 | AD50: -7307 | AE50: -23187 | AF50: -13437 | AG50: -10819 | AH50: -14074 | AI50: 16334 | AJ50: -21996 | AK50: -11021 | AL50: 251373 | AM50: -26301 | AN50: -33032 | AO50: 181019 | AP50: =SUM(AP51:AP60) -> -13643 | AQ50: =SUM(AQ51:AQ60) -> -19303 | AR50: =SUM(AR51:AR62) -> 754615 | AS50: =SUM(AS51:AS62) -> -8889 | AT50: =SUM(AT51:AT62) -> 712780
A51: Empréstimos Captados | B51: 987 | C51: =17752-B51 -> 16765 | D51: =22729-SUM(B51:C51) -> 4977 | E51: =176244-SUM(B51:D51) -> 153515 | F51: =SUM(B51:E51) -> 176244 | G51: 12916 | H51: =24006-G51 -> 11090 | I51: =31163-SUM(G51:H51) -> 7157 | J51: =35588-SUM(G51:I51) -> 4425 | K51: =SUM(G51:J51) -> 35588 | L51: 1279 | M51: =101105-L51 -> 99826 | N51: =108908-SUM(L51:M51) -> 7803 | O51: =109223-SUM(L51:N51) -> 315 | P51: =SUM(L51:O51) -> 109223 | Q51: 238 | R51: =1824-Q51 -> 1586 | S51: =121614-SUM(Q51:R51) -> 119790 | T51: =121616-SUM(Q51:S51) -> 2 | U51: =SUM(Q51:T51) -> 121616 | V51: 1733 | W51: =1734-V51 -> 1 | X51: =1734-SUM(V51:W51) -> 0 | Y51: =1734-SUM(V51:X51) -> 0 | Z51: =SUM(V51:Y51) -> 1734 | AA51: 0 | AB51: 159500 | AC51: =159455-AB51-AA51 -> -45 | AD51: =159486-SUM(AA51:AC51) -> 31 | AE51: =SUM(AA51:AD51) -> 159486 | AF51: 17649 | AG51: =20359-AF51 -> 2710 | AH51: =41178-SUM(AF51:AG51) -> 20819 | AI51: =91178-SUM(AF51:AH51) -> 50000 | AJ51: =SUM(AF51:AI51) -> 91178 | AK51: 0 | AL51: =294851-AK51 -> 294851 | AM51: =294772-SUM(AK51:AL51) -> -79 | AN51: =352766-SUM(AK51:AM51) -> 57994 | AO51: =SUM(AK51:AN51) -> 352766 | AP51: -244 | AQ51: =-317-AP51 -> -73 | AR51: =-317-SUM(AP51:AQ51) -> 0 | AS51: =-317-SUM(AP51:AR51) -> 0 | AT51: =SUM(AP51:AS51) -> -317
A52: Pagamentos de Debêntures, Empréstimos e Financiamentos | B52: -182369 | C52: =+-240430-B52 -> -58061 | D52: =+-273451-SUM(B52:C52) -> -33021 | E52: =-440988-SUM(B52:D52) -> -167537 | F52: -440988 | G52: -19496 | H52: =+-93500-G52 -> -74004 | I52: =+-115342-SUM(G52:H52) -> -21842 | J52: =-169369-SUM(G52:I52) -> -54027 | K52: -169369 | L52: -16633 | M52: =+-72045-L52 -> -55412 | N52: =+-83067-SUM(L52:M52) -> -11022 | O52: =-91319-SUM(L52:N52) -> -8252 | P52: -91319 | Q52: -30029 | R52: =+-44423-Q52 -> -14394 | S52: =+-141818-SUM(Q52:R52) -> -97395 | T52: =-175056-SUM(Q52:S52) -> -33238 | U52: -175056 | V52: -32643 | W52: =+-67434-V52 -> -34791 | X52: =+-99287-SUM(V52:W52) -> -31853 | Y52: =-107606-SUM(V52:X52) -> -8319 | Z52: -107606 | AA52: -58106 | AB52: =+-101466-AA52 -> -43360 | AC52: =+-144025-SUM(AA52:AB52) -> -42559 | AD52: =-145804-SUM(AA52:AC52) -> -1779 | AE52: -145804 | AF52: -32481 | AG52: =+-33979-AF52 -> -1498 | AH52: =-67295-SUM(AF52:AG52) -> -33316 | AI52: =-99137-SUM(AF52:AH52) -> -31842 | AJ52: -99137 | AK52: -12079 | AL52: =-42580-AK52 -> -30501 | AM52: =-64529-SUM(AK52:AL52) -> -21949 | AN52: =-147006-SUM(AK52:AM52) -> -82477 | AO52: -147006 | AP52: -2117 | AQ52: =-4815-AP52 -> -2698 | AR52: =-7533-SUM(AP52:AQ52) -> -2718 | AS52: =-10281-SUM(AP52:AR52) -> -2748 | AT52: -10281
A53: Dividendos e Juros sobre o Capital Próprio Pagos | B53: -17 | C53: =+-88088-B53 -> -88071 | D53: =+-88093-SUM(B53:C53) -> -5 | E53: =-197493-SUM(B53:D53) -> -109400 | F53: -197493 | G53: 0 | H53: =+-95930-G53 -> -95930 | I53: =+-95930-SUM(G53:H53) -> 0 | J53: =-194397-SUM(G53:I53) -> -98467 | K53: -194397 | L53: 0 | M53: =+-95351-L53 -> -95351 | N53: =+-95351-SUM(L53:M53) -> 0 | O53: =-118829-SUM(L53:N53) -> -23478 | P53: -118829 | Q53: 0 | R53: =+-54577-Q53 -> -54577 | S53: =+-54577-SUM(Q53:R53) -> 0 | T53: =-54577-SUM(Q53:S53) -> 0 | U53: -54577 | V53: -545 | W53: =+-4258-V53 -> -3713 | X53: =+-4258-SUM(V53:W53) -> 0 | Y53: =-4258-SUM(V53:X53) -> 0 | Z53: -4258 | AA53: 0 | AB53: 0 | AC53: =0-SUM(AA53:AB53) -> 0 | AD53: 0 | AE53: 0 | AF53: -102 | AG53: =+-2066-AF53 -> -1964 | AH53: =-2066-SUM(AF53:AG53) -> 0 | AI53: 0 | AJ53: -2066 | AK53: 0 | AL53: =-2830-AK53 -> -2830 | AM53: =-2830-SUM(AK53:AL53) -> 0 | AN53: =-2830-SUM(AL53:AM53) -> 0 | AO53: -2830 | AP53: 0 | AQ53: =-11680-AP53 -> -11680 | AR53: 0 | AS53: =-11680-SUM(AP53:AR53) -> 0 | AT53: -11680
A54: Recebimento de opções de compra de ações exercidas | B54: 6771 | C54: 1749 | D54: 163 | E54: 0 | F54: 8683 | G54: 6138 | H54: 2363 | I54: 0 | J54: 0 | K54: 8501 | L54: 0 | M54: 0 | N54: 0 | O54: 0 | P54: 0 | Q54: 0 | R54: 0 | S54: 0 | T54: 0 | U54: 0 | V54: 0 | W54: 0 | X54: 0 | Y54: 0 | Z54: 0 | AA54: 0 | AB54: 0 | AC54: =2271-SUM(AA54:AB54) -> 2271 | AD54: =2271-SUM(AA54:AC54) -> 0 | AE54: 2271 | AF54: 4844 | AG54: 192 | AH54: -35 | AI54: =6098-SUM(AF54:AH54) -> 1097 | AJ54: 6098 | AK54: 4026 | AL54: =4541-AK54 -> 515 | AM54: =11317-SUM(AK54:AL54) -> 6776 | AN54: =13068-SUM(AK54:AM54) -> 1751 | AO54: 13068 | AP54: 131 | AQ54: =977-AP54 -> 846 | AR54: =1538-SUM(AP54:AQ54) -> 561 | AS54: =1061-SUM(AP54:AR54) -> -477 | AT54: 1061
A55: Recebimento / (Pagamento) em Operações com Swap | B55: 1859 | C55: =4150-B55 -> 2291 | D55: =5868-SUM(B55:C55) -> 1718 | E55: =7145-SUM(B55:D55) -> 1277 | F55: =SUM(B55:E55) -> 7145 | G55: -364 | H55: =+-374-G55 -> -10 | I55: =1270-SUM(G55:H55) -> 1644 | J55: =2120-SUM(G55:I55) -> 850 | K55: 2120 | L55: 1790 | M55: =2111-L55 -> 321 | N55: =1742-SUM(L55:M55) -> -369 | O55: =2147-SUM(L55:N55) -> 405 | P55: 2147 | Q55: 1151 | R55: =2449-Q55 -> 1298 | S55: =4255-SUM(Q55:R55) -> 1806 | T55: =6418-SUM(Q55:S55) -> 2163 | U55: 6418 | V55: 2153 | W55: =2578-V55 -> 425 | X55: =968-SUM(V55:W55) -> -1610 | Y55: =675-SUM(V55:X55) -> -293 | Z55: 675 | AA55: -2254 | AB55: =+-2539-AA55 -> -285 | AC55: =+-3861-SUM(AA55:AB55) -> -1322 | AD55: =-4004-SUM(AA55:AC55) -> -143 | AE55: -4004 | AF55: -278 | AG55: =+-259-AF55 -> 19 | AH55: =0-SUM(AF55:AG55) -> 259 | AI55: =148-SUM(AF55:AH55) -> 148 | AJ55: 148 | AK55: 0 | AL55: 0 | AM55: 0 | AN55: 1581 | AO55: 1581 | AP55: 0 | AQ55: =0-AP55 -> 0 | AR55: 0 | AS55: 0 | AT55: 0
A56: Juros Pagos por Debêntures, Empréstimos e Financiamentos | B56: -25448 | C56: =+-35235-B56 -> -9787 | D56: =+-41271-SUM(B56:C56) -> -6036 | E56: =-63339-SUM(B56:D56) -> -22068 | F56: -63339 | G56: -2445 | H56: =+-10658-G56 -> -8213 | I56: =+-13293-SUM(G56:H56) -> -2635 | J56: =-21411-SUM(G56:I56) -> -8118 | K56: -21411 | L56: -2511 | M56: =+-10414-L56 -> -7903 | N56: =+-18311-SUM(L56:M56) -> -7897 | O56: =-25475-SUM(L56:N56) -> -7164 | P56: -25475 | Q56: -12313 | R56: =+-18550-Q56 -> -6237 | S56: =+-28839-SUM(Q56:R56) -> -10289 | T56: =-31623-SUM(Q56:S56) -> -2784 | U56: -31623 | V56: -17879 | W56: =+-21794-V56 -> -3915 | X56: =+-32472-SUM(V56:W56) -> -10678 | Y56: =-33159-SUM(V56:X56) -> -687 | Z56: -33159 | AA56: -11680 | AB56: =+-23622-AA56 -> -11942 | AC56: =+-29720-SUM(AA56:AB56) -> -6098 | AD56: =-35136-SUM(AA56:AC56) -> -5416 | AE56: -35136 | AF56: -3069 | AG56: =+-13347-AF56 -> -10278 | AH56: =-15148-SUM(AF56:AG56) -> -1801 | AI56: =-18217-SUM(AF56:AH56) -> -3069 | AJ56: -18217 | AK56: -1389 | AL56: =-10472-AK56 -> -9083 | AM56: =-19942-SUM(AK56:AL56) -> -9470 | AN56: =-26788-SUM(AK56:AM56) -> -6846 | AO56: -26788 | AP56: -8590 | AQ56: =-11393-AP56 -> -2803 | AR56: =-17067-SUM(AP56:AQ56) -> -5674 | AS56: =-19789-SUM(AP56:AR56) -> -2722 | AT56: -19789
A57: Aquisição de Participação Societária em Controladas | B57: 0 | C57: 0 | D57: 0 | E57: 0 | F57: 0 | G57: 0 | H57: =0-G57 -> 0 | I57: 0 | J57: =-2292-SUM(G57:I57) -> -2292 | K57: -2292 | L57: 0 | M57: 0 | N57: 0 | O57: 0 | P57: 0 | Q57: 0 | R57: 0 | S57: 0 | T57: 0 | U57: 0 | V57: 0 | W57: 0 | X57: 0 | Y57: 0 | Z57: 0 | AA57: 0 | AB57: 0 | AC57: 0 | AD57: 0 | AE57: 0 | AF57: 0 | AG57: 0 | AH57: 0 | AI57: 0 | AJ57: 0 | AK57: 0 | AL57: 0 | AM57: 0 | AN57: 0 | AO57: 0 | AP57: 0 | AQ57: 0 | AR57: 0 | AS57: 0 | AT57: 0
A58: Pagamento pela Recompra de Ações | B58: 0 | C58: 0 | D58: 0 | E58: 0 | F58: 0 | G58: 0 | H58: 0 | I58: 0 | J58: 0 | K58: 0 | L58: -16519 | M58: =+-17536-L58 -> -1017 | N58: =+-17536-SUM(L58:M58) -> 0 | O58: =-17536-SUM(L58:N58) -> 0 | P58: -17536 | Q58: 0 | R58: 0 | S58: 0 | T58: 0 | U58: 0 | V58: 0 | W58: 0 | X58: 0 | Y58: 0 | Z58: 0 | AA58: 0 | AB58: 0 | AC58: 0 | AD58: 0 | AE58: 0 | AF58: 0 | AG58: 0 | AH58: 0 | AI58: 0 | AJ58: 0 | AK58: 0 | AL58: 0 | AM58: 0 | AN58: 0 | AO58: 0 | AP58: 0 | AQ58: 0 | AR58: 0 | AS58: 0 | AT58: 0
A59: Custos pela Recompra de Ações | B59: 0 | C59: 0 | D59: 0 | E59: 0 | F59: 0 | G59: 0 | H59: 0 | I59: 0 | J59: =-2-SUM(G59:I59) -> -2 | K59: -2 | L59: -13 | M59: =+-14-L59 -> -1 | N59: =+-14-SUM(L59:M59) -> 0 | O59: =-14-SUM(L59:N59) -> 0 | P59: -14 | Q59: 0 | R59: 0 | S59: 0 | T59: 0 | U59: 0 | V59: 0 | W59: 0 | X59: 0 | Y59: 0 | Z59: 0 | AA59: 0 | AB59: 0 | AC59: 0 | AD59: 0 | AE59: 0 | AF59: 0 | AG59: 0 | AH59: 0 | AI59: 0 | AJ59: 0 | AK59: 0 | AL59: 0 | AM59: 0 | AN59: 0 | AO59: 0 | AP59: 0 | AQ59: 0 | AR59: 0 | AS59: 0 | AT59: 0
A60: Pagamentos arrendamento - Aluguéis | B60: 0 | C60: 0 | D60: 0 | E60: 0 | F60: =SUM(B60:E60) -> 0 | G60: 0 | H60: 0 | I60: 0 | J60: 0 | K60: =SUM(G60:J60) -> 0 | L60: 0 | M60: 0 | N60: 0 | O60: 0 | P60: =SUM(L60:O60) -> 0 | Q60: 0 | R60: 0 | S60: 0 | T60: 0 | U60: =SUM(Q60:T60) -> 0 | V60: 0 | W60: 0 | X60: 0 | Y60: 0 | Z60: =SUM(V60:Y60) -> 0 | AA60: 0 | AB60: 0 | AC60: 0 | AD60: 0 | AE60: =SUM(AA60:AD60) -> 0 | AF60: 0 | AG60: 0 | AH60: 0 | AI60: 0 | AJ60: =SUM(AF60:AI60) -> 0 | AK60: -1579 | AL60: =-3158-AK60 -> -1579 | AM60: =-4737-SUM(AK60:AL60) -> -1579 | AN60: =-9772-SUM(AK60:AM60) -> -5035 | AO60: -9772 | AP60: -2823 | AQ60: =-5718-AP60 -> -2895 | AR60: =-8583-SUM(AP60:AQ60) -> -2865 | AS60: =-11449-SUM(AP60:AR60) -> -2866 | AT60: -11449
A61: Aumento (Redução) de Capital Social | B61: 0 | C61: 0 | D61: 0 | E61: 0 | F61: 0 | G61: 0 | H61: 0 | I61: 0 | J61: 0 | K61: 0 | L61: 0 | M61: 0 | N61: 0 | O61: 0 | P61: 0 | Q61: 0 | R61: 0 | S61: 0 | T61: 0 | U61: 0 | V61: 0 | W61: 0 | X61: 0 | Y61: 0 | Z61: 0 | AA61: 0 | AB61: 0 | AC61: 0 | AD61: 0 | AE61: 0 | AF61: 0 | AG61: 0 | AH61: 0 | AI61: 0 | AJ61: 0 | AK61: 0 | AL61: 0 | AM61: 0 | AN61: 0 | AO61: 0 | AP61: 0 | AQ61: 0 | AR61: =789988-SUM(AP61:AQ61) -> 789988 | AS61: =789988-SUM(AP61:AR61) -> 0 | AT61: 789988
A62: Custo na Emissão de novas ações | B62: 0 | C62: 0 | D62: 0 | E62: 0 | F62: 0 | G62: 0 | H62: 0 | I62: 0 | J62: 0 | K62: 0 | L62: 0 | M62: 0 | N62: 0 | O62: 0 | P62: 0 | Q62: 0 | R62: 0 | S62: 0 | T62: 0 | U62: 0 | V62: 0 | W62: 0 | X62: 0 | Y62: 0 | Z62: 0 | AA62: 0 | AB62: 0 | AC62: 0 | AD62: 0 | AE62: 0 | AF62: 0 | AG62: 0 | AH62: 0 | AI62: 0 | AJ62: 0 | AK62: 0 | AL62: 0 | AM62: 0 | AN62: 0 | AO62: 0 | AP62: 0 | AQ62: 0 | AR62: -24677 | AS62: =-24753-SUM(AP62:AR62) -> -76 | AT62: -24753
A63: Aumento (Redução) de Caixa e Equivalentes | B63: =B11+B26+B40+B44+B50 -> -154547 | C63: -54744 | D63: 78146 | E63: 758 | F63: -130387 | G63: 77650 | H63: -73702 | I63: 59304 | J63: -76709 | K63: -13457 | L63: 19717 | M63: -5702 | N63: 65268 | O63: 16139 | P63: 95422 | Q63: 4668 | R63: -50358 | S63: 61899 | T63: -8503 | U63: 7706 | V63: -18672 | W63: -34138 | X63: -8633 | Y63: 27885 | Z63: -33558 | AA63: -46830 | AB63: 125043 | AC63: -38442 | AD63: 38403 | AE63: 78174 | AF63: -17295 | AG63: -6311 | AH63: 574 | AI63: 5964 | AJ63: -17068 | AK63: -4346 | AL63: -66067 | AM63: 34435 | AN63: 48691 | AO63: 12713 | AP63: 4400 | AQ63: =AQ11+AQ26+AQ40+AQ44+AQ50 -> 81186 | AR63: 312172 | AS63: =AS11+AS26+AS40+AS44+AS50 -> -20273 | AT63: 377485
A64: Saldo Inicial de Caixa e Equivalentes | B64: 266831 | C64: =B65 -> 112284 | D64: 57540 | E64: 135686 | F64: =B64 -> 266831 | G64: =E65 -> 136444 | H64: =G65 -> 214094 | I64: 140392 | J64: 199696 | K64: =G64 -> 136444 | L64: =J65 -> 122987 | M64: =L65 -> 142704 | N64: 137002 | O64: 202270 | P64: =L64 -> 122987 | Q64: =O65 -> 218409 | R64: =Q65 -> 223077 | S64: 172719 | T64: 234618 | U64: =Q64 -> 218409 | V64: =T65 -> 226115 | W64: =V65 -> 207443 | X64: 173305 | Y64: 164672 | Z64: =V64 -> 226115 | AA64: =Y65 -> 192557 | AB64: =AA65 -> 145727 | AC64: 270770 | AD64: 232328 | AE64: =AA64 -> 192557 | AF64: =AD65 -> 270731 | AG64: =AF65 -> 253436 | AH64: 247125 | AI64: 247699 | AJ64: =AF64 -> 270731 | AK64: =AI65 -> 253663 | AL64: =AK65 -> 249317 | AM64: =AL65 -> 183250 | AN64: =AM65 -> 217685 | AO64: =AK64 -> 253663 | AP64: =AO65 -> 266376 | AQ64: =AP65 -> 270776 | AR64: =AQ65 -> 351962 | AS64: =AR65 -> 664134 | AT64: =AO65 -> 266376
A65: Saldo Final de Caixa e Equivalentes | B65: =B64+B63 -> 112284 | C65: =C64+C63 -> 57540 | D65: 135686 | E65: 136444 | F65: 136444 | G65: 214094 | H65: 140392 | I65: 199696 | J65: 122987 | K65: 122987 | L65: 142704 | M65: 137002 | N65: 202270 | O65: 218409 | P65: 218409 | Q65: 223077 | R65: 172719 | S65: 234618 | T65: 226115 | U65: 226115 | V65: 207443 | W65: 173305 | X65: 164672 | Y65: 192557 | Z65: 192557 | AA65: 145727 | AB65: 270770 | AC65: 232328 | AD65: 270731 | AE65: 270731 | AF65: 253436 | AG65: 247125 | AH65: 247699 | AI65: 253663 | AJ65: 253663 | AK65: =AK64+AK63 -> 249317 | AL65: 183250 | AM65: 217685 | AN65: 266376 | AO65: 266376 | AP65: 270776 | AQ65: =AQ64+AQ63 -> 351962 | AR65: 664134 | AS65: =AS64+AS63 -> 643861 | AT65: 643861

Sheet Endividamento
V8: 6 | W8: =V8+1 -> 7 | X8: =W8+1 -> 8 | Y8: 9 | Z8: 10 | AA8: 11 | AB8: 12 | AC8: 13 | AD8: 14 | AE8: 15 | AF8: 16 | AG8: 17 | AH8: 18 | AI8: =AH8+1 -> 19 | AJ8: =AI8+1 -> 20 | AK8: 21 | AL8: 22 | AM8: 23 | AN8: 24 | AP8: =AN8+1 -> 25 | AQ8: =AO8+1 -> 1 | AR8: 2 | AS8: =AR8+1 -> 3 | AT8: =AS8+1 -> 4 | AU8: 5 | AV8: 6 | AW8: 7
A9: (R$ Milhões) | B9: 1T12 | C9: 2T12 | D9: 3T12 | E9: 4T12 | F9: 2012 | G9: 1T13 | H9: 2T13 | I9: 3T13 | J9: 4T13 | K9: 2013 | L9: 1T14 | M9: 2T14 | N9: 3T14 | O9: 4T14 | P9: 2014 | Q9: 1T15 | R9: 2T15 | S9: 3T15 | T9: 4T15 | U9: 2015 | V9: 1T16 | W9: 2T16 | X9: 3T16 | Y9: 4T16 | Z9: 2016 | AA9: 1T17 | AB9: 2T17 | AC9: 3T17 | AD9: 4T17 | AE9: 2017 | AF9: 1T18 | AG9: 2T18 | AH9: 3T18 | AI9: 4T18 | AJ9: 2018 | AK9: 1T19 | AL9: 2T19 | AM9: 3T19 | AN9: 4T19 | AO9: 2019 | AP9: 1T20 | AQ9: 2T20 | AR9: 3T20 | AS9: 4T20 | AT9: 2020
A10: Dívida Bruta | B10: =SUM(B11:B12) -> 508.939 | C10: 481.971 | D10: 458.736 | E10: 433.147 | F10: 433.147 | G10: 429.908 | H10: 375.2 | I10: 366.9 | J10: 321.7 | K10: 321.7 | L10: 308.6 | M10: 353.391 | N10: 358.3 | O10: 357.949 | P10: 357.949 | Q10: 336.8 | R10: 324.94 | S10: 366.1 | T10: 339.061 | U10: 339.061 | V10: 296.875 | W10: 263.863 | X10: 230.714 | Y10: 229.834 | Z10: 229.834 | AA10: 166.026 | AB10: 276.6 | AC10: 234.455 | AD10: 233.1 | AE10: 233.1 | AF10: 220.25 | AG10: 218.137 | AH10: 208.8 | AI10: =SUM(AI11:AI12) -> 227.4 | AJ10: 227.4 | AK10: =SUM(AK11:AK12) -> 217.9 | AL10: 480.118 | AM10: =SUM(AM11:AM12) -> 460.9 | AN10: 436.4 | AO10: 436.4 | AP10: =SUM(AP11:AP12) -> 436.05 | AQ10: 435.9 | AR10: 433.8 | AS10: =SUM(AS11:AS12) -> 433.2 | AT10: 433.2
A11: Moeda Local (R$) | B11: 384.696 | C11: 353.004 | D11: 342.036 | E11: 321.677 | F11: 321.677 | G11: 333.45 | H11: 276.4 | I11: 282 | J11: 235.5 | K11: 235.5 | L11: 240 | M11: 293.247 | N11: 296.8 | O11: 296.495 | P11: 296.495 | Q11: 271 | R11: 266.581 | S11: 294.5 | T11: 276.426 | U11: 276.426 | V11: 249.343 | W11: 227.563 | X11: 204.65 | Y11: 205.139 | Z11: 205.139 | AA11: 149.947 | AB11: 260.3 | AC11: 226.726 | AD11: 225.9 | AE11: 225.9 | AF11: 197.837 | AG11: 194.082 | AH11: 187.5 | AI11: 177.8 | AJ11: 177.8 | AK11: 169.9 | AL11: 432.318 | AM11: 411.2 | AN11: 420.6 | AO11: 420.6 | AP11: 418.496 | AQ11: 416.9 | AR11: 416.1 | AS11: 415.9 | AT11: =AS11 -> 415.9
A12: Moeda Estrangeira | B12: 124.243 | C12: 128.967 | D12: 116.7 | E12: 111.47 | F12: 111.47 | G12: 96.458 | H12: 98.8 | I12: 84.9 | J12: 86.2 | K12: 86.2 | L12: 68.6 | M12: 60.144 | N12: 61.5 | O12: 61.454 | P12: 61.454 | Q12: 65.8 | R12: 58.359 | S12: 71.6 | T12: 62.635 | U12: 62.635 | V12: 47.532 | W12: 36.3 | X12: 26.064 | Y12: 24.695 | Z12: 24.695 | AA12: 16.079 | AB12: 16.3 | AC12: 7.729 | AD12: 7.2 | AE12: 7.2 | AF12: 22.413 | AG12: 24.055 | AH12: 21.3 | AI12: 49.6 | AJ12: 49.6 | AK12: 48 | AL12: 47.8 | AM12: 49.7 | AN12: 15.8 | AO12: 15.8 | AP12: 17.554 | AQ12: 19 | AR12: 17.7 | AS12: 17.3 | AT12: =AS12 -> 17.3
A14: Curto Prazo | B14: ='Balanço Patrimonial'!B30 -> 183.416 | C14: ='Balanço Patrimonial'!C30 -> 229.446 | D14: ='Balanço Patrimonial'!D30 -> 232.922 | E14: ='Balanço Patrimonial'!E30 -> 165.547 | F14: =E14 -> 165.547 | G14: ='Balanço Patrimonial'!G30 -> 162.433 | H14: ='Balanço Patrimonial'!H30 -> 146.965 | I14: ='Balanço Patrimonial'!I30 -> 145.891 | J14: ='Balanço Patrimonial'!J30 -> 147.847 | K14: =J14 -> 147.847 | L14: ='Balanço Patrimonial'!L30 -> 143.825 | M14: ='Balanço Patrimonial'!M30 -> 136.737 | N14: ='Balanço Patrimonial'!N30 -> 160.585 | O14: ='Balanço Patrimonial'!O30 -> 157.996 | P14: =O14 -> 157.996 | Q14: 166.3 | R14: ='Balanço Patrimonial'!R30 -> 167.793 | S14: ='Balanço Patrimonial'!S30 -> 140.248 | T14: ='Balanço Patrimonial'!T30 -> 140.415 | U14: =T14 -> 140.415 | V14: ='Balanço Patrimonial'!V30 -> 177.662 | W14: ='Balanço Patrimonial'!W30 -> 153.547 | X14: ='Balanço Patrimonial'!X30 -> 162.632 | Y14: ='Balanço Patrimonial'!Y30 -> 163.414 | Z14: =Y14 -> 163.414 | AA14: ='Balanço Patrimonial'!AA30 -> 131.922 | AB14: ='Balanço Patrimonial'!AB30 -> 133.769 | AC14: ='Balanço Patrimonial'!AC30 -> 122.589 | AD14: ='Balanço Patrimonial'!AD30 -> 172.042 | AE14: =AD14 -> 172.042 | AF14: ='Balanço Patrimonial'!AF30 -> 144.991 | AG14: ='Balanço Patrimonial'!AG30 -> 109.3 | AH14: ='Balanço Patrimonial'!AH30 -> 100.645 | AI14: ='Balanço Patrimonial'!AI30 -> 130.1292097 | AJ14: =AI14 -> 130.1292097 | AK14: 142.6 | AL14: ='Balanço Patrimonial'!AL30 -> 129.196 | AM14: ='Balanço Patrimonial'!AM30 -> 112.025 | AN14: ='Balanço Patrimonial'!AN30 -> 54.076 | AO14: =AN14 -> 54.076 | AP14: =47.6+4.4 -> 52 | AQ14: 33.9 | AR14: =27.5+5.1 -> 32.6 | AS14: 53.4 | AT14: =AS14 -> 53.4
A15: Longo Prazo | B15: ='Balanço Patrimonial'!B36 -> 325.523 | C15: ='Balanço Patrimonial'!C36 -> 252.525 | D15: ='Balanço Patrimonial'!D36 -> 225.814 | E15: ='Balanço Patrimonial'!E36 -> 267.6 | F15: 267.6 | G15: ='Balanço Patrimonial'!G36 -> 267.475 | H15: ='Balanço Patrimonial'!H36 -> 228.235 | I15: ='Balanço Patrimonial'!I36 -> 220.989 | J15: ='Balanço Patrimonial'!J36 -> 173.847 | K15: 173.847 | L15: ='Balanço Patrimonial'!L36 -> 164.762 | M15: ='Balanço Patrimonial'!M36 -> 216.654 | N15: ='Balanço Patrimonial'!N36 -> 197.699 | O15: ='Balanço Patrimonial'!O36 -> 199.953 | P15: 199.953 | Q15: 170.5 | R15: ='Balanço Patrimonial'!R36 -> 157.147 | S15: ='Balanço Patrimonial'!S36 -> 225.824 | T15: ='Balanço Patrimonial'!T36 -> 198.646 | U15: 198.646 | V15: ='Balanço Patrimonial'!V36 -> 119.213 | W15: ='Balanço Patrimonial'!W36 -> 110.286 | X15: ='Balanço Patrimonial'!X36 -> 68.082 | Y15: ='Balanço Patrimonial'!Y36 -> 66.42 | Z15: 66.42 | AA15: ='Balanço Patrimonial'!AA36 -> 34.103 | AB15: ='Balanço Patrimonial'!AB36 -> 142.8 | AC15: ='Balanço Patrimonial'!AC36 -> 111.866 | AD15: ='Balanço Patrimonial'!AD36 -> 61.056 | AE15: 61.056 | AF15: ='Balanço Patrimonial'!AF36 -> 75.259 | AG15: ='Balanço Patrimonial'!AG36 -> 108.837 | AH15: ='Balanço Patrimonial'!AH36 -> 108.129 | AI15: ='Balanço Patrimonial'!AI36 -> 97.26657029 | AJ15: 97.26657029 | AK15: 75.3 | AL15: ='Balanço Patrimonial'!AL36 -> 350.917 | AM15: ='Balanço Patrimonial'!AM36 -> 348.866 | AN15: ='Balanço Patrimonial'!AN36 -> 382.32 | AO15: 382.32 | AP15: =370.9+13.1 -> 384 | AQ15: 402 | AR15: 401.2 | AS15: 379.8 | AT15: 379.8
A17: Disponibilidades | B17: =SUM(B18) -> 141.038 | C17: =SUM(C18) -> 86.931 | D17: 165.674 | E17: 136.444 | F17: 136.444 | G17: 214.094 | H17: 140.392 | I17: 201.23 | J17: 122.987 | K17: 122.987 | L17: 142.704 | M17: 137.002 | N17: 202.27 | O17: 218.409 | P17: 218.409 | Q17: 223.077 | R17: 172.719 | S17: 234.618 | T17: 226.115 | U17: 226.115 | V17: 207.443 | W17: 173.305 | X17: 164.672 | Y17: 192.557 | Z17: 192.557 | AA17: 145.727 | AB17: 270.77 | AC17: 232.328 | AD17: 270.731 | AE17: 270.731 | AF17: 253.436 | AG17: 247.124 | AH17: 247.699 | AI17: 253.6615742 | AJ17: 253.6615742 | AK17: 249.317 | AL17: 460.309 | AM17: 464.241 | AN17: 425.443 | AO17: 425.443 | AP17: 372.897 | AQ17: 351.962 | AR17: 1088.796 | AS17: 1070.459 | AT17: 1070.459
A18: Caixa e Equivalentes | B18: ='Balanço Patrimonial'!B13+'Balanço Patrimonial'!B14 -> 141.038 | C18: ='Balanço Patrimonial'!C13+'Balanço Patrimonial'!C14 -> 86.931 | D18: ='Balanço Patrimonial'!D13+'Balanço Patrimonial'!D14 -> 165.674 | E18: ='Balanço Patrimonial'!E13+'Balanço Patrimonial'!E14 -> 136.444 | F18: ='Balanço Patrimonial'!F13+'Balanço Patrimonial'!F14 -> 136.444 | G18: ='Balanço Patrimonial'!G13+'Balanço Patrimonial'!G14 -> 214.094 | H18: ='Balanço Patrimonial'!H13+'Balanço Patrimonial'!H14 -> 140.392 | I18: ='Balanço Patrimonial'!I13+'Balanço Patrimonial'!I14 -> 201.23 | J18: ='Balanço Patrimonial'!J13+'Balanço Patrimonial'!J14 -> 122.987 | K18: ='Balanço Patrimonial'!K13+'Balanço Patrimonial'!K14 -> 122.987 | L18: ='Balanço Patrimonial'!L13+'Balanço Patrimonial'!L14 -> 142.704 | M18: ='Balanço Patrimonial'!M13+'Balanço Patrimonial'!M14 -> 137.002 | N18: ='Balanço Patrimonial'!N13+'Balanço Patrimonial'!N14 -> 202.27 | O18: ='Balanço Patrimonial'!O13+'Balanço Patrimonial'!O14 -> 218.409 | P18: ='Balanço Patrimonial'!P13+'Balanço Patrimonial'!P14 -> 218.409 | Q18: ='Balanço Patrimonial'!Q13+'Balanço Patrimonial'!Q14 -> 223.077 | R18: ='Balanço Patrimonial'!R13+'Balanço Patrimonial'!R14 -> 172.719 | S18: ='Balanço Patrimonial'!S13+'Balanço Patrimonial'!S14 -> 234.618 | T18: ='Balanço Patrimonial'!T13+'Balanço Patrimonial'!T14 -> 226.115 | U18: ='Balanço Patrimonial'!U13+'Balanço Patrimonial'!U14 -> 226.115 | V18: ='Balanço Patrimonial'!V13+'Balanço Patrimonial'!V14 -> 207.443 | W18: ='Balanço Patrimonial'!W13+'Balanço Patrimonial'!W14 -> 173.305 | X18: ='Balanço Patrimonial'!X13+'Balanço Patrimonial'!X14 -> 164.672 | Y18: ='Balanço Patrimonial'!Y13+'Balanço Patrimonial'!Y14 -> 192.557 | Z18: ='Balanço Patrimonial'!Z13+'Balanço Patrimonial'!Z14 -> 192.557 | AA18: ='Balanço Patrimonial'!AA13+'Balanço Patrimonial'!AA14 -> 145.727 | AB18: ='Balanço Patrimonial'!AB13+'Balanço Patrimonial'!AB14 -> 270.77 | AC18: ='Balanço Patrimonial'!AC13+'Balanço Patrimonial'!AC14 -> 232.328 | AD18: ='Balanço Patrimonial'!AD13+'Balanço Patrimonial'!AD14 -> 270.731 | AE18: ='Balanço Patrimonial'!AE13+'Balanço Patrimonial'!AE14 -> 270.731 | AF18: ='Balanço Patrimonial'!AF13+'Balanço Patrimonial'!AF14 -> 253.436 | AG18: ='Balanço Patrimonial'!AG13+'Balanço Patrimonial'!AG14 -> 247.124 | AH18: ='Balanço Patrimonial'!AH13+'Balanço Patrimonial'!AH14 -> 247.699 | AI18: ='Balanço Patrimonial'!AI13+'Balanço Patrimonial'!AI14 -> 253.6615742 | AJ18: ='Balanço Patrimonial'!AJ13+'Balanço Patrimonial'!AJ14 -> 253.6615742 | AK18: ='Balanço Patrimonial'!AK13+'Balanço Patrimonial'!AK14 -> 249.317 | AL18: ='Balanço Patrimonial'!AL13+'Balanço Patrimonial'!AL14 -> 460.309 | AM18: ='Balanço Patrimonial'!AM13+'Balanço Patrimonial'!AM14 -> 464.241 | AN18: ='Balanço Patrimonial'!AN13+'Balanço Patrimonial'!AN14 -> 425.443 | AO18: ='Balanço Patrimonial'!AO13+'Balanço Patrimonial'!AO14 -> 425.443 | AP18: ='Balanço Patrimonial'!AP13+'Balanço Patrimonial'!AP14 -> 372.897 | AQ18: ='Balanço Patrimonial'!AQ13+'Balanço Patrimonial'!AQ14 -> 351.962 | AR18: ='Balanço Patrimonial'!AR13+'Balanço Patrimonial'!AR14 -> 1088.796 | AS18: ='Balanço Patrimonial'!AS13+'Balanço Patrimonial'!AS14 -> 1070.459 | AT18: ='Balanço Patrimonial'!AT13+'Balanço Patrimonial'!AT14 -> 1070.459
A20: Dívida Líquida (Caixa líquido) | B20: =B10-B17 -> 367.901 | C20: 395.04 | D20: 293.062 | E20: 296.703 | F20: 296.703 | G20: 215.814 | H20: 234.808 | I20: 165.67 | J20: 198.713 | K20: 198.713 | L20: 165.896 | M20: 216.389 | N20: =N10-N17 -> 156.03 | O20: 139.54 | P20: 139.54 | Q20: 113.723 | R20: 152.221 | S20: 131.482 | T20: 112.946 | U20: 112.946 | V20: 89.432 | W20: 90.558 | X20: 66.042 | Y20: 37.277 | Z20: 37.277 | AA20: 20.299 | AB20: 5.83 | AC20: 2.127 | AD20: -37.631 | AE20: -37.631 | AF20: -33.186 | AG20: -28.987 | AH20: -38.899 | AI20: =AI10-AI17 -> -26.26157418 | AJ20: -26.26157418 | AK20: =AK10-AK17 -> -31.417 | AL20: 19.809 | AM20: =AM10-AM17 -> -3.341 | AN20: 10.957 | AO20: 10.957 | AP20: =AP10-AP17 -> 63.153 | AQ20: 83.938 | AR20: -654.996 | AS20: =AS10-AS17 -> -637.259 | AT20: -637.259
A22: EBITDA 12M | B22: 460.1 | C22: 488.1 | D22: 535.7 | E22: =DRE!F24 -> 551.649 | F22: =E22 -> 551.649 | G22: =DRE!G24+DRE!E24+DRE!D24+DRE!C24 -> 601.619 | H22: =DRE!H24+DRE!G24+DRE!E24+DRE!D24 -> 590.565 | I22: =DRE!I24+DRE!H24+DRE!G24+DRE!E24 -> 536.177 | J22: =DRE!K24 -> 528.2468039 | K22: =J22 -> 528.2468039 | L22: =DRE!L24+DRE!J24+DRE!I24+DRE!H24 -> 462.6218039 | M22: =DRE!M24+DRE!L24+DRE!J24+DRE!I24 -> 410.7528039 | N22: =DRE!N24+DRE!M24+DRE!L24+DRE!J24 -> 372.7128039 | O22: =DRE!P24 -> 292.637 | P22: =O22 -> 292.637 | Q22: =DRE!Q24+DRE!O24+DRE!N24+DRE!M24 -> 273.616 | R22: =DRE!R24+DRE!Q24+DRE!O24+DRE!N24 -> 241.187 | S22: =DRE!S24+DRE!R24+DRE!Q24+DRE!O24 -> 209.06 | T22: =DRE!U24 -> 146.627 | U22: =T22 -> 146.627 | V22: =DRE!V24+DRE!T24+DRE!S24+DRE!R24 -> 87.296 | W22: =DRE!W24+DRE!V24+DRE!T24+DRE!S24 -> 61.17 | X22: =DRE!X24+DRE!W24+DRE!V24+DRE!T24 -> 48.7 | Y22: =DRE!Z24 -> 87.5 | Z22: =Y22 -> 87.5 | AA22: =DRE!AA31+DRE!W24+DRE!X24+DRE!Y24 -> 108.6 | AB22: =DRE!AB31+DRE!AA31+DRE!Y24+DRE!X24 -> 81.4 | AC22: =DRE!AC31+DRE!AB31+DRE!AA31+DRE!Y24 -> 82.4 | AD22: =DRE!AD31+DRE!AC31+DRE!AB31+DRE!AA31 -> 83.7 | AE22: =AD22 -> 83.7 | AF22: =DRE!AF31+DRE!AD31+DRE!AC31+DRE!AB31 -> 67.5 | AG22: =DRE!AG31+DRE!AF31+DRE!AD31+DRE!AC31 -> 94.3 | AH22: =DRE!AH31+DRE!AG31+DRE!AF31+DRE!AD31 -> 105.3 | AI22: =DRE!AJ31 -> 107 | AJ22: =AI22 -> 107 | AK22: =DRE!AK31+DRE!AI31+DRE!AH31+DRE!AG31 -> 100.1 | AL22: =DRE!AL31+DRE!AK31+DRE!AI31+DRE!AH31 -> 113.2 | AM22: =DRE!AM31+DRE!AL31+DRE!AK31+DRE!AI31 -> 108.7 | AN22: =DRE!AN31+DRE!AM31+DRE!AL31+DRE!AK31 -> 124.2 | AO22: =AN22 -> 124.2 | AP22: =DRE!AP31+DRE!AN31+DRE!AM31+DRE!AL31 -> 127.6 | AQ22: =DRE!AQ31+DRE!AP31+DRE!AN31+DRE!AM31 -> 107.668 | AR22: =DRE!AR31+DRE!AQ31+DRE!AP31+DRE!AN31 -> 93.07239825 | AS22: =DRE!AT31 -> 100.2623983 | AT22: =AS22 -> 100.2623983
A23: Dívida líquida / EBITDA 12M¹ | B23: =B20/B22 -> 0.7996109541 | C23: 0.8093423479 | D23: 0.547063655 | E23: 0.5378474356 | F23: 0.5378474356 | G23: 0.3587220483 | H23: 0.3975989095 | I23: 0.3089837871 | J23: 0.3761745429 | K23: 0.3761745429 | L23: 0.3585996133 | M23: 0.5268107678 | N23: 0.418633324 | O23: 0.4768364903 | P23: 0.4768364903 | Q23: 0.4156299339 | R23: 0.6311326896 | S23: =S20/S22 -> 0.6289199273 | T23: =T20/T22 -> 0.7702946933 | U23: 0.7702946933 | V23: 1.024468475 | W23: 1.480431584 | X23: 1.356098563 | Y23: 0.4260228571 | Z23: 0.4260228571 | AA23: 0.1869152855 | AB23: 0.07162162162 | AC23: 0.0258131068 | AD23: -0.4495937873 | AE23: -0.4495937873 | AF23: -0.4916444444 | AG23: -0.3073913043 | AH23: -0.3694112061 | AI23: =AI20/AI22 -> -0.2454352727 | AJ23: -0.2454352727 | AK23: =AK20/AK22 -> -0.3138561439 | AL23: 0.1749911661 | AM23: =AM20/AM22 -> -0.03073597056 | AN23: 0.08822061192 | AO23: 0.08822061192 | AP23: =AP20/AP22 -> 0.4949294671 | AQ23: 0.7796002526 | AR23: -7.037489227 | AS23: =AS20/AS22 -> -6.355912198 | AT23: -6.355912198
A25: ¹ A partir de 2017, é considerado o EBITDA pró-forma (sem o efeito do IFRS 16) dos últimos 12 meses para cálculo do índice de alavancagem 'Dívida Líquida / EBITDA 12M'.

Sheet Valor Adicionado
V8: 14 | W8: =+V8+1 -> 15 | X8: =+W8+1 -> 16 | Y8: 17 | Z8: 18 | AA8: 19 | AB8: 20 | AC8: 21 | AD8: 22 | AE8: 23 | AF8: 24 | AG8: 25 | AH8: 26 | AI8: =+AH8+1 -> 27 | AJ8: =+AI8+1 -> 28 | AK8: 29 | AL8: 30 | AM8: 31 | AN8: 32 | AO8: 33 | AP8: 34 | AQ8: 35 | AR8: 36 | AS8: =+AR8+1 -> 37 | AT8: =+AS8+1 -> 38 | AU8: 39 | AV8: 40 | AW8: 41 | AX8: 42 | AY8: 43 | AZ8: 44 | BA8: 45 | BB8: 46
A9: (R$ Mil) | B9: 1T12 | C9: 2T12 | D9: 3T12 | E9: 4T12 | F9: 2012 | G9: 1T13 | H9: 2T13 | I9: 3T13 | J9: 4T13 | K9: 2013 | L9: 1T14 | M9: 2T14 | N9: 3T14 | O9: 4T14 | P9: 2014 | Q9: 1T15 | R9: 2T15 | S9: 3T15 | T9: 4T15 | U9: 2015 | V9: 1T16 | W9: 2T16 | X9: 3T16 | Y9: 4T16 | Z9: 2016 | AA9: 1T17 | AB9: 2T17 | AC9: 3T17 | AD9: 4T17 | AE9: 2017 | AF9: 1T18 | AG9: 2T18 | AH9: 3T18 | AI9: 4T18 | AJ9: 2018 | AK9: 1T19 | AL9: 2T19 | AM9: 3T19 | AN9: 4T19 | AO9: 2019 | AP9: 1T20 | AQ9: 2T20 | AR9: 3T20 | AS9: 4T20 | AT9: 2020
A11: Receitas | B11: =SUM(B12:B14) -> 308342 | C11: 353906 | D11: 393408 | E11: 378826 | F11: 1434482 | G11: 391255 | H11: 367486 | I11: 370413 | J11: 398263 | K11: 1527417 | L11: 314414 | M11: 297870 | N11: 286253 | O11: 244455 | P11: 1142992 | Q11: 291962 | R11: 315888 | S11: 209706 | T11: 244548 | U11: 1062104 | V11: 218500 | W11: 241364 | X11: 250470 | Y11: 232721 | Z11: 943055 | AA11: 246897 | AB11: 214956 | AC11: 240430 | AD11: 244794 | AE11: 947077 | AF11: 243076 | AG11: 265385 | AH11: 295285 | AI11: =SUM(AI12:AI14) -> 260336 | AJ11: 1064082 | AK11: =SUM(AK12:AK14) -> 258708 | AL11: 303473 | AM11: =SUM(AM12:AM14) -> 281898 | AN11: 280930 | AO11: 1125009 | AP11: =SUM(AP12:AP14) -> 258226 | AQ11: 259262 | AR11: 257489 | AS11: =SUM(AS12:AS14) -> 306875 | AT11: 1081852
A12: Vendas de Mercadorias, Produtos e Serviços | B12: 308077 | C12: 352560 | D12: 392499 | E12: 378902 | F12: =SUM(B12:E12) -> 1432038 | G12: 391418 | H12: 366670 | I12: 371495 | J12: 397037 | K12: =SUM(G12:J12) -> 1526620 | L12: 314267 | M12: 293880 | N12: 279406 | O12: 239348 | P12: =SUM(L12:O12) -> 1126901 | Q12: 335964 | R12: 262035 | S12: 254285 | T12: 237213 | U12: =SUM(Q12:T12) -> 1089497 | V12: 222618 | W12: 228042 | X12: 250485 | Y12: 233718 | Z12: =SUM(V12:Y12) -> 934863 | AA12: 245101 | AB12: 215402 | AC12: 236315 | AD12: 240810 | AE12: =SUM(AA12:AD12) -> 937628 | AF12: 243394 | AG12: 267550 | AH12: 296332 | AI12: =1062857-SUM(AF12:AH12) -> 255581 | AJ12: =SUM(AF12:AI12) -> 1062857 | AK12: 260477 | AL12: =562832-AK12 -> 302355 | AM12: =849505-SUM(AK12:AL12) -> 286673 | AN12: =1113350-SUM(AK12:AM12) -> 263845 | AO12: =SUM(AK12:AN12) -> 1113350 | AP12: 257025 | AQ12: =514990-AP12 -> 257965 | AR12: =767660-SUM(AP12:AQ12) -> 252670 | AS12: =1066539-SUM(AP12:AR12) -> 298879 | AT12: =SUM(AP12:AS12) -> 1066539
A13: Outras Receitas | B13: 577 | C13: 1195 | D13: 892 | E13: 789 | F13: =SUM(B13:E13) -> 3453 | G13: 366 | H13: 1820 | I13: 889 | J13: 8914 | K13: =SUM(G13:J13) -> 11989 | L13: 2315 | M13: 3196 | N13: 4462 | O13: 4217 | P13: =SUM(L13:O13) -> 14190 | Q13: 14440 | R13: 6040 | S13: 2728 | T13: 6344 | U13: =SUM(Q13:T13) -> 29552 | V13: 4286 | W13: 12268 | X13: 2381 | Y13: 1106 | Z13: =SUM(V13:Y13) -> 20041 | AA13: 4997 | AB13: 1691 | AC13: 6841 | AD13: 3880 | AE13: =SUM(AA13:AD13) -> 17409 | AF13: 2681 | AG13: 1668 | AH13: 2937 | AI13: =11315-SUM(AF13:AH13) -> 4029 | AJ13: =SUM(AF13:AI13) -> 11315 | AK13: 2787 | AL13: =5512-AK13 -> 2725 | AM13: =6772-SUM(AK13:AL13) -> 1260 | AN13: =26645-SUM(AK13:AM13) -> 19873 | AO13: =SUM(AK13:AN13) -> 26645 | AP13: 6237 | AQ13: =11469-AP13 -> 5232 | AR13: =18913-SUM(AP13:AQ13) -> 7444 | AS13: =29763-SUM(AP13:AR13) -> 10850 | AT13: =SUM(AP13:AS13) -> 29763
A14: Provisão/Reversão de Créds. Liquidação Duvidosa | B14: -312 | C14: 151 | D14: 17 | E14: -865 | F14: -1009 | G14: -529 | H14: -1004 | I14: -1971 | J14: -7688 | K14: -11192 | L14: -2168 | M14: 794 | N14: 2385 | O14: 890 | P14: 1901 | Q14: -58442 | R14: 47813 | S14: -47307 | T14: 991 | U14: -56945 | V14: -8404 | W14: 1054 | X14: -2396 | Y14: -2103 | Z14: -11849 | AA14: -3201 | AB14: -2137 | AC14: -2726 | AD14: 104 | AE14: -7960 | AF14: -2999 | AG14: -3833 | AH14: -3984 | AI14: =-10090-SUM(AF14:AH14) -> 726 | AJ14: -10090 | AK14: -4556 | AL14: =-6163-AK14 -> -1607 | AM14: =-12198-SUM(AK14:AL14) -> -6035 | AN14: =-14986-SUM(AK14:AM14) -> -2788 | AO14: -14986 | AP14: -5036 | AQ14: =-8971-AP14 -> -3935 | AR14: =-11596-SUM(AP14:AQ14) -> -2625 | AS14: =-14450-SUM(AP14:AR14) -> -2854 | AT14: -14450
A15: Insumos Adquiridos de Terceiros | B15: =SUM(B16:B18) -> -93499 | C15: -96532 | D15: -108042 | E15: -109574 | F15: -407647 | G15: -106757 | H15: -111850 | I15: -126815 | J15: -130262 | K15: -475684 | L15: -95886 | M15: -99409 | N15: -96758 | O15: -86762 | P15: -378815 | Q15: -84423 | R15: -144248 | S15: -48724 | T15: -134996 | U15: -412391 | V15: -85838 | W15: -98879 | X15: -101202 | Y15: -16625 | Z15: -302544 | AA15: -71345 | AB15: -100309 | AC15: -89569 | AD15: -94709 | AE15: -355932 | AF15: -87177 | AG15: -115365 | AH15: -110856 | AI15: =SUM(AI16:AI18) -> -106297 | AJ15: -419695 | AK15: =SUM(AK16:AK18) -> -101462 | AL15: -114244 | AM15: =SUM(AM16:AM18) -> -101822 | AN15: -92434 | AO15: -409962 | AP15: =SUM(AP16:AP18) -> -98221 | AQ15: -91766 | AR15: -90858 | AS15: =SUM(AS16:AS18) -> -98366 | AT15: -379211
A16: Custos Prods., Mercs. e Servs. Vendidos | B16: -52734 | C16: -56838 | D16: -62532 | E16: -61692 | F16: =SUM(B16:E16) -> -233796 | G16: -62073 | H16: -63433 | I16: -74894 | J16: -63749 | K16: =SUM(G16:J16) -> -264149 | L16: -51760 | M16: -53865 | N16: -48181 | O16: -39481 | P16: =SUM(L16:O16) -> -193287 | Q16: -40958 | R16: -47406 | S16: -48060 | T16: -48381 | U16: =SUM(Q16:T16) -> -184805 | V16: -44520 | W16: -51586 | X16: -51113 | Y16: =-117435-SUM(V16:X16) -> 29784 | Z16: =SUM(V16:Y16) -> -117435 | AA16: -29147 | AB16: -54837 | AC16: -43954 | AD16: =-174683-SUM(AA16:AC16) -> -46745 | AE16: =SUM(AA16:AD16) -> -174683 | AF16: -35608 | AG16: -62668 | AH16: -55857 | AI16: =-202092-SUM(AF16:AH16) -> -47959 | AJ16: =SUM(AF16:AI16) -> -202092 | AK16: -50124 | AL16: =-105927-AK16 -> -55803 | AM16: =-151436-SUM(AK16:AL16) -> -45509 | AN16: =-187828-SUM(AK16:AM16) -> -36392 | AO16: =SUM(AK16:AN16) -> -187828 | AP16: -37207 | AQ16: =-71133-AP16 -> -33926 | AR16: =-107129-SUM(AP16:AQ16) -> -35996 | AS16: =-150107-SUM(AP16:AR16) -> -42978 | AT16: =SUM(AP16:AS16) -> -150107
A17: Materiais, Energia, Servs. de Terceiros e Outros | B17: -40761 | C17: -39037 | D17: -43761 | E17: -47604 | F17: -171163 | G17: -44021 | H17: -48174 | I17: -51803 | J17: -66137 | K17: -210135 | L17: -43784 | M17: -43425 | N17: -45619 | O17: -46424 | P17: -179252 | Q17: -42479 | R17: -47191 | S17: -49164 | T17: -55556 | U17: -194390 | V17: -40969 | W17: -46982 | X17: -49234 | Y17: -46045 | Z17: -183230 | AA17: -41923 | AB17: -45220 | AC17: -45393 | AD17: -47783 | AE17: -180319 | AF17: -51393 | AG17: -52509 | AH17: -54776 | AI17: =-216511-SUM(AF17:AH17) -> -57833 | AJ17: -216511 | AK17: -51142 | AL17: =-109938-AK17 -> -58796 | AM17: =-166119-SUM(AK17:AL17) -> -56181 | AN17: =-222033-SUM(AK17:AM17) -> -55914 | AO17: -222033 | AP17: -61052 | AQ17: =-117519-AP17 -> -56467 | AR17: =-171986-SUM(AP17:AQ17) -> -54467 | AS17: =-226336-SUM(AP17:AR17) -> -54350 | AT17: -226336
A18: Outros | B18: -4 | C18: -657 | D18: -1749 | E18: -278 | F18: -2688 | G18: -663 | H18: -243 | I18: -118 | J18: -376 | K18: -1400 | L18: -342 | M18: -2119 | N18: -2958 | O18: -857 | P18: -6276 | Q18: -986 | R18: -49651 | S18: 48500 | T18: -31059 | U18: -33196 | V18: -349 | W18: -311 | X18: -855 | Y18: -364 | Z18: -1879 | AA18: -275 | AB18: -252 | AC18: -222 | AD18: -181 | AE18: -930 | AF18: -176 | AG18: -188 | AH18: -223 | AI18: =-1092-SUM(AF18:AH18) -> -505 | AJ18: -1092 | AK18: -196 | AL18: =159-AK18 -> 355 | AM18: =27-SUM(AK18:AL18) -> -132 | AN18: =-101-SUM(AK18:AM18) -> -128 | AO18: -101 | AP18: 38 | AQ18: =-1335-AP18 -> -1373 | AR18: =-1730-SUM(AP18:AQ18) -> -395 | AS18: =-2768-SUM(AP18:AR18) -> -1038 | AT18: -2768
A19: Valor Adicionado Bruto | B19: =B11+B15 -> 214843 | C19: =C11+C15 -> 257374 | D19: 285366 | E19: 269252 | F19: 1026835 | G19: 284498 | H19: 255636 | I19: 243598 | J19: 268001 | K19: 1051733 | L19: 218528 | M19: 198461 | N19: 189495 | O19: 157693 | P19: 764177 | Q19: 207539 | R19: 171640 | S19: 160982 | T19: 109552 | U19: 649713 | V19: 132662 | W19: 142485 | X19: 149268 | Y19: 216096 | Z19: 640511 | AA19: 175552 | AB19: 114647 | AC19: 150861 | AD19: 150085 | AE19: 591145 | AF19: 155899 | AG19: 150020 | AH19: 184429 | AI19: =AI11+AI15 -> 154039 | AJ19: 644387 | AK19: =AK11+AK15 -> 157246 | AL19: 189229 | AM19: =AM11+AM15 -> 180076 | AN19: 188496 | AO19: 715047 | AP19: =AP11+AP15 -> 160005 | AQ19: 167496 | AR19: 166631 | AS19: =AS11+AS15 -> 208509 | AT19: 702641
A20: Retenções | B20: =B21 -> -29980 | C20: -31515 | D20: -32412 | E20: -32906 | F20: -126813 | G20: -33401 | H20: -34051 | I20: -34072 | J20: -34055 | K20: -135579 | L20: -35229 | M20: -35172 | N20: -34450 | O20: -35390 | P20: -140241 | Q20: -35111 | R20: -34897 | S20: -37109 | T20: -24470 | U20: -131587 | V20: -24041 | W20: -24155 | X20: -24005 | Y20: -58762 | Z20: -130963 | AA20: -33452 | AB20: -33582 | AC20: -33863 | AD20: -32085 | AE20: -132982 | AF20: -31007 | AG20: -30914 | AH20: -30825 | AI20: -31420 | AJ20: -124166 | AK20: -32491 | AL20: -32795 | AM20: -33300 | AN20: -37064 | AO20: -135650 | AP20: -35061 | AQ20: =AQ21 -> -36511 | AR20: =AR21 -> -39272 | AS20: =AS21 -> -41519 | AT20: -152363
A21: Depreciação, Amortização e Exaustão | B21: -29980 | C21: -31515 | D21: -32412 | E21: -32906 | F21: =SUM(B21:E21) -> -126813 | G21: -33401 | H21: -34051 | I21: -34072 | J21: -34055 | K21: =SUM(G21:J21) -> -135579 | L21: -35229 | M21: -35172 | N21: -34450 | O21: -35390 | P21: =SUM(L21:O21) -> -140241 | Q21: -35111 | R21: -34897 | S21: -37109 | T21: -24470 | U21: =SUM(Q21:T21) -> -131587 | V21: -24041 | W21: -24155 | X21: -24005 | Y21: =-130963-SUM(V21:X21) -> -58762 | Z21: =SUM(V21:Y21) -> -130963 | AA21: -33452 | AB21: -33582 | AC21: -33863 | AD21: -32085 | AE21: =SUM(AA21:AD21) -> -132982 | AF21: -31007 | AG21: -30914 | AH21: -30825 | AI21: =-124166-SUM(AF21:AH21) -> -31420 | AJ21: =SUM(AF21:AI21) -> -124166 | AK21: -32491 | AL21: =-65286-AK21 -> -32795 | AM21: =-98586-SUM(AK21:AL21) -> -33300 | AN21: =-135650-SUM(AK21:AM21) -> -37064 | AO21: =SUM(AK21:AN21) -> -135650 | AP21: -35061 | AQ21: =-71572-AP21 -> -36511 | AR21: =-110844-SUM(AP21:AQ21) -> -39272 | AS21: =-152363-SUM(AP21:AR21) -> -41519 | AT21: =SUM(AP21:AS21) -> -152363
A22: Valor Adicionado Líquido Produzido | B22: =B19+B20 -> 184863 | C22: =C19+C20 -> 225859 | D22: 252954 | E22: 236346 | F22: 900022 | G22: 251097 | H22: 221585 | I22: 209526 | J22: 233946 | K22: 916154 | L22: 183299 | M22: 163289 | N22: 155045 | O22: 122303 | P22: 623936 | Q22: 172428 | R22: 136743 | S22: 123873 | T22: 85082 | U22: 518126 | V22: 108621 | W22: 118330 | X22: 125263 | Y22: 157334 | Z22: 509548 | AA22: 142100 | AB22: 81065 | AC22: 116998 | AD22: 118000 | AE22: 458163 | AF22: 124892 | AG22: 119106 | AH22: 153604 | AI22: =AI19+AI20 -> 122619 | AJ22: 520221 | AK22: =AK19+AK20 -> 124755 | AL22: 156434 | AM22: =AM19+AM20 -> 146776 | AN22: 151432 | AO22: 579397 | AP22: =AP19+AP20 -> 124944 | AQ22: 130985 | AR22: 127359 | AS22: =AS19+AS20 -> 166990 | AT22: 550278
A23: Vlr Adicionado Recebido em Transferência | B23: =B24 -> 21905 | C23: 10089 | D23: 9040 | E23: 12564 | F23: 53598 | G23: 8911 | H23: 10905 | I23: 12676 | J23: 10873 | K23: 43365 | L23: 10319 | M23: 7557 | N23: 7957 | O23: 8959 | P23: 34792 | Q23: 12481 | R23: 12110 | S23: 17277 | T23: 10796 | U23: 52664 | V23: 11730 | W23: 10082 | X23: 6417 | Y23: 7836 | Z23: 36065 | AA23: 6080 | AB23: 6245 | AC23: 5636 | AD23: 5233 | AE23: 23194 | AF23: 4987 | AG23: 4846 | AH23: 5134 | AI23: 10279 | AJ23: 25246 | AK23: 10024 | AL23: 8640 | AM23: 12882 | AN23: 5909 | AO23: 37455 | AP23: 1611 | AQ23: 1687 | AR23: 1993 | AS23: 6154 | AT23: 11445
A24: Receitas Financeiras | B24: 21905 | C24: 10089 | D24: 9040 | E24: 12564 | F24: =SUM(B24:E24) -> 53598 | G24: 8911 | H24: 10905 | I24: 12676 | J24: 10873 | K24: =SUM(G24:J24) -> 43365 | L24: 10319 | M24: 7557 | N24: 7957 | O24: 8959 | P24: =SUM(L24:O24) -> 34792 | Q24: 12481 | R24: 12110 | S24: 17277 | T24: 10796 | U24: =SUM(Q24:T24) -> 52664 | V24: 11730 | W24: 10082 | X24: 6417 | Y24: 7836 | Z24: =SUM(V24:Y24) -> 36065 | AA24: 6080 | AB24: 6245 | AC24: 5636 | AD24: 5233 | AE24: =SUM(AA24:AD24) -> 23194 | AF24: 4987 | AG24: 4846 | AH24: 5134 | AI24: =25246-SUM(AF24:AH24) -> 10279 | AJ24: =SUM(AF24:AI24) -> 25246 | AK24: 10024 | AL24: =18664-AK24 -> 8640 | AM24: =31546-SUM(AK24:AL24) -> 12882 | AN24: =37455-SUM(AK24:AM24) -> 5909 | AO24: =SUM(AK24:AN24) -> 37455 | AP24: 1611 | AQ24: =3298-AP24 -> 1687 | AR24: =5291-SUM(AP24:AQ24) -> 1993 | AS24: =11445-SUM(AP24:AR24) -> 6154 | AT24: =SUM(AP24:AS24) -> 11445
A25: Valor Adicionado Total a Distribuir | B25: =B22+B23 -> 206768 | C25: 235948 | D25: 261994 | E25: 248910 | F25: 953620 | G25: 260008 | H25: 232490 | I25: 222202 | J25: 244819 | K25: 959519 | L25: 193618 | M25: 170846 | N25: 163002 | O25: 131262 | P25: 658728 | Q25: 184909 | R25: 148853 | S25: 141150 | T25: 95878 | U25: 570790 | V25: 120351 | W25: 128412 | X25: 131680 | Y25: 165170 | Z25: 545613 | AA25: 148180 | AB25: 87310 | AC25: 122634 | AD25: 123233 | AE25: 481357 | AF25: 129879 | AG25: 123952 | AH25: 158738 | AI25: =AI22+AI23 -> 132898 | AJ25: 545467 | AK25: =AK22+AK23 -> 134779 | AL25: 165074 | AM25: =AM22+AM23 -> 159658 | AN25: 157341 | AO25: 616852 | AP25: =AP22+AP23 -> 126555 | AQ25: 132672 | AR25: 129352 | AS25: =AS22+AS23 -> 173144 | AT25: 561723
A26: Distribuição do Valor Adicionado | B26: =B25 -> 206768 | C26: 235948 | D26: 261994 | E26: 248910 | F26: 953620 | G26: 260008 | H26: 232490 | I26: 222202 | J26: 244819 | K26: 959519 | L26: 193618 | M26: 170846 | N26: 163002 | O26: 131262 | P26: 658728 | Q26: 184909 | R26: 148853 | S26: 141150 | T26: 95878 | U26: 570790 | V26: 120351 | W26: 128412 | X26: 131680 | Y26: 165170 | Z26: 545613 | AA26: 148180 | AB26: 87310 | AC26: 122634 | AD26: 123233 | AE26: 481357 | AF26: 129879 | AG26: 123952 | AH26: 158738 | AI26: =AI25 -> 132898 | AJ26: 545467 | AK26: =AK25 -> 134779 | AL26: 165074 | AM26: =AM25 -> 159658 | AN26: 157341 | AO26: 616852 | AP26: =AP25 -> 126555 | AQ26: 132672 | AR26: 129352 | AS26: =AS25 -> 173144 | AT26: 561723
A27: Pessoal | B27: =SUM(B28:B30) -> 57784 | C27: 59306 | D27: 61605 | E27: 74607 | F27: 253302 | G27: 67937 | H27: 65903 | I27: 74198 | J27: 73479 | K27: 281517 | L27: 77768 | M27: 69229 | N27: =SUM(N28:N30) -> 69092 | O27: 65081 | P27: 281170 | Q27: 80578 | R27: 76537 | S27: 75078 | T27: 78991 | U27: 311184 | V27: 77823 | W27: 76445 | X27: 75962 | Y27: 70533 | Z27: 300763 | AA27: 77244 | AB27: 78993 | AC27: 72440 | AD27: 66734 | AE27: 295411 | AF27: 71108 | AG27: 74795 | AH27: 76914 | AI27: =SUM(AI28:AI30) -> 71759 | AJ27: 294576 | AK27: =SUM(AK28:AK30) -> 79591 | AL27: 82665 | AM27: =SUM(AM28:AM30) -> 72441 | AN27: 77162 | AO27: 311859 | AP27: =SUM(AP28:AP30) -> 79001 | AQ27: 82047 | AR27: 76322 | AS27: =SUM(AS28:AS30) -> 79906 | AT27: 317276
A28: Remuneração Direta | B28: 45477 | C28: 47173 | D28: 48771 | E28: 53977 | F28: =SUM(B28:E28) -> 195398 | G28: 53614 | H28: 51225 | I28: 57972 | J28: 57210 | K28: =SUM(G28:J28) -> 220021 | L28: 58763 | M28: 51209 | N28: 50904 | O28: 47600 | P28: =SUM(L28:O28) -> 208476 | Q28: 62327 | R28: 57527 | S28: 54792 | T28: 60730 | U28: =SUM(Q28:T28) -> 235376 | V28: 58261 | W28: 56464 | X28: 55273 | Y28: 51633 | Z28: =SUM(V28:Y28) -> 221631 | AA28: 56390 | AB28: 56639 | AC28: 51997 | AD28: 49126 | AE28: =SUM(AA28:AD28) -> 214152 | AF28: 49801 | AG28: 54911 | AH28: 56903 | AI28: =212906-SUM(AF28:AH28) -> 51291 | AJ28: =SUM(AF28:AI28) -> 212906 | AK28: 58994 | AL28: =119886-AK28 -> 60892 | AM28: =170567-SUM(AK28:AL28) -> 50681 | AN28: =226570-SUM(AK28:AM28) -> 56003 | AO28: =SUM(AK28:AN28) -> 226570 | AP28: 56503 | AQ28: =116934-AP28 -> 60431 | AR28: =173031-SUM(AP28:AQ28) -> 56097 | AS28: =232540-SUM(AP28:AR28) -> 59509 | AT28: =SUM(AP28:AS28) -> 232540
A29: Benefícios | B29: 9494 | C29: 9129 | D29: 10026 | E29: 17456 | F29: 46105 | G29: 11316 | H29: 11393 | I29: 12848 | J29: 12683 | K29: 48240 | L29: 13247 | M29: 13275 | N29: 13436 | O29: 13787 | P29: 53745 | Q29: 14802 | R29: 15467 | S29: 15974 | T29: 14927 | U29: 61170 | V29: 15324 | W29: 15189 | X29: 16361 | Y29: 14751 | Z29: 61625 | AA29: 16233 | AB29: 15876 | AC29: 15535 | AD29: 14449 | AE29: 62093 | AF29: 16337 | AG29: 16350 | AH29: 16718 | AI29: =66210-SUM(AF29:AH29) -> 16805 | AJ29: 66210 | AK29: 16631 | AL29: =33536-AK29 -> 16905 | AM29: =50484-SUM(AK29:AL29) -> 16948 | AN29: =67906-SUM(AK29:AM29) -> 17422 | AO29: 67906 | AP29: 18638 | AQ29: =36338-AP29 -> 17700 | AR29: =53473-SUM(AP29:AQ29) -> 17135 | AS29: =70332-SUM(AP29:AR29) -> 16859 | AT29: 70332
A30: F.G.T.S. | B30: 2813 | C30: 3004 | D30: 2808 | E30: 3174 | F30: 11799 | G30: 3007 | H30: 3285 | I30: 3378 | J30: 3586 | K30: 13256 | L30: 5758 | M30: 4745 | N30: 4752 | O30: 3694 | P30: 18949 | Q30: 3449 | R30: 3543 | S30: 4312 | T30: 3334 | U30: 14638 | V30: 4238 | W30: 4792 | X30: 4328 | Y30: 4149 | Z30: 17507 | AA30: 4621 | AB30: 6478 | AC30: 4908 | AD30: 3159 | AE30: 19166 | AF30: 4970 | AG30: 3534 | AH30: 3293 | AI30: =15460-SUM(AF30:AH30) -> 3663 | AJ30: 15460 | AK30: 3966 | AL30: =8834-AK30 -> 4868 | AM30: =13646-SUM(AK30:AL30) -> 4812 | AN30: =17383-SUM(AK30:AM30) -> 3737 | AO30: 17383 | AP30: 3860 | AQ30: =7776-AP30 -> 3916 | AR30: =10866-SUM(AP30:AQ30) -> 3090 | AS30: =14404-SUM(AP30:AR30) -> 3538 | AT30: 14404
A31: Impostos, Taxas e Contribuições | B31: =SUM(B32:B34) -> 64954 | C31: 75299 | D31: 90962 | E31: 55327 | F31: 286542 | G31: 90587 | H31: 75256 | I31: 71039 | J31: 60978 | K31: 297860 | L31: 56587 | M31: 49919 | N31: 44489 | O31: 17815 | P31: 168810 | Q31: 50854 | R31: 38451 | S31: 32751 | T31: 17602 | U31: 139658 | V31: 26239 | W31: 29300 | X31: 31281 | Y31: 23850 | Z31: 110670 | AA31: 32917 | AB31: 18875 | AC31: 26489 | AD31: 14508 | AE31: 92789 | AF31: 29349 | AG31: 39056 | AH31: 49190 | AI31: =SUM(AI32:AI34) -> 31688 | AJ31: 149283 | AK31: =SUM(AK32:AK34) -> 38689 | AL31: 49992 | AM31: =SUM(AM32:AM34) -> 48938 | AN31: 45773 | AO31: 183392 | AP31: =SUM(AP32:AP34) -> 34789 | AQ31: 38546 | AR31: 35599 | AS31: =SUM(AS32:AS34) -> 52441 | AT31: 161375
A32: Federais | B32: 54227 | C32: 63062 | D32: 77788 | E32: 42557 | F32: =SUM(B32:E32) -> 237634 | G32: 77279 | H32: 62613 | I32: 58416 | J32: 46779 | K32: =SUM(G32:J32) -> 245087 | L32: 45534 | M32: 39602 | N32: 34403 | O32: 9033 | P32: =SUM(L32:O32) -> 128572 | Q32: 39152 | R32: 29017 | S32: 23172 | T32: 8785 | U32: =SUM(Q32:T32) -> 100126 | V32: 17980 | W32: 20833 | X32: 21918 | Y32: 15057 | Z32: =SUM(V32:Y32) -> 75788 | AA32: 23689 | AB32: 10769 | AC32: 17378 | AD32: 5328 | AE32: =SUM(AA32:AD32) -> 57164 | AF32: 20018 | AG32: 24853 | AH32: 33282 | AI32: =96225-SUM(AF32:AH32) -> 18072 | AJ32: =SUM(AF32:AI32) -> 96225 | AK32: 24984 | AL32: =59213-AK32 -> 34229 | AM32: =92839-SUM(AK32:AL32) -> 33626 | AN32: =124831-SUM(AK32:AM32) -> 31992 | AO32: =SUM(AK32:AN32) -> 124831 | AP32: 20917 | AQ32: =45693-AP32 -> 24776 | AR32: =67875-SUM(AP32:AQ32) -> 22182 | AS32: =104259-SUM(AP32:AR32) -> 36384 | AT32: =SUM(AP32:AS32) -> 104259
A33: Estaduais | B33: 1611 | C33: 1689 | D33: 1399 | E33: 1403 | F33: 6102 | G33: 1577 | H33: 1663 | I33: 1481 | J33: 1939 | K33: 6660 | L33: 1637 | M33: 1433 | N33: 1618 | O33: 1568 | P33: 6256 | Q33: 1561 | R33: 1351 | S33: 1756 | T33: 1358 | U33: 6026 | V33: 1429 | W33: 1396 | X33: 1567 | Y33: 1416 | Z33: 5808 | AA33: 1535 | AB33: 1579 | AC33: 1840 | AD33: 1740 | AE33: 6694 | AF33: 1684 | AG33: 1447 | AH33: 1748 | AI33: =6352-SUM(AF33:AH33) -> 1473 | AJ33: 6352 | AK33: 1359 | AL33: =2630-AK33 -> 1271 | AM33: =4129-SUM(AK33:AL33) -> 1499 | AN33: =5433-SUM(AK33:AM33) -> 1304 | AO33: 5433 | AP33: 1508 | AQ33: =2814-AP33 -> 1306 | AR33: =4109-SUM(AP33:AQ33) -> 1295 | AS33: =5690-SUM(AP33:AR33) -> 1581 | AT33: 5690
A34: Municipais | B34: 9116 | C34: 10548 | D34: 11775 | E34: 11367 | F34: 42806 | G34: 11731 | H34: 10980 | I34: 11142 | J34: 12260 | K34: 46113 | L34: 9416 | M34: 8884 | N34: 8468 | O34: 7214 | P34: 33982 | Q34: 10141 | R34: 8083 | S34: 7823 | T34: 7459 | U34: 33506 | V34: 6830 | W34: 7071 | X34: 7796 | Y34: 7377 | Z34: 29074 | AA34: 7693 | AB34: 6527 | AC34: 7271 | AD34: 7440 | AE34: 28931 | AF34: 7647 | AG34: 12756 | AH34: 14160 | AI34: =46706-SUM(AF34:AH34) -> 12143 | AJ34: 46706 | AK34: 12346 | AL34: =26838-AK34 -> 14492 | AM34: =40651-SUM(AK34:AL34) -> 13813 | AN34: =53128-SUM(AK34:AM34) -> 12477 | AO34: 53128 | AP34: 12364 | AQ34: =24828-AP34 -> 12464 | AR34: =36950-SUM(AP34:AQ34) -> 12122 | AS34: =51426-SUM(AP34:AR34) -> 14476 | AT34: 51426
A35: Remuneração de Capitais de Terceiros | B35: =SUM(B36:B37) -> 39871 | C35: 41177 | D35: 29823 | E35: 32693 | F35: 143564 | G35: 26203 | H35: 35532 | I35: 31779 | J35: 31568 | K35: 125082 | L35: 27169 | M35: 26521 | N35: =SUM(N36:N37) -> 33236 | O35: 30263 | P35: 117189 | Q35: 37578 | R35: 29130 | S35: 43895 | T35: 27474 | U35: 138077 | V35: 28878 | W35: 28391 | X35: 25509 | Y35: 79319 | Z35: 162097 | AA35: 38086 | AB35: 12094 | AC35: 24733 | AD35: 23565 | AE35: 98478 | AF35: 35385 | AG35: 14060 | AH35: 23492 | AI35: =SUM(AI36:AI37) -> 25692 | AJ35: 98629 | AK35: =SUM(AK36:AK37) -> 25553 | AL35: 26073 | AM35: =SUM(AM36:AM37) -> 30566 | AN35: 24034 | AO35: 106226 | AP35: =SUM(AP36:AP37) -> 25986 | AQ35: 21471 | AR35: 22877 | AS35: =SUM(AS36:AS37) -> 26499 | AT35: 96833
A36: Juros | B36: 28744 | C36: 30015 | D36: =76805-SUM(B36:C36) -> 18046 | E36: 20445 | F36: =SUM(B36:E36) -> 97250 | G36: 13714 | H36: 22670 | I36: 18416 | J36: 17151 | K36: =SUM(G36:J36) -> 71951 | L36: 13340 | M36: 12313 | N36: 18567 | O36: 16058 | P36: =SUM(L36:O36) -> 60278 | Q36: 22660 | R36: 15031 | S36: 30372 | T36: 13843 | U36: =SUM(Q36:T36) -> 81906 | V36: 14048 | W36: 13472 | X36: 11046 | Y36: 64142 | Z36: =SUM(V36:Y36) -> 102708 | AA36: 24193 | AB36: 20629 | AC36: 21374 | AD36: =85959-SUM(AA36:AC36) -> 19763 | AE36: =SUM(AA36:AD36) -> 85959 | AF36: 19627 | AG36: 20998 | AH36: 20106 | AI36: =82434-SUM(AF36:AH36) -> 21703 | AJ36: =SUM(AF36:AI36) -> 82434 | AK36: 23027 | AL36: =46585-AK36 -> 23558 | AM36: =74628-SUM(AK36:AL36) -> 28043 | AN36: =98444-SUM(AK36:AM36) -> 23816 | AO36: =SUM(AK36:AN36) -> 98444 | AP36: 24056 | AQ36: =43649-AP36 -> 19593 | AR36: =64226-SUM(AP36:AQ36) -> 20577 | AS36: =88639-SUM(AP36:AR36) -> 24413 | AT36: =SUM(AP36:AS36) -> 88639
A37: Aluguéis | B37: 11127 | C37: 11162 | D37: 11777 | E37: 12248 | F37: 46314 | G37: 12489 | H37: 12862 | I37: 13363 | J37: 14417 | K37: 53131 | L37: 13829 | M37: 14208 | N37: 14669 | O37: 14205 | P37: 56911 | Q37: 14918 | R37: 14099 | S37: 13523 | T37: 13631 | U37: 56171 | V37: 14830 | W37: 14919 | X37: 14463 | Y37: 15177 | Z37: 59389 | AA37: 13893 | AB37: -8535 | AC37: 3359 | AD37: 3802 | AE37: 12519 | AF37: 15758 | AG37: -6938 | AH37: 3386 | AI37: =16195-SUM(AF37:AH37) -> 3989 | AJ37: 16195 | AK37: 2526 | AL37: =5041-AK37 -> 2515 | AM37: =7564-SUM(AK37:AL37) -> 2523 | AN37: =7782-SUM(AK37:AM37) -> 218 | AO37: 7782 | AP37: 1930 | AQ37: =3808-AP37 -> 1878 | AR37: =6108-SUM(AP37:AQ37) -> 2300 | AS37: =8194-SUM(AP37:AR37) -> 2086 | AT37: 8194
A38: Remuneração de Capitais Próprios | B38: =SUM(B39:B42) -> 44159 | C38: 60165 | D38: 79605 | E38: 86283 | F38: =SUM(F39:F42) -> 270212 | G38: =SUM(G39:G42) -> 75281 | H38: 55799 | I38: 45186 | J38: 78794 | K38: 255060 | L38: 32094 | M38: 25177 | N38: 16185 | O38: 18103 | P38: 91559 | Q38: 15899 | R38: 4735 | S38: -10574 | T38: -28189 | U38: -18129 | V38: -12589 | W38: -5724 | X38: -1072 | Y38: -8532 | Z38: -27917 | AA38: -67 | AB38: -22652 | AC38: -1028 | AD38: 18426 | AE38: -5321 | AF38: -5963 | AG38: -3959 | AH38: 9142 | AI38: =SUM(AI39:AI42) -> 3759 | AJ38: 2979 | AK38: =SUM(AK39:AK42) -> -9054 | AL38: 6344 | AM38: =SUM(AM39:AM42) -> 7713 | AN38: 10372 | AO38: 15375 | AP38: =SUM(AP39:AP42) -> -13221 | AQ38: -9392 | AR38: -5446 | AS38: =SUM(AS39:AS42) -> 14298 | AT38: -13761
A39: Juros sobre Capital Próprio | B39: 0 | C39: 0 | D39: 0 | E39: 73925 | F39: =SUM(B39:E39) -> 73925 | G39: 0 | H39: 0 | I39: 0 | J39: 68445 | K39: =SUM(G39:J39) -> 68445 | L39: 0 | M39: 0 | N39: 0 | O39: 45847 | P39: =SUM(L39:O39) -> 45847 | Q39: 0 | R39: 0 | S39: 0 | T39: 0 | U39: =SUM(Q39:T39) -> 0 | V39: 0 | W39: 0 | X39: 0 | Y39: 0 | Z39: =SUM(V39:Y39) -> 0 | AA39: 0 | AB39: 0 | AC39: 0 | AD39: 0 | AE39: =SUM(AA39:AD39) -> 0 | AF39: 0 | AG39: 0 | AH39: 0 | AI39: 0 | AJ39: =SUM(AF39:AI39) -> 0 | AK39: 0 | AL39: 0 | AM39: 0 | AN39: 0 | AO39: =SUM(AK39:AN39) -> 0 | AP39: 0 | AQ39: 0 | AR39: 0 | AS39: 0 | AT39: =SUM(AP39:AS39) -> 0
A40: Dividendos | B40: 0 | C40: 0 | D40: 0 | E40: 131436 | F40: 131436 | G40: 0 | H40: 0 | I40: 0 | J40: 90000 | K40: 90000 | L40: 0 | M40: 0 | N40: 0 | O40: 15000 | P40: 15000 | Q40: 0 | R40: 0 | S40: 0 | T40: 0 | U40: 0 | V40: 0 | W40: 0 | X40: 0 | Y40: 0 | Z40: 0 | AA40: 0 | AB40: 0 | AC40: 0 | AD40: 0 | AE40: 0 | AF40: 0 | AG40: 0 | AH40: 0 | AI40: 707 | AJ40: 707 | AK40: 0 | AL40: 0 | AM40: 0 | AN40: 3652 | AO40: 3652 | AP40: 0 | AQ40: 0 | AR40: 0 | AS40: 0 | AT40: 0
A41: Dividendos adicionais propostos | B41: 0 | C41: 0 | D41: 0 | E41: 0 | F41: 0 | G41: 0 | H41: 0 | I41: 0 | J41: 35401 | K41: 35401 | L41: 0 | M41: 0 | N41: 0 | O41: 8738 | P41: 8738 | Q41: 0 | R41: 0 | S41: 0 | T41: 0 | U41: 0 | V41: 0 | W41: 0 | X41: 0 | Y41: 0 | Z41: 0 | AA41: 0 | AB41: 0 | AC41: 0 | AD41: 0 | AE41: 0 | AF41: 0 | AG41: 0 | AH41: 0 | AI41: 2123 | AJ41: 2123 | AK41: 0 | AL41: 0 | AM41: 0 | AN41: 8033 | AO41: 8033 | AP41: 0 | AQ41: 0 | AR41: 0 | AS41: 0 | AT41: 0
A42: Lucros Retidos / Prejuízo do Período | B42: 44159 | C42: 60165 | D42: 79605 | E42: -119078 | F42: 64851 | G42: 75281 | H42: 55799 | I42: 45186 | J42: -115052 | K42: 61214 | L42: 32094 | M42: 25177 | N42: 16185 | O42: -51482 | P42: 21974 | Q42: 15899 | R42: 4735 | S42: -10574 | T42: -28189 | U42: -18129 | V42: -12589 | W42: -5724 | X42: -1072 | Y42: -8532 | Z42: -27917 | AA42: -67 | AB42: -22652 | AC42: =-23747-SUM(AA42:AB42) -> -1028 | AD42: =-5321-SUM(AA42:AC42) -> 18426 | AE42: -5321 | AF42: -5963 | AG42: -3959 | AH42: 9142 | AI42: =149-SUM(AF42:AH42) -> 929 | AJ42: 149 | AK42: -9054 | AL42: =-2710-AK42 -> 6344 | AM42: =5003-SUM(AK42:AL42) -> 7713 | AN42: =3690-SUM(AK42:AM42) -> -1313 | AO42: 3690 | AP42: -13221 | AQ42: =-22613-AP42 -> -9392 | AR42: =-28059-SUM(AP42:AQ42) -> -5446 | AS42: =-13761-SUM(AP42:AR42) -> 14298 | AT42: -13761

Sheet Indicadores
B9: 1T12 | C9: 2T12 | D9: 3T12 | E9: 4T12 | F9: 2012 | G9: 1T13 | H9: 2T13 | I9: 3T13 | J9: 4T13 | K9: 2013 | L9: 1T14 | M9: 2T14 | N9: 3T14 | O9: 4T14 | P9: 2014 | Q9: 1T15 | R9: 2T15 | S9: 3T15 | T9: 4T15 | U9: 2015 | V9: 1T16 | W9: 2T16 | X9: 3T16 | Y9: 4T16 | Z9: 2016 | AA9: 1T17 | AB9: 2T17 | AC9: 3T17 | AD9: 4T17 | AE9: 2017 | AF9: 1T18 | AG9: 2T18 | AH9: 3T18 | AI9: 4T18 | AJ9: 2018 | AK9: 1T19 | AL9: 2T19 | AM9: 3T19 | AN9: 4T19 | AO9: 2019 | AP9: 1T20 | AQ9: 2T20 | AR9: 3T20 | AS9: 4T20 | AT9: 2020
A11: Indicadores de liquidez
A12: Liquidez corrente | B12: ='Balanço Patrimonial'!B12/'Balanço Patrimonial'!B26 -> 0.7750235878 | C12: ='Balanço Patrimonial'!C12/'Balanço Patrimonial'!C26 -> 0.7694913378 | D12: ='Balanço Patrimonial'!D12/'Balanço Patrimonial'!D26 -> 0.9366949756 | E12: ='Balanço Patrimonial'!E12/'Balanço Patrimonial'!E26 -> 0.8678080873 | F12: ='Balanço Patrimonial'!F12/'Balanço Patrimonial'!F26 -> 0.8678080873 | G12: ='Balanço Patrimonial'!G12/'Balanço Patrimonial'!G26 -> 1.099309916 | H12: ='Balanço Patrimonial'!H12/'Balanço Patrimonial'!H26 -> 1.265208401 | I12: ='Balanço Patrimonial'!I12/'Balanço Patrimonial'!I26 -> 1.435044891 | J12: ='Balanço Patrimonial'!J12/'Balanço Patrimonial'!J26 -> 0.8483229107 | K12: ='Balanço Patrimonial'!K12/'Balanço Patrimonial'!K26 -> 0.8483229107 | L12: ='Balanço Patrimonial'!L12/'Balanço Patrimonial'!L26 -> 0.8556213467 | M12: ='Balanço Patrimonial'!M12/'Balanço Patrimonial'!M26 -> 1.172813889 | N12: ='Balanço Patrimonial'!N12/'Balanço Patrimonial'!N26 -> 1.261330964 | O12: ='Balanço Patrimonial'!O12/'Balanço Patrimonial'!O26 -> 1.174648514 | P12: ='Balanço Patrimonial'!P12/'Balanço Patrimonial'!P26 -> 1.174648514 | Q12: ='Balanço Patrimonial'!Q12/'Balanço Patrimonial'!Q26 -> 1.111138182 | R12: ='Balanço Patrimonial'!R12/'Balanço Patrimonial'!R26 -> 1.221349808 | S12: ='Balanço Patrimonial'!S12/'Balanço Patrimonial'!S26 -> 1.59538877 | T12: ='Balanço Patrimonial'!T12/'Balanço Patrimonial'!T26 -> 1.472986756 | U12: ='Balanço Patrimonial'!U12/'Balanço Patrimonial'!U26 -> 1.472986756 | V12: ='Balanço Patrimonial'!V12/'Balanço Patrimonial'!V26 -> 1.149766927 | W12: ='Balanço Patrimonial'!W12/'Balanço Patrimonial'!W26 -> 1.185593554 | X12: ='Balanço Patrimonial'!X12/'Balanço Patrimonial'!X26 -> 1.09232437 | Y12: ='Balanço Patrimonial'!Y12/'Balanço Patrimonial'!Y26 -> 1.119814761 | Z12: ='Balanço Patrimonial'!Z12/'Balanço Patrimonial'!Z26 -> 1.119814761 | AA12: ='Balanço Patrimonial'!AA12/'Balanço Patrimonial'!AA26 -> 1.109106031 | AB12: ='Balanço Patrimonial'!AB12/'Balanço Patrimonial'!AB26 -> 1.488889632 | AC12: ='Balanço Patrimonial'!AC12/'Balanço Patrimonial'!AC26 -> 1.469071916 | AD12: ='Balanço Patrimonial'!AD12/'Balanço Patrimonial'!AD26 -> 1.178446339 | AE12: ='Balanço Patrimonial'!AE12/'Balanço Patrimonial'!AE26 -> 1.178446339 | AF12: ='Balanço Patrimonial'!AF12/'Balanço Patrimonial'!AF26 -> 1.223952096 | AG12: ='Balanço Patrimonial'!AG12/'Balanço Patrimonial'!AG26 -> 1.384868774 | AH12: ='Balanço Patrimonial'!AH12/'Balanço Patrimonial'!AH26 -> 1.445908653 | AI12: ='Balanço Patrimonial'!AI12/'Balanço Patrimonial'!AI26 -> 1.367513978 | AJ12: ='Balanço Patrimonial'!AJ12/'Balanço Patrimonial'!AJ26 -> 1.367513978 | AK12: ='Balanço Patrimonial'!AK12/'Balanço Patrimonial'!AK26 -> 1.227820632 | AL12: ='Balanço Patrimonial'!AL12/'Balanço Patrimonial'!AL26 -> 2.050143501 | AM12: ='Balanço Patrimonial'!AM12/'Balanço Patrimonial'!AM26 -> 2.132153412 | AN12: ='Balanço Patrimonial'!AN12/'Balanço Patrimonial'!AN26 -> 2.537142784 | AO12: ='Balanço Patrimonial'!AO12/'Balanço Patrimonial'!AO26 -> 2.537142784 | AP12: ='Balanço Patrimonial'!AP12/'Balanço Patrimonial'!AP26 -> 2.216358282 | AQ12: ='Balanço Patrimonial'!AQ12/'Balanço Patrimonial'!AQ26 -> 2.059107159 | AR12: ='Balanço Patrimonial'!AR12/'Balanço Patrimonial'!AR26 -> 4.392273932 | AS12: ='Balanço Patrimonial'!AS12/'Balanço Patrimonial'!AS26 -> 4.180073811 | AT12: ='Balanço Patrimonial'!AT12/'Balanço Patrimonial'!AT26 -> 4.180073811
A13: Liquidez imediata | B13: =('Balanço Patrimonial'!B13+'Balanço Patrimonial'!B14)/'Balanço Patrimonial'!B26 -> 0.3616062272 | C13: =('Balanço Patrimonial'!C13+'Balanço Patrimonial'!C14)/'Balanço Patrimonial'!C26 -> 0.2531980707 | D13: =('Balanço Patrimonial'!D13+'Balanço Patrimonial'!D14)/'Balanço Patrimonial'!D26 -> 0.4683814133 | E13: =('Balanço Patrimonial'!E13+'Balanço Patrimonial'!E14)/'Balanço Patrimonial'!E26 -> 0.380844454 | F13: =('Balanço Patrimonial'!F13+'Balanço Patrimonial'!F14)/'Balanço Patrimonial'!F26 -> 0.380844454 | G13: =('Balanço Patrimonial'!G13+'Balanço Patrimonial'!G14)/'Balanço Patrimonial'!G26 -> 0.5496382709 | H13: =('Balanço Patrimonial'!H13+'Balanço Patrimonial'!H14)/'Balanço Patrimonial'!H26 -> 0.5119927646 | I13: =('Balanço Patrimonial'!I13+'Balanço Patrimonial'!I14)/'Balanço Patrimonial'!I26 -> 0.7098936377 | J13: =('Balanço Patrimonial'!J13+'Balanço Patrimonial'!J14)/'Balanço Patrimonial'!J26 -> 0.3410668478 | K13: =('Balanço Patrimonial'!K13+'Balanço Patrimonial'!K14)/'Balanço Patrimonial'!K26 -> 0.3410668478 | L13: =('Balanço Patrimonial'!L13+'Balanço Patrimonial'!L14)/'Balanço Patrimonial'!L26 -> 0.3865410556 | M13: =('Balanço Patrimonial'!M13+'Balanço Patrimonial'!M14)/'Balanço Patrimonial'!M26 -> 0.5373912975 | N13: =('Balanço Patrimonial'!N13+'Balanço Patrimonial'!N14)/'Balanço Patrimonial'!N26 -> 0.7427413166 | O13: =('Balanço Patrimonial'!O13+'Balanço Patrimonial'!O14)/'Balanço Patrimonial'!O26 -> 0.7254209028 | P13: =('Balanço Patrimonial'!P13+'Balanço Patrimonial'!P14)/'Balanço Patrimonial'!P26 -> 0.7254209028 | Q13: =('Balanço Patrimonial'!Q13+'Balanço Patrimonial'!Q14)/'Balanço Patrimonial'!Q26 -> 0.6709889912 | R13: =('Balanço Patrimonial'!R13+'Balanço Patrimonial'!R14)/'Balanço Patrimonial'!R26 -> 0.6340080169 | S13: =('Balanço Patrimonial'!S13+'Balanço Patrimonial'!S14)/'Balanço Patrimonial'!S26 -> 0.945697126 | T13: =('Balanço Patrimonial'!T13+'Balanço Patrimonial'!T14)/'Balanço Patrimonial'!T26 -> 0.8904584316 | U13: =('Balanço Patrimonial'!U13+'Balanço Patrimonial'!U14)/'Balanço Patrimonial'!U26 -> 0.8904584316 | V13: =('Balanço Patrimonial'!V13+'Balanço Patrimonial'!V14)/'Balanço Patrimonial'!V26 -> 0.6997004796 | W13: =('Balanço Patrimonial'!W13+'Balanço Patrimonial'!W14)/'Balanço Patrimonial'!W26 -> 0.6561998304 | X13: =('Balanço Patrimonial'!X13+'Balanço Patrimonial'!X14)/'Balanço Patrimonial'!X26 -> 0.5853027422 | Y13: =('Balanço Patrimonial'!Y13+'Balanço Patrimonial'!Y14)/'Balanço Patrimonial'!Y26 -> 0.6770901828 | Z13: =('Balanço Patrimonial'!Z13+'Balanço Patrimonial'!Z14)/'Balanço Patrimonial'!Z26 -> 0.6770901828 | AA13: =('Balanço Patrimonial'!AA13+'Balanço Patrimonial'!AA14)/'Balanço Patrimonial'!AA26 -> 0.5637190051 | AB13: =('Balanço Patrimonial'!AB13+'Balanço Patrimonial'!AB14)/'Balanço Patrimonial'!AB26 -> 1.006306839 | AC13: =('Balanço Patrimonial'!AC13+'Balanço Patrimonial'!AC14)/'Balanço Patrimonial'!AC26 -> 0.8945029358 | AD13: =('Balanço Patrimonial'!AD13+'Balanço Patrimonial'!AD14)/'Balanço Patrimonial'!AD26 -> 0.7908549428 | AE13: =('Balanço Patrimonial'!AE13+'Balanço Patrimonial'!AE14)/'Balanço Patrimonial'!AE26 -> 0.7908549428 | AF13: =('Balanço Patrimonial'!AF13+'Balanço Patrimonial'!AF14)/'Balanço Patrimonial'!AF26 -> 0.7924704117 | AG13: =('Balanço Patrimonial'!AG13+'Balanço Patrimonial'!AG14)/'Balanço Patrimonial'!AG26 -> 0.8541870457 | AH13: =('Balanço Patrimonial'!AH13+'Balanço Patrimonial'!AH14)/'Balanço Patrimonial'!AH26 -> 0.868585956 | AI13: =('Balanço Patrimonial'!AI13+'Balanço Patrimonial'!AI14)/'Balanço Patrimonial'!AI26 -> 0.8467892601 | AJ13: =('Balanço Patrimonial'!AJ13+'Balanço Patrimonial'!AJ14)/'Balanço Patrimonial'!AJ26 -> 0.8467892601 | AK13: =('Balanço Patrimonial'!AK13+'Balanço Patrimonial'!AK14)/'Balanço Patrimonial'!AK26 -> 0.7577517613 | AL13: =('Balanço Patrimonial'!AL13+'Balanço Patrimonial'!AL14)/'Balanço Patrimonial'!AL26 -> 1.476082669 | AM13: =('Balanço Patrimonial'!AM13+'Balanço Patrimonial'!AM14)/'Balanço Patrimonial'!AM26 -> 1.577066277 | AN13: =('Balanço Patrimonial'!AN13+'Balanço Patrimonial'!AN14)/'Balanço Patrimonial'!AN26 -> 1.804927199 | AO13: =('Balanço Patrimonial'!AO13+'Balanço Patrimonial'!AO14)/'Balanço Patrimonial'!AO26 -> 1.804927199 | AP13: =('Balanço Patrimonial'!AP13+'Balanço Patrimonial'!AP14)/'Balanço Patrimonial'!AP26 -> 1.514763887 | AQ13: =('Balanço Patrimonial'!AQ13+'Balanço Patrimonial'!AQ14)/'Balanço Patrimonial'!AQ26 -> 1.350085924 | AR13: =('Balanço Patrimonial'!AR13+'Balanço Patrimonial'!AR14)/'Balanço Patrimonial'!AR26 -> 3.768529479 | AS13: =('Balanço Patrimonial'!AS13+'Balanço Patrimonial'!AS14)/'Balanço Patrimonial'!AS26 -> 3.611120857 | AT13: =('Balanço Patrimonial'!AT13+'Balanço Patrimonial'!AT14)/'Balanço Patrimonial'!AT26 -> 3.611120857
A14: Liquidez seca | B14: =('Balanço Patrimonial'!B12-'Balanço Patrimonial'!B15)/'Balanço Patrimonial'!B26 -> 0.7434236165 | C14: =('Balanço Patrimonial'!C12-'Balanço Patrimonial'!C15)/'Balanço Patrimonial'!C26 -> 0.7305377885 | D14: =('Balanço Patrimonial'!D12-'Balanço Patrimonial'!D15)/'Balanço Patrimonial'!D26 -> 0.8947432403 | E14: =('Balanço Patrimonial'!E12-'Balanço Patrimonial'!E15)/'Balanço Patrimonial'!E26 -> 0.8236678232 | F14: =('Balanço Patrimonial'!F12-'Balanço Patrimonial'!F15)/'Balanço Patrimonial'!F26 -> 0.8236678232 | G14: =('Balanço Patrimonial'!G12-'Balanço Patrimonial'!G15)/'Balanço Patrimonial'!G26 -> 1.057599392 | H14: =('Balanço Patrimonial'!H12-'Balanço Patrimonial'!H15)/'Balanço Patrimonial'!H26 -> 1.203758474 | I14: =('Balanço Patrimonial'!I12-'Balanço Patrimonial'!I15)/'Balanço Patrimonial'!I26 -> 1.374070873 | J14: =('Balanço Patrimonial'!J12-'Balanço Patrimonial'!J15)/'Balanço Patrimonial'!J26 -> 0.7994786395 | K14: =('Balanço Patrimonial'!K12-'Balanço Patrimonial'!K15)/'Balanço Patrimonial'!K26 -> 0.7994786395 | L14: =('Balanço Patrimonial'!L12-'Balanço Patrimonial'!L15)/'Balanço Patrimonial'!L26 -> 0.7978314219 | M14: =('Balanço Patrimonial'!M12-'Balanço Patrimonial'!M15)/'Balanço Patrimonial'!M26 -> 1.088327012 | N14: =('Balanço Patrimonial'!N12-'Balanço Patrimonial'!N15)/'Balanço Patrimonial'!N26 -> 1.180656485 | O14: =('Balanço Patrimonial'!O12-'Balanço Patrimonial'!O15)/'Balanço Patrimonial'!O26 -> 1.10308258 | P14: =('Balanço Patrimonial'!P12-'Balanço Patrimonial'!P15)/'Balanço Patrimonial'!P26 -> 1.10308258 | Q14: =('Balanço Patrimonial'!Q12-'Balanço Patrimonial'!Q15)/'Balanço Patrimonial'!Q26 -> 1.050703844 | R14: =('Balanço Patrimonial'!R12-'Balanço Patrimonial'!R15)/'Balanço Patrimonial'!R26 -> 1.144833054 | S14: =('Balanço Patrimonial'!S12-'Balanço Patrimonial'!S15)/'Balanço Patrimonial'!S26 -> 1.510024588 | T14: =('Balanço Patrimonial'!T12-'Balanço Patrimonial'!T15)/'Balanço Patrimonial'!T26 -> 1.384167353 | U14: =('Balanço Patrimonial'!U12-'Balanço Patrimonial'!U15)/'Balanço Patrimonial'!U26 -> 1.384167353 | V14: =('Balanço Patrimonial'!V12-'Balanço Patrimonial'!V15)/'Balanço Patrimonial'!V26 -> 1.071699373 | W14: =('Balanço Patrimonial'!W12-'Balanço Patrimonial'!W15)/'Balanço Patrimonial'!W26 -> 1.096594523 | X14: =('Balanço Patrimonial'!X12-'Balanço Patrimonial'!X15)/'Balanço Patrimonial'!X26 -> 1.009607421 | Y14: =('Balanço Patrimonial'!Y12-'Balanço Patrimonial'!Y15)/'Balanço Patrimonial'!Y26 -> 1.038282071 | Z14: =('Balanço Patrimonial'!Z12-'Balanço Patrimonial'!Z15)/'Balanço Patrimonial'!Z26 -> 1.038282071 | AA14: =('Balanço Patrimonial'!AA12-'Balanço Patrimonial'!AA15)/'Balanço Patrimonial'!AA26 -> 1.020045646 | AB14: =('Balanço Patrimonial'!AB12-'Balanço Patrimonial'!AB15)/'Balanço Patrimonial'!AB26 -> 1.404890123 | AC14: =('Balanço Patrimonial'!AC12-'Balanço Patrimonial'!AC15)/'Balanço Patrimonial'!AC26 -> 1.381672995 | AD14: =('Balanço Patrimonial'!AD12-'Balanço Patrimonial'!AD15)/'Balanço Patrimonial'!AD26 -> 1.112027389 | AE14: =('Balanço Patrimonial'!AE12-'Balanço Patrimonial'!AE15)/'Balanço Patrimonial'!AE26 -> 1.112027389 | AF14: =('Balanço Patrimonial'!AF12-'Balanço Patrimonial'!AF15)/'Balanço Patrimonial'!AF26 -> 1.152561717 | AG14: =('Balanço Patrimonial'!AG12-'Balanço Patrimonial'!AG15)/'Balanço Patrimonial'!AG26 -> 1.306952082 | AH14: =('Balanço Patrimonial'!AH12-'Balanço Patrimonial'!AH15)/'Balanço Patrimonial'!AH26 -> 1.36661699 | AI14: =('Balanço Patrimonial'!AI12-'Balanço Patrimonial'!AI15)/'Balanço Patrimonial'!AI26 -> 1.290302718 | AJ14: =('Balanço Patrimonial'!AJ12-'Balanço Patrimonial'!AJ15)/'Balanço Patrimonial'!AJ26 -> 1.290302718 | AK14: =('Balanço Patrimonial'!AK12-'Balanço Patrimonial'!AK15)/'Balanço Patrimonial'!AK26 -> 1.157472753 | AL14: =('Balanço Patrimonial'!AL12-'Balanço Patrimonial'!AL15)/'Balanço Patrimonial'!AL26 -> 1.976404945 | AM14: =('Balanço Patrimonial'!AM12-'Balanço Patrimonial'!AM15)/'Balanço Patrimonial'!AM26 -> 2.053160988 | AN14: =('Balanço Patrimonial'!AN12-'Balanço Patrimonial'!AN15)/'Balanço Patrimonial'!AN26 -> 2.440537605 | AO14: =('Balanço Patrimonial'!AO12-'Balanço Patrimonial'!AO15)/'Balanço Patrimonial'!AO26 -> 2.440537605 | AP14: =('Balanço Patrimonial'!AP12-'Balanço Patrimonial'!AP15)/'Balanço Patrimonial'!AP26 -> 2.123481263 | AQ14: =('Balanço Patrimonial'!AQ12-'Balanço Patrimonial'!AQ15)/'Balanço Patrimonial'!AQ26 -> 1.970037899 | AR14: =('Balanço Patrimonial'!AR12-'Balanço Patrimonial'!AR15)/'Balanço Patrimonial'!AR26 -> 4.309021937 | AS14: =('Balanço Patrimonial'!AS12-'Balanço Patrimonial'!AS15)/'Balanço Patrimonial'!AS26 -> 4.098123022 | AT14: =('Balanço Patrimonial'!AT12-'Balanço Patrimonial'!AT15)/'Balanço Patrimonial'!AT26 -> 4.098123022
A16: Indicadores de endividamento
A17: Dívida bruta / Patrimônio Líquido | B17: =Endividamento!B10/'Balanço Patrimonial'!B46 -> 0.3874309639 | C17: =Endividamento!C10/'Balanço Patrimonial'!C46 -> 0.3500396542 | D17: =Endividamento!D10/'Balanço Patrimonial'!D46 -> 0.3146421612 | E17: =Endividamento!E10/'Balanço Patrimonial'!E46 -> 0.3164195219 | F17: =Endividamento!F10/'Balanço Patrimonial'!F46 -> 0.3164195219 | G17: =Endividamento!G10/'Balanço Patrimonial'!G46 -> 0.3026489563 | H17: =Endividamento!H10/'Balanço Patrimonial'!H46 -> 0.2534838833 | I17: =Endividamento!I10/'Balanço Patrimonial'!I46 -> 0.2402995984 | J17: =Endividamento!J10/'Balanço Patrimonial'!J46 -> 0.2221732648 | K17: =Endividamento!K10/'Balanço Patrimonial'!K46 -> 0.2221732648 | L17: =Endividamento!L10/'Balanço Patrimonial'!L46 -> 0.2158990102 | M17: =Endividamento!M10/'Balanço Patrimonial'!M46 -> 0.2429158063 | N17: =Endividamento!N10/'Balanço Patrimonial'!N46 -> 0.2433128026 | O17: =Endividamento!O10/'Balanço Patrimonial'!O46 -> 0.2504609348 | P17: =Endividamento!P10/'Balanço Patrimonial'!P46 -> 0.2504609348 | Q17: =Endividamento!Q10/'Balanço Patrimonial'!Q46 -> 0.2343452111 | R17: =Endividamento!R10/'Balanço Patrimonial'!R46 -> 0.2250278567 | S17: =Endividamento!S10/'Balanço Patrimonial'!S46 -> 0.2551340412 | T17: =Endividamento!T10/'Balanço Patrimonial'!T46 -> 0.2409441892 | U17: =Endividamento!U10/'Balanço Patrimonial'!U46 -> 0.2409441892 | V17: =Endividamento!V10/'Balanço Patrimonial'!V46 -> 0.2126983513 | W17: =Endividamento!W10/'Balanço Patrimonial'!W46 -> 0.1896211859 | X17: =Endividamento!X10/'Balanço Patrimonial'!X46 -> 0.1657486506 | Y17: =Endividamento!Y10/'Balanço Patrimonial'!Y46 -> 0.1654515194 | Z17: =Endividamento!Z10/'Balanço Patrimonial'!Z46 -> 0.1654515194 | AA17: =Endividamento!AA10/'Balanço Patrimonial'!AA46 -> 0.1192868054 | AB17: =Endividamento!AB10/'Balanço Patrimonial'!AB46 -> 0.2016808193 | AC17: =Endividamento!AC10/'Balanço Patrimonial'!AC46 -> 0.1704120912 | AD17: =Endividamento!AD10/'Balanço Patrimonial'!AD46 -> 0.1751551675 | AE17: =Endividamento!AE10/'Balanço Patrimonial'!AE46 -> 0.1751551675 | AF17: =Endividamento!AF10/'Balanço Patrimonial'!AF46 -> 0.1654738525 | AG17: =Endividamento!AG10/'Balanço Patrimonial'!AG46 -> 0.1644498724 | AH17: =Endividamento!AH10/'Balanço Patrimonial'!AH46 -> 0.1562364378 | AI17: =Endividamento!AI10/'Balanço Patrimonial'!AI46 -> 0.1695588179 | AJ17: =Endividamento!AJ10/'Balanço Patrimonial'!AJ46 -> 0.1695588179 | AK17: =Endividamento!AK10/'Balanço Patrimonial'!AK46 -> 0.1629540221 | AL17: =Endividamento!AL10/'Balanço Patrimonial'!AL46 -> 0.3575469668 | AM17: =Endividamento!AM10/'Balanço Patrimonial'!AM46 -> 0.3395204283 | AN17: =Endividamento!AN10/'Balanço Patrimonial'!AN46 -> 0.3226894137 | AO17: =Endividamento!AO10/'Balanço Patrimonial'!AO46 -> 0.3226894137 | AP17: =Endividamento!AP10/'Balanço Patrimonial'!AP46 -> 0.3254451781 | AQ17: =Endividamento!AQ10/'Balanço Patrimonial'!AQ46 -> 0.3289873394 | AR17: =Endividamento!AR10/'Balanço Patrimonial'!AR46 -> 0.2081368157 | AS17: =Endividamento!AS10/'Balanço Patrimonial'!AS46 -> 0.2065601442 | AT17: =Endividamento!AT10/'Balanço Patrimonial'!AT46 -> 0.2065601442
A18: Dívida líquida / EBITDA¹ | B18: =Endividamento!B23 -> 0.7996109541 | C18: =Endividamento!C23 -> 0.8093423479 | D18: =Endividamento!D23 -> 0.547063655 | E18: =Endividamento!E23 -> 0.5378474356 | F18: =Endividamento!F23 -> 0.5378474356 | G18: =Endividamento!G23 -> 0.3587220483 | H18: =Endividamento!H23 -> 0.3975989095 | I18: =Endividamento!I23 -> 0.3089837871 | J18: =Endividamento!J23 -> 0.3761745429 | K18: =Endividamento!K23 -> 0.3761745429 | L18: =Endividamento!L23 -> 0.3585996133 | M18: =Endividamento!M23 -> 0.5268107678 | N18: =Endividamento!N23 -> 0.418633324 | O18: =Endividamento!O23 -> 0.4768364903 | P18: =Endividamento!P23 -> 0.4768364903 | Q18: =Endividamento!Q23 -> 0.4156299339 | R18: =Endividamento!R23 -> 0.6311326896 | S18: =Endividamento!S23 -> 0.6289199273 | T18: =Endividamento!T23 -> 0.7702946933 | U18: =Endividamento!U23 -> 0.7702946933 | V18: =Endividamento!V23 -> 1.024468475 | W18: =Endividamento!W23 -> 1.480431584 | X18: =Endividamento!X23 -> 1.356098563 | Y18: =Endividamento!Y23 -> 0.4260228571 | Z18: =Endividamento!Z23 -> 0.4260228571 | AA18: =Endividamento!AA23 -> 0.1869152855 | AB18: =Endividamento!AB23 -> 0.07162162162 | AC18: =Endividamento!AC23 -> 0.0258131068 | AD18: =Endividamento!AD23 -> -0.4495937873 | AE18: =Endividamento!AE23 -> -0.4495937873 | AF18: =Endividamento!AF23 -> -0.4916444444 | AG18: =Endividamento!AG23 -> -0.3073913043 | AH18: =Endividamento!AH23 -> -0.3694112061 | AI18: =Endividamento!AI23 -> -0.2454352727 | AJ18: =Endividamento!AJ23 -> -0.2454352727 | AK18: =Endividamento!AK23 -> -0.3138561439 | AL18: =Endividamento!AL23 -> 0.1749911661 | AM18: =Endividamento!AM23 -> -0.03073597056 | AN18: =Endividamento!AN23 -> 0.08822061192 | AO18: =Endividamento!AO23 -> 0.08822061192 | AP18: =Endividamento!AP23 -> 0.4949294671 | AQ18: =Endividamento!AQ23 -> 0.7796002526 | AR18: =Endividamento!AR23 -> -7.037489227 | AS18: =Endividamento!AS23 -> -6.355912198 | AT18: =Endividamento!AT23 -> -6.355912198
A20: Indicadores de retorno
A21: ROA | B21: =(74.6+89+40+DRE!B28)/'Balanço Patrimonial'!B24 -> 0.1097800323 | C21: =(DRE!B28+DRE!C28+40+89)/'Balanço Patrimonial'!C24 -> 0.109678678 | D21: =(40+DRE!D28+DRE!C28+DRE!B28)/'Balanço Patrimonial'!D24 -> 0.1011593392 | E21: =SUM(DRE!B28:E28)/'Balanço Patrimonial'!E24 -> 0.123495086 | F21: =DRE!F28/'Balanço Patrimonial'!F24 -> 0.123495086 | G21: =SUM(DRE!C28:E28,DRE!G28)/'Balanço Patrimonial'!G24 -> 0.1320855174 | H21: =SUM(DRE!G28:H28,DRE!D28:E28)/'Balanço Patrimonial'!H24 -> 0.1341279325 | I21: =SUM(DRE!G28:I28,DRE!E28)/'Balanço Patrimonial'!I24 -> 0.1157647762 | J21: =SUM(DRE!G28:J28)/'Balanço Patrimonial'!J24 -> 0.1156753982 | K21: =DRE!K28/'Balanço Patrimonial'!K24 -> 0.1156753982 | L21: =SUM(DRE!H28:J28,DRE!L28)/'Balanço Patrimonial'!L24 -> 0.0965948977 | M21: =SUM(DRE!L28:M28,DRE!I28:J28)/'Balanço Patrimonial'!M24 -> 0.08414689336 | N21: =SUM(DRE!L28:N28,DRE!J28)/'Balanço Patrimonial'!N24 -> 0.07004323888 | O21: =SUM(DRE!L28:O28)/'Balanço Patrimonial'!O24 -> 0.04227459454 | P21: =DRE!P28/'Balanço Patrimonial'!P24 -> 0.04219781826 | Q21: =SUM(DRE!M28:O28,DRE!Q28)/'Balanço Patrimonial'!Q24 -> 0.03583593464 | R21: =SUM(DRE!Q28:R28,DRE!N28:O28)/'Balanço Patrimonial'!R24 -> 0.0269787126 | S21: =SUM(DRE!Q28:S28,DRE!O28)/'Balanço Patrimonial'!S24 -> 0.0136311593 | T21: =SUM(DRE!Q28:T28)/'Balanço Patrimonial'!T24 -> -0.008972231167 | U21: =DRE!U28/'Balanço Patrimonial'!U24 -> -0.00895390027 | V21: =SUM(DRE!R28:T28,DRE!V28)/'Balanço Patrimonial'!V24 -> -0.0236994155 | W21: =SUM(DRE!V28:W28,DRE!S28:T28)/'Balanço Patrimonial'!W24 -> -0.02971615944 | X21: =SUM(DRE!V28:X28,DRE!T28)/'Balanço Patrimonial'!X24 -> -0.02513526673 | Y21: =SUM(DRE!V28:Y28)/'Balanço Patrimonial'!Y24 -> -0.0105077348 | Z21: =DRE!Z28/'Balanço Patrimonial'!Z24 -> -0.01061334018 | AA21: =SUM(DRE!W28:Y28,DRE!AA28)/'Balanço Patrimonial'!AA24 -> -0.003977633836 | AB21: =SUM(DRE!AA28:AB28,DRE!X28:Y28)/'Balanço Patrimonial'!AB24 -> -0.0126263084 | AC21: =SUM(DRE!AA28:AC28,DRE!Y28)/'Balanço Patrimonial'!AC24 -> -0.01271393385 | AD21: =SUM(DRE!AA28:AD28)/'Balanço Patrimonial'!AD24 -> -0.001873627785 | AE21: =DRE!AE28/'Balanço Patrimonial'!AE24 -> -0.001893159812 | AF21: =SUM(DRE!AB28:AD28,DRE!AF28)/'Balanço Patrimonial'!AF24 -> -0.00398776842 | AG21: =SUM(DRE!AF28:AG28,DRE!AC28:AD28)/'Balanço Patrimonial'!AG24 -> 0.002838788478 | AH21: =SUM(DRE!AF28:AH28,DRE!AD28)/'Balanço Patrimonial'!AH24 -> 0.006236744728 | AI21: =SUM(DRE!AF28:AI28)/'Balanço Patrimonial'!AI24 -> 0.00111953439 | AJ21: =DRE!AJ28/'Balanço Patrimonial'!AJ24 -> 0.001049563491 | AK21: =SUM(DRE!AG28:AI28,DRE!AK28)/'Balanço Patrimonial'!AK24 -> 1.538563803e-17 | AL21: =SUM(DRE!AK28:AL28,DRE!AH28:AI28)/'Balanço Patrimonial'!AL24 -> 0.003268309237 | AM21: =SUM(DRE!AK28:AM28,DRE!AI28)/'Balanço Patrimonial'!AM24 -> 0.002786528274 | AN21: =SUM(DRE!AK28:AN28)/'Balanço Patrimonial'!AN24 -> 0.004826786962 | AO21: =DRE!AO28/'Balanço Patrimonial'!AO24 -> 0.004855571846 | AP21: =SUM(DRE!AL28:AN28,DRE!AP28)/'Balanço Patrimonial'!AP24 -> 0.003509873258 | AQ21: =SUM(DRE!AP28:AQ28,DRE!AM28:AN28)/'Balanço Patrimonial'!AQ24 -> -0.001368751481 | AR21: =(DRE!AR28+DRE!AQ28+DRE!AP28+DRE!AN28)/'Balanço Patrimonial'!AR24 -> -0.004156762955 | AS21: =(DRE!AS28+DRE!AR28+DRE!AQ28+DRE!AO28)/'Balanço Patrimonial'!AS24 -> 0.003533809963 | AT21: =(DRE!AT28+DRE!AS28+DRE!AR28+DRE!AP28)/'Balanço Patrimonial'!AT24 -> -0.004314502353
A22: ROE | B22: =(74.6+89+40+DRE!B28)/'Balanço Patrimonial'!B46 -> 0.1886306975 | C22: =(DRE!B28+DRE!C28+40+89)/'Balanço Patrimonial'!C46 -> 0.1694526271 | D22: =(40+DRE!D28+DRE!C28+DRE!B28)/'Balanço Patrimonial'!D46 -> 0.1535041061 | E22: =SUM(DRE!B28:E28)/'Balanço Patrimonial'!E46 -> 0.1972998778 | F22: =DRE!F28/'Balanço Patrimonial'!F46 -> 0.1972998778 | G22: =SUM(DRE!C28:E28,DRE!G28)/'Balanço Patrimonial'!G46 -> 0.2120220995 | H22: =SUM(DRE!G28:H28,DRE!D28:E28)/'Balanço Patrimonial'!H46 -> 0.200498185 | I22: =SUM(DRE!G28:I28,DRE!E28)/'Balanço Patrimonial'!I46 -> 0.1719488042 | J22: =SUM(DRE!G28:J28)/'Balanço Patrimonial'!J46 -> 0.1762833347 | K22: =DRE!K28/'Balanço Patrimonial'!K46 -> 0.1762833347 | L22: =SUM(DRE!H28:J28,DRE!L28)/'Balanço Patrimonial'!L46 -> 0.148297157 | M22: =SUM(DRE!L28:M28,DRE!I28:J28)/'Balanço Patrimonial'!M46 -> 0.1246420811 | N22: =SUM(DRE!L28:N28,DRE!J28)/'Balanço Patrimonial'!N46 -> 0.1033314119 | O22: =SUM(DRE!L28:O28)/'Balanço Patrimonial'!O46 -> 0.06395570548 | P22: =DRE!P28/'Balanço Patrimonial'!P46 -> 0.06383955342 | Q22: =SUM(DRE!M28:O28,DRE!Q28)/'Balanço Patrimonial'!Q46 -> 0.05239229722 | R22: =SUM(DRE!Q28:R28,DRE!N28:O28)/'Balanço Patrimonial'!R46 -> 0.03811636989 | S22: =SUM(DRE!Q28:S28,DRE!O28)/'Balanço Patrimonial'!S46 -> 0.01973821756 | T22: =SUM(DRE!Q28:T28)/'Balanço Patrimonial'!T46 -> -0.01286936352 | U22: =DRE!U28/'Balanço Patrimonial'!U46 -> -0.01284307051 | V22: =SUM(DRE!R28:T28,DRE!V28)/'Balanço Patrimonial'!V46 -> -0.03338979019 | W22: =SUM(DRE!V28:W28,DRE!S28:T28)/'Balanço Patrimonial'!W46 -> -0.04105561732 | X22: =SUM(DRE!V28:X28,DRE!T28)/'Balanço Patrimonial'!X46 -> -0.03426844767 | Y22: =SUM(DRE!V28:Y28)/'Balanço Patrimonial'!Y46 -> -0.01432549247 | Z22: =DRE!Z28/'Balanço Patrimonial'!Z46 -> -0.01446946726 | AA22: =SUM(DRE!W28:Y28,DRE!AA28)/'Balanço Patrimonial'!AA46 -> -0.005252108387 | AB22: =SUM(DRE!AA28:AB28,DRE!X28:Y28)/'Balanço Patrimonial'!AB46 -> -0.01777649449 | AC22: =SUM(DRE!AA28:AC28,DRE!Y28)/'Balanço Patrimonial'!AC46 -> -0.01750239132 | AD22: =SUM(DRE!AA28:AD28)/'Balanço Patrimonial'!AD46 -> -0.003892337055 | AE22: =DRE!AE28/'Balanço Patrimonial'!AE46 -> -0.003932913542 | AF22: =SUM(DRE!AB28:AD28,DRE!AF28)/'Balanço Patrimonial'!AF46 -> -0.00824176237 | AG22: =SUM(DRE!AF28:AG28,DRE!AC28:AD28)/'Balanço Patrimonial'!AG46 -> 0.005880290848 | AH22: =SUM(DRE!AF28:AH28,DRE!AD28)/'Balanço Patrimonial'!AH46 -> 0.01331900667 | AI22: =SUM(DRE!AF28:AI28)/'Balanço Patrimonial'!AI46 -> 0.002386051967 | AJ22: =DRE!AJ28/'Balanço Patrimonial'!AJ46 -> 0.002236923719 | AK22: =SUM(DRE!AG28:AI28,DRE!AK28)/'Balanço Patrimonial'!AK46 -> 3.32107035e-17 | AL22: =SUM(DRE!AK28:AL28,DRE!AH28:AI28)/'Balanço Patrimonial'!AL46 -> 0.007731542265 | AM22: =SUM(DRE!AK28:AM28,DRE!AI28)/'Balanço Patrimonial'!AM46 -> 0.006576044399 | AN22: =SUM(DRE!AK28:AN28)/'Balanço Patrimonial'!AN46 -> 0.01140726303 | AO22: =DRE!AO28/'Balanço Patrimonial'!AO46 -> 0.01147529104 | AP22: =SUM(DRE!AL28:AN28,DRE!AP28)/'Balanço Patrimonial'!AP46 -> 0.008379252413 | AQ22: =SUM(DRE!AP28:AQ28,DRE!AM28:AN28)/'Balanço Patrimonial'!AQ46 -> -0.003362327591 | AR22: =(DRE!AR28+DRE!AQ28+DRE!AP28+DRE!AN28)/'Balanço Patrimonial'!AR46 -> -0.008434187763 | AS22: =(DRE!AS28+DRE!AR28+DRE!AQ28+DRE!AO28)/'Balanço Patrimonial'!AS46 -> 0.007126332251 | AT22: =(DRE!AT28+DRE!AS28+DRE!AR28+DRE!AP28)/'Balanço Patrimonial'!AT46 -> -0.008700687809
A24: ¹ A partir de 2017, é considerado o EBITDA pró-forma (sem o efeito do IFRS 16) dos últimos 12 meses para cálculo do índice de alavancagem 'Dívida Líquida / EBITDA 12M'.

Sheet Dividendos
B9: 2012 | C9: 2013 | D9: 2014 | E9: 2015 | F9: 2016 | G9: 2017 | H9: 2018 | I9: 2019 | J9: 2020
A11: Juros sob Capital Próprio
A12: Valor Bruto por Ação (R$) | B12: 0.551310845 | C12: 0.55652928 | D12: 0.51378458 | E12: 0.347353225 | F12: 0.032267705
A13: Valor Líquido por Ação (R$) | B13: 0.46861422 | C13: 0.473049888 | D13: 0.436716895 | E13: 0.29525024 | F13: 0.02742755
A14: Total Bruto (R$ milhões) | B14: 72.868 | C14: 73.925 | D14: 68.445 | E14: 45.847 | F14: 4.259
A15: Dividendos
A16: Valor Bruto por Ação (R$) | B16: 0.938340045 | C16: 0.9122469671 | D16: 0.380018215 | E16: 0.0661988474 | H16: 0.002966361 | I16: 0.00425986515 | J16: 0.017499954
A17: Valor Líquido por Ação (R$) | B17: 0.752829595 | C17: 0.9122469671 | D17: 0.380018215 | E17: 0.0661988474
A18: Total Bruto (R$ milhões) | B18: 124.5193353 | C18: 121.4359443 | D18: 50.40073235 | E18: 8.73755686 | H18: 1.965432 | I18: 2.829788 | J18: 11.684734

Sheet Operational Data
B9: 1Q12 | C9: 2Q12 | D9: 3Q12 | E9: 4Q12 | F9: 2012 | G9: 1Q13 | H9: 2Q13 | I9: 3Q13 | J9: 4Q13 | K9: 2013 | L9: 1Q14 | M9: 2Q14 | N9: 3Q14 | O9: 4Q14 | P9: 2014 | Q9: 1Q15 | R9: 2Q15 | S9: 3Q15 | T9: 4Q15 | U9: 2015 | V9: 1Q16 | W9: 2Q16 | X9: 3Q16 | Y9: 4Q16 | Z9: 2016 | AA9: 1Q17 | AB9: 2Q17 | AC9: 3Q17 | AD9: 4Q17 | AE9: 2017 | AF9: 1Q18 | AG9: 2Q18 | AH9: 3Q18 | AI9: 4Q18 | AJ9: 2018 | AK9: 1Q19 | AL9: 2Q19 | AM9: 3Q19 | AN9: 4Q19 | AO9: 2019 | AP9: 1Q20 | AQ9: 2Q20 | AR9: 3Q20 | AS9: 4Q20 | AT9: 2020
A11: PORT TERMINALS
A12: Total Handled - Containers | B12: ='Dados Operacionais'!B12 -> 243047 | C12: ='Dados Operacionais'!C12 -> 279375 | D12: ='Dados Operacionais'!D12 -> 305240 | E12: ='Dados Operacionais'!E12 -> 310911 | F12: ='Dados Operacionais'!F12 -> 1142368 | G12: ='Dados Operacionais'!G12 -> 281714 | H12: ='Dados Operacionais'!H12 -> 308439 | I12: ='Dados Operacionais'!I12 -> 314552 | J12: ='Dados Operacionais'!J12 -> 267660 | K12: ='Dados Operacionais'!K12 -> 1177247 | L12: ='Dados Operacionais'!L12 -> 251949 | M12: ='Dados Operacionais'!M12 -> 258657 | N12: ='Dados Operacionais'!N12 -> 227978 | O12: ='Dados Operacionais'!O12 -> 218989 | P12: ='Dados Operacionais'!P12 -> 958502 | Q12: ='Dados Operacionais'!Q12 -> 208488 | R12: ='Dados Operacionais'!R12 -> 228169 | S12: ='Dados Operacionais'!S12 -> 235853 | T12: ='Dados Operacionais'!T12 -> 247412 | U12: ='Dados Operacionais'!U12 -> 923092 | V12: ='Dados Operacionais'!V12 -> 228228 | W12: ='Dados Operacionais'!W12 -> 245074 | X12: ='Dados Operacionais'!X12 -> 275682 | Y12: ='Dados Operacionais'!Y12 -> 267983 | Z12: ='Dados Operacionais'!Z12 -> 1016394 | AA12: ='Dados Operacionais'!AA12 -> 251807 | AB12: ='Dados Operacionais'!AB12 -> 229425 | AC12: ='Dados Operacionais'!AC12 -> 238559 | AD12: ='Dados Operacionais'!AD12 -> 248903 | AE12: ='Dados Operacionais'!AE12 -> 968694 | AF12: ='Dados Operacionais'!AF12 -> 253157 | AG12: ='Dados Operacionais'!AG12 -> 266121 | AH12: ='Dados Operacionais'!AH12 -> 288798 | AI12: ='Dados Operacionais'!AI12 -> 276411 | AJ12: ='Dados Operacionais'!AJ12 -> 1084487 | AK12: ='Dados Operacionais'!AK12 -> 254929 | AL12: ='Dados Operacionais'!AL12 -> 320079 | AM12: ='Dados Operacionais'!AM12 -> 304143 | AN12: ='Dados Operacionais'!AN12 -> 289863 | AO12: ='Dados Operacionais'!AO12 -> 1169014 | AP12: ='Dados Operacionais'!AP12 -> 265321 | AQ12: ='Dados Operacionais'!AQ12 -> 256725 | AR12: ='Dados Operacionais'!AR12 -> 254211 | AS12: ='Dados Operacionais'!AS12 -> 302735 | AT12: ='Dados Operacionais'!AT12 -> 1078992
A13: Full containers | B13: ='Dados Operacionais'!B13 -> 181284.1316 | C13: ='Dados Operacionais'!C13 -> 214878.5805 | D13: ='Dados Operacionais'!D13 -> 230282.1385 | E13: ='Dados Operacionais'!E13 -> 236365.3408 | F13: ='Dados Operacionais'!F13 -> 863477 | G13: ='Dados Operacionais'!G13 -> 215966.9127 | H13: ='Dados Operacionais'!H13 -> 222299.4909 | I13: ='Dados Operacionais'!I13 -> 237930.8372 | J13: ='Dados Operacionais'!J13 -> 197109.8212 | K13: ='Dados Operacionais'!K13 -> 874511 | L13: ='Dados Operacionais'!L13 -> 178181.1411 | M13: ='Dados Operacionais'!M13 -> 185630.9472 | N13: ='Dados Operacionais'!N13 -> 177345.6056 | O13: ='Dados Operacionais'!O13 -> 161853.3252 | P13: ='Dados Operacionais'!P13 -> 704197.4174 | Q13: ='Dados Operacionais'!Q13 -> 154960.4919 | R13: ='Dados Operacionais'!R13 -> 169173.0563 | S13: ='Dados Operacionais'!S13 -> 186768.8735 | T13: ='Dados Operacionais'!T13 -> 196700.0088 | U13: ='Dados Operacionais'!U13 -> 709105.5363 | V13: ='Dados Operacionais'!V13 -> 172815 | W13: ='Dados Operacionais'!W13 -> 188558 | X13: ='Dados Operacionais'!X13 -> 211846 | Y13: ='Dados Operacionais'!Y13 -> 209942 | Z13: ='Dados Operacionais'!Z13 -> 783094 | AA13: ='Dados Operacionais'!AA13 -> 197334 | AB13: ='Dados Operacionais'!AB13 -> 181427 | AC13: ='Dados Operacionais'!AC13 -> 193447 | AD13: ='Dados Operacionais'!AD13 -> 192000 | AE13: ='Dados Operacionais'!AE13 -> 764208 | AF13: ='Dados Operacionais'!AF13 -> 193755 | AG13: ='Dados Operacionais'!AG13 -> 202984 | AH13: ='Dados Operacionais'!AH13 -> 226448 | AI13: ='Dados Operacionais'!AI13 -> 214110 | AJ13: ='Dados Operacionais'!AJ13 -> 837297 | AK13: ='Dados Operacionais'!AK13 -> 200651 | AL13: ='Dados Operacionais'!AL13 -> 241737 | AM13: ='Dados Operacionais'!AM13 -> 234865 | AN13: ='Dados Operacionais'!AN13 -> 220793 | AO13: ='Dados Operacionais'!AO13 -> 898046 | AP13: ='Dados Operacionais'!AP13 -> 204757 | AQ13: ='Dados Operacionais'!AQ13 -> 187514 | AR13: ='Dados Operacionais'!AR13 -> 185389 | AS13: ='Dados Operacionais'!AS13 -> 229628 | AT13: ='Dados Operacionais'!AT13 -> 807288
A14: Empty containers | B14: ='Dados Operacionais'!B14 -> 61762.8684 | C14: ='Dados Operacionais'!C14 -> 64496.4195 | D14: ='Dados Operacionais'!D14 -> 74957.8615 | E14: ='Dados Operacionais'!E14 -> 74545.6592 | F14: ='Dados Operacionais'!F14 -> 278891 | G14: ='Dados Operacionais'!G14 -> 65747.0873 | H14: ='Dados Operacionais'!H14 -> 86139.5091 | I14: ='Dados Operacionais'!I14 -> 76621.1628 | J14: ='Dados Operacionais'!J14 -> 70550.1788 | K14: ='Dados Operacionais'!K14 -> 302736 | L14: ='Dados Operacionais'!L14 -> 73767.8589 | M14: ='Dados Operacionais'!M14 -> 73026.0528 | N14: ='Dados Operacionais'!N14 -> 50632.3944 | O14: ='Dados Operacionais'!O14 -> 57135.6748 | P14: ='Dados Operacionais'!P14 -> 254304.5826 | Q14: ='Dados Operacionais'!Q14 -> 53527.5081 | R14: ='Dados Operacionais'!R14 -> 58995.9437 | S14: ='Dados Operacionais'!S14 -> 49084.1265 | T14: ='Dados Operacionais'!T14 -> 50711.9912 | U14: ='Dados Operacionais'!U14 -> 213986.4637 | V14: ='Dados Operacionais'!V14 -> 55413 | W14: ='Dados Operacionais'!W14 -> 56516 | X14: ='Dados Operacionais'!X14 -> 63836 | Y14: ='Dados Operacionais'!Y14 -> 58041 | Z14: ='Dados Operacionais'!Z14 -> 233300 | AA14: ='Dados Operacionais'!AA14 -> 54473 | AB14: ='Dados Operacionais'!AB14 -> 47998 | AC14: ='Dados Operacionais'!AC14 -> 45112 | AD14: ='Dados Operacionais'!AD14 -> 56903 | AE14: ='Dados Operacionais'!AE14 -> 204486 | AF14: ='Dados Operacionais'!AF14 -> 59402 | AG14: ='Dados Operacionais'!AG14 -> 63137 | AH14: ='Dados Operacionais'!AH14 -> 62350 | AI14: ='Dados Operacionais'!AI14 -> 62301 | AJ14: ='Dados Operacionais'!AJ14 -> 247190 | AK14: ='Dados Operacionais'!AK14 -> 54278 | AL14: ='Dados Operacionais'!AL14 -> 78342 | AM14: ='Dados Operacionais'!AM14 -> 69278 | AN14: ='Dados Operacionais'!AN14 -> 69070 | AO14: ='Dados Operacionais'!AO14 -> 270968 | AP14: ='Dados Operacionais'!AP14 -> 60564 | AQ14: ='Dados Operacionais'!AQ14 -> 69211 | AR14: ='Dados Operacionais'!AR14 -> 68822 | AS14: ='Dados Operacionais'!AS14 -> 73107 | AT14: ='Dados Operacionais'!AT14 -> 271704
A15: % of Full containers | B15: ='Dados Operacionais'!B15 -> 0.7458809679 | C15: ='Dados Operacionais'!C15 -> 0.7691403329 | D15: ='Dados Operacionais'!D15 -> 0.7544297553 | E15: ='Dados Operacionais'!E15 -> 0.7602347321 | F15: ='Dados Operacionais'!F15 -> 0.7558658856 | G15: ='Dados Operacionais'!G15 -> 0.7666176076 | H15: ='Dados Operacionais'!H15 -> 0.7207243277 | I15: ='Dados Operacionais'!I15 -> 0.7564117767 | J15: ='Dados Operacionais'!J15 -> 0.73641867 | K15: ='Dados Operacionais'!K15 -> 0.74284411 | L15: ='Dados Operacionais'!L15 -> 0.7072111463 | M15: ='Dados Operacionais'!M15 -> 0.7176722347 | N15: ='Dados Operacionais'!N15 -> 0.7779066647 | O15: ='Dados Operacionais'!O15 -> 0.7390934029 | P15: ='Dados Operacionais'!P15 -> 0.7346853918 | Q15: ='Dados Operacionais'!Q15 -> 0.743258566 | R15: ='Dados Operacionais'!R15 -> 0.7414375147 | S15: ='Dados Operacionais'!S15 -> 0.7918867833 | T15: ='Dados Operacionais'!T15 -> 0.7950301877 | U15: ='Dados Operacionais'!U15 -> 0.7681851173 | V15: ='Dados Operacionais'!V15 -> 0.757203323 | W15: ='Dados Operacionais'!W15 -> 0.769392102 | X15: ='Dados Operacionais'!X15 -> 0.7684433514 | Y15: ='Dados Operacionais'!Y15 -> 0.7834153659 | Z15: ='Dados Operacionais'!Z15 -> 0.7704630291 | AA15: ='Dados Operacionais'!AA15 -> 0.7836716215 | AB15: ='Dados Operacionais'!AB15 -> 0.7907900185 | AC15: ='Dados Operacionais'!AC15 -> 0.810897933 | AD15: ='Dados Operacionais'!AD15 -> 0.7713848367 | AE15: ='Dados Operacionais'!AE15 -> 0.7889054748 | AF15: ='Dados Operacionais'!AF15 -> 0.7653550958 | AG15: ='Dados Operacionais'!AG15 -> 0.7627507788 | AH15: ='Dados Operacionais'!AH15 -> 0.7841051531 | AI15: ='Dados Operacionais'!AI15 -> 0.7746073781 | AJ15: ='Dados Operacionais'!AJ15 -> 0.7720673461 | AK15: ='Dados Operacionais'!AK15 -> 0.7870858161 | AL15: ='Dados Operacionais'!AL15 -> 0.7552416747 | AM15: ='Dados Operacionais'!AM15 -> 0.7722189891 | AN15: ='Dados Operacionais'!AN15 -> 0.7617150171 | AO15: ='Dados Operacionais'!AO15 -> 0.7682080796 | AP15: ='Dados Operacionais'!AP15 -> 0.7717331082 | AQ15: ='Dados Operacionais'!AQ15 -> 0.7304080242 | AR15: ='Dados Operacionais'!AR15 -> 0.7292721401 | AS15: ='Dados Operacionais'!AS15 -> 0.7585115695 | AT15: ='Dados Operacionais'!AT15 -> 0.7481871969
A17: Total Handled - General Cargo (ton) | B17: ='Dados Operacionais'!B17 -> 8007 | C17: ='Dados Operacionais'!C17 -> 7925 | D17: ='Dados Operacionais'!D17 -> 4320 | E17: ='Dados Operacionais'!E17 -> 1650 | F17: ='Dados Operacionais'!F17 -> 21902 | G17: ='Dados Operacionais'!G17 -> 23473 | H17: ='Dados Operacionais'!H17 -> 8555 | I17: ='Dados Operacionais'!I17 -> 23527 | J17: ='Dados Operacionais'!J17 -> 26215 | K17: ='Dados Operacionais'!K17 -> 81770 | L17: ='Dados Operacionais'!L17 -> 20095 | M17: ='Dados Operacionais'!M17 -> 24896 | N17: ='Dados Operacionais'!N17 -> 18448 | O17: ='Dados Operacionais'!O17 -> 15126 | P17: ='Dados Operacionais'!P17 -> 78565 | Q17: ='Dados Operacionais'!Q17 -> 27579 | R17: ='Dados Operacionais'!R17 -> 96651 | S17: ='Dados Operacionais'!S17 -> 33742 | T17: ='Dados Operacionais'!T17 -> 3738 | U17: ='Dados Operacionais'!U17 -> 161710 | V17: ='Dados Operacionais'!V17 -> 8515 | W17: ='Dados Operacionais'!W17 -> 36790 | X17: ='Dados Operacionais'!X17 -> 29377 | Y17: ='Dados Operacionais'!Y17 -> 28301 | Z17: ='Dados Operacionais'!Z17 -> 102983 | AA17: ='Dados Operacionais'!AA17 -> 13269 | AB17: ='Dados Operacionais'!AB17 -> 10854 | AC17: ='Dados Operacionais'!AC17 -> 26867 | AD17: ='Dados Operacionais'!AD17 -> 5545.6 | AE17: ='Dados Operacionais'!AE17 -> 56535.6 | AF17: ='Dados Operacionais'!AF17 -> 37170 | AG17: ='Dados Operacionais'!AG17 -> 46095 | AH17: ='Dados Operacionais'!AH17 -> 39527 | AI17: ='Dados Operacionais'!AI17 -> 13175 | AJ17: ='Dados Operacionais'!AJ17 -> 135967 | AK17: ='Dados Operacionais'!AK17 -> 68425 | AL17: ='Dados Operacionais'!AL17 -> 94676 | AM17: ='Dados Operacionais'!AM17 -> 12621 | AN17: ='Dados Operacionais'!AN17 -> 16023 | AO17: ='Dados Operacionais'!AO17 -> 191745 | AP17: ='Dados Operacionais'!AP17 -> 16725 | AQ17: ='Dados Operacionais'!AQ17 -> 81086.245 | AR17: ='Dados Operacionais'!AR17 -> 84802 | AS17: ='Dados Operacionais'!AS17 -> 98810 | AT17: ='Dados Operacionais'!AT17 -> 281423.245
A18: Tecon Santos | B18: ='Dados Operacionais'!B18 -> 0 | C18: ='Dados Operacionais'!C18 -> 0 | D18: ='Dados Operacionais'!D18 -> 0 | E18: ='Dados Operacionais'!E18 -> 0 | F18: ='Dados Operacionais'!F18 -> 0 | G18: ='Dados Operacionais'!G18 -> 0 | H18: ='Dados Operacionais'!H18 -> 0 | I18: ='Dados Operacionais'!I18 -> 0 | J18: ='Dados Operacionais'!J18 -> 0 | K18: ='Dados Operacionais'!K18 -> 0 | L18: ='Dados Operacionais'!L18 -> 0 | M18: ='Dados Operacionais'!M18 -> 0 | N18: ='Dados Operacionais'!N18 -> 0 | O18: ='Dados Operacionais'!O18 -> 0 | P18: ='Dados Operacionais'!P18 -> 0 | Q18: ='Dados Operacionais'!Q18 -> 0 | R18: ='Dados Operacionais'!R18 -> 0 | S18: ='Dados Operacionais'!S18 -> 0 | T18: ='Dados Operacionais'!T18 -> 0 | U18: ='Dados Operacionais'!U18 -> 0 | V18: ='Dados Operacionais'!V18 -> 0 | W18: ='Dados Operacionais'!W18 -> 0 | X18: ='Dados Operacionais'!X18 -> 0 | Y18: ='Dados Operacionais'!Y18 -> 0 | Z18: ='Dados Operacionais'!Z18 -> 0 | AA18: ='Dados Operacionais'!AA18 -> 0 | AB18: ='Dados Operacionais'!AB18 -> 0 | AC18: ='Dados Operacionais'!AC18 -> 0 | AD18: ='Dados Operacionais'!AD18 -> 0 | AE18: ='Dados Operacionais'!AE18 -> 0 | AF18: ='Dados Operacionais'!AF18 -> 0 | AG18: ='Dados Operacionais'!AG18 -> 0 | AH18: ='Dados Operacionais'!AH18 -> 0 | AI18: ='Dados Operacionais'!AI18 -> 0 | AJ18: ='Dados Operacionais'!AJ18 -> 0 | AK18: ='Dados Operacionais'!AK18 -> 0 | AL18: ='Dados Operacionais'!AL18 -> 0 | AM18: ='Dados Operacionais'!AM18 -> 0 | AN18: ='Dados Operacionais'!AN18 -> 0 | AO18: ='Dados Operacionais'!AO18 -> 0 | AP18: ='Dados Operacionais'!AP18 -> 0 | AQ18: ='Dados Operacionais'!AQ18 -> 0 | AR18: ='Dados Operacionais'!AR18 -> 0 | AS18: ='Dados Operacionais'!AS18 -> 0 | AT18: ='Dados Operacionais'!AT18 -> 0
A19: Tecon Imbituba | B19: ='Dados Operacionais'!B19 -> 679 | C19: ='Dados Operacionais'!C19 -> 1197 | D19: ='Dados Operacionais'!D19 -> 287 | E19: ='Dados Operacionais'!E19 -> 357 | F19: ='Dados Operacionais'!F19 -> 2520 | G19: ='Dados Operacionais'!G19 -> 19036 | H19: ='Dados Operacionais'!H19 -> 6238 | I19: ='Dados Operacionais'!I19 -> 22956 | J19: ='Dados Operacionais'!J19 -> 25636 | K19: ='Dados Operacionais'!K19 -> 73866 | L19: ='Dados Operacionais'!L19 -> 18556 | M19: ='Dados Operacionais'!M19 -> 20279 | N19: ='Dados Operacionais'!N19 -> 13959 | O19: ='Dados Operacionais'!O19 -> 12314 | P19: ='Dados Operacionais'!P19 -> 65108 | Q19: ='Dados Operacionais'!Q19 -> 17947 | R19: ='Dados Operacionais'!R19 -> 93978 | S19: ='Dados Operacionais'!S19 -> 33381 | T19: ='Dados Operacionais'!T19 -> 3738 | U19: ='Dados Operacionais'!U19 -> 149044 | V19: ='Dados Operacionais'!V19 -> 8515 | W19: ='Dados Operacionais'!W19 -> 36790 | X19: ='Dados Operacionais'!X19 -> 14184 | Y19: ='Dados Operacionais'!Y19 -> 27597 | Z19: ='Dados Operacionais'!Z19 -> 87086 | AA19: ='Dados Operacionais'!AA19 -> 13139 | AB19: ='Dados Operacionais'!AB19 -> 10854 | AC19: ='Dados Operacionais'!AC19 -> 26867 | AD19: ='Dados Operacionais'!AD19 -> 5461 | AE19: ='Dados Operacionais'!AE19 -> 56321 | AF19: ='Dados Operacionais'!AF19 -> 37077 | AG19: ='Dados Operacionais'!AG19 -> 45288 | AH19: ='Dados Operacionais'!AH19 -> 39460 | AI19: ='Dados Operacionais'!AI19 -> 13124 | AJ19: ='Dados Operacionais'!AJ19 -> 134949 | AK19: ='Dados Operacionais'!AK19 -> 68425 | AL19: ='Dados Operacionais'!AL19 -> 94676 | AM19: ='Dados Operacionais'!AM19 -> 11042 | AN19: ='Dados Operacionais'!AN19 -> 16023 | AO19: ='Dados Operacionais'!AO19 -> 190166 | AP19: ='Dados Operacionais'!AP19 -> 16698 | AQ19: ='Dados Operacionais'!AQ19 -> 81086.245 | AR19: ='Dados Operacionais'!AR19 -> 84802 | AS19: ='Dados Operacionais'!AS19 -> 98758 | AT19: ='Dados Operacionais'!AT19 -> 281344.245
A20: Tecon Vila do Conde | B20: ='Dados Operacionais'!B20 -> 7328 | C20: ='Dados Operacionais'!C20 -> 6728 | D20: ='Dados Operacionais'!D20 -> 4033 | E20: ='Dados Operacionais'!E20 -> 1293 | F20: ='Dados Operacionais'!F20 -> 19382 | G20: ='Dados Operacionais'!G20 -> 4437 | H20: ='Dados Operacionais'!H20 -> 2317 | I20: ='Dados Operacionais'!I20 -> 571 | J20: ='Dados Operacionais'!J20 -> 579 | K20: ='Dados Operacionais'!K20 -> 7904 | L20: ='Dados Operacionais'!L20 -> 1539 | M20: ='Dados Operacionais'!M20 -> 4617 | N20: ='Dados Operacionais'!N20 -> 4489 | O20: ='Dados Operacionais'!O20 -> 2812 | P20: ='Dados Operacionais'!P20 -> 13457 | Q20: ='Dados Operacionais'!Q20 -> 9632 | R20: ='Dados Operacionais'!R20 -> 2673 | S20: ='Dados Operacionais'!S20 -> 361 | T20: ='Dados Operacionais'!T20 -> 0 | U20: ='Dados Operacionais'!U20 -> 12666 | V20: ='Dados Operacionais'!V20 -> 0 | W20: ='Dados Operacionais'!W20 -> 0 | X20: ='Dados Operacionais'!X20 -> 15193 | Y20: ='Dados Operacionais'!Y20 -> 704 | Z20: ='Dados Operacionais'!Z20 -> 15897 | AA20: ='Dados Operacionais'!AA20 -> 130 | AB20: ='Dados Operacionais'!AB20 -> 0 | AC20: ='Dados Operacionais'!AC20 -> 0 | AD20: ='Dados Operacionais'!AD20 -> 84.6 | AE20: ='Dados Operacionais'!AE20 -> 214.6 | AF20: ='Dados Operacionais'!AF20 -> 93 | AG20: ='Dados Operacionais'!AG20 -> 807 | AH20: ='Dados Operacionais'!AH20 -> 67 | AI20: ='Dados Operacionais'!AI20 -> 51 | AJ20: ='Dados Operacionais'!AJ20 -> 1018 | AK20: ='Dados Operacionais'!AK20 -> 0 | AL20: ='Dados Operacionais'!AL20 -> 0 | AM20: ='Dados Operacionais'!AM20 -> 1579 | AN20: ='Dados Operacionais'!AN20 -> 0 | AO20: ='Dados Operacionais'!AO20 -> 1579 | AP20: ='Dados Operacionais'!AP20 -> 27 | AQ20: ='Dados Operacionais'!AQ20 -> 0 | AR20: ='Dados Operacionais'!AR20 -> 0 | AS20: ='Dados Operacionais'!AS20 -> 52 | AT20: ='Dados Operacionais'!AT20 -> 79
A22: Warehousing operations (# cntrs) | B22: ='Dados Operacionais'!B22 -> 36797 | C22: ='Dados Operacionais'!C22 -> 41876 | D22: ='Dados Operacionais'!D22 -> 47698 | E22: ='Dados Operacionais'!E22 -> 46186 | F22: ='Dados Operacionais'!F22 -> 172557 | G22: ='Dados Operacionais'!G22 -> 50140 | H22: ='Dados Operacionais'!H22 -> 50285 | I22: ='Dados Operacionais'!I22 -> 47733 | J22: ='Dados Operacionais'!J22 -> 35653 | K22: ='Dados Operacionais'!K22 -> 183811 | L22: ='Dados Operacionais'!L22 -> 34987 | M22: ='Dados Operacionais'!M22 -> 33132 | N22: ='Dados Operacionais'!N22 -> 31142 | O22: ='Dados Operacionais'!O22 -> 26449 | P22: ='Dados Operacionais'!P22 -> 125710 | Q22: ='Dados Operacionais'!Q22 -> 27802 | R22: ='Dados Operacionais'!R22 -> 27822 | S22: ='Dados Operacionais'!S22 -> 28385 | T22: ='Dados Operacionais'!T22 -> 26866 | U22: ='Dados Operacionais'!U22 -> 110875 | V22: ='Dados Operacionais'!V22 -> 24593 | W22: ='Dados Operacionais'!W22 -> 27445 | X22: ='Dados Operacionais'!X22 -> 34862 | Y22: ='Dados Operacionais'!Y22 -> 32609 | Z22: ='Dados Operacionais'!Z22 -> 119509 | AA22: ='Dados Operacionais'!AA22 -> 33155 | AB22: ='Dados Operacionais'!AB22 -> 29432 | AC22: ='Dados Operacionais'!AC22 -> 29774 | AD22: ='Dados Operacionais'!AD22 -> 31065 | AE22: ='Dados Operacionais'!AE22 -> 123426 | AF22: ='Dados Operacionais'!AF22 -> 26791 | AG22: ='Dados Operacionais'!AG22 -> 28083 | AH22: ='Dados Operacionais'!AH22 -> 33454 | AI22: ='Dados Operacionais'!AI22 -> 27181 | AJ22: ='Dados Operacionais'!AJ22 -> 115509 | AK22: ='Dados Operacionais'!AK22 -> 29738 | AL22: ='Dados Operacionais'!AL22 -> 36978 | AM22: ='Dados Operacionais'!AM22 -> 38125 | AN22: ='Dados Operacionais'!AN22 -> 36168 | AO22: ='Dados Operacionais'!AO22 -> 141009 | AP22: ='Dados Operacionais'!AP22 -> 34620 | AQ22: ='Dados Operacionais'!AQ22 -> 27935 | AR22: ='Dados Operacionais'!AR22 -> 26750 | AS22: ='Dados Operacionais'!AS22 -> 38302 | AT22: ='Dados Operacionais'!AT22 -> 127607
A23: Dwell time of imports (days) | B23: ='Dados Operacionais'!B23 -> 15.2 | C23: ='Dados Operacionais'!C23 -> 16.2 | D23: ='Dados Operacionais'!D23 -> 16 | E23: ='Dados Operacionais'!E23 -> 14.8 | G23: ='Dados Operacionais'!G23 -> 15.9 | H23: ='Dados Operacionais'!H23 -> 12.8 | I23: ='Dados Operacionais'!I23 -> 13.8 | J23: ='Dados Operacionais'!J23 -> 13.9 | L23: ='Dados Operacionais'!L23 -> 16.1 | M23: ='Dados Operacionais'!M23 -> 12.7 | N23: ='Dados Operacionais'!N23 -> 13.2 | O23: ='Dados Operacionais'!O23 -> 12.2 | Q23: ='Dados Operacionais'!Q23 -> 13.9 | R23: ='Dados Operacionais'!R23 -> 14.9 | S23: ='Dados Operacionais'!S23 -> 13.1 | T23: ='Dados Operacionais'!T23 -> 15.6 | V23: ='Dados Operacionais'!V23 -> 12.5 | W23: ='Dados Operacionais'!W23 -> 12 | X23: ='Dados Operacionais'!X23 -> 13.9 | Y23: ='Dados Operacionais'!Y23 -> 13.4 | AA23: ='Dados Operacionais'!AA23 -> 14.8 | AB23: ='Dados Operacionais'!AB23 -> 12.8 | AC23: ='Dados Operacionais'!AC23 -> 11.8 | AD23: ='Dados Operacionais'!AD23 -> 12.7 | AF23: ='Dados Operacionais'!AF23 -> 11.9 | AG23: ='Dados Operacionais'!AG23 -> 14.3 | AH23: ='Dados Operacionais'!AH23 -> 14.1 | AI23: ='Dados Operacionais'!AI23 -> 13.5 | AK23: ='Dados Operacionais'!AK23 -> 12.8 | AL23: ='Dados Operacionais'!AL23 -> 11.7 | AM23: ='Dados Operacionais'!AM23 -> 10.5 | AN23: ='Dados Operacionais'!AN23 -> 10.9 | AP23: ='Dados Operacionais'!AP23 -> 12 | AQ23: ='Dados Operacionais'!AQ23 -> 12.8 | AR23: ='Dados Operacionais'!AR23 -> 9.5 | AS23: ='Dados Operacionais'!AS23 -> 9 | AT23: ='Dados Operacionais'!AT23 -> 0
A25: Tecon Santos
A26: Total handled (# cntrs) | B26: ='Dados Operacionais'!B26 -> 235803 | C26: ='Dados Operacionais'!C26 -> 270101 | D26: ='Dados Operacionais'!D26 -> 294869 | E26: ='Dados Operacionais'!E26 -> 297869 | F26: ='Dados Operacionais'!F26 -> 1102461 | G26: ='Dados Operacionais'!G26 -> 273437 | H26: ='Dados Operacionais'!H26 -> 299665 | I26: ='Dados Operacionais'!I26 -> 304346 | J26: ='Dados Operacionais'!J26 -> 258562 | K26: ='Dados Operacionais'!K26 -> 1140773 | L26: ='Dados Operacionais'!L26 -> 238146 | M26: ='Dados Operacionais'!M26 -> 238343 | N26: ='Dados Operacionais'!N26 -> 208892 | O26: ='Dados Operacionais'!O26 -> 202340 | P26: ='Dados Operacionais'!P26 -> 887721 | Q26: ='Dados Operacionais'!Q26 -> 189264 | R26: ='Dados Operacionais'!R26 -> 211973 | S26: ='Dados Operacionais'!S26 -> 218123 | T26: ='Dados Operacionais'!T26 -> 230101 | U26: ='Dados Operacionais'!U26 -> 849461 | V26: ='Dados Operacionais'!V26 -> 208953 | W26: ='Dados Operacionais'!W26 -> 222586 | X26: ='Dados Operacionais'!X26 -> 251998 | Y26: ='Dados Operacionais'!Y26 -> 242660 | Z26: ='Dados Operacionais'!Z26 -> 926197 | AA26: ='Dados Operacionais'!AA26 -> 226973 | AB26: ='Dados Operacionais'!AB26 -> 204573 | AC26: ='Dados Operacionais'!AC26 -> 204699 | AD26: ='Dados Operacionais'!AD26 -> 214429 | AE26: ='Dados Operacionais'!AE26 -> 850674 | AF26: ='Dados Operacionais'!AF26 -> 215367 | AG26: ='Dados Operacionais'!AG26 -> 228870 | AH26: ='Dados Operacionais'!AH26 -> 241892 | AI26: ='Dados Operacionais'!AI26 -> 231198 | AJ26: ='Dados Operacionais'!AJ26 -> 917327 | AK26: ='Dados Operacionais'!AK26 -> 218533 | AL26: ='Dados Operacionais'!AL26 -> 282496 | AM26: ='Dados Operacionais'!AM26 -> 262993 | AN26: ='Dados Operacionais'!AN26 -> 252771 | AO26: ='Dados Operacionais'!AO26 -> 1016793 | AP26: ='Dados Operacionais'!AP26 -> 233779 | AQ26: ='Dados Operacionais'!AQ26 -> 220362 | AR26: ='Dados Operacionais'!AR26 -> 214857 | AS26: ='Dados Operacionais'!AS26 -> 268426 | AT26: ='Dados Operacionais'!AT26 -> 937424
A27: Full containers | B27: ='Dados Operacionais'!B27 -> 177040.8924 | C27: ='Dados Operacionais'!C27 -> 209355.2851 | D27: ='Dados Operacionais'!D27 -> 224306.8483 | E27: ='Dados Operacionais'!E27 -> 228346.3754 | F27: ='Dados Operacionais'!F27 -> 839760 | G27: ='Dados Operacionais'!G27 -> 211120.7077 | H27: ='Dados Operacionais'!H27 -> 217227.1585 | I27: ='Dados Operacionais'!I27 -> 232094.2596 | J27: ='Dados Operacionais'!J27 -> 191568.5858 | K27: ='Dados Operacionais'!K27 -> 853150 | L27: ='Dados Operacionais'!L27 -> 169536.1374 | M27: ='Dados Operacionais'!M27 -> 171511.6228 | N27: ='Dados Operacionais'!N27 -> 164732.2312 | O27: ='Dados Operacionais'!O27 -> 151532.426 | P27: ='Dados Operacionais'!P27 -> 657312.4174 | Q27: ='Dados Operacionais'!Q27 -> 143840.64 | R27: ='Dados Operacionais'!R27 -> 158979.75 | S27: ='Dados Operacionais'!S27 -> 176832.3161 | T27: ='Dados Operacionais'!T27 -> 186427.8302 | U27: ='Dados Operacionais'!U27 -> 666080.5363 | V27: ='Dados Operacionais'!V27 -> 162660 | W27: ='Dados Operacionais'!W27 -> 176657 | X27: ='Dados Operacionais'!X27 -> 199187 | Y27: ='Dados Operacionais'!Y27 -> 196127 | Z27: ='Dados Operacionais'!Z27 -> 734631 | AA27: ='Dados Operacionais'!AA27 -> 182942 | AB27: ='Dados Operacionais'!AB27 -> 167538 | AC27: ='Dados Operacionais'!AC27 -> 174513 | AD27: ='Dados Operacionais'!AD27 -> 172856 | AE27: ='Dados Operacionais'!AE27 -> 697849 | AF27: ='Dados Operacionais'!AF27 -> 171817 | AG27: ='Dados Operacionais'!AG27 -> 181753 | AH27: ='Dados Operacionais'!AH27 -> 199386 | AI27: ='Dados Operacionais'!AI27 -> 189282 | AJ27: ='Dados Operacionais'!AJ27 -> 742238 | AK27: ='Dados Operacionais'!AK27 -> 179609 | AL27: ='Dados Operacionais'!AL27 -> 220669 | AM27: ='Dados Operacionais'!AM27 -> 211968 | AN27: ='Dados Operacionais'!AN27 -> 199154 | AO27: ='Dados Operacionais'!AO27 -> 811400 | AP27: ='Dados Operacionais'!AP27 -> 184699 | AQ27: ='Dados Operacionais'!AQ27 -> 166949 | AR27: ='Dados Operacionais'!AR27 -> 162656 | AS27: ='Dados Operacionais'!AS27 -> 208928 | AT27: ='Dados Operacionais'!AT27 -> 723232
A28: Empty Containers | B28: ='Dados Operacionais'!B28 -> 58762.1076 | C28: ='Dados Operacionais'!C28 -> 60745.7149 | D28: ='Dados Operacionais'!D28 -> 70562.1517 | E28: ='Dados Operacionais'!E28 -> 69522.6246 | F28: ='Dados Operacionais'!F28 -> 262701 | G28: ='Dados Operacionais'!G28 -> 62316.2923 | H28: ='Dados Operacionais'!H28 -> 82437.8415 | I28: ='Dados Operacionais'!I28 -> 72251.7404 | J28: ='Dados Operacionais'!J28 -> 66993.4142 | K28: ='Dados Operacionais'!K28 -> 287623 | L28: ='Dados Operacionais'!L28 -> 68609.8626 | M28: ='Dados Operacionais'!M28 -> 66831.3772 | N28: ='Dados Operacionais'!N28 -> 44159.7688 | O28: ='Dados Operacionais'!O28 -> 50807.574 | P28: ='Dados Operacionais'!P28 -> 230408.5826 | Q28: ='Dados Operacionais'!Q28 -> 45423.36 | R28: ='Dados Operacionais'!R28 -> 52993.25 | S28: ='Dados Operacionais'!S28 -> 41290.6839 | T28: ='Dados Operacionais'!T28 -> 43673.1698 | U28: ='Dados Operacionais'!U28 -> 183380.4637 | V28: ='Dados Operacionais'!V28 -> 46293 | W28: ='Dados Operacionais'!W28 -> 45929 | X28: ='Dados Operacionais'!X28 -> 52811 | Y28: ='Dados Operacionais'!Y28 -> 46533 | Z28: ='Dados Operacionais'!Z28 -> 191566 | AA28: ='Dados Operacionais'!AA28 -> 44031 | AB28: ='Dados Operacionais'!AB28 -> 37035 | AC28: ='Dados Operacionais'!AC28 -> 30186 | AD28: ='Dados Operacionais'!AD28 -> 41573 | AE28: ='Dados Operacionais'!AE28 -> 152825 | AF28: ='Dados Operacionais'!AF28 -> 43550 | AG28: ='Dados Operacionais'!AG28 -> 47117 | AH28: ='Dados Operacionais'!AH28 -> 42506 | AI28: ='Dados Operacionais'!AI28 -> 41916 | AJ28: ='Dados Operacionais'!AJ28 -> 175089 | AK28: ='Dados Operacionais'!AK28 -> 38924 | AL28: ='Dados Operacionais'!AL28 -> 61827 | AM28: ='Dados Operacionais'!AM28 -> 51025 | AN28: ='Dados Operacionais'!AN28 -> 53617 | AO28: ='Dados Operacionais'!AO28 -> 205393 | AP28: ='Dados Operacionais'!AP28 -> 49080 | AQ28: ='Dados Operacionais'!AQ28 -> 53413 | AR28: ='Dados Operacionais'!AR28 -> 52201 | AS28: ='Dados Operacionais'!AS28 -> 59498 | AT28: ='Dados Operacionais'!AT28 -> 214192
A29: Imported full container | B29: ='Dados Operacionais'!B29 -> 76522 | C29: ='Dados Operacionais'!C29 -> 91090 | D29: ='Dados Operacionais'!D29 -> 95268 | E29: ='Dados Operacionais'!E29 -> 93234 | F29: ='Dados Operacionais'!F29 -> 356114 | G29: ='Dados Operacionais'!G29 -> 92403 | H29: ='Dados Operacionais'!H29 -> 92529 | I29: ='Dados Operacionais'!I29 -> 83542 | J29: ='Dados Operacionais'!J29 -> 57106 | K29: ='Dados Operacionais'!K29 -> 325580 | L29: ='Dados Operacionais'!L29 -> 61639 | M29: ='Dados Operacionais'!M29 -> 59043 | N29: ='Dados Operacionais'!N29 -> 55673 | O29: ='Dados Operacionais'!O29 -> 51843 | P29: ='Dados Operacionais'!P29 -> 228198 | Q29: ='Dados Operacionais'!Q29 -> 52171 | R29: ='Dados Operacionais'!R29 -> 52960 | S29: ='Dados Operacionais'!S29 -> 51965 | T29: ='Dados Operacionais'!T29 -> 46846 | U29: ='Dados Operacionais'!U29 -> 203942 | V29: ='Dados Operacionais'!V29 -> 45155 | W29: ='Dados Operacionais'!W29 -> 49947 | X29: ='Dados Operacionais'!X29 -> 59711 | Y29: ='Dados Operacionais'!Y29 -> 56864 | Z29: ='Dados Operacionais'!Z29 -> 211677 | AA29: ='Dados Operacionais'!AA29 -> 53387 | AB29: ='Dados Operacionais'!AB29 -> 46078 | AC29: ='Dados Operacionais'!AC29 -> 45708 | AD29: ='Dados Operacionais'!AD29 -> 42609 | AE29: ='Dados Operacionais'!AE29 -> 187782 | AF29: ='Dados Operacionais'!AF29 -> 38699 | AG29: ='Dados Operacionais'!AG29 -> 40895 | AH29: ='Dados Operacionais'!AH29 -> 49346 | AI29: ='Dados Operacionais'!AI29 -> 39579 | AJ29: ='Dados Operacionais'!AJ29 -> 168519 | AK29: ='Dados Operacionais'!AK29 -> 47147 | AL29: ='Dados Operacionais'!AL29 -> 58573 | AM29: ='Dados Operacionais'!AM29 -> 66328 | AN29: ='Dados Operacionais'!AN29 -> 58177 | AO29: ='Dados Operacionais'!AO29 -> 230225 | AP29: ='Dados Operacionais'!AP29 -> 53129 | AQ29: ='Dados Operacionais'!AQ29 -> 45977 | AR29: ='Dados Operacionais'!AR29 -> 44533 | AS29: ='Dados Operacionais'!AS29 -> 44534 | AT29: ='Dados Operacionais'!AT29 -> 188173
A31: Tecon Imbituba
A32: Total handled (# cntrs) | B32: ='Dados Operacionais'!B32 -> 1944 | C32: ='Dados Operacionais'!C32 -> 3910 | D32: ='Dados Operacionais'!D32 -> 4261 | E32: ='Dados Operacionais'!E32 -> 5926 | F32: ='Dados Operacionais'!F32 -> 16041 | G32: ='Dados Operacionais'!G32 -> 3161 | H32: ='Dados Operacionais'!H32 -> 3225 | I32: ='Dados Operacionais'!I32 -> 2744 | J32: ='Dados Operacionais'!J32 -> 2332 | K32: ='Dados Operacionais'!K32 -> 11466 | L32: ='Dados Operacionais'!L32 -> 5070 | M32: ='Dados Operacionais'!M32 -> 12396 | N32: ='Dados Operacionais'!N32 -> 8638 | O32: ='Dados Operacionais'!O32 -> 5631 | P32: ='Dados Operacionais'!P32 -> 32046 | Q32: ='Dados Operacionais'!Q32 -> 6597 | R32: ='Dados Operacionais'!R32 -> 5949 | S32: ='Dados Operacionais'!S32 -> 6494 | T32: ='Dados Operacionais'!T32 -> 6395 | U32: ='Dados Operacionais'!U32 -> 25373 | V32: ='Dados Operacionais'!V32 -> 5825 | W32: ='Dados Operacionais'!W32 -> 5542 | X32: ='Dados Operacionais'!X32 -> 6728 | Y32: ='Dados Operacionais'!Y32 -> 6316 | Z32: ='Dados Operacionais'!Z32 -> 24411 | AA32: ='Dados Operacionais'!AA32 -> 7476 | AB32: ='Dados Operacionais'!AB32 -> 7648 | AC32: ='Dados Operacionais'!AC32 -> 12579 | AD32: ='Dados Operacionais'!AD32 -> 12494 | AE32: ='Dados Operacionais'!AE32 -> 40197 | AF32: ='Dados Operacionais'!AF32 -> 13798 | AG32: ='Dados Operacionais'!AG32 -> 14723 | AH32: ='Dados Operacionais'!AH32 -> 19991 | AI32: ='Dados Operacionais'!AI32 -> 15782 | AJ32: ='Dados Operacionais'!AJ32 -> 64294 | AK32: ='Dados Operacionais'!AK32 -> 12649 | AL32: ='Dados Operacionais'!AL32 -> 10313 | AM32: ='Dados Operacionais'!AM32 -> 11740 | AN32: ='Dados Operacionais'!AN32 -> 13257 | AO32: ='Dados Operacionais'!AO32 -> 47959 | AP32: ='Dados Operacionais'!AP32 -> 10211 | AQ32: ='Dados Operacionais'!AQ32 -> 10789 | AR32: ='Dados Operacionais'!AR32 -> 13005 | AS32: ='Dados Operacionais'!AS32 -> 7673 | AT32: ='Dados Operacionais'!AT32 -> 41678
A33: Full containers | B33: ='Dados Operacionais'!B33 -> 1305.9792 | C33: ='Dados Operacionais'!C33 -> 2390.183 | D33: ='Dados Operacionais'!D33 -> 2583.0182 | E33: ='Dados Operacionais'!E33 -> 3419.8946 | F33: ='Dados Operacionais'!F33 -> 9689 | G33: ='Dados Operacionais'!G33 -> 1954.1302 | H33: ='Dados Operacionais'!H33 -> 1992.0825 | I33: ='Dados Operacionais'!I33 -> 1651.888 | J33: ='Dados Operacionais'!J33 -> 1286.098 | K33: ='Dados Operacionais'!K33 -> 6913 | L33: ='Dados Operacionais'!L33 -> 3441.009 | M33: ='Dados Operacionais'!M33 -> 9889.5288 | N33: ='Dados Operacionais'!N33 -> 6633.984 | O33: ='Dados Operacionais'!O33 -> 3321.1638 | P33: ='Dados Operacionais'!P33 -> 23959 | Q33: ='Dados Operacionais'!Q33 -> 3758.3109 | R33: ='Dados Operacionais'!R33 -> 4376.0844 | S33: ='Dados Operacionais'!S33 -> 3456.7562 | T33: ='Dados Operacionais'!T33 -> 3585.037 | U33: ='Dados Operacionais'!U33 -> 15014 | V33: ='Dados Operacionais'!V33 -> 3312 | W33: ='Dados Operacionais'!W33 -> 3050 | X33: ='Dados Operacionais'!X33 -> 3649 | Y33: ='Dados Operacionais'!Y33 -> 3888 | Z33: ='Dados Operacionais'!Z33 -> 13899 | AA33: ='Dados Operacionais'!AA33 -> 4312 | AB33: ='Dados Operacionais'!AB33 -> 4558 | AC33: ='Dados Operacionais'!AC33 -> 7230 | AD33: ='Dados Operacionais'!AD33 -> 7014 | AE33: ='Dados Operacionais'!AE33 -> 23114 | AF33: ='Dados Operacionais'!AF33 -> 7586 | AG33: ='Dados Operacionais'!AG33 -> 9023 | AH33: ='Dados Operacionais'!AH33 -> 13573 | AI33: ='Dados Operacionais'!AI33 -> 9599 | AJ33: ='Dados Operacionais'!AJ33 -> 39781 | AK33: ='Dados Operacionais'!AK33 -> 7288 | AL33: ='Dados Operacionais'!AL33 -> 5997 | AM33: ='Dados Operacionais'!AM33 -> 7272 | AN33: ='Dados Operacionais'!AN33 -> 7537 | AO33: ='Dados Operacionais'!AO33 -> 28094 | AP33: ='Dados Operacionais'!AP33 -> 6711 | AQ33: ='Dados Operacionais'!AQ33 -> 6170 | AR33: ='Dados Operacionais'!AR33 -> 7417 | AS33: ='Dados Operacionais'!AS33 -> 5210 | AT33: ='Dados Operacionais'!AT33 -> 25508
A34: Empty Containers | B34: ='Dados Operacionais'!B34 -> 638.0208 | C34: ='Dados Operacionais'!C34 -> 1519.817 | D34: ='Dados Operacionais'!D34 -> 1677.9818 | E34: ='Dados Operacionais'!E34 -> 2506.1054 | F34: ='Dados Operacionais'!F34 -> 6352 | G34: ='Dados Operacionais'!G34 -> 1206.8698 | H34: ='Dados Operacionais'!H34 -> 1232.9175 | I34: ='Dados Operacionais'!I34 -> 1092.112 | J34: ='Dados Operacionais'!J34 -> 1045.902 | K34: ='Dados Operacionais'!K34 -> 4553 | L34: ='Dados Operacionais'!L34 -> 1628.991 | M34: ='Dados Operacionais'!M34 -> 2506.4712 | N34: ='Dados Operacionais'!N34 -> 2004.016 | O34: ='Dados Operacionais'!O34 -> 2309.8362 | P34: ='Dados Operacionais'!P34 -> 8087 | Q34: ='Dados Operacionais'!Q34 -> 2838.6891 | R34: ='Dados Operacionais'!R34 -> 1572.9156 | S34: ='Dados Operacionais'!S34 -> 3037.2438 | T34: ='Dados Operacionais'!T34 -> 2809.963 | U34: ='Dados Operacionais'!U34 -> 10359 | V34: ='Dados Operacionais'!V34 -> 2513 | W34: ='Dados Operacionais'!W34 -> 2492 | X34: ='Dados Operacionais'!X34 -> 3079 | Y34: ='Dados Operacionais'!Y34 -> 2428 | Z34: ='Dados Operacionais'!Z34 -> 10512 | AA34: ='Dados Operacionais'!AA34 -> 3164 | AB34: ='Dados Operacionais'!AB34 -> 3090 | AC34: ='Dados Operacionais'!AC34 -> 5349 | AD34: ='Dados Operacionais'!AD34 -> 5480 | AE34: ='Dados Operacionais'!AE34 -> 17083 | AF34: ='Dados Operacionais'!AF34 -> 6212 | AG34: ='Dados Operacionais'!AG34 -> 5700 | AH34: ='Dados Operacionais'!AH34 -> 6418 | AI34: ='Dados Operacionais'!AI34 -> 6183 | AJ34: ='Dados Operacionais'!AJ34 -> 24513 | AK34: ='Dados Operacionais'!AK34 -> 5361 | AL34: ='Dados Operacionais'!AL34 -> 4316 | AM34: ='Dados Operacionais'!AM34 -> 4468 | AN34: ='Dados Operacionais'!AN34 -> 5720 | AO34: ='Dados Operacionais'!AO34 -> 19865 | AP34: ='Dados Operacionais'!AP34 -> 3500 | AQ34: ='Dados Operacionais'!AQ34 -> 4619 | AR34: ='Dados Operacionais'!AR34 -> 5588 | AS34: ='Dados Operacionais'!AS34 -> 2463 | AT34: ='Dados Operacionais'!AT34 -> 16170
A36: Tecon Vila do Conde
A37: Total handled (# cntrs) | B37: ='Dados Operacionais'!B37 -> 5300 | C37: ='Dados Operacionais'!C37 -> 5364 | D37: ='Dados Operacionais'!D37 -> 6110 | E37: ='Dados Operacionais'!E37 -> 7116 | F37: ='Dados Operacionais'!F37 -> 23866 | G37: ='Dados Operacionais'!G37 -> 5116 | H37: ='Dados Operacionais'!H37 -> 5549 | I37: ='Dados Operacionais'!I37 -> 7462 | J37: ='Dados Operacionais'!J37 -> 6766 | K37: ='Dados Operacionais'!K37 -> 25008 | L37: ='Dados Operacionais'!L37 -> 8733 | M37: ='Dados Operacionais'!M37 -> 7918 | N37: ='Dados Operacionais'!N37 -> 10448 | O37: ='Dados Operacionais'!O37 -> 11018 | P37: ='Dados Operacionais'!P37 -> 38735 | Q37: ='Dados Operacionais'!Q37 -> 12627 | R37: ='Dados Operacionais'!R37 -> 10247 | S37: ='Dados Operacionais'!S37 -> 11236 | T37: ='Dados Operacionais'!T37 -> 10916 | U37: ='Dados Operacionais'!U37 -> 48258 | V37: ='Dados Operacionais'!V37 -> 13450 | W37: ='Dados Operacionais'!W37 -> 16946 | X37: ='Dados Operacionais'!X37 -> 16956 | Y37: ='Dados Operacionais'!Y37 -> 19007 | Z37: ='Dados Operacionais'!Z37 -> 65786 | AA37: ='Dados Operacionais'!AA37 -> 17358 | AB37: ='Dados Operacionais'!AB37 -> 17204 | AC37: ='Dados Operacionais'!AC37 -> 21281 | AD37: ='Dados Operacionais'!AD37 -> 21980 | AE37: ='Dados Operacionais'!AE37 -> 77823 | AF37: ='Dados Operacionais'!AF37 -> 23992 | AG37: ='Dados Operacionais'!AG37 -> 22528 | AH37: ='Dados Operacionais'!AH37 -> 26915 | AI37: ='Dados Operacionais'!AI37 -> 29431 | AJ37: ='Dados Operacionais'!AJ37 -> 102866 | AK37: ='Dados Operacionais'!AK37 -> 23747 | AL37: ='Dados Operacionais'!AL37 -> 27270 | AM37: ='Dados Operacionais'!AM37 -> 29410 | AN37: ='Dados Operacionais'!AN37 -> 23835 | AO37: ='Dados Operacionais'!AO37 -> 104262 | AP37: ='Dados Operacionais'!AP37 -> 21331 | AQ37: ='Dados Operacionais'!AQ37 -> 25574 | AR37: ='Dados Operacionais'!AR37 -> 26349 | AS37: ='Dados Operacionais'!AS37 -> 26636 | AT37: ='Dados Operacionais'!AT37 -> 99890
A38: Full containers | B38: ='Dados Operacionais'!B38 -> 2937.26 | C38: ='Dados Operacionais'!C38 -> 3133.1124 | D38: ='Dados Operacionais'!D38 -> 3392.272 | E38: ='Dados Operacionais'!E38 -> 4599.0708 | F38: ='Dados Operacionais'!F38 -> 14028 | G38: ='Dados Operacionais'!G38 -> 2892.0748 | H38: ='Dados Operacionais'!H38 -> 3080.2499 | I38: ='Dados Operacionais'!I38 -> 4184.6896 | J38: ='Dados Operacionais'!J38 -> 4255.1374 | K38: ='Dados Operacionais'!K38 -> 14448 | L38: ='Dados Operacionais'!L38 -> 5203.9947 | M38: ='Dados Operacionais'!M38 -> 4229.7956 | N38: ='Dados Operacionais'!N38 -> 5979.3904 | O38: ='Dados Operacionais'!O38 -> 6999.7354 | P38: ='Dados Operacionais'!P38 -> 22926 | Q38: ='Dados Operacionais'!Q38 -> 7361.541 | R38: ='Dados Operacionais'!R38 -> 5817.2219 | S38: ='Dados Operacionais'!S38 -> 6479.8012 | T38: ='Dados Operacionais'!T38 -> 6687.1416 | U38: ='Dados Operacionais'!U38 -> 28011 | V38: ='Dados Operacionais'!V38 -> 6843 | W38: ='Dados Operacionais'!W38 -> 8851 | X38: ='Dados Operacionais'!X38 -> 9010 | Y38: ='Dados Operacionais'!Y38 -> 9927 | Z38: ='Dados Operacionais'!Z38 -> 34564 | AA38: ='Dados Operacionais'!AA38 -> 10080 | AB38: ='Dados Operacionais'!AB38 -> 9331 | AC38: ='Dados Operacionais'!AC38 -> 11704 | AD38: ='Dados Operacionais'!AD38 -> 12130 | AE38: ='Dados Operacionais'!AE38 -> 43245 | AF38: ='Dados Operacionais'!AF38 -> 14352 | AG38: ='Dados Operacionais'!AG38 -> 12208 | AH38: ='Dados Operacionais'!AH38 -> 13489 | AI38: ='Dados Operacionais'!AI38 -> 15229 | AJ38: ='Dados Operacionais'!AJ38 -> 55278 | AK38: ='Dados Operacionais'!AK38 -> 13754 | AL38: ='Dados Operacionais'!AL38 -> 15071 | AM38: ='Dados Operacionais'!AM38 -> 15625 | AN38: ='Dados Operacionais'!AN38 -> 14102 | AO38: ='Dados Operacionais'!AO38 -> 58552 | AP38: ='Dados Operacionais'!AP38 -> 13347 | AQ38: ='Dados Operacionais'!AQ38 -> 14395 | AR38: ='Dados Operacionais'!AR38 -> 15316 | AS38: ='Dados Operacionais'!AS38 -> 15490 | AT38: ='Dados Operacionais'!AT38 -> 58548
A39: Empty Containers | B39: ='Dados Operacionais'!B39 -> 2362.74 | C39: ='Dados Operacionais'!C39 -> 2230.8876 | D39: ='Dados Operacionais'!D39 -> 2717.728 | E39: ='Dados Operacionais'!E39 -> 2516.9292 | F39: ='Dados Operacionais'!F39 -> 9838 | G39: ='Dados Operacionais'!G39 -> 2223.9252 | H39: ='Dados Operacionais'!H39 -> 2468.7501 | I39: ='Dados Operacionais'!I39 -> 3277.3104 | J39: ='Dados Operacionais'!J39 -> 2510.8626 | K39: ='Dados Operacionais'!K39 -> 10560 | L39: ='Dados Operacionais'!L39 -> 3529.0053 | M39: ='Dados Operacionais'!M39 -> 3688.2044 | N39: ='Dados Operacionais'!N39 -> 4468.6096 | O39: ='Dados Operacionais'!O39 -> 4018.2646 | P39: ='Dados Operacionais'!P39 -> 15809 | Q39: ='Dados Operacionais'!Q39 -> 5265.459 | R39: ='Dados Operacionais'!R39 -> 4429.7781 | S39: ='Dados Operacionais'!S39 -> 4756.1988 | T39: ='Dados Operacionais'!T39 -> 4228.8584 | U39: ='Dados Operacionais'!U39 -> 20247 | V39: ='Dados Operacionais'!V39 -> 6607 | W39: ='Dados Operacionais'!W39 -> 8095 | X39: ='Dados Operacionais'!X39 -> 7946 | Y39: ='Dados Operacionais'!Y39 -> 9080 | Z39: ='Dados Operacionais'!Z39 -> 31222 | AA39: ='Dados Operacionais'!AA39 -> 7278 | AB39: ='Dados Operacionais'!AB39 -> 7873 | AC39: ='Dados Operacionais'!AC39 -> 9577 | AD39: ='Dados Operacionais'!AD39 -> 9850 | AE39: ='Dados Operacionais'!AE39 -> 34578 | AF39: ='Dados Operacionais'!AF39 -> 9640 | AG39: ='Dados Operacionais'!AG39 -> 10320 | AH39: ='Dados Operacionais'!AH39 -> 13426 | AI39: ='Dados Operacionais'!AI39 -> 14202 | AJ39: ='Dados Operacionais'!AJ39 -> 47588 | AK39: ='Dados Operacionais'!AK39 -> 9993 | AL39: ='Dados Operacionais'!AL39 -> 12199 | AM39: ='Dados Operacionais'!AM39 -> 13785 | AN39: ='Dados Operacionais'!AN39 -> 9733 | AO39: ='Dados Operacionais'!AO39 -> 45710 | AP39: ='Dados Operacionais'!AP39 -> 7984 | AQ39: ='Dados Operacionais'!AQ39 -> 11179 | AR39: ='Dados Operacionais'!AR39 -> 11033 | AS39: ='Dados Operacionais'!AS39 -> 11146 | AT39: ='Dados Operacionais'!AT39 -> 41342
A41: SANTOS BRASIL LOGÍSTICA - SBLog
A42: Warehousing operations | B42: ='Dados Operacionais'!B42 -> 17888 | C42: ='Dados Operacionais'!C42 -> 18838 | D42: ='Dados Operacionais'!D42 -> 19935 | E42: ='Dados Operacionais'!E42 -> 19947 | F42: ='Dados Operacionais'!F42 -> 76608 | G42: ='Dados Operacionais'!G42 -> 19702 | H42: ='Dados Operacionais'!H42 -> 21811 | I42: ='Dados Operacionais'!I42 -> 23704 | J42: ='Dados Operacionais'!J42 -> 23600 | K42: ='Dados Operacionais'!K42 -> 88817 | L42: ='Dados Operacionais'!L42 -> 21118 | M42: ='Dados Operacionais'!M42 -> 18408 | N42: ='Dados Operacionais'!N42 -> 21652 | O42: ='Dados Operacionais'!O42 -> 18347 | P42: ='Dados Operacionais'!P42 -> 79525 | Q42: ='Dados Operacionais'!Q42 -> 14240 | R42: ='Dados Operacionais'!R42 -> 13785 | S42: ='Dados Operacionais'!S42 -> 14077 | T42: ='Dados Operacionais'!T42 -> 10809 | U42: ='Dados Operacionais'!U42 -> 52911 | V42: ='Dados Operacionais'!V42 -> 9058 | W42: ='Dados Operacionais'!W42 -> 8798 | X42: ='Dados Operacionais'!X42 -> 9268 | Y42: ='Dados Operacionais'!Y42 -> 8822 | Z42: ='Dados Operacionais'!Z42 -> 35946 | AA42: ='Dados Operacionais'!AA42 -> 9097 | AB42: ='Dados Operacionais'!AB42 -> 10247 | AC42: ='Dados Operacionais'!AC42 -> 12673 | AD42: ='Dados Operacionais'!AD42 -> 12609 | AE42: ='Dados Operacionais'!AE42 -> 44626 | AF42: ='Dados Operacionais'!AF42 -> 12548 | AG42: ='Dados Operacionais'!AG42 -> 13506 | AH42: ='Dados Operacionais'!AH42 -> 14691 | AI42: ='Dados Operacionais'!AI42 -> 13543 | AJ42: ='Dados Operacionais'!AJ42 -> 54288 | AK42: ='Dados Operacionais'!AK42 -> 13262 | AL42: ='Dados Operacionais'!AL42 -> 14715 | AM42: ='Dados Operacionais'!AM42 -> 13988 | AN42: ='Dados Operacionais'!AN42 -> 13129 | AO42: ='Dados Operacionais'!AO42 -> 55094 | AP42: ='Dados Operacionais'!AP42 -> 12109 | AQ42: ='Dados Operacionais'!AQ42 -> 10220 | AR42: ='Dados Operacionais'!AR42 -> 10144 | AS42: ='Dados Operacionais'!AS42 -> 14040 | AT42: ='Dados Operacionais'!AT42 -> 46513
A44: Vehicle Terminal
A45: Vehicles handled | B45: ='Dados Operacionais'!B45 -> 50772 | C45: ='Dados Operacionais'!C45 -> 40721 | D45: ='Dados Operacionais'!D45 -> 49962 | E45: ='Dados Operacionais'!E45 -> 54286 | F45: ='Dados Operacionais'!F45 -> 195741 | G45: ='Dados Operacionais'!G45 -> 50687 | H45: ='Dados Operacionais'!H45 -> 71684 | I45: ='Dados Operacionais'!I45 -> 65015 | J45: ='Dados Operacionais'!J45 -> 69518 | K45: ='Dados Operacionais'!K45 -> 256904 | L45: ='Dados Operacionais'!L45 -> 39572 | M45: ='Dados Operacionais'!M45 -> 49255 | N45: ='Dados Operacionais'!N45 -> 56677 | O45: ='Dados Operacionais'!O45 -> 45228 | P45: ='Dados Operacionais'!P45 -> 190732 | Q45: ='Dados Operacionais'!Q45 -> 44802 | R45: ='Dados Operacionais'!R45 -> 56146 | S45: ='Dados Operacionais'!S45 -> 47714 | T45: ='Dados Operacionais'!T45 -> 62488 | U45: ='Dados Operacionais'!U45 -> 211150 | V45: ='Dados Operacionais'!V45 -> 38426 | W45: ='Dados Operacionais'!W45 -> 52749 | X45: ='Dados Operacionais'!X45 -> 36346 | Y45: ='Dados Operacionais'!Y45 -> 54521 | Z45: ='Dados Operacionais'!Z45 -> 182042 | AA45: ='Dados Operacionais'!AA45 -> 73380 | AB45: ='Dados Operacionais'!AB45 -> 72039 | AC45: ='Dados Operacionais'!AC45 -> 74080 | AD45: ='Dados Operacionais'!AD45 -> 69674 | AE45: ='Dados Operacionais'!AE45 -> 289173 | AF45: ='Dados Operacionais'!AF45 -> 71560 | AG45: ='Dados Operacionais'!AG45 -> 80802 | AH45: ='Dados Operacionais'!AH45 -> 56118 | AI45: ='Dados Operacionais'!AI45 -> 33441 | AJ45: ='Dados Operacionais'!AJ45 -> 241921 | AK45: ='Dados Operacionais'!AK45 -> 48948 | AL45: ='Dados Operacionais'!AL45 -> 53435 | AM45: ='Dados Operacionais'!AM45 -> 39660 | AN45: ='Dados Operacionais'!AN45 -> 35656 | AO45: ='Dados Operacionais'!AO45 -> 177699 | AP45: ='Dados Operacionais'!AP45 -> 48422 | AQ45: ='Dados Operacionais'!AQ45 -> 13897 | AR45: ='Dados Operacionais'!AR45 -> 38701 | AS45: ='Dados Operacionais'!AS45 -> 52491 | AT45: ='Dados Operacionais'!AT45 -> 153511
A46: Imports | B46: ='Dados Operacionais'!B46 -> 20326 | C46: ='Dados Operacionais'!C46 -> 17115 | D46: ='Dados Operacionais'!D46 -> 19976 | E46: ='Dados Operacionais'!E46 -> 16582 | F46: ='Dados Operacionais'!F46 -> 73999 | G46: ='Dados Operacionais'!G46 -> 16635 | H46: ='Dados Operacionais'!H46 -> 28596 | I46: ='Dados Operacionais'!I46 -> 19205 | J46: ='Dados Operacionais'!J46 -> 47498 | K46: ='Dados Operacionais'!K46 -> 111934 | L46: ='Dados Operacionais'!L46 -> 15235.22 | M46: ='Dados Operacionais'!M46 -> 15318.305 | N46: ='Dados Operacionais'!N46 -> 17229.808 | O46: ='Dados Operacionais'!O46 -> 19131.444 | P46: ='Dados Operacionais'!P46 -> 66914.777 | Q46: ='Dados Operacionais'!Q46 -> 9058 | R46: ='Dados Operacionais'!R46 -> 14878 | S46: ='Dados Operacionais'!S46 -> 16513 | T46: ='Dados Operacionais'!T46 -> 8710 | U46: ='Dados Operacionais'!U46 -> 49159 | V46: ='Dados Operacionais'!V46 -> 3615 | W46: ='Dados Operacionais'!W46 -> 5750 | X46: ='Dados Operacionais'!X46 -> 3962 | Y46: ='Dados Operacionais'!Y46 -> 1941 | Z46: ='Dados Operacionais'!Z46 -> 15268 | AA46: ='Dados Operacionais'!AA46 -> 3227 | AB46: ='Dados Operacionais'!AB46 -> 4164 | AC46: ='Dados Operacionais'!AC46 -> 3463 | AD46: ='Dados Operacionais'!AD46 -> 1965 | AE46: ='Dados Operacionais'!AE46 -> 12819 | AF46: ='Dados Operacionais'!AF46 -> 7711 | AG46: ='Dados Operacionais'!AG46 -> 8568 | AH46: ='Dados Operacionais'!AH46 -> 15063 | AI46: ='Dados Operacionais'!AI46 -> 3658 | AJ46: ='Dados Operacionais'!AJ46 -> 35000 | AK46: ='Dados Operacionais'!AK46 -> 5923 | AL46: ='Dados Operacionais'!AL46 -> 9457 | AM46: ='Dados Operacionais'!AM46 -> 3837 | AN46: ='Dados Operacionais'!AN46 -> 4617 | AO46: ='Dados Operacionais'!AO46 -> 23834 | AP46: ='Dados Operacionais'!AP46 -> 11154 | AQ46: ='Dados Operacionais'!AQ46 -> 318 | AR46: ='Dados Operacionais'!AR46 -> 1975 | AS46: ='Dados Operacionais'!AS46 -> 5813 | AT46: ='Dados Operacionais'!AT46 -> 19260
A47: Exports | B47: ='Dados Operacionais'!B47 -> 30446 | C47: ='Dados Operacionais'!C47 -> 23606 | D47: ='Dados Operacionais'!D47 -> 29986 | E47: ='Dados Operacionais'!E47 -> 37704 | F47: ='Dados Operacionais'!F47 -> 121742 | G47: ='Dados Operacionais'!G47 -> 34052 | H47: ='Dados Operacionais'!H47 -> 43088 | I47: ='Dados Operacionais'!I47 -> 45810 | J47: ='Dados Operacionais'!J47 -> 22020 | K47: ='Dados Operacionais'!K47 -> 144970 | L47: ='Dados Operacionais'!L47 -> 24336.78 | M47: ='Dados Operacionais'!M47 -> 33936.695 | N47: ='Dados Operacionais'!N47 -> 39447.192 | O47: ='Dados Operacionais'!O47 -> 26096.556 | P47: ='Dados Operacionais'!P47 -> 123817.223 | Q47: ='Dados Operacionais'!Q47 -> 35744 | R47: ='Dados Operacionais'!R47 -> 41268 | S47: ='Dados Operacionais'!S47 -> 31201 | T47: ='Dados Operacionais'!T47 -> 53778 | U47: ='Dados Operacionais'!U47 -> 161991 | V47: ='Dados Operacionais'!V47 -> 34811 | W47: ='Dados Operacionais'!W47 -> 46999 | X47: ='Dados Operacionais'!X47 -> 32384 | Y47: ='Dados Operacionais'!Y47 -> 52580 | Z47: ='Dados Operacionais'!Z47 -> 166774 | AA47: ='Dados Operacionais'!AA47 -> 70153 | AB47: ='Dados Operacionais'!AB47 -> 67875 | AC47: ='Dados Operacionais'!AC47 -> 70617 | AD47: ='Dados Operacionais'!AD47 -> 67709 | AE47: ='Dados Operacionais'!AE47 -> 276354 | AF47: ='Dados Operacionais'!AF47 -> 63849 | AG47: ='Dados Operacionais'!AG47 -> 72234 | AH47: ='Dados Operacionais'!AH47 -> 41055 | AI47: ='Dados Operacionais'!AI47 -> 29783 | AJ47: ='Dados Operacionais'!AJ47 -> 206921 | AK47: ='Dados Operacionais'!AK47 -> 43025 | AL47: ='Dados Operacionais'!AL47 -> 43978 | AM47: ='Dados Operacionais'!AM47 -> 35823 | AN47: ='Dados Operacionais'!AN47 -> 31039 | AO47: ='Dados Operacionais'!AO47 -> 153865 | AP47: ='Dados Operacionais'!AP47 -> 37268 | AQ47: ='Dados Operacionais'!AQ47 -> 13579 | AR47: ='Dados Operacionais'!AR47 -> 36726 | AS47: ='Dados Operacionais'!AS47 -> 46678 | AT47: ='Dados Operacionais'!AT47 -> 134251
A48: Light vehicles | B48: ='Dados Operacionais'!B48 -> 46782 | C48: ='Dados Operacionais'!C48 -> 36866 | D48: ='Dados Operacionais'!D48 -> 45509 | E48: ='Dados Operacionais'!E48 -> 50994 | F48: ='Dados Operacionais'!F48 -> 180151 | G48: ='Dados Operacionais'!G48 -> 48520 | H48: ='Dados Operacionais'!H48 -> 68389 | I48: ='Dados Operacionais'!I48 -> 61504.19 | J48: ='Dados Operacionais'!J48 -> 65624.992 | K48: ='Dados Operacionais'!K48 -> 244038.182 | L48: ='Dados Operacionais'!L48 -> 35456.512 | M48: ='Dados Operacionais'!M48 -> 46151.935 | N48: ='Dados Operacionais'!N48 -> 52709.61 | O48: ='Dados Operacionais'!O48 -> 42921.372 | P48: ='Dados Operacionais'!P48 -> 177239.429 | Q48: ='Dados Operacionais'!Q48 -> 42382.692 | R48: ='Dados Operacionais'!R48 -> 50195.418 | S48: ='Dados Operacionais'!S48 -> 42720.014 | T48: ='Dados Operacionais'!T48 -> 59176.136 | U48: ='Dados Operacionais'!U48 -> 194474.26 | V48: ='Dados Operacionais'!V48 -> 35006.086 | W48: ='Dados Operacionais'!W48 -> 48740 | X48: ='Dados Operacionais'!X48 -> 31149 | Y48: ='Dados Operacionais'!Y48 -> 50540.967 | Z48: ='Dados Operacionais'!Z48 -> 165436.053 | AA48: ='Dados Operacionais'!AA48 -> 68610.3 | AB48: ='Dados Operacionais'!AB48 -> 65699.568 | AC48: ='Dados Operacionais'!AC48 -> 67635.04 | AD48: ='Dados Operacionais'!AD48 -> 62845.948 | AE48: ='Dados Operacionais'!AE48 -> 264790.856 | AF48: ='Dados Operacionais'!AF48 -> 65262.72 | AG48: ='Dados Operacionais'!AG48 -> 75065 | AH48: ='Dados Operacionais'!AH48 -> 50113.374 | AI48: ='Dados Operacionais'!AI48 -> 28400 | AJ48: ='Dados Operacionais'!AJ48 -> 218841.094 | AK48: ='Dados Operacionais'!AK48 -> 45276.9 | AL48: ='Dados Operacionais'!AL48 -> 48412.11 | AM48: ='Dados Operacionais'!AM48 -> 34991 | AN48: ='Dados Operacionais'!AN48 -> 30968 | AO48: ='Dados Operacionais'!AO48 -> 159648.01 | AP48: ='Dados Operacionais'!AP48 -> 45129.304 | AQ48: ='Dados Operacionais'!AQ48 -> 11672 | AR48: ='Dados Operacionais'!AR48 -> 35221 | AS48: ='Dados Operacionais'!AS48 -> 48786 | AT48: ='Dados Operacionais'!AT48 -> 140808.304
A49: Heavy vehicles | B49: ='Dados Operacionais'!B49 -> 3990 | C49: ='Dados Operacionais'!C49 -> 3855 | D49: ='Dados Operacionais'!D49 -> 4453 | E49: ='Dados Operacionais'!E49 -> 3292 | F49: ='Dados Operacionais'!F49 -> 15590 | G49: ='Dados Operacionais'!G49 -> 2167 | H49: ='Dados Operacionais'!H49 -> 3295 | I49: ='Dados Operacionais'!I49 -> 3510.81 | J49: ='Dados Operacionais'!J49 -> 3893.008 | K49: ='Dados Operacionais'!K49 -> 12865.818 | L49: ='Dados Operacionais'!L49 -> 4115.488 | M49: ='Dados Operacionais'!M49 -> 3103.065 | N49: ='Dados Operacionais'!N49 -> 3967.39 | O49: ='Dados Operacionais'!O49 -> 2306.628 | P49: ='Dados Operacionais'!P49 -> 13492.571 | Q49: ='Dados Operacionais'!Q49 -> 2419.308 | R49: ='Dados Operacionais'!R49 -> 5951.582 | S49: ='Dados Operacionais'!S49 -> 4693.986 | T49: ='Dados Operacionais'!T49 -> 3311.864 | U49: ='Dados Operacionais'!U49 -> 16376.74 | V49: ='Dados Operacionais'!V49 -> 3419.914 | W49: ='Dados Operacionais'!W49 -> 4009 | X49: ='Dados Operacionais'!X49 -> 5197 | Y49: ='Dados Operacionais'!Y49 -> 3980.033 | Z49: ='Dados Operacionais'!Z49 -> 16605.947 | AA49: ='Dados Operacionais'!AA49 -> 4769.7 | AB49: ='Dados Operacionais'!AB49 -> 6339.432 | AC49: ='Dados Operacionais'!AC49 -> 6444.96 | AD49: ='Dados Operacionais'!AD49 -> 6828.052 | AE49: ='Dados Operacionais'!AE49 -> 24382.144 | AF49: ='Dados Operacionais'!AF49 -> 6297.28 | AG49: ='Dados Operacionais'!AG49 -> 5736.871 | AH49: ='Dados Operacionais'!AH49 -> 6004.626 | AI49: ='Dados Operacionais'!AI49 -> 5041 | AJ49: ='Dados Operacionais'!AJ49 -> 23079.777 | AK49: ='Dados Operacionais'!AK49 -> 3671.1 | AL49: ='Dados Operacionais'!AL49 -> 5022.89 | AM49: ='Dados Operacionais'!AM49 -> 4669 | AN49: ='Dados Operacionais'!AN49 -> 4688 | AO49: ='Dados Operacionais'!AO49 -> 18050.99 | AP49: ='Dados Operacionais'!AP49 -> 3292.696 | AQ49: ='Dados Operacionais'!AQ49 -> 2225 | AR49: ='Dados Operacionais'!AR49 -> 3480 | AS49: ='Dados Operacionais'!AS49 -> 3705 | AT49: ='Dados Operacionais'!AT49 -> 12702.696
